Workbook

Sheet Version Contol (hidden)
B2: NAVIGATION
B4: VERSION CONTROL
B6: VERSION NUMBER: | C6: CHANGE MADE BY: | D6: CHANGES IMPLMENTED: | E6: VALIDATED BY: | F6: VALIDATED ON:
B7: 0.10 (TEST) | C7: CRAIG NEILSON | D7: FIRST VERSION OF MODEL FOR TESTING | E7: CRAIG NEILSON | F7: 2016-07-15
B8: 0.21 | C8: CRAIG NEILSON | D8: AMENDED PRICE SETTING MACRO IN 'PRICE CONTROL CONTROL PANEL' TAB TO REDUCE PRECISION OF COMMODITY UNIT RATE CALC AND AVOID GOAL SEEK CALCULATIVE PROBLEMS | E8: MATT MARSHALL | F8: 2016-08-05
B9: 0.22 | C9: CRAIG NEILSON | D9: AMENDED LOOKUP SEQUENCING IN 'ECN MONTHLY REVENUE' SHEET TO REFLECT ALTERNATE CALCULATION OF ECN AVERAGE RATES THAT FEED THE 'DN ENTRY RATE & REVENUE CALCULATION'. SEE COLUMNS M/N AND AJ/AK/AL OF 'ECN MONTHLY REVENUE' TAB | E9: MATT MARSHALL | F9: 2016-08-05
B10: 0.23 | C10: CRAIG NEILSON | D10: CORRECTED CELL VALIDATION IN 'MONTHLY BANK OF ENGLAND BASE RATE' SECTION OF 'UPDATE INPUTS' TAB. THIS HAD BEEN VALIDATED AS A DATE LESS THAN 31/12/2011, BUT SHOULD HAVE BEEN GREATER THAN 31/3/2011. | E10: MATT MARSHALL | F10: 2016-08-05
B11: 0.24 | C11: CRAIG NEILSON | D11: AMENDED THE CURRENT YEAR AVERAGE ECN RATE DATA SOURCE IN THE 'DN ENTRY RATE AND REVENUE' CALCULATION TAB SO BASED ON FIXED POSITIONS DETERMINED THROUGH PRICE SETTING PROCESS AS HARD KEYED INTO 'UPDATE INPUTS' TAB. SEE CELLS AA22:AA47 | E11: MATT MARSHALL | F11: 2016-08-05
B12: 0.25 | C12: CRAIG NEILSON | D12: INCLUDED NETWORK AVERAGE ECN RATES IN 'UPDATE INPUTS' TAB (SEE FROM ROW 1700). ADDED AVERAGE ECN RATES IN 'PRICE CHANGE CONTROL PANEL' (SEE FROM ROW 252) LINKED FROM 'ECN MONTHLY REVENUE' SHEET. | E12: MATT MARSHALL | F12: 2016-08-05
B13: 0.26 | C13: CRAIG NEILSON | D13: INLCUDED UPDATING FORMULA YEAR IN 'APPROVAL LOG' AS A FORMAL UPDATE STEP IN 'UPDATE LOG'. SEE ROW 16 OF 'UPDATE LOG' TAB | E13: MATT MARSHALL | F13: 2016-08-05
B14: 0.27 | C14: CRAIG NEILSON | D14: ADDED 'ANNUAL LOAD FACTORS' INPUT TAB WHICH FEEDS THE 'DOMESTIC BILL ANALYSIS' SHEET. UPDATED 'FLOW DIAGRAM' ACCORDINGLY | E14: MATT MARSHALL | F14: 2016-08-05
B15: 0.28 | C15: CRAIG NEILSON | D15: EXTENDED DATE RANGE OF MOD0186 TABS OUT TO END OF RIIO GD-2. THIS IS TO FACILITATE 5 YEAR ROLLING FORECASTS | E15: MATT MARSHALL | F15: 2016-08-05
B16: 0.29 | C16: CRAIG NEILSON | D16: EXTENDED DATE RANGE OF DOMESTIC BILL CALCULATION TO END OF RIIO GD-2 TO FEED UPDATED MOD0186 TABS | E16: MATT MARSHALL | F16: 2016-08-05
B17: 0.3 | C17: CRAIG NEILSON | D17: IMPLEMENTED A 'CHECK SUMMARY' TAB TO SUMMARISE ALL ACTIVE MODEL CHECK DIGITS IN ONE PLACE | E17: MATT MARSHALL | F17: 2016-08-05
B18: 0.31 | C18: CRAIG NEILSON | D18: REMOVED ROUNDING OF DEMAND VALUES IN MONTHLY REVENUE CALCULATIONS (SEE MONTHLY REVENUE TABS) | E18: MATT MARSHALL | F18: 2016-08-05
B19: 0.32 | C19: CRAIG NEILSON | D19: ADD IN COUNT OF ITEMS STILL BE UPDATED IN 'UPDATE LOG' | E19: MATT MARSHALL | F19: 2016-08-05
B20: 0.33 | C20: CRAIG NEILSON | D20: ADDED TITLE AND VERSION NUMBER INTO NAVIGATION PAGE | E20: MATT MARSHALL | F20: 2016-09-01
B21: 0.34 | C21: CRAIG NEILSON | D21: UPDATED CHECK DIGIT FORMULA ON 'REC TO REVENUE RRP' TAB TO REMOVE ROUNDING TO 3 DP IN FORMULA, BUT REPLACES WITH CONDITIONAL FORMATTING TO FLAG DIFFERENCE GREATER THAN £1,000 FOR INDIVIDUAL NETWORKS AND £2,000 AT TOTAL LEVEL | E21: MATT MARSHALL | F21: 2016-09-01
B22: 0.35 | C22: CRAIG NEILSON | D22: EXTENDED ANALYSIS SECTIONS IN 'UPDATE IMPACT ANALYSIS' TO 50. MACRO UPDATED ACCORDINGLY | E22: MATT MARSHALL | F22: 2016-09-01
B23: 0.36 | C23: CRAIG NEILSON | D23: REMOVED ALL EXTERNAL DATA RANGES REFERENCED FROM PREVIOUS MODEL (CTRL F3 TO CHECK) | E23: MATT MARSHALL | F23: 2016-09-01
B24: 0.37 | C24: CRAIG NEILSON | D24: CORRECTED FORMULAE IN CELL RANGE R56:AC64 IN 'NW MONTHLY REVENUE' TAB AS INCONSISTENT WITH THE OTHER NETWORKS | E24: MATT MARSHALL | F24: 2016-09-01
B25: 0.38 | C25: CRAIG NEILSON | D25: UPDATED ROW LABELLING ON ROW 80 OF 'WM MOD0186' AND 'CADENT MOD0186' TABS AS INCONSISTENT WITH OTHER NETWORKS | E25: MATT MARSHALL | F25: 2016-09-01
B26: 0.39 | C26: CRAIG NEILSON | D26: UPDATED ROW LABELLING ON ROW 120 OF ALL 'MOD0186' TABS FOR CLARITY AND CONSISTENCY | E26: MATT MARSHALL | F26: 2016-09-01
B27: 0.4 | C27: CRAIG NEILSON | D27: CORRECTED FORMULAE IN ROWS 404, 482, 509, 536, 566, 594, 1076 & 1097 OF 'UPDATE INPUTS TAB' (HAD INCLUDED NON NUMBERICAL ROW IN FORMULA RANGE) | E27: MATT MARSHALL | F27: 2016-09-01
B28: 0.41 | C28: CRAIG NEILSON | D28: AMEND UPDATE INPUT FOR NETWORK INNOVATION ALLOWANCE ELIGIBLE COSTS SO FORECAST IS BASED ON NETWORK LEVEL ASSUMPTIONS RATHER THAN TOP LEVEL. INSTRUCTIONS UPDATED ACCORDINGLY. COMMON CALCS ROWS 1832 TO 1835 AMENDED ACCORDINGLY. | E28: MATT MARSHALL | F28: 2016-09-01
B29: 0.42 | C29: CRAIG NEILSON | D29: DEMAND CALCULATION' TABS CORRECTED FORMULAE IN THE FORECAST CALCULATION SECTIONS COMMENCING COLUMN AA (WAS PREVIOUSLY REFERRING TO INCORRECT YEARS IN PRECEDING SECTIONS) | E29: MATT MARSHALL | F29: 2016-09-22
B30: 0.43 | C30: CRAIG NEILSON | D30: DEMAND CALCULATION' TABS - CONVERTED SECTION TOTALS IN '% MOVEMENT' SECTIONS COMMENCING COLUMN Q TO FORMULAE (THESE WERE PREVIOUSLY INPUT CELLS, BUT TRANSPIRED TO BE SUPERFLUOUS) | E30: MATT MARSHALL | F30: 2016-09-22
B31: 0.44 | C31: CRAIG NEILSON | D31: DEMAND CALCULATION' TABS - TEMPORARILY AMENDED FORMULAE IN ROW 295 TO TAKE ACCOUNT OF PROJECT NEXUS IMPLEMENTATION FROM 01/04/17. FIXES SOQs FOR FORMULA YEAR AT LEVEL OF PREVIOUS OCTOBER GAS YEAR CHANGE | E31: MATT MARSHALL | F31: 2016-09-22
B32: 0.45 | C32: CRAIG NEILSON | D32: DEMAND CALCULATION' TABS - TEMPORARILY AMENDED FORMULA IN CELLS AS64:AS79 TO TAKE ACCOUNT OF PROJECT NEXUS IMPLEMENTATION FROM 01/04/17. FIXES SOQs FOR FORMULA YEAR AT LEVEL OF PREVIOUS OCTOBER GAS YEAR CHANGE | E32: MATT MARSHALL | F32: 2016-09-22
B33: 1 | C33: CRAIG NEILSON | D33: VERSION 1.0 FOR IMPLEMENTATION | E33: MATT MARSHALL | F33: 2016-09-22
B34: 1.01 | C34: CRAIG NEILSON | D34: ADDITION OF 'ASSURANCE REVIEW' SHEET (ADMIN & GOVERNANCE). THIS IS A FREE FORM SHEET USED AS PART OF MODEL REVIEW WITH BAND C MANAGERS, DEVELOPED AND AMENDED AS NECESSARY | E34: MATT MARSHALL | F34: 2016-11-16
B35: 1.02 | C35: CRAIG NEILSON | D35: ADDITION OF 'PRICE CHANGE ANALYSES' SHEET (OUTPUTS) THIS IS A FREE FORM SHEET USED TO ASSIST WITH SUMMARIES FOR DSC PRICING PAPERS AND PRICE NOTIFICATIONS | E35: MATT MARSHALL | F35: 2016-11-16
B36: 1.03 | C36: CRAIG NEILSON | D36: ADDITION OF 'PRICE NOTIFICATION TABLES' SHEET (OUTPUTS) A SET OF UNIT PRICE TABLES USED FOR PRODUCTION OF PRICE NOTIFICATION DOCUMENTS | E36: MATT MARSHALL | F36: 2016-11-16
B37: 1.04 | C37: CRAIG NEILSON | D37: ADDED GROUPING TO ROWS 53 - 140 ON 'PRICE CHANGE CONTROL PANEL' TAB. ALLOWS EASIER HIDE / UNHIDE OPTION FOR CALCULATED CELLS NOT FREQUENTY REFERRED TO ELSEWHERE | E37: MATT MARSHALL | F37: 2016-11-16
B38: 1.05 | C38: CRAIG NEILSON | D38: PRICE CHANGE CONTROL PANEL': RESTRUCTURED PRICE CHANGE RECONCILIATION SECTIONS FOR BETTER SUMMARISATION SEE ROWS 194-206, 208-220, 222-234 OF 'PRICE CHANGE CONTROL PANEL' TAB | E38: MATT MARSHALL | F38: 2016-11-16
B39: 1.06 | C39: CRAIG NEILSON | D39: PRICE CHANGE CONTROL PANEL': ADDED ADDITIONAL CROSS CHECK OF PRICE CHANGE % TO VALUES REPORTED IN MOD0186 TABS SEE ROWS 205-206, 219-220, 233-234 OF 'PRICE CHANGE CONTROL PANEL' TAB | E39: MATT MARSHALL | F39: 2016-11-16
B40: 1.07 | C40: CRAIG NEILSON | D40: CORRECTION TO FORMULAE IN CELLS AM31 - AN64 IN EE, LO, NW AND WM MONTHLY REVENUE SHEETS. WERE ERRONEOUSLY REFERING TO CURRENT YEAR CUSTOMER NUMBERS (COLUMN E) INSTEAD OF NEXT YEAR POSITIONS (COLUMN AJ) | E40: MATT MARSHALL | F40: 2016-11-16
B41: 1.08 | C41: CRAIG NEILSON | D41: ADDED POST PERIOD REVENUE ADJUST FOR SHRINKAGE INCENTIVE TO THE 'EE CALCULATIONS', 'LO CALCULATION', 'NW CALCULATIONS', 'WM CALCULATIONS' AND 'CADENT CALCULATIONS' SHEETS PER LICENCE. SEE ROWS 207 - 212 | E41: MATT MARSHALL | F41: 2016-11-16
B42: 1.09 | C42: CRAIG NEILSON | D42: ADDED POST PERIOD REVENUE ADJUST FOR ENVIRONMENTAL EMISSIONS INCENTIVE TO THE 'EE CALCULATIONS', 'LO CALCULATION', 'NW CALCULATIONS', 'WM CALCULATIONS' AND 'CADENT CALCULATIONS' SHEETS PER LICENCE. SEE ROWS 239 - 244 | E42: MATT MARSHALL | F42: 2016-11-16
B43: 1.1 | C43: CRAIG NEILSON | D43: VERSION 1.1 FOR IMPLEMENTATION | E43: MATT MARSHALL | F43: 2016-11-16
B44: 1.11 | C44: CRAIG NEILSON | D44: CASH FLOW MODEL IMPLEMENTED TO PROVIDE DAILY CASH FORECASTS FOR THE BANKING TEAM. | E44: SHAZIA AKHTAR | F44: 2017-01-27
B45: 1.12 | C45: DANISHTAH PARKER | D45: AMENDED INTEREST RATE (It) FORMULA ON 'EE CALCULATIONS', 'LO CALCULATION', 'NW CALCULATIONS', 'WM CALCULATIONS' AND 'CADENT CALCULATIONS' TABS TO PICK UP CORRECT YEAR | E45: SHAZIA AKHTAR | F45: 2017-03-01
B46: 1.13 | C46: CRAIG NEILSON | D46: UPDATED MONTHLY EXIT CAPACITY SECTION OF 'MONTHLY FINANCE UPDATE' TABS. NOW INCLUDES MONTHLY PHASED POSTIONS BY NETWORK. | E46: SHAZIA AKHTAR | F46: 2017-08-14
B47: 1.14 | C47: CRAIG NEILSON | D47: REBRANDED ALL SHEETS TO CADENT | E47: SHAZIA AKHTAR | F47: 2017-08-14
B48: 1.15 | C48: CRAIG NEILSON | D48: EXTENDED TIME HORIZON FOR UPDATE 'UPDATE IMPACT ANALYSIS' TAB OUT TO 2021/22 AND UPDATED MACRO ACCORDINGLY | E48: SHAZIA AKHTAR | F48: 2017-08-14
B49: 1.16 | C49: CRAIG NEILSON | D49: DELETED COLUMNS BEYOND 2025/26 | E49: CRAIG NEILSON | F49: 2019-07-03

Sheet RIIO Allowances (hidden)
B2: NAVIGATION
B4: UPDATE IMPACT ANALYSIS
B6: RIIO ALLOWANCES
B8: INSTRUCTIONS:
B10: 1. THIS SHEET CONTAINS SPECIFIC ALLOWANCES AND TERMS THAT ARE EMBEDDED WITHIN THE GAS TRANSPORTER LICENCE
B11: 2. THERE SHOULD BE NO REASON TO UPDATE THE VALUES FOR 2013/14 TO 2020/21 EXCEPT IN THE FOLLOWING CIRCUMSTANCES:
B12: 2A. THE AEXt TERM (EXIT CAPACITY ALLOWANCE) CAN BE VARIED BY APPLICATION TO OFGEM. THIS IS AN ELECTIVE APPLICATION THAT CAN BE MADE ANNUALLY. THIS SHEET PROVIDES CELLS TO CAPTURE ANY SUCH UPDATES
B13: 2B. THE ALSCt TERM (SHRINKAGE COST ALLOWANCE) CAN BE VARIED BY APPLICATION TO OFGEM. THIS IS AN ELECTIVE APPLICATION THAT CAN BE MADE ANNUALLY. THIS SHEET PROVIDES CELLS TO CAPTURE ANY SUCH UPDATES
B14: 2C. THE SBt TERM (SHRINKAGE BASELINE VOLUME) CAN BE VARIED THROUGH CONSULTATIONS ON THE SHRINKAGE AND LEAKAGE MODEL. THIS SHEET PROVIDES CELLS TO CAPTURE ANY SUCH UPDATES
B15: 2D. THE LBt TERM (LEAKAGE BASELINE VOLUME) CAN BE VARIED THROUGH CONSULTATIONS ON THE SHRINKAGE AND LEAKAGE MODEL. THIS SHEET PROVIDES CELLS TO CAPTURE ANY SUCH UPDATES
B16: 3. THIS SHEET CAN BE USED TO PLAN OR MODEL ALLOWANCES IN FUTURE PRICE CONTROL PERIODS (BEYOND 2020/21)
B17: 4. FOR MODEL INTEGRITY PURPOSES, THIS SHEET WILL BE PROTECTED. IF AN UPDATE IS REQUIRED, UNPROTECT THE SHEET & MAKE THE NECESSARY UPDATES, THEN SWITCH PROTECTION BACK ON
B18: 5. IF MAKING ANY UPDATES TO THIS TAB, ENSURE THE IMPACT IS REVIEWED USING THE 'UPDATE IMPACT ANALYSIS' TAB
B19: 6. BECAUSE THIS SHEET SHOULD ONLY BE UPDATED IN EXCEPTION CIRCUMSTANCES, THE CHANGE LOG BELOW SHOULD BE USED TO RECORD ANY UPDATE.
B20: 7. ANY CHANGES SHOULD BE REVIEWED AND APPROVED BY THE O&M STAKEHOLDER DELIVERY MANAGER
B22: CHANGE MADE | C22: TERM | D22: LICENCE REF | E22: OFGEM DIRECTION | F22: CHANGE MADE BY | H22: DATE | I22: CHANGE REVIEWED BY | K22: DATE
B34: SPECIFIC CONDITIONS | C34: TERM | D34: LICENCE REF | E34: PRICE BASE | F34: 2012/13 | G34: 2013/14 | H34: 2014/15 | I34: 2015/16 | J34: 2016/17 | K34: 2017/18 | L34: 2018/19 | M34: 2019/20 | N34: 2020/21 | O34: 2021/22 | P34: 2022/23 | Q34: 2023/24 | R34: 2024/25 | S34: 2025/26
B35: COST OF EQUITY | G35: 0.067 | H35: 0.067 | I35: 0.067 | J35: 0.067 | K35: 0.067 | L35: 0.067 | M35: 0.067 | N35: 0.067 | O35: 0.045181881 | P35: 0.045302576 | Q35: 0.045495688 | R35: 0.045664661 | S35: 0.045857773
B36: OPENING COST OF DEBT | G36: 0.0292 | H36: 0.0292 | I36: 0.0292 | J36: 0.0292 | K36: 0.0292 | L36: 0.0292 | M36: 0.0292 | N36: 0.0292 | O36: =[4]Input!AP$180 -> 0.02046 | P36: =[4]Input!AQ$180 -> 0.01904 | Q36: =[4]Input!AR$180 -> 0.01796 | R36: =[4]Input!AS$180 -> 0.01714 | S36: =[4]Input!AT$180 -> 0.01653
B37: ASSUMED GEARING | G37: 0.65 | H37: 0.65 | I37: 0.65 | J37: 0.65 | K37: 0.65 | L37: 0.65 | M37: 0.65 | N37: 0.65 | O37: =[4]Input!AP$182 -> 0.6 | P37: =[4]Input!AQ$182 -> 0.6 | Q37: =[4]Input!AR$182 -> 0.6 | R37: =[4]Input!AS$182 -> 0.6 | S37: =[4]Input!AT$182 -> 0.6
B38: TOTEX INCENTIVE STRENGTH FACTOR | C38: IQI | D38: SPECIAL CONDITION 3B APPENDIX 3 | G38: 0.6304 | H38: 0.6304 | I38: 0.6304 | J38: 0.6304 | K38: 0.6304 | L38: 0.6304 | M38: 0.6304 | N38: 0.6304 | O38: 0.5 | P38: =O38 -> 0.5 | Q38: =P38 -> 0.5 | R38: 0.5 | S38: 0.5
B39: NETWORK INNOVATION ALLOWANCE PASS THROUGH FACTOR | C39: PTRAt | G39: 0.9 | H39: 0.9 | I39: 0.9 | J39: 0.9 | K39: 0.9 | L39: 0.9 | M39: 0.9 | N39: 0.9 | O39: 0.9 | P39: 0.9 | Q39: 0.9 | R39: 0.9 | S39: 0.9
B40: INTERNAL NIA EXPENDITURE CAP | C40: Z | G40: 0.25 | H40: 0.25 | I40: 0.25 | J40: 0.25 | K40: 0.25 | L40: 0.25 | M40: 0.25 | N40: 0.25 | O40: 0.25 | P40: 0.25 | Q40: 0.25 | R40: 0.25 | S40: 0.25
B41: DISTRIBUTION NETWORK NIA % | C41: NIAVt | G41: 0.007 | H41: 0.007 | I41: 0.007 | J41: 0.007 | K41: 0.007 | L41: 0.007 | M41: 0.007 | N41: 0.007 | O41: 0.007 | P41: 0.007 | Q41: 0.007 | R41: 0.007 | S41: 0.007 | V41: 18/19 prices
B43: OPENING BASE REVENUE ALLOWANCE (INC. TAX) | C43: TERM | D43: LICENCE REF | E43: PRICE BASE | F43: 2012/13 | G43: 2013/14 | H43: 2014/15 | I43: 2015/16 | J43: 2016/17 | K43: 2017/18 | L43: 2018/19 | M43: 2019/20 | N43: 2020/21 | O43: 2021/22 | P43: 2022/23 | Q43: 2023/24 | R43: 2024/25 | S43: 2025/26 | V43: 2021/22 | W43: 2022/23 | X43: 2023/24 | Y43: 2024/25 | Z43: 2025/26
B44: EAST OF ENGLAND | C44: PUt | D44: SPECIAL CONDITION 1B APPENDIX 1 | E44: 2009/10 | F44: 427090000 | G44: 525500000 | H44: 506400000 | I44: 509700000 | J44: 500200000 | K44: 499000000 | L44: 497900000 | M44: 495100000 | N44: 496200000 | O44: =V44*('Common Calculations'!$C$45/'Common Calculations'!$L$45) ->  | P44: =W44*('Common Calculations'!$C$45/'Common Calculations'!$L$45) ->  | Q44: =X44*('Common Calculations'!$C$45/'Common Calculations'!$L$45) ->  | R44: =Y44*('Common Calculations'!$C$45/'Common Calculations'!$L$45) ->  | S44: =Z44*('Common Calculations'!$C$45/'Common Calculations'!$L$45) ->  | V44: 590535528.7 | W44: 576682609.5 | X44: 598860491 | Y44: 589075681.5 | Z44: 578405407.3 | AH44: =W44-AC44 -> 576682609.5 | AI44: =X44-AD44 -> 598860491 | AJ44: =Y44-AE45 -> 589075681.5 | AK44: 578405407.3
B45: LONDON | F45: 280310000 | G45: 353100000 | H45: 346400000 | I45: 368500000 | J45: 358900000 | K45: 354000000 | L45: 353000000 | M45: 347600000 | N45: 347200000 | O45: =V45*('Common Calculations'!$C$45/'Common Calculations'!$L$45) ->  | P45: =W45*('Common Calculations'!$C$45/'Common Calculations'!$L$45) ->  | Q45: =X45*('Common Calculations'!$C$45/'Common Calculations'!$L$45) ->  | R45: =Y45*('Common Calculations'!$C$45/'Common Calculations'!$L$45) ->  | S45: =Z45*('Common Calculations'!$C$45/'Common Calculations'!$L$45) ->  | V45: 428582193.6 | W45: 425491967.4 | X45: 440885980.9 | Y45: 433042743.4 | Z45: 427113675
B46: NORTH WEST | F46: 295700000 | G46: 381700000 | H46: 364700000 | I46: 367600000 | J46: 361400000 | K46: 363100000 | L46: 361600000 | M46: 361300000 | N46: 360600000 | O46: =V46*('Common Calculations'!$C$45/'Common Calculations'!$L$45) ->  | P46: =W46*('Common Calculations'!$C$45/'Common Calculations'!$L$45) ->  | Q46: =X46*('Common Calculations'!$C$45/'Common Calculations'!$L$45) ->  | R46: =Y46*('Common Calculations'!$C$45/'Common Calculations'!$L$45) ->  | S46: =Z46*('Common Calculations'!$C$45/'Common Calculations'!$L$45) ->  | V46: 412192329.6 | W46: 406162084 | X46: 421223367.2 | Y46: 413606498.9 | Z46: 404739161.3
B47: WEST MIDLANDS | F47: 225630000 | G47: 281900000 | H47: 276300000 | I47: 276300000 | J47: 268500000 | K47: 271600000 | L47: 271900000 | M47: 272200000 | N47: 270000000 | O47: =V47*('Common Calculations'!$C$45/'Common Calculations'!$L$45) ->  | P47: =W47*('Common Calculations'!$C$45/'Common Calculations'!$L$45) ->  | Q47: =X47*('Common Calculations'!$C$45/'Common Calculations'!$L$45) ->  | R47: =Y47*('Common Calculations'!$C$45/'Common Calculations'!$L$45) ->  | S47: =Z47*('Common Calculations'!$C$45/'Common Calculations'!$L$45) ->  | V47: 317988332.5 | W47: 312013272.4 | X47: 322018204.3 | Y47: 315790834 | Z47: 312965499.2
B48: TOTAL | F48: =SUM(F44:F47) -> 1228730000 | G48: =SUM(G44:G47) -> 1542200000 | H48: 1493800000 | I48: 1522100000 | J48: 1489000000 | K48: 1487700000 | L48: 1484400000 | M48: 1476200000 | N48: 1474000000 | V48: =SUM(V44:V47) -> 1749298384 | W48: =SUM(W44:W47) -> 1720349933 | X48: 1782988043 | Y48: 1751515758 | Z48: 1723223743
B50: PRESCRIBED NETWORK RATES ALLOWANCE | C50: TERM | D50: LICENCE REF | E50: PRICE BASE | F50: 2012/13 | G50: 2013/14 | H50: 2014/15 | I50: 2015/16 | J50: 2016/17 | K50: 2017/18 | L50: 2018/19 | M50: 2019/20 | N50: 2020/21 | O50: 2021/22 | P50: 2022/23 | Q50: 2023/24 | R50: 2024/25 | S50: 2025/26 | V50: 2021/22 | W50: 2022/23 | X50: 2023/24 | Y50: 2024/25 | Z50: 2025/26
B51: EAST OF ENGLAND | C51: RBEt | D51: SPECIAL CONDITION 1C APPENDIX 1 | E51: 2009/10 | G51: 50647000 | H51: 50647000 | I51: 50647000 | J51: 50647000 | K51: 50647000 | L51: 50647000 | M51: 50647000 | N51: 50647000 | O51: =V51*('Common Calculations'!$C$45/'Common Calculations'!$L$45) ->  | P51: =W51*('Common Calculations'!$C$45/'Common Calculations'!$L$45) ->  | Q51: =X51*('Common Calculations'!$C$45/'Common Calculations'!$L$45) ->  | R51: =Y51*('Common Calculations'!$C$45/'Common Calculations'!$L$45) ->  | S51: =Z51*('Common Calculations'!$C$45/'Common Calculations'!$L$45) ->  | V51: 69010013.51 | W51: 69010013.51 | X51: 69010013.51 | Y51: 69010013.51 | Z51: 69010013.51
B52: LONDON | G52: 23203000 | H52: 23203000 | I52: 23203000 | J52: 23203000 | K52: 23203000 | L52: 23203000 | M52: 23203000 | N52: 23203000 | O52: =V52*('Common Calculations'!$C$45/'Common Calculations'!$L$45) ->  | P52: =W52*('Common Calculations'!$C$45/'Common Calculations'!$L$45) ->  | Q52: =X52*('Common Calculations'!$C$45/'Common Calculations'!$L$45) ->  | R52: =Y52*('Common Calculations'!$C$45/'Common Calculations'!$L$45) ->  | S52: =Z52*('Common Calculations'!$C$45/'Common Calculations'!$L$45) ->  | V52: 49289417.24 | W52: 49289417.24 | X52: 49289417.24 | Y52: 49289417.24 | Z52: 49289417.24
B53: NORTH WEST | G53: 26284000 | H53: 26284000 | I53: 26284000 | J53: 26284000 | K53: 26284000 | L53: 26284000 | M53: 26284000 | N53: 26284000 | O53: =V53*('Common Calculations'!$C$45/'Common Calculations'!$L$45) ->  | P53: =W53*('Common Calculations'!$C$45/'Common Calculations'!$L$45) ->  | Q53: =X53*('Common Calculations'!$C$45/'Common Calculations'!$L$45) ->  | R53: =Y53*('Common Calculations'!$C$45/'Common Calculations'!$L$45) ->  | S53: =Z53*('Common Calculations'!$C$45/'Common Calculations'!$L$45) ->  | V53: 48778332.91 | W53: 48778332.91 | X53: 48778332.91 | Y53: 48778332.91 | Z53: 48778332.91
B54: WEST MIDLANDS | G54: 21083000 | H54: 21083000 | I54: 21083000 | J54: 21083000 | K54: 21083000 | L54: 21083000 | M54: 21083000 | N54: 21083000 | O54: =V54*('Common Calculations'!$C$45/'Common Calculations'!$L$45) ->  | P54: =W54*('Common Calculations'!$C$45/'Common Calculations'!$L$45) ->  | Q54: =X54*('Common Calculations'!$C$45/'Common Calculations'!$L$45) ->  | R54: =Y54*('Common Calculations'!$C$45/'Common Calculations'!$L$45) ->  | S54: =Z54*('Common Calculations'!$C$45/'Common Calculations'!$L$45) ->  | V54: 36639956.61 | W54: 36639956.61 | X54: 36639956.61 | Y54: 36639956.61 | Z54: 36639956.61
B55: TOTAL | F55: =SUM(F51:F54) -> 0 | G55: 121217000 | H55: 121217000 | I55: 121217000 | J55: 121217000 | K55: 121217000 | L55: 121217000 | M55: 121217000 | N55: 121217000 | V55: =SUM(V51:V54) -> 203717720.3 | W55: =SUM(W51:W54) -> 203717720.3 | X55: =SUM(X51:X54) -> 203717720.3 | Y55: =SUM(Y51:Y54) -> 203717720.3 | Z55: =SUM(Z51:Z54) -> 203717720.3
B57: LICENCE FEE ALLOWANCE | C57: TERM | D57: LICENCE REF | E57: PRICE BASE | F57: 2012/13 | G57: 2013/14 | H57: 2014/15 | I57: 2015/16 | J57: 2016/17 | K57: 2017/18 | L57: 2018/19 | M57: 2019/20 | N57: 2020/21 | O57: 2021/22 | P57: 2022/23 | Q57: 2023/24 | R57: 2024/25 | S57: 2025/26 | V57: 2021/22 | W57: 2022/23 | X57: 2023/24 | Y57: 2024/25 | Z57: 2025/26
B58: EAST OF ENGLAND | C58: LFEt | D58: SPECIAL CONDITION 1C APPENDIX 2 | E58: 2009/10 | G58: 1907000 | H58: 1985000 | I58: 1999000 | J58: 1999000 | K58: 1999000 | L58: 1999000 | M58: 1999000 | N58: 1999000 | O58: =V58*('Common Calculations'!$C$45/'Common Calculations'!$L$45) ->  | P58: =W58*('Common Calculations'!$C$45/'Common Calculations'!$L$45) ->  | Q58: =X58*('Common Calculations'!$C$45/'Common Calculations'!$L$45) ->  | R58: =Y58*('Common Calculations'!$C$45/'Common Calculations'!$L$45) ->  | S58: =Z58*('Common Calculations'!$C$45/'Common Calculations'!$L$45) ->  | V58: 2977789.537 | W58: 2976729.46 | X58: 2977461.26 | Y58: 2976443.994 | Z58: 2977454.8
B59: LONDON | G59: 1097000 | H59: 1142000 | I59: 1150000 | J59: 1150000 | K59: 1150000 | L59: 1150000 | M59: 1150000 | N59: 1150000 | O59: =V59*('Common Calculations'!$C$45/'Common Calculations'!$L$45) ->  | P59: =W59*('Common Calculations'!$C$45/'Common Calculations'!$L$45) ->  | Q59: =X59*('Common Calculations'!$C$45/'Common Calculations'!$L$45) ->  | R59: =Y59*('Common Calculations'!$C$45/'Common Calculations'!$L$45) ->  | S59: =Z59*('Common Calculations'!$C$45/'Common Calculations'!$L$45) ->  | V59: 1691011.833 | W59: 1690409.84 | X59: 1690825.413 | Y59: 1690247.731 | Z59: 1690821.744
B60: NORTH WEST | G60: 1288000 | H60: 1340000 | I60: 1350000 | J60: 1350000 | K60: 1350000 | L60: 1350000 | M60: 1350000 | N60: 1350000 | O60: =V60*('Common Calculations'!$C$45/'Common Calculations'!$L$45) ->  | P60: =W60*('Common Calculations'!$C$45/'Common Calculations'!$L$45) ->  | Q60: =X60*('Common Calculations'!$C$45/'Common Calculations'!$L$45) ->  | R60: =Y60*('Common Calculations'!$C$45/'Common Calculations'!$L$45) ->  | S60: =Z60*('Common Calculations'!$C$45/'Common Calculations'!$L$45) ->  | V60: 1997143 | W60: 1996432.029 | X60: 1996922.832 | Y60: 1996240.572 | Z60: 1996918.499
B61: WEST MIDLANDS | G61: 940000 | H61: 978000 | I61: 985000 | J61: 985000 | K61: 985000 | L61: 985000 | M61: 985000 | N61: 985000 | O61: =V61*('Common Calculations'!$C$45/'Common Calculations'!$L$45) ->  | P61: =W61*('Common Calculations'!$C$45/'Common Calculations'!$L$45) ->  | Q61: =X61*('Common Calculations'!$C$45/'Common Calculations'!$L$45) ->  | R61: =Y61*('Common Calculations'!$C$45/'Common Calculations'!$L$45) ->  | S61: =Z61*('Common Calculations'!$C$45/'Common Calculations'!$L$45) ->  | V61: 1457184.426 | W61: 1456665.684 | X61: 1457023.79 | Y61: 1456525.99 | Z61: 1457020.63
B62: TOTAL | F62: =SUM(F58:F61) -> 0 | G62: 5232000 | H62: 5445000 | I62: 5484000 | J62: 5484000 | K62: 5484000 | L62: 5484000 | M62: 5484000 | N62: 5484000 | V62: =SUM(V58:V61) -> 8123128.796 | W62: =SUM(W58:W61) -> 8120237.014 | X62: =SUM(X58:X61) -> 8122233.296 | Y62: =SUM(Y58:Y61) -> 8119458.287 | Z62: =SUM(Z58:Z61) -> 8122215.671
B64: PENSION DEFICIT ALLOWANCE | C64: TERM | D64: LICENCE REF | E64: PRICE BASE | F64: 2012/13 | G64: 2013/14 | H64: 2014/15 | I64: 2015/16 | J64: 2016/17 | K64: 2017/18 | L64: 2018/19 | M64: 2019/20 | N64: 2020/21 | O64: 2021/22 | P64: 2022/23 | Q64: 2023/24 | R64: 2024/25 | S64: 2025/26 | V64: 2021/22 | W64: 2022/23 | X64: 2023/24 | Y64: 2024/25 | Z64: 2025/26
B65: EAST OF ENGLAND | C65: PDEt | D65: SPECIAL CONDITION 1C APPENDIX 3 | E65: 2009/10 | G65: 6471000 | H65: 6471000 | I65: 6471000 | J65: 6471000 | K65: 6471000 | L65: 6471000 | M65: 6471000 | N65: 6471000 | Q65: =X65*('Common Calculations'!$C$45/'Common Calculations'!$L$45) ->  | R65: =Y65*('Common Calculations'!$C$45/'Common Calculations'!$L$45) ->  | S65: =Z65*('Common Calculations'!$C$45/'Common Calculations'!$L$45) ->  | V65: 11716325.49 | W65: 7247483.373 | X65: 0 | Y65: 0 | Z65: 0
B66: LONDON | G66: 3772000 | H66: 3772000 | I66: 3772000 | J66: 3772000 | K66: 3772000 | L66: 3772000 | M66: 3772000 | N66: 3772000 | Q66: =X66*('Common Calculations'!$C$45/'Common Calculations'!$L$45) ->  | R66: =Y66*('Common Calculations'!$C$45/'Common Calculations'!$L$45) ->  | S66: =Z66*('Common Calculations'!$C$45/'Common Calculations'!$L$45) ->  | V66: 6760045.277 | W66: 4316643.905 | X66: 0 | Y66: 0 | Z66: 0
B67: NORTH WEST | G67: 4444000 | H67: 4444000 | I67: 4444000 | J67: 4444000 | K67: 4444000 | L67: 4444000 | M67: 4444000 | N67: 4444000 | Q67: =X67*('Common Calculations'!$C$45/'Common Calculations'!$L$45) ->  | R67: =Y67*('Common Calculations'!$C$45/'Common Calculations'!$L$45) ->  | S67: =Z67*('Common Calculations'!$C$45/'Common Calculations'!$L$45) ->  | V67: 6602584.991 | W67: 3115011.919 | X67: 0 | Y67: 0 | Z67: 0
B68: WEST MIDLANDS | G68: 3209000 | H68: 3209000 | I68: 3209000 | J68: 3209000 | K68: 3209000 | L68: 3209000 | M68: 3209000 | N68: 3209000 | Q68: =X68*('Common Calculations'!$C$45/'Common Calculations'!$L$45) ->  | R68: =Y68*('Common Calculations'!$C$45/'Common Calculations'!$L$45) ->  | S68: =Z68*('Common Calculations'!$C$45/'Common Calculations'!$L$45) ->  | V68: 7415367.561 | W68: 5129680.295 | X68: 0 | Y68: 0 | Z68: 0
B69: TOTAL | F69: =SUM(F65:F68) -> 0 | G69: 17896000 | H69: 17896000 | I69: 17896000 | J69: 17896000 | K69: 17896000 | L69: 17896000 | M69: 17896000 | N69: 17896000 | O69: 0 | P69: 0 | V69: =SUM(V65:V68) -> 32494323.31 | W69: =SUM(W65:W68) -> 19808819.49 | X69: =SUM(X65:X68) -> 0 | Y69: =SUM(Y65:Y68) -> 0 | Z69: =SUM(Z65:Z68) -> 0
B71: ALLOWED NTS EXIT CAPACITY COST RIIO GD-1 FINAL PROPOSALS | C71: TERM | D71: LICENCE REF | E71: PRICE BASE | F71: 2012/13 | G71: 2013/14 | H71: 2014/15 | I71: 2015/16 | J71: 2016/17 | K71: 2017/18 | L71: 2018/19 | M71: 2019/20 | N71: 2020/21 | O71: 2021/22 | P71: 2022/23 | Q71: 2023/24 | R71: 2024/25 | S71: 2025/26 | V71: 2021/22 | W71: 2022/23 | X71: 2023/24 | Y71: 2024/25 | Z71: 2025/26
B72: EAST OF ENGLAND | C72: AEXt | D72: SPECIAL CONDITION 1D APPENDIX 1 | E72: 2009/10 | G72: 24700000 | H72: 24700000 | I72: 24700000 | J72: 24700000 | K72: 24700000 | L72: 24700000 | M72: 24700000 | N72: 24700000 | O72: =V72*('Common Calculations'!$C$45/'Common Calculations'!$L$45) ->  | P72: =W72*('Common Calculations'!$C$45/'Common Calculations'!$L$45) ->  | Q72: =X72*('Common Calculations'!$C$45/'Common Calculations'!$L$45) ->  | R72: =Y72*('Common Calculations'!$C$45/'Common Calculations'!$L$45) ->  | S72: =Z72*('Common Calculations'!$C$45/'Common Calculations'!$L$45) ->  | V72: 60465952.58 | W72: 61209543.44 | X72: 62441150.19 | Y72: 62104162.95 | Z72: 58965634.82
B73: LONDON | G73: 17200000 | H73: 17100000 | I73: 17100000 | J73: 17100000 | K73: 17100000 | L73: 17100000 | M73: 17100000 | N73: 17100000 | O73: =V73*('Common Calculations'!$C$45/'Common Calculations'!$L$45) ->  | P73: =W73*('Common Calculations'!$C$45/'Common Calculations'!$L$45) ->  | Q73: =X73*('Common Calculations'!$C$45/'Common Calculations'!$L$45) ->  | R73: =Y73*('Common Calculations'!$C$45/'Common Calculations'!$L$45) ->  | S73: =Z73*('Common Calculations'!$C$45/'Common Calculations'!$L$45) ->  | V73: 32343137.83 | W73: 32530686.26 | X73: 33084337.29 | Y73: 32822364.25 | Z73: 31078933.44
B74: NORTH WEST | G74: 31300000 | H74: 31300000 | I74: 31300000 | J74: 31300000 | K74: 31300000 | L74: 31300000 | M74: 31300000 | N74: 31300000 | O74: =V74*('Common Calculations'!$C$45/'Common Calculations'!$L$45) ->  | P74: =W74*('Common Calculations'!$C$45/'Common Calculations'!$L$45) ->  | Q74: =X74*('Common Calculations'!$C$45/'Common Calculations'!$L$45) ->  | R74: =Y74*('Common Calculations'!$C$45/'Common Calculations'!$L$45) ->  | S74: =Z74*('Common Calculations'!$C$45/'Common Calculations'!$L$45) ->  | V74: 38327695.26 | W74: 38277699.46 | X74: 39067533.98 | Y74: 38865329.27 | Z74: 36909070.95
B75: WEST MIDLANDS | G75: 17400000 | H75: 17200000 | I75: 16900000 | J75: 16900000 | K75: 16900000 | L75: 16900000 | M75: 16900000 | N75: 16900000 | O75: =V75*('Common Calculations'!$C$45/'Common Calculations'!$L$45) ->  | P75: =W75*('Common Calculations'!$C$45/'Common Calculations'!$L$45) ->  | Q75: =X75*('Common Calculations'!$C$45/'Common Calculations'!$L$45) ->  | R75: =Y75*('Common Calculations'!$C$45/'Common Calculations'!$L$45) ->  | S75: =Z75*('Common Calculations'!$C$45/'Common Calculations'!$L$45) ->  | V75: 27622007.02 | W75: 28271141.94 | X75: 28804513.76 | Y75: 28581778.41 | Z75: 27049146.78
B76: TOTAL | F76: =SUM(F72:F75) -> 0 | G76: 90600000 | H76: 90300000 | I76: 90000000 | J76: 90000000 | K76: 90000000 | L76: 90000000 | M76: 90000000 | N76: 90000000 | V76: =SUM(V72:V75) -> 158758792.7 | W76: =SUM(W72:W75) -> 160289071.1 | X76: =SUM(X72:X75) -> 163397535.2 | Y76: =SUM(Y72:Y75) -> 162373634.9 | Z76: =SUM(Z72:Z75) -> 154002786
B77: ALLOWED NTS EXIT CAPACITY COST SPECIAL CONDITION 1D.9 / 1D.10 REVISION 1 | C77: TERM | D77: LICENCE REF | E77: PRICE BASE | F77: 2012/13 | G77: 2013/14 | H77: 2014/15 | I77: 2015/16 | J77: 2016/17 | K77: 2017/18 | L77: 2018/19 | M77: 2019/20 | N77: 2020/21 | O77: 2021/22 | P77: 2022/23 | Q77: 2023/24 | R77: 2024/25 | S77: 2025/26
B78: EAST OF ENGLAND | C78: AEXt | D78: SPECIAL CONDITION 1D APPENDIX 1 | E78: 2009/10
B79: LONDON
B80: NORTH WEST
B81: WEST MIDLANDS
B82: TOTAL | F82: =SUM(F78:F81) -> 0 | G82: =SUM(G78:G81) -> 0 | H82: 0 | I82: 0 | J82: 0 | K82: 0 | L82: 0 | M82: 0 | N82: 0 | O82: 0 | P82: 0 | Q82: 0 | R82: 0 | S82: 0
B83: ALLOWED NTS EXIT CAPACITY COST SPECIAL CONDITION 1D.9 / 1D.10 REVISION 2 | C83: TERM | D83: LICENCE REF | E83: PRICE BASE | F83: 2012/13 | G83: 2013/14 | H83: 2014/15 | I83: 2015/16 | J83: 2016/17 | K83: 2017/18 | L83: 2018/19 | M83: 2019/20 | N83: 2020/21 | O83: 2021/22 | P83: 2022/23 | Q83: 2023/24 | R83: 2024/25 | S83: 2025/26
B84: EAST OF ENGLAND | C84: AEXt | D84: SPECIAL CONDITION 1D APPENDIX 1 | E84: 2009/10
B85: LONDON
B86: NORTH WEST
B87: WEST MIDLANDS
B88: TOTAL | F88: =SUM(F84:F87) -> 0 | G88: =SUM(G84:G87) -> 0 | H88: 0 | I88: 0 | J88: 0 | K88: 0 | L88: 0 | M88: 0 | N88: 0 | O88: 0 | P88: 0 | Q88: 0 | R88: 0 | S88: 0
B89: ALLOWED NTS EXIT CAPACITY COST SPECIAL CONDITION 1D.9 / 1D.10 REVISION 3 | C89: TERM | D89: LICENCE REF | E89: PRICE BASE | F89: 2012/13 | G89: 2013/14 | H89: 2014/15 | I89: 2015/16 | J89: 2016/17 | K89: 2017/18 | L89: 2018/19 | M89: 2019/20 | N89: 2020/21 | O89: 2021/22 | P89: 2022/23 | Q89: 2023/24 | R89: 2024/25 | S89: 2025/26
B90: EAST OF ENGLAND | C90: AEXt | D90: SPECIAL CONDITION 1D APPENDIX 1 | E90: 2009/10
B91: LONDON
B92: NORTH WEST
B93: WEST MIDLANDS
B94: TOTAL | F94: =SUM(F90:F93) -> 0 | G94: =SUM(G90:G93) -> 0 | H94: 0 | I94: 0 | J94: 0 | K94: 0 | L94: 0 | M94: 0 | N94: 0 | O94: 0 | P94: 0 | Q94: 0 | R94: 0 | S94: 0
B95: ALLOWED NTS EXIT CAPACITY COST SPECIAL CONDITION 1D.9 / 1D.10 REVISION 4 | C95: TERM | D95: LICENCE REF | E95: PRICE BASE | F95: 2012/13 | G95: 2013/14 | H95: 2014/15 | I95: 2015/16 | J95: 2016/17 | K95: 2017/18 | L95: 2018/19 | M95: 2019/20 | N95: 2020/21 | O95: 2021/22 | P95: 2022/23 | Q95: 2023/24 | R95: 2024/25 | S95: 2025/26
B96: EAST OF ENGLAND | C96: AEXt | D96: SPECIAL CONDITION 1D APPENDIX 1 | E96: 2009/10
B97: LONDON
B98: NORTH WEST
B99: WEST MIDLANDS
B100: TOTAL | F100: =SUM(F96:F99) -> 0 | G100: =SUM(G96:G99) -> 0 | H100: 0 | I100: 0 | J100: 0 | K100: 0 | L100: 0 | M100: 0 | N100: 0 | O100: 0 | P100: 0 | Q100: 0 | R100: 0 | S100: 0
B101: ALLOWED NTS EXIT CAPACITY COST SPECIAL CONDITION 1D.9 / 1D.10 REVISION 5 | C101: TERM | D101: LICENCE REF | E101: PRICE BASE | F101: 2012/13 | G101: 2013/14 | H101: 2014/15 | I101: 2015/16 | J101: 2016/17 | K101: 2017/18 | L101: 2018/19 | M101: 2019/20 | N101: 2020/21 | O101: 2021/22 | P101: 2022/23 | Q101: 2023/24 | R101: 2024/25 | S101: 2025/26
B102: EAST OF ENGLAND | C102: AEXt | D102: SPECIAL CONDITION 1D APPENDIX 1 | E102: 2009/10
B103: LONDON
B104: NORTH WEST
B105: WEST MIDLANDS
B106: TOTAL | F106: =SUM(F102:F105) -> 0 | G106: =SUM(G102:G105) -> 0 | H106: 0 | I106: 0 | J106: 0 | K106: 0 | L106: 0 | M106: 0 | N106: 0 | O106: 0 | P106: 0 | Q106: 0 | R106: 0 | S106: 0
B107: ALLOWED NTS EXIT CAPACITY COST REVISION IN USE | C107: TERM | D107: LICENCE REF | E107: PRICE BASE | F107: 2012/13 | G107: 2013/14 | H107: 2014/15 | I107: 2015/16 | J107: 2016/17 | K107: 2017/18 | L107: 2018/19 | M107: 2019/20 | N107: 2020/21 | O107: 2021/22 | P107: 2022/23 | Q107: 2023/24 | R107: 2024/25 | S107: 2025/26
B108: EAST OF ENGLAND | C108: AEXt | D108: SPECIAL CONDITION 1D APPENDIX 1 | E108: 2009/10 | G108: =IF(IF(IF(IF(IF(G102=0,G96,G102)=0,G90,IF(G102=0,G96,G102))=0,G84,IF(IF(G102=0,G96,G102)=0,G90,IF(G102=0,G96,G102)))=0,G78,IF(IF(IF(G102=0,G96,G102)=0,G90,IF(G102=0,G96,G102))=0,G84,IF(IF(G102=0,G96,G102)=0,G90,IF(G102=0,G96,G102))))=0,G72,IF(IF(IF(IF(G102=0,G96,G102)=0,G90,IF(G102=0,G96,G102))=0,G84,IF(IF(G102=0,G96,G102)=0,G90,IF(G102=0,G96,G102)))=0,G78,IF(IF(IF(G102=0,G96,G102)=0,G90,IF(G102=0,G96,G102))=0,G84,IF(IF(G102=0,G96,G102)=0,G90,IF(G102=0,G96,G102))))) -> 24700000 | H108: =IF(IF(IF(IF(IF(H102=0,H96,H102)=0,H90,IF(H102=0,H96,H102))=0,H84,IF(IF(H102=0,H96,H102)=0,H90,IF(H102=0,H96,H102)))=0,H78,IF(IF(IF(H102=0,H96,H102)=0,H90,IF(H102=0,H96,H102))=0,H84,IF(IF(H102=0,H96,H102)=0,H90,IF(H102=0,H96,H102))))=0,H72,IF(IF(IF(IF(H102=0,H96,H102)=0,H90,IF(H102=0,H96,H102))=0,H84,IF(IF(H102=0,H96,H102)=0,H90,IF(H102=0,H96,H102)))=0,H78,IF(IF(IF(H102=0,H96,H102)=0,H90,IF(H102=0,H96,H102))=0,H84,IF(IF(H102=0,H96,H102)=0,H90,IF(H102=0,H96,H102))))) -> 24700000 | I108: 24700000 | J108: 24700000 | K108: 24700000 | L108: 24700000 | M108: 24700000 | N108: 24700000
B109: LONDON | G109: =IF(IF(IF(IF(IF(G103=0,G97,G103)=0,G91,IF(G103=0,G97,G103))=0,G85,IF(IF(G103=0,G97,G103)=0,G91,IF(G103=0,G97,G103)))=0,G79,IF(IF(IF(G103=0,G97,G103)=0,G91,IF(G103=0,G97,G103))=0,G85,IF(IF(G103=0,G97,G103)=0,G91,IF(G103=0,G97,G103))))=0,G73,IF(IF(IF(IF(G103=0,G97,G103)=0,G91,IF(G103=0,G97,G103))=0,G85,IF(IF(G103=0,G97,G103)=0,G91,IF(G103=0,G97,G103)))=0,G79,IF(IF(IF(G103=0,G97,G103)=0,G91,IF(G103=0,G97,G103))=0,G85,IF(IF(G103=0,G97,G103)=0,G91,IF(G103=0,G97,G103))))) -> 17200000 | H109: 17100000 | I109: 17100000 | J109: 17100000 | K109: 17100000 | L109: 17100000 | M109: 17100000 | N109: 17100000
B110: NORTH WEST | G110: 31300000 | H110: 31300000 | I110: 31300000 | J110: 31300000 | K110: 31300000 | L110: 31300000 | M110: 31300000 | N110: 31300000
B111: WEST MIDLANDS | G111: 17400000 | H111: 17200000 | I111: 16900000 | J111: 16900000 | K111: 16900000 | L111: 16900000 | M111: 16900000 | N111: 16900000
B112: TOTAL | F112: =SUM(F108:F111) -> 0 | G112: =SUM(G108:G111) -> 90600000 | H112: 90300000 | I112: 90000000 | J112: 90000000 | K112: 90000000 | L112: 90000000 | M112: 90000000 | N112: 90000000
B114: TARGET VOLUME OF NTS EXIT (FLAT) CAPACITY | C114: NTSTVEv,t | D114: SPECIAL CONDITION 1D APPENDIX 2 | E114: GWH/d
B115: OFFTAKE POINT | C115: NETWORK | D115: LDZ | E115: EXIT ZONE | F115: 2012/13 | G115: 2013/14 | H115: 2014/15 | I115: 2015/16 | J115: 2016/17 | K115: 2017/18 | L115: 2018/19 | M115: 2019/20 | N115: 2020/21 | O115: 2021/22 | P115: 2022/23 | Q115: 2023/24 | R115: 2024/25 | S115: 2025/26
B116: BACTON | C116: EE | D116: EA | E116: EA1 | G116: 2.7 | H116: 2.7 | I116: 2.7 | J116: 2.7 | K116: 2.7 | L116: 2.7 | M116: 2.7 | N116: 2.7
B117: BRISLEY | C117: EE | D117: EA | E117: EA1 | G117: 2.8 | H117: 2.8 | I117: 2.8 | J117: 2.8 | K117: 2.8 | L117: 2.8 | M117: 2.8 | N117: 2.8
B118: CAMBRIDGE | C118: EE | D118: EA
B119: GREAT WILBRAHAM | C119: EE | D119: EA | E119: EA2 | G119: 32.1 | H119: 32.1 | I119: 32 | J119: 32 | K119: 32 | L119: 32 | M119: 32 | N119: 32
B120: MATCHING GREEN | C120: EE | D120: EA | E120: EA4 | G120: 86.2 | H120: 86.1 | I120: 86 | J120: 86 | K120: 86 | L120: 86 | M120: 86 | N120: 86
B121: PETERBOROUGH EYE (TEE) | C121: EE | D121: EA | E121: EA1 | G121: 24.8 | H121: 24.8 | I121: 24.7 | J121: 24.7 | K121: 24.7 | L121: 24.7 | M121: 24.7 | N121: 24.7
B122: ROUDHAM HEATH | C122: EE | D122: EA | E122: EA2 | G122: 26.1 | H122: 26.1 | I122: 26.1 | J122: 26.1 | K122: 26.1 | L122: 26.1 | M122: 26.1 | N122: 26.1
B123: ROYSTON | C123: EE | D123: EA | E123: EA4 | G123: 2.6 | H123: 2.6 | I123: 2.6 | J123: 2.6 | K123: 2.6 | L123: 2.6 | M123: 2.6 | N123: 2.6
B124: WHITWELL | C124: EE | D124: EA | E124: EA4 | G124: 130.7 | H124: 130.6 | I124: 130.4 | J124: 130.4 | K124: 130.4 | L124: 130.4 | M124: 130.4 | N124: 130.4
B125: WEST WINCH | C125: EE | D125: EA | E125: EA1 | G125: 12.6 | H125: 12.6 | I125: 12.6 | J125: 12.6 | K125: 12.6 | L125: 12.6 | M125: 12.6 | N125: 12.6
B126: YELVERTON | C126: EE | D126: EA | E126: EA3 | G126: 58.6 | H126: 58.5 | I126: 58.5 | J126: 58.5 | K126: 58.5 | L126: 58.5 | M126: 58.5 | N126: 58.5
B127: ALREWAS | C127: EE | D127: EM | E127: EM3 | G127: 116.7 | H127: 116.6 | I127: 116.4 | J127: 116.4 | K127: 116.4 | L127: 116.4 | M127: 116.4 | N127: 116.4
B128: BLABY | C128: EE | D128: EM | E128: EM3 | G128: 12.2 | H128: 12.2 | I128: 12.2 | J128: 12.2 | K128: 12.2 | L128: 12.2 | M128: 12.2 | N128: 12.2
B129: BLYBOROUGH | C129: EE | D129: EM | E129: EM2 | G129: 74.6 | H129: 74.5 | I129: 74.4 | J129: 74.4 | K129: 74.4 | L129: 74.4 | M129: 74.4 | N129: 74.4
B130: CALDECOTT | C130: EE | D130: EM | E130: EM4 | G130: 10.2 | H130: 10.2 | I130: 10.2 | J130: 10.2 | K130: 10.2 | L130: 10.2 | M130: 10.2 | N130: 10.2
B131: THORNTON CURTIS | C131: EE | D131: EM | E131: EM1 | G131: 107 | H131: 106.9 | I131: 106.7 | J131: 106.7 | K131: 106.7 | L131: 106.7 | M131: 106.7 | N131: 106.7
B132: DROINTON | C132: EE | D132: EM | E132: EM3 | G132: 85.6 | H132: 85.5 | I132: 85.4 | J132: 85.4 | K132: 85.4 | L132: 85.4 | M132: 85.4 | N132: 85.4
B133: GOSBERTON | C133: EE | D133: EM | E133: EM2 | G133: 14.5 | H133: 14.5 | I133: 14.5 | J133: 14.5 | K133: 14.5 | L133: 14.5 | M133: 14.5 | N133: 14.5
B134: KIRKSTEAD | C134: EE | D134: EM | E134: EM2 | G134: 0.9 | H134: 0.9 | I134: 0.9 | J134: 0.9 | K134: 0.9 | L134: 0.9 | M134: 0.9 | N134: 0.9
B135: MARKET HARBOROUGH | C135: EE | D135: EM | E135: EM4 | G135: 8.8 | H135: 8.8 | I135: 8.8 | J135: 8.8 | K135: 8.8 | L135: 8.8 | M135: 8.8 | N135: 8.8
B136: SILK WILLOUGHBY | C136: EE | D136: EM | E136: EM2 | G136: 3 | H136: 3 | I136: 3 | J136: 3 | K136: 3 | L136: 3 | M136: 3 | N136: 3
B137: SUTTON BRIDGE | C137: EE | D137: EM | E137: EM3 | G137: 1.7 | H137: 1.7 | I137: 1.7 | J137: 1.7 | K137: 1.7 | L137: 1.7 | M137: 1.7 | N137: 1.7
B138: TUR LANGTON | C138: EE | D138: EM | E138: EM3 | G138: 73.9 | H138: 73.8 | I138: 73.7 | J138: 73.7 | K138: 73.7 | L138: 73.7 | M138: 73.7 | N138: 73.7
B139: WALESBY | C139: EE | D139: EM | E139: EM2 | G139: 0.8 | H139: 0.8 | I139: 0.8 | J139: 0.8 | K139: 0.8 | L139: 0.8 | M139: 0.8 | N139: 0.8
B140: HORNDON | C140: LO | D140: NT | E140: NT2 | G140: 34.4 | H140: 34.4 | I140: 34.3 | J140: 34.3 | K140: 34.3 | L140: 34.3 | M140: 34.3 | N140: 34.3
B141: LUXBOROUGH | C141: LO | D141: NT | E141: NT2 | G141: 98.6 | H141: 98.5 | I141: 98.4 | J141: 98.4 | K141: 98.4 | L141: 98.4 | M141: 98.4 | N141: 98.4
B142: PETERS GREEN | C142: LO | D142: NT | E142: NT3 | G142: 136 | H142: 135.9 | I142: 135.7 | J142: 135.7 | K142: 135.7 | L142: 135.7 | M142: 135.7 | N142: 135.7
B143: PETERS GREEN SOUTH MIMS | C143: LO | D143: NT | E143: NT3 | G143: 185.6 | H143: 185.5 | I143: 185.2 | J143: 185.2 | K143: 185.2 | L143: 185.2 | M143: 185.2 | N143: 185.2
B144: WINKFIELD | C144: LO | D144: NT | E144: NT1 | G144: 12.9 | H144: 12.9 | I144: 12.9 | J144: 12.9 | K144: 12.9 | L144: 12.9 | M144: 12.9 | N144: 12.9
B145: AUDLEY | C145: NW | D145: NW | E145: NW2 | G145: 9.9 | H145: 9.9 | I145: 9.9 | J145: 9.9 | K145: 9.9 | L145: 9.9 | M145: 9.9 | N145: 9.9
B146: BLACKROD | C146: NW | D146: NW | E146: NW1 | G146: 147.8 | H146: 147.7 | I146: 147.6 | J146: 147.6 | K146: 147.6 | L146: 147.6 | M146: 147.6 | N146: 147.6
B147: ECCLESTONE | C147: NW | D147: NW | E147: NW2 | G147: 17 | H147: 16.9 | I147: 16.9 | J147: 16.9 | K147: 16.9 | L147: 16.9 | M147: 16.9 | N147: 16.9
B148: HOLMES CHAPEL | C148: NW | D148: NW | E148: NW2 | G148: 21.2 | H148: 21.2 | I148: 21.1 | J148: 21.1 | K148: 21.1 | L148: 21.1 | M148: 21.1 | N148: 21.1
B149: LUPTON | C149: NW | D149: NW | E149: NW1 | G149: 20 | H149: 19.9 | I149: 19.9 | J149: 19.9 | K149: 19.9 | L149: 19.9 | M149: 19.9 | N149: 19.9
B150: MALPAS | C150: NW | D150: NW | E150: NW2 | G150: 0.8 | H150: 0.8 | I150: 0.8 | J150: 0.8 | K150: 0.8 | L150: 0.8 | M150: 0.8 | N150: 0.8
B151: MICKLE TRAFFORD | C151: NW | D151: NW | E151: NW2 | G151: 23.3 | H151: 23.3 | I151: 23.3 | J151: 23.3 | K151: 23.3 | L151: 23.3 | M151: 23.3 | N151: 23.3
B152: PARTINGTON | C152: NW | D152: NW | E152: NW2 | G152: 62.6 | H152: 62.5 | I152: 62.5 | J152: 62.5 | K152: 62.5 | L152: 62.5 | M152: 62.5 | N152: 62.5
B153: SAMLESBURY | C153: NW | D153: NW | E153: NW1 | G153: 107.4 | H153: 107.3 | I153: 107.2 | J153: 107.2 | K153: 107.2 | L153: 107.2 | M153: 107.2 | N153: 107.2
B154: WARBURTON | C154: NW | D154: NW | E154: NW2 | G154: 113.3 | H154: 113.2 | I154: 113.2 | J154: 113.2 | K154: 113.2 | L154: 113.2 | M154: 113.2 | N154: 113.2
B155: WESTON POINT | C155: NW | D155: NW | E155: NW2 | G155: 12.9 | H155: 12.9 | I155: 12.9 | J155: 12.9 | K155: 12.9 | L155: 12.9 | M155: 12.9 | N155: 12.9
B156: ALREWAS | C156: WM | D156: WM | E156: WM2 | G156: 65.3 | H156: 62.7 | I156: 60.8 | J156: 60.8 | K156: 60.8 | L156: 60.8 | M156: 60.8 | N156: 60.8
B157: ASPLEY | C157: WM | D157: WM | E157: WM1 | G157: 63.6 | H157: 62.2 | I157: 61 | J157: 61 | K157: 61 | L157: 61 | M157: 61 | N157: 61
B158: AUDLEY | C158: WM | D158: WM | E158: WM2 | G158: 15.2 | H158: 14.8 | I158: 14.2 | J158: 14.2 | K158: 14.2 | L158: 14.2 | M158: 14.2 | N158: 14.2
B159: AUSTREY | C159: WM | D159: WM | E159: WM2 | G159: 61.2 | H159: 61.2 | I159: 60.9 | J159: 60.9 | K159: 60.9 | L159: 60.9 | M159: 60.9 | N159: 60.9
B160: LEAMINGTON | C160: WM | D160: WM | E160: WM3 | G160: 2.6 | H160: 2.5 | I160: 2.4 | J160: 2.4 | K160: 2.4 | L160: 2.4 | M160: 2.4 | N160: 2.4
B161: LOWER QUINTON | C161: WM | D161: WM | E161: WM3 | G161: 27.5 | H161: 27.5 | I161: 27.5 | J161: 27.5 | K161: 27.5 | L161: 27.5 | M161: 27.5 | N161: 27.5
B162: MILWICH | C162: WM | D162: WM | E162: WM1 | G162: 22.2 | H162: 22.2 | I162: 22.2 | J162: 22.2 | K162: 22.2 | L162: 22.2 | M162: 22.2 | N162: 22.2
B163: ROSS | C163: WM | D163: WM | E163: WM3 | G163: 9.6 | H163: 9.5 | I163: 9.5 | J163: 9.5 | K163: 9.5 | L163: 9.5 | M163: 9.5 | N163: 9.5
B164: RUGBY | C164: WM | D164: WM | E164: WM3 | G164: 60.7 | H164: 60.1 | I164: 58.2 | J164: 58.2 | K164: 58.2 | L164: 58.2 | M164: 58.2 | N164: 58.2
B165: SHUSTOKE | C165: WM | D165: WM | E165: WM2 | G165: 32.7 | H165: 32.7 | I165: 32.7 | J165: 32.7 | K165: 32.7 | L165: 32.7 | M165: 32.7 | N165: 32.7
B166: STRATFORD-UPON-AVON | C166: WM | D166: WM | E166: WM3 | G166: 3.8 | H166: 3.8 | I166: 3.8 | J166: 3.8 | K166: 3.8 | L166: 3.8 | M166: 3.8 | N166: 3.8
B168: ALLOWED SHRINKAGE COST RIIO GD-1 FINAL PROPOSALS | C168: TERM | D168: LICENCE REF | E168: PRICE BASE | F168: 2012/13 | G168: 2013/14 | H168: 2014/15 | I168: 2015/16 | J168: 2016/17 | K168: 2017/18 | L168: 2018/19 | M168: 2019/20 | N168: 2020/21 | O168: 2021/22 | P168: 2022/23 | Q168: 2023/24 | R168: 2024/25 | S168: 2025/26
B169: EAST OF ENGLAND | C169: ALSCt | D169: SPECIAL CONDITION 1F APPENDIX 1 | E169: 2009/10 | G169: 11800000 | H169: 11700000 | I169: 11600000 | J169: 11400000 | K169: 11200000 | L169: 11000000 | M169: 10900000 | N169: 10700000 | O169: =#REF! ->  | P169: =#REF! ->  | Q169: =#REF! -> 
B170: LONDON | G170: 6100000 | H170: 6000000 | I170: 5900000 | J170: 5800000 | K170: 5700000 | L170: 5600000 | M170: 5400000 | N170: 5300000 | O170: =#REF! ->  | P170: =#REF! ->  | Q170: =#REF! -> 
B171: NORTH WEST | G171: 9000000 | H171: 8800000 | I171: 8700000 | J171: 8500000 | K171: 8300000 | L171: 8100000 | M171: 7900000 | N171: 7700000 | O171: =#REF! ->  | P171: =#REF! ->  | Q171: =#REF! -> 
B172: WEST MIDLANDS | G172: 7000000 | H172: 6900000 | I172: 6900000 | J172: 6700000 | K172: 6600000 | L172: 6500000 | M172: 6400000 | N172: 6300000 | O172: =#REF! ->  | P172: =#REF! ->  | Q172: =#REF! -> 
B173: TOTAL | G173: =SUM(G169:G172) -> 33900000 | H173: 33400000 | I173: 33100000 | J173: 32400000 | K173: 31800000 | L173: 31200000 | M173: 30600000 | N173: 30000000 | R173: 0 | S173: 0
B174: ALLOWED SHRINKAGE COST SPECIAL CONDITION 1F.47 / 1F.48 REVISION 1 | C174: TERM | D174: LICENCE REF | E174: PRICE BASE | F174: 2012/13 | G174: 2013/14 | H174: 2014/15 | I174: 2015/16 | J174: 2016/17 | K174: 2017/18 | L174: 2018/19 | M174: 2019/20 | N174: 2020/21 | O174: 2021/22 | P174: 2022/23 | Q174: 2023/24 | R174: 2024/25 | S174: 2025/26 | V174: 2021/22 | W174: 2022/23 | X174: 2023/24 | Y174: 2024/25 | Z174: 2025/26
B175: EAST OF ENGLAND | C175: ALSCt | D175: SPECIAL CONDITION 1F APPENDIX 1 | E175: 2009/10 | G175: 11800000 | H175: 10800000 | I175: 10670000 | J175: 7920000 | K175: 7740000 | L175: 7550000 | M175: 7360000 | N175: 7180000 | O175: =V175*('Common Calculations'!$C$45/'Common Calculations'!$L$45) ->  | P175: =W175*('Common Calculations'!$C$45/'Common Calculations'!$L$45) ->  | Q175: =X175*('Common Calculations'!$C$45/'Common Calculations'!$L$45) ->  | R175: =Y175*('Common Calculations'!$C$45/'Common Calculations'!$L$45) ->  | S175: =Z175*('Common Calculations'!$C$45/'Common Calculations'!$L$45) ->  | V175: 4759034.913 | W175: 5027339.486 | X175: 4940219.888 | Y175: 4832777.884 | Z175: 4720788.788
B176: LONDON | G176: 6100000 | H176: 5460000 | I176: 5350000 | J176: 4300000 | K176: 4190000 | L176: 4070000 | M176: 3960000 | N176: 3850000 | O176: =V176*('Common Calculations'!$C$45/'Common Calculations'!$L$45) ->  | P176: =W176*('Common Calculations'!$C$45/'Common Calculations'!$L$45) ->  | Q176: =X176*('Common Calculations'!$C$45/'Common Calculations'!$L$45) ->  | R176: =Y176*('Common Calculations'!$C$45/'Common Calculations'!$L$45) ->  | S176: =Z176*('Common Calculations'!$C$45/'Common Calculations'!$L$45) ->  | V176: 2451230.577 | W176: 2559899.048 | X176: 2480226.088 | Y176: 2390270.162 | Z176: 2294739.383
B177: NORTH WEST | G177: 9000000 | H177: 8380000 | I177: 8270000 | J177: 5760000 | K177: 5590000 | L177: 5400000 | M177: 5240000 | N177: 5080000 | O177: =V177*('Common Calculations'!$C$45/'Common Calculations'!$L$45) ->  | P177: =W177*('Common Calculations'!$C$45/'Common Calculations'!$L$45) ->  | Q177: =X177*('Common Calculations'!$C$45/'Common Calculations'!$L$45) ->  | R177: =Y177*('Common Calculations'!$C$45/'Common Calculations'!$L$45) ->  | S177: =Z177*('Common Calculations'!$C$45/'Common Calculations'!$L$45) ->  | V177: 3413054.063 | W177: 3588936.951 | X177: 3513753.852 | Y177: 3428221.864 | Z177: 3334628.892
B178: WEST MIDLANDS | G178: 7000000 | H178: 6790000 | I178: 6790000 | J178: 5010000 | K178: 4880000 | L178: 4770000 | M178: 4670000 | N178: 4540000 | O178: =V178*('Common Calculations'!$C$45/'Common Calculations'!$L$45) ->  | P178: =W178*('Common Calculations'!$C$45/'Common Calculations'!$L$45) ->  | Q178: =X178*('Common Calculations'!$C$45/'Common Calculations'!$L$45) ->  | R178: =Y178*('Common Calculations'!$C$45/'Common Calculations'!$L$45) ->  | S178: =Z178*('Common Calculations'!$C$45/'Common Calculations'!$L$45) ->  | V178: 3065388.378 | W178: 3232009.826 | X178: 3170591.632 | Y178: 3097402.8 | Z178: 3019631.887
B179: TOTAL | G179: =SUM(G175:G178) -> 33900000 | H179: 31430000 | I179: 31080000 | J179: 22990000 | K179: 22400000 | L179: 21790000 | M179: 21230000 | N179: 20650000 | O179: =SUM(O175:O178) ->  | V179: =SUM(V175:V178) -> 13688707.93 | W179: =SUM(W175:W178) -> 14408185.31 | X179: 14104791.46 | Y179: 13748672.71 | Z179: 13369788.95
B180: ALLOWED SHRINKAGE COST SPECIAL CONDITION 1F.47 / 1F.48 REVISION 2 | C180: TERM | D180: LICENCE REF | E180: PRICE BASE | F180: 2012/13 | G180: 2013/14 | H180: 2014/15 | I180: 2015/16 | J180: 2016/17 | K180: 2017/18 | L180: 2018/19 | M180: 2019/20 | N180: 2020/21 | O180: 2021/22 | P180: 2022/23 | Q180: 2023/24 | R180: 2024/25 | S180: 2025/26
B181: EAST OF ENGLAND | C181: ALSCt | D181: SPECIAL CONDITION 1F APPENDIX 1 | E181: 2009/10
B182: LONDON
B183: NORTH WEST
B184: WEST MIDLANDS
B185: TOTAL | G185: =SUM(G181:G184) -> 0 | H185: 0 | I185: 0 | J185: 0 | K185: 0 | L185: 0 | M185: 0 | N185: 0 | O185: 0 | P185: 0 | Q185: 0 | R185: 0 | S185: 0
B186: ALLOWED SHRINKAGE COST SPECIAL CONDITION 1F.47 / 1F.48 REVISION 3 | C186: TERM | D186: LICENCE REF | E186: PRICE BASE | F186: 2012/13 | G186: 2013/14 | H186: 2014/15 | I186: 2015/16 | J186: 2016/17 | K186: 2017/18 | L186: 2018/19 | M186: 2019/20 | N186: 2020/21 | O186: 2021/22 | P186: 2022/23 | Q186: 2023/24 | R186: 2024/25 | S186: 2025/26
B187: EAST OF ENGLAND | C187: ALSCt | D187: SPECIAL CONDITION 1F APPENDIX 1 | E187: 2009/10
B188: LONDON
B189: NORTH WEST
B190: WEST MIDLANDS
B191: TOTAL | G191: =SUM(G187:G190) -> 0 | H191: 0 | I191: 0 | J191: 0 | K191: 0 | L191: 0 | M191: 0 | N191: 0 | O191: 0 | P191: 0 | Q191: 0 | R191: 0 | S191: 0
B192: ALLOWED SHRINKAGE COST SPECIAL CONDITION 1F.47 / 1F.48 REVISION 4 | C192: TERM | D192: LICENCE REF | E192: PRICE BASE | F192: 2012/13 | G192: 2013/14 | H192: 2014/15 | I192: 2015/16 | J192: 2016/17 | K192: 2017/18 | L192: 2018/19 | M192: 2019/20 | N192: 2020/21 | O192: 2021/22 | P192: 2022/23 | Q192: 2023/24 | R192: 2024/25 | S192: 2025/26
B193: EAST OF ENGLAND | C193: ALSCt | D193: SPECIAL CONDITION 1F APPENDIX 1 | E193: 2009/10
B194: LONDON
B195: NORTH WEST
B196: WEST MIDLANDS
B197: TOTAL | G197: =SUM(G193:G196) -> 0 | H197: 0 | I197: 0 | J197: 0 | K197: 0 | L197: 0 | M197: 0 | N197: 0 | O197: 0 | P197: 0 | Q197: 0 | R197: 0 | S197: 0
B198: ALLOWED SHRINKAGE COST SPECIAL CONDITION 1F.47 / 1F.48 REVISION 5 | C198: TERM | D198: LICENCE REF | E198: PRICE BASE | F198: 2012/13 | G198: 2013/14 | H198: 2014/15 | I198: 2015/16 | J198: 2016/17 | K198: 2017/18 | L198: 2018/19 | M198: 2019/20 | N198: 2020/21 | O198: 2021/22 | P198: 2022/23 | Q198: 2023/24 | R198: 2024/25 | S198: 2025/26
B199: EAST OF ENGLAND | C199: ALSCt | D199: SPECIAL CONDITION 1F APPENDIX 1 | E199: 2009/10
B200: LONDON
B201: NORTH WEST
B202: WEST MIDLANDS
B203: TOTAL | G203: =SUM(G199:G202) -> 0 | H203: 0 | I203: 0 | J203: 0 | K203: 0 | L203: 0 | M203: 0 | N203: 0 | O203: 0 | P203: 0 | Q203: 0 | R203: 0 | S203: 0
B204: ALLOWED SHRINKAGE COST REVISION IN USE | C204: TERM | D204: LICENCE REF | E204: PRICE BASE | F204: 2012/13 | G204: 2013/14 | H204: 2014/15 | I204: 2015/16 | J204: 2016/17 | K204: 2017/18 | L204: 2018/19 | M204: 2019/20 | N204: 2020/21 | O204: 2021/22 | P204: 2022/23 | Q204: 2023/24 | R204: 2024/25 | S204: 2025/26
B205: EAST OF ENGLAND | C205: ALSCt | D205: SPECIAL CONDITION 1F APPENDIX 1 | E205: 2009/10 | G205: =IF(IF(IF(IF(IF(G199=0,G193,G199)=0,G187,IF(G199=0,G193,G199))=0,G181,IF(IF(G199=0,G193,G199)=0,G187,IF(G199=0,G193,G199)))=0,G175,IF(IF(IF(G199=0,G193,G199)=0,G187,IF(G199=0,G193,G199))=0,G181,IF(IF(G199=0,G193,G199)=0,G187,IF(G199=0,G193,G199))))=0,G169,IF(IF(IF(IF(G199=0,G193,G199)=0,G187,IF(G199=0,G193,G199))=0,G181,IF(IF(G199=0,G193,G199)=0,G187,IF(G199=0,G193,G199)))=0,G175,IF(IF(IF(G199=0,G193,G199)=0,G187,IF(G199=0,G193,G199))=0,G181,IF(IF(G199=0,G193,G199)=0,G187,IF(G199=0,G193,G199))))) -> 11800000 | H205: 10800000 | I205: 10670000 | J205: 7920000 | K205: 7740000 | L205: 7550000 | M205: 7360000 | N205: 7180000 | R205: =IF(IF(IF(IF(IF(R199=0,R193,R199)=0,R187,IF(R199=0,R193,R199))=0,R181,IF(IF(R199=0,R193,R199)=0,R187,IF(R199=0,R193,R199)))=0,R175,IF(IF(IF(R199=0,R193,R199)=0,R187,IF(R199=0,R193,R199))=0,R181,IF(IF(R199=0,R193,R199)=0,R187,IF(R199=0,R193,R199))))=0,R169,IF(IF(IF(IF(R199=0,R193,R199)=0,R187,IF(R199=0,R193,R199))=0,R181,IF(IF(R199=0,R193,R199)=0,R187,IF(R199=0,R193,R199)))=0,R175,IF(IF(IF(R199=0,R193,R199)=0,R187,IF(R199=0,R193,R199))=0,R181,IF(IF(R199=0,R193,R199)=0,R187,IF(R199=0,R193,R199))))) -> 
B206: LONDON | G206: =IF(IF(IF(IF(IF(G200=0,G194,G200)=0,G188,IF(G200=0,G194,G200))=0,G182,IF(IF(G200=0,G194,G200)=0,G188,IF(G200=0,G194,G200)))=0,G176,IF(IF(IF(G200=0,G194,G200)=0,G188,IF(G200=0,G194,G200))=0,G182,IF(IF(G200=0,G194,G200)=0,G188,IF(G200=0,G194,G200))))=0,G170,IF(IF(IF(IF(G200=0,G194,G200)=0,G188,IF(G200=0,G194,G200))=0,G182,IF(IF(G200=0,G194,G200)=0,G188,IF(G200=0,G194,G200)))=0,G176,IF(IF(IF(G200=0,G194,G200)=0,G188,IF(G200=0,G194,G200))=0,G182,IF(IF(G200=0,G194,G200)=0,G188,IF(G200=0,G194,G200))))) -> 6100000 | H206: 5460000 | I206: 5350000 | J206: 4300000 | K206: 4190000 | L206: 4070000 | M206: 3960000 | N206: 3850000
B207: NORTH WEST | G207: =IF(IF(IF(IF(IF(G201=0,G195,G201)=0,G189,IF(G201=0,G195,G201))=0,G183,IF(IF(G201=0,G195,G201)=0,G189,IF(G201=0,G195,G201)))=0,G177,IF(IF(IF(G201=0,G195,G201)=0,G189,IF(G201=0,G195,G201))=0,G183,IF(IF(G201=0,G195,G201)=0,G189,IF(G201=0,G195,G201))))=0,G171,IF(IF(IF(IF(G201=0,G195,G201)=0,G189,IF(G201=0,G195,G201))=0,G183,IF(IF(G201=0,G195,G201)=0,G189,IF(G201=0,G195,G201)))=0,G177,IF(IF(IF(G201=0,G195,G201)=0,G189,IF(G201=0,G195,G201))=0,G183,IF(IF(G201=0,G195,G201)=0,G189,IF(G201=0,G195,G201))))) -> 9000000 | H207: 8380000 | I207: 8270000 | J207: 5760000 | K207: 5590000 | L207: 5400000 | M207: 5240000 | N207: 5080000
B208: WEST MIDLANDS | G208: =IF(IF(IF(IF(IF(G202=0,G196,G202)=0,G190,IF(G202=0,G196,G202))=0,G184,IF(IF(G202=0,G196,G202)=0,G190,IF(G202=0,G196,G202)))=0,G178,IF(IF(IF(G202=0,G196,G202)=0,G190,IF(G202=0,G196,G202))=0,G184,IF(IF(G202=0,G196,G202)=0,G190,IF(G202=0,G196,G202))))=0,G172,IF(IF(IF(IF(G202=0,G196,G202)=0,G190,IF(G202=0,G196,G202))=0,G184,IF(IF(G202=0,G196,G202)=0,G190,IF(G202=0,G196,G202)))=0,G178,IF(IF(IF(G202=0,G196,G202)=0,G190,IF(G202=0,G196,G202))=0,G184,IF(IF(G202=0,G196,G202)=0,G190,IF(G202=0,G196,G202))))) -> 7000000 | H208: 6790000 | I208: 6790000 | J208: 5010000 | K208: 4880000 | L208: 4770000 | M208: 4670000 | N208: 4540000
B209: TOTAL | G209: =SUM(G205:G208) -> 33900000 | H209: 31430000 | I209: 31080000 | J209: 22990000 | K209: 22400000 | L209: 21790000 | M209: 21230000 | N209: 20650000
B211: BASELINE SHRINKAGE VOLUMES RIIO GD-1 FINAL PROPOSALS | C211: TERM | D211: LICENCE REF | E211: PRICE BASE | F211: 2012/13 | G211: 2013/14 | H211: 2014/15 | I211: 2015/16 | J211: 2016/17 | K211: 2017/18 | L211: 2018/19 | M211: 2019/20 | N211: 2020/21 | O211: 2021/22 | P211: 2022/23 | Q211: 2023/24 | R211: 2024/25 | S211: 2025/26
B212: EAST OF ENGLAND | C212: SBt | D212: SPECIAL CONDITION 1F APPENDIX 2 | G212: 569 | H212: 558 | I212: 547 | J212: 535 | K212: 524 | L212: 513 | M212: 502 | N212: 491
B213: LONDON | G213: 317 | H213: 310 | I213: 302 | J213: 295 | K213: 288 | L213: 281 | M213: 274 | N213: 267
B214: NORTH WEST | G214: 407 | H214: 397 | I214: 386 | J214: 376 | K214: 366 | L214: 355 | M214: 345 | N214: 335
B215: WEST MIDLANDS | G215: 335 | H215: 328 | I215: 321 | J215: 315 | K215: 308 | L215: 301 | M215: 295 | N215: 288
B216: TOTAL | G216: =SUM(G212:G215) -> 1628 | H216: 1593 | I216: 1556 | J216: 1521 | K216: 1486 | L216: 1450 | M216: 1416 | N216: 1381 | O216: 0 | P216: 0 | Q216: 0 | R216: 0 | S216: 0
B217: BASELINE SHRINKAGE VOLUMES REVISION 1 | C217: TERM | D217: LICENCE REF | E217: PRICE BASE | F217: 2012/13 | G217: 2013/14 | H217: 2014/15 | I217: 2015/16 | J217: 2016/17 | K217: 2017/18 | L217: 2018/19 | M217: 2019/20 | N217: 2020/21 | O217: 2021/22 | P217: 2022/23 | Q217: 2023/24 | R217: 2024/25 | S217: 2025/26
B218: EAST OF ENGLAND | C218: SBt | D218: SPECIAL CONDITION 1F APPENDIX 2 | G218: 569 | H218: 515 | I218: 503 | J218: 490 | K218: 479 | L218: 467 | M218: 455 | N218: 444
B219: LONDON | G219: 317 | H219: 282 | I219: 274 | J219: 266 | K219: 259 | L219: 252 | M219: 245 | N219: 238
B220: NORTH WEST | G220: 407 | H220: 378 | I220: 367 | J220: 356 | K220: 346 | L220: 334 | M220: 324 | N220: 314
B221: WEST MIDLANDS | G221: 335 | H221: 323 | I221: 316 | J221: 310 | K221: 302 | L221: 295 | M221: 289 | N221: 281
B222: TOTAL | G222: =SUM(G218:G221) -> 1628 | H222: 1498 | I222: 1460 | J222: 1422 | K222: 1386 | L222: 1348 | M222: 1313 | N222: 1277 | O222: 0 | P222: 0 | Q222: 0 | R222: 0 | S222: 0
B223: BASELINE SHRINKAGE VOLUMES REVISION 2 | C223: TERM | D223: LICENCE REF | E223: PRICE BASE | F223: 2012/13 | G223: 2013/14 | H223: 2014/15 | I223: 2015/16 | J223: 2016/17 | K223: 2017/18 | L223: 2018/19 | M223: 2019/20 | N223: 2020/21 | O223: 2021/22 | P223: 2022/23 | Q223: 2023/24 | R223: 2024/25 | S223: 2025/26
B224: EAST OF ENGLAND | C224: SBt | D224: SPECIAL CONDITION 1F APPENDIX 2
B225: LONDON
... 107 more rows

Sheet UNC Revenue Splits (hidden)
A1: EAST OF ENGLAND | H1: 30 | I1: 31 | J1: 30 | K1: 31 | L1: 31 | M1: 30
R2: Achieved Revenue Splits Oct -18 to Sept -19
A3: FORMULA YEAR | B3: 2018-10-01 | C3: 2018-11-01 | D3: 2018-12-01 | E3: 2019-01-01 | F3: 2019-02-01 | G3: 2019-03-01 | H3: 2019-04-01 | I3: 2019-05-01 | J3: 2019-06-01 | K3: 2019-07-01 | L3: 2019-08-01 | M3: 2019-09-01 | R3: Network | S3: EE | T3: LO | U3: NW | V3: WM
A4: SYSTEM COMMODITY (£) | B4: 1763278.88 | C4: 2556933.08 | D4: 2974985.15 | E4: 3557495.88 | F4: 2661240.9 | G4: 2453561.69 | H4: 1784164.79 | I4: 1205360.3 | J4: 762793.4 | K4: 591141.15 | L4: 615604.85 | M4: 832670.42 | O4: =SUM(B4:M4) -> 21759230.49 | R4: LDZ SYSTEM COMMODITY | S4: =O4/P7 -> 0.04957327114 | T4: =O21/P22 -> 0.04805823687 | U4: =O35/P36 -> 0.05020971062 | V4: =O49/P50 -> 0.04910371864
A5: RECONCILLIATION (£) | H5: 0 | I5: 0 | J5: 0 | K5: 0 | O5: =SUM(B5:M5) -> 0 | R5: LDZ SYSTEM CAPACITY | S5: =O7/P7 -> 0.9504267289 | T5: =O22/P22 -> 0.9519417631 | U5: =O36/P36 -> 0.9497902894 | V5: =O50/P50 -> 0.9508962814
A6: COMMODITY INCOME (£) | B6: 1763278.88 | C6: 2556933.08 | D6: 2974985.15 | E6: 3557495.88 | F6: =F4 -> 2661240.9 | G6: =G4 -> 2453561.69 | H6: 1784164.79 | I6: 1205360.3 | J6: 762793.4 | K6: 591141.15 | L6: 615604.85 | M6: 832670.42 | O6: 21759230.49 | R6: LDZ SYSTEM CHARGES | S6: =(O7+O6)/P8 -> 0.7053857743 | T6: =(O21+O22)/P23 -> 0.6811353699 | U6: =(O35+O36)/P37 -> 0.7367787474 | V6: =(O49+O50)/P51 -> 0.7406576628
A7: SYSTEM CAPACITY (£) | B7: 35339444.66 | C7: 34280368.64 | D7: 35368892.57 | E7: 35453075.1 | F7: 32022846.19 | G7: 35502960.59 | H7: 34250208.23 | I7: 35432387.68 | J7: 34304790.1 | K7: 35466836.37 | L7: 35431463.82 | M7: 34318193.26 | O7: 417171467.2 | P7: =SUM(O6:O7) -> 438930697.7 | R7: CUSTOMER CHARGES | S7: =(O8+O9)/P8 -> 0.2946142257 | T7: =(O24+O23)/P23 -> 0.3188646301 | U7: =(O38+O37)/P37 -> 0.2632212526 | V7: =(O52+O51)/P51 -> 0.2593423372
A8: CUSTOMER CAPACITY (£) | B8: 15119069.4 | C8: 14641262.75 | D8: 15112620.49 | E8: 15142035.84 | F8: 13664187.82 | G8: 15134641.78 | H8: 14731628.28 | I8: 15227260.61 | J8: 14739994.6 | K8: 15233036.29 | L8: 15232260.66 | M8: 14745329.62 | O8: 178723328.1 | P8: =O7+O8+O9+O6 -> 622256237.2
A9: CUSTOMER FIXED (£) | B9: 395536.04 | C9: 382796.05 | D9: 394598.41 | E9: 395345.39 | F9: 357789.82 | G9: 396894.96 | H9: 372721.4 | I9: 385165.84 | J9: 373432.3 | K9: 386088.34 | L9: 386508.04 | M9: 375334.76 | O9: 4602211.35 | R9: UNC TARGET REVENU SPLITS
A10: ECN (£) | B10: 2200646.16 | C10: 2136371.16 | D10: 2205047.24 | E10: 2212790.09 | F10: 1999393.92 | G10: 2217453.05 | H10: 2189494.32 | I10: 2267073.99 | J10: 2192594.01 | K10: 2267298.31 | L10: 2268582.44 | M10: 2197325.07 | O10: 26354069.76 | R10: LDZ SYSTEM COMMODITY | S10: 0.05 | T10: 0.05 | U10: 0.05 | V10: 0.05
A11: CAPACITY INCOME (£) | B11: 53054696.26 | C11: 51440798.6 | D11: 53081158.71 | E11: 53203246.42 | F11: =F7+F8+F9+F10 -> 48044217.75 | G11: =G7+G8+G9+G10 -> 53251950.38 | H11: 51544052.23 | I11: 53311888.12 | J11: 51610811.01 | K11: 53353259.31 | L11: 53318814.96 | M11: 51636182.71 | O11: 626851076.5 | R11: LDZ SYSTEM CAPACITY | S11: 0.95 | T11: 0.95 | U11: 0.95 | V11: 0.95
A12: OTHER INCOME | B12: 0 | H12: 0 | I12: 0 | J12: 0 | K12: 0 | O12: 0 | R12: LDZ SYSTEM CHARGES | S12: 0.705 | T12: 0.681 | U12: 0.737 | V12: 0.74
A13: TOTAL (£) | B13: 54817975.14 | C13: 53997731.68 | D13: 56056143.86 | E13: 56760742.3 | F13: =F11+F6 -> 50705458.65 | G13: =G11+G6 -> 55705512.07 | H13: 53328217.02 | I13: 54517248.42 | J13: 52373604.41 | K13: 53944400.46 | L13: 53934419.81 | M13: 52468853.13 | O13: 648610306.9 | R13: CUSTOMER CHARGES | S13: 0.295 | T13: 0.319 | U13: 0.263 | V13: 0.26
R15: VARIANCE
A16: LONDON | R16: LDZ SYSTEM COMMODITY | S16: =S4-S10 -> -0.0004267288572 | T16: =T4-T10 -> -0.001941763126 | U16: 0.0002097106187 | V16: =V4-V10 -> -0.0008962813612
R17: LDZ SYSTEM CAPACITY | S17: =S5-S11 -> 0.0004267288572 | T17: 0.001941763126 | U17: -0.0002097106187 | V17: 0.0008962813612
A18: FORMULA YEAR | B18: 2018-10-01 | C18: 2018-11-01 | D18: 2018-12-01 | E18: 2019-01-01 | F18: 2019-02-01 | G18: 2019-03-01 | H18: 2019-04-01 | I18: 2019-05-01 | J18: 2019-06-01 | K18: 2019-07-01 | L18: 2019-08-01 | M18: 2019-09-01 | R18: LDZ SYSTEM CHARGES | S18: =S6-S12 -> 0.0003857743269 | T18: 0.0001353698761 | U18: -0.0002212525893 | V18: 0.0006576628126
A19: SYSTEM COMMODITY (£) | B19: 1077668.81 | C19: 1610980.83 | D19: 1867155.06 | E19: 2256993.07 | F19: 1685414.28 | G19: 1549431.63 | H19: 1248899.78 | I19: 856020 | J19: 555833.74 | K19: 409358.49 | L19: 426700.44 | M19: 539580.36 | O19: =SUM(B19:M19) -> 14084036.49 | R19: CUSTOMER CHARGES | S19: =S7-S13 -> -0.0003857743269 | T19: -0.0001353698761 | U19: 0.0002212525893 | V19: -0.0006576628126
A20: RECONCILLIATION (£) | H20: 0 | I20: 0 | J20: 0 | K20: 0 | O20: 0
A21: COMMODITY INCOME (£) | B21: 1077668.81 | C21: 1610980.83 | D21: 1867155.06 | E21: 2256993.07 | F21: =F19 -> 1685414.28 | G21: =G19 -> 1549431.63 | H21: =H19 -> 1248899.78 | I21: 856020 | J21: 555833.74 | K21: 409358.49 | L21: 426700.44 | M21: 539580.36 | O21: 14084036.49
A22: SYSTEM CAPACITY (£) | B22: 22866350.72 | C22: 22142749.4 | D22: 22858841.02 | E22: 22908964.18 | F22: 20709363.77 | G22: 22939538.01 | H22: 23654126.63 | I22: 24465510.08 | J22: 23697206.41 | K22: 24494724.13 | L22: 24507195.17 | M22: 23733258.22 | O22: 278977827.7 | P22: =SUM(O21:O22) -> 293061864.2
A23: CUSTOMER CAPACITY (£) | B23: 10831365.31 | C23: 10484952.15 | D23: 10818415.46 | E23: 10838432.41 | F23: 9792313.11 | G23: 10843554.95 | H23: 11286382.28 | I23: 11665227.84 | J23: 11291496.36 | K23: 11670998.93 | L23: 11673453.03 | M23: 11297695.01 | O23: 132494286.8 | P23: =O22+O23+O24+O21 -> 430254949.6
A24: CUSTOMER FIXED (£) | B24: 388279.81 | C24: 376143.4 | D24: 387578.8 | E24: 388769.77 | F24: 351635.04 | G24: 389907.36 | H24: 395352.84 | I24: 408041.96 | J24: 396026.43 | K24: 409496.01 | L24: 409884.57 | M24: 397682.53 | O24: 4698798.52
A25: ECN (£) | B25: 1685656.31 | C25: 1631836.66 | D25: 1684595.76 | E25: 1687615.7 | F25: 1524149.7 | G25: 1688945.09 | H25: 1691619.95 | I25: 1750480.52 | J25: 1695848.04 | K25: 1752865.1 | L25: 1753844.18 | M25: 1698940.84 | O25: 20246397.85
A26: CAPACITY INCOME (£) | B26: 35771652.15 | C26: 34635681.61 | D26: 35749431.04 | E26: 35823782.06 | F26: =F22+F23+F24+F25 -> 32377461.62 | G26: 35861945.41 | H26: =SUM(H22:H25) -> 37027481.7 | I26: 38289260.4 | J26: 37080577.24 | K26: 38328084.17 | L26: 38344376.95 | M26: 37127576.6 | O26: 436417310.9
A27: OTHER INCOME | B27: 0 | H27: 0 | I27: 0 | J27: 0 | K27: 0 | O27: 0
A28: TOTAL (£) | B28: 36849320.96 | C28: 36246662.44 | D28: 37616586.1 | E28: 38080775.13 | F28: =F26+F21 -> 34062875.9 | G28: =G26+G21 -> 37411377.04 | H28: =H21+H26+H27 -> 38276381.48 | I28: =I21+I26+I27 -> 39145280.4 | J28: 37636410.98 | K28: 38737442.66 | L28: 38771077.39 | M28: 37667156.96 | O28: 450501347.4
A30: NORTH WEST | B30: =B26-SUM(B22:B25) -> 0 | C30: =C26-SUM(C22:C25) -> 0 | D30: 0 | E30: 0 | F30: 0 | G30: 0 | H30: 0 | I30: 0 | J30: 0 | K30: 0 | L30: 0 | M30: 0
A32: FORMULA YEAR | B32: 2018-10-01 | C32: 2018-11-01 | D32: 2018-12-01 | E32: 2019-01-01 | F32: 2019-02-01 | G32: 2019-03-01 | H32: 2019-04-01 | I32: 2019-05-01 | J32: 2019-06-01 | K32: 2019-07-01 | L32: 2019-08-01 | M32: 2019-09-01 | O32: =SUM(B32:M32) -> 522495
A33: SYSTEM COMMODITY (£) | B33: 1330162.79 | C33: 1742068.27 | D33: 2077055.66 | E33: 2428878.87 | F33: 1828743.29 | G33: 1778413.48 | H33: 1310447.98 | I33: 911911.97 | J33: 621018.87 | K33: 499852.16 | L33: 504475.94 | M33: 728663.15 | O33: =SUM(B33:M33) -> 15761692.43
A34: RECONCILLIATION (£) | H34: 0 | I34: 0 | J34: 0 | K34: 0 | O34: 0
A35: COMMODITY INCOME (£) | B35: 1330162.79 | C35: 1742068.27 | D35: 2077055.66 | E35: 2428878.87 | F35: =F33 -> 1828743.29 | G35: =G33 -> 1778413.48 | H35: =H33 -> 1310447.98 | I35: 911911.97 | J35: 621018.87 | K35: 499852.16 | L35: 504475.94 | M35: 728663.15 | O35: 15761692.43
A36: SYSTEM CAPACITY (£) | B36: 24602745.83 | C36: 23845662.28 | D36: 24640861.29 | E36: 24692231.36 | F36: 22326739.84 | G36: 24753831.5 | H36: 25110620.03 | I36: 25930219.77 | J36: 25115149.6 | K36: 25960212.18 | L36: 25984218.61 | M36: 25193028.42 | O36: 298155520.7 | P36: =SUM(O35:O36) -> 313917213.1
A37: CUSTOMER CAPACITY (£) | B37: 9010097.61 | C37: 8723479.86 | D37: 9013507.13 | E37: 9032271.58 | F37: 8159799.39 | G37: 9038080.54 | H37: 9252713.15 | I37: 9550073.88 | J37: 9243665.34 | K37: 9553177.56 | L37: 9555604.24 | M37: 9263660.39 | O37: 109396130.7 | P37: =O36+O37+O38+O35 -> 426067139.2
A38: CUSTOMER FIXED (£) | B38: 228771.45 | C38: 221502.49 | D38: 228326.56 | E38: 229005.69 | F38: 207184.97 | G38: 229673.06 | H38: 230355.82 | I38: 238234.89 | J38: 230978.79 | K38: 238718.82 | L38: 239024.53 | M38: 232018.33 | O38: 2753795.4
A39: ECN (£) | B39: 3380096.64 | C39: 3281559.32 | D39: 3389727.65 | E39: 3397219.41 | F39: 3071155.58 | G39: 3406152.88 | H39: 3342374.67 | I39: 3453256.51 | J39: 3343476.52 | K39: 3457608.8 | L39: 3461841.16 | M39: 3355193.67 | O39: 40339662.81
A40: CAPACITY INCOME (£) | B40: 37221711.53 | C40: 36072203.95 | D40: 37272422.63 | E40: 37350728.04 | F40: =F36+F37+F38+F39 -> 33764879.78 | G40: =G36+G37+G38+G39 -> 37427737.98 | H40: =SUM(H36:H39) -> 37936063.67 | I40: 39171785.05 | J40: 37933270.25 | K40: 39209717.36 | L40: 39240688.54 | M40: 38043900.81 | O40: 450645109.6
A41: OTHER INCOME | B41: 0 | H41: 0 | I41: 0 | J41: 0 | K41: 0 | O41: 0
A42: TOTAL (£) | B42: 38551874.32 | C42: 37814272.22 | D42: 39349478.29 | E42: 39779606.91 | F42: =F40+F35 -> 35593623.07 | G42: =G40+G35 -> 39206151.46 | H42: =H35+H40+H41 -> 39246511.65 | I42: 40083697.02 | J42: 38554289.12 | K42: 39709569.52 | L42: 39745164.48 | M42: 38772563.96
A44: WEST MIDLANDS
A46: FORMULA YEAR | B46: 2018-10-01 | C46: 2018-11-01 | D46: 2018-12-01 | E46: 2019-01-01 | F46: 2019-02-01 | G46: 2019-03-01 | H46: 2019-04-01 | I46: 2019-05-01 | J46: 2019-06-01 | K46: 2019-07-01 | L46: 2019-08-01 | M46: 2019-09-01
A47: SYSTEM COMMODITY (£) | B47: 997111.66 | C47: 1391818.38 | D47: 1598936.04 | E47: 1912077.22 | F47: 1474259.15 | G47: 1295789.15 | H47: 1017621.46 | I47: 684483.09 | J47: 467059.18 | K47: 311035.22 | L47: 332783.41 | M47: 469853.59 | O47: =SUM(B47:M47) -> 11952827.55
A48: RECONCILLIATION (£) | H48: 0 | I48: 0 | J48: 0 | K48: 0 | O48: =SUM(B48:M48) -> 0
A49: COMMODITY INCOME (£) | B49: 997111.66 | C49: 1391818.38 | D49: 1598936.04 | E49: 1912077.22 | F49: =F47 -> 1474259.15 | G49: =G47 -> 1295789.15 | H49: =H47 -> 1017621.46 | I49: 684483.09 | J49: 467059.18 | K49: 311035.22 | L49: 332783.41 | M49: 469853.59 | O49: 11952827.55
A50: SYSTEM CAPACITY (£) | B50: 19312456.51 | C50: 18711699.25 | D50: 19319728.89 | E50: 19378440.87 | F50: 17500694.06 | G50: 19401208.66 | H50: 19209551.43 | I50: 19862143.51 | J50: 19245541.95 | K50: 19898823.89 | L50: 20128623.17 | M50: 19498267.57 | O50: 231467179.8 | P50: =SUM(O49:O50) -> 243420007.3
A51: CUSTOMER CAPACITY (£) | B51: 6927659.37 | C51: 6705884.05 | D51: 6918664.61 | E51: 6932885 | F51: 6262473.54 | G51: 6939496.65 | H51: 6924212.24 | I51: 7156593.72 | J51: 6924962.64 | K51: 7157660.11 | L51: 7160270.4 | M51: 6931111.08 | O51: 82941873.41 | P51: =O50+O51+O52+O49 -> 328653870.1
A52: CUSTOMER FIXED (£) | B52: 194222.37 | C52: 188071.39 | D52: 193589.1 | E52: 194394.16 | F52: 175755.3 | G52: 194901.43 | H52: 188125.27 | I52: 194534.5 | J52: 188729.27 | K52: 194946.76 | L52: 195178.9 | M52: 189540.94 | O52: 2291989.39
A53: ECN (£) | B53: 1883382.6 | C53: 1823632.4 | D53: 1883569.74 | E53: 1890586.55 | F53: 1707280.3 | G53: 1893482.87 | H53: 1956626.83 | I53: 2023437.29 | J53: 1962669.56 | K53: 2030244.94 | L53: 2033365.86 | M53: 1970002.92 | O53: 23058281.86
A54: CAPACITY INCOME (£) | B54: 28317720.85 | C54: 27429287.09 | D54: 28315552.34 | E54: 28396306.58 | F54: =F50+F51+F52+F53 -> 25646203.2 | G54: 28429089.61 | H54: =SUM(H50:H53) -> 28278515.77 | I54: 29236709.02 | J54: 28321903.42 | K54: 29281675.7 | L54: 29517438.33 | M54: 28588922.51 | O54: 339759324.4
A55: OTHER INCOME | B55: 0 | H55: 0 | I55: 0 | J55: 0 | K55: 0 | O55: 0
A56: TOTAL (£) | B56: 29314832.51 | C56: 28821105.47 | D56: 29914488.38 | E56: 30308383.8 | F56: =F54+F49 -> 27120462.35 | G56: =G54+G49 -> 29724878.76 | H56: =H49+H54+H55 -> 29296137.23 | I56: 29921192.11 | J56: 28788962.6 | K56: 29592710.92 | L56: 29850221.74 | M56: 29058776.1 | O56: 351712152
A58: Sept 2019 - Oct 2020
A59: EAST OF ENGLAND | H59: 30 | I59: 31 | J59: 30 | K59: 31 | L59: 31 | M59: 30
R60: Achieved Revenue Splits Oct -19 to Sept -20
A61: FORMULA YEAR | B61: 2019-10-01 | C61: 2019-11-01 | D61: 2019-12-01 | E61: 2020-01-01 | F61: 2020-02-01 | G61: 2020-03-01 | H61: 2020-04-01 | I61: 2020-05-01 | J61: 2020-06-01 | K61: 2020-07-01 | L61: 2020-08-01 | M61: 2020-09-01 | R61: Network | S61: EE | T61: LO | U61: NW | V61: WM
A62: SYSTEM COMMODITY (£) | B62: 1763278.88 | C62: 2556933.08 | D62: 2974985.15 | E62: 3557495.88 | F62: 2934006.72 | G62: 2742960.642 | H62: =#REF! ->  | I62: =#REF! ->  | J62: =#REF! ->  | K62: =#REF! ->  | L62: =#REF! ->  | M62: =#REF! ->  | O62: =SUM(B62:M62) ->  | R62: LDZ SYSTEM COMMODITY | S62: =O62/P65 ->  | T62: =O79/P80 ->  | U62: =O93/P94 ->  | V62: =O107/P108 -> 
A63: RECONCILLIATION (£) | B63: 0 | C63: 0 | D63: 0 | E63: 0 | F63: 0 | G63: 0 | H63: =#REF! ->  | I63: =#REF! ->  | J63: =#REF! ->  | K63: =#REF! ->  | L63: =#REF! ->  | M63: =#REF! ->  | O63: =SUM(B63:M63) ->  | R63: LDZ SYSTEM CAPACITY | S63: =O65/P65 ->  | T63: =O80/P80 ->  | U63: =O94/P94 ->  | V63: =O108/P108 -> 
A64: COMMODITY INCOME (£) | B64: 1763278.88 | C64: 2556933.08 | D64: 2974985.15 | E64: 3557495.88 | F64: 2934006.72 | G64: 2742960.642 | H64: =#REF! ->  | I64: =#REF! ->  | J64: =#REF! ->  | K64: =#REF! ->  | L64: =#REF! ->  | M64: =#REF! ->  | R64: LDZ SYSTEM CHARGES | S64: =(O65+O64)/P66 ->  | T64: =(O79+O80)/P81 ->  | U64: =(O93+O94)/P95 ->  | V64: =(O107+O108)/P109 -> 
A65: SYSTEM CAPACITY (£) | B65: 35339444.66 | C65: 34280368.64 | D65: 35368892.57 | E65: 35453075.1 | F65: 32001959.67 | G65: 35408421.1 | H65: =#REF! ->  | I65: =#REF! ->  | J65: =#REF! ->  | K65: =#REF! ->  | L65: =#REF! ->  | M65: =#REF! ->  | P65: =SUM(O64:O65) ->  | R65: CUSTOMER CHARGES | S65: =(O66+O67)/P66 ->  | T65: =(O82+O81)/P81 ->  | U65: =(O96+O95)/P95 ->  | V65: =(O110+O109)/P109 -> 
A66: CUSTOMER CAPACITY (£) | B66: 15119069.4 | C66: 14641262.75 | D66: 15112620.49 | E66: 15142035.84 | F66: 13668061.77 | G66: 15122964.08 | H66: =#REF! ->  | I66: =#REF! ->  | J66: =#REF! ->  | K66: =#REF! ->  | L66: =#REF! ->  | M66: =#REF! ->  | P66: =O65+O66+O67+O64 -> 
A67: CUSTOMER FIXED (£) | B67: 395536.04 | C67: 382796.05 | D67: 394598.41 | E67: 395345.39 | F67: 356861.2086 | G67: 394847.443 | H67: =#REF! ->  | I67: =#REF! ->  | J67: =#REF! ->  | K67: =#REF! ->  | L67: =#REF! ->  | M67: =#REF! ->  | R67: UNC TARGET REVENU SPLITS
A68: ECN (£) | B68: 2200646.16 | C68: 2136371.16 | D68: 2205047.24 | E68: 2212790.09 | F68: 1997390.044 | G68: 2210003.028 | H68: =#REF! ->  | I68: =#REF! ->  | J68: =#REF! ->  | K68: =#REF! ->  | L68: =#REF! ->  | M68: =#REF! ->  | R68: LDZ SYSTEM COMMODITY | S68: 0.05 | T68: 0.05 | U68: 0.05 | V68: 0.05
A69: CAPACITY INCOME (£) | B69: 53054696.26 | C69: 51440798.6 | D69: 53081158.71 | E69: 53203246.42 | F69: 48024272.69 | G69: 53136235.66 | H69: =#REF! ->  | I69: =#REF! ->  | J69: =#REF! ->  | K69: =#REF! ->  | L69: =#REF! ->  | M69: =#REF! ->  | R69: LDZ SYSTEM CAPACITY | S69: 0.95 | T69: 0.95 | U69: 0.95 | V69: 0.95
A70: OTHER INCOME | B70: 0 | C70: 0 | D70: 0 | E70: 0 | F70: 0 | G70: 0 | H70: =#REF! ->  | I70: =#REF! ->  | J70: =#REF! ->  | K70: =#REF! ->  | L70: =#REF! ->  | M70: =#REF! ->  | R70: LDZ SYSTEM CHARGES | S70: 0.705 | T70: 0.681 | U70: 0.737 | V70: 0.74
A71: TOTAL (£) | B71: =B69+B64+B70 -> 54817975.14 | C71: =C69+C64+C70 -> 53997731.68 | D71: 56056143.86 | E71: 56760742.3 | F71: 50958279.41 | G71: 55879196.3 | R71: CUSTOMER CHARGES | S71: 0.295 | T71: 0.319 | U71: 0.263 | V71: 0.26
B73: =B69-SUM(B65:B68) -> 0 | C73: =C69-SUM(C65:C68) -> 0 | D73: 0 | E73: 0 | F73: 0 | G73: 0 | R73: VARIANCE
A74: LONDON | R74: LDZ SYSTEM COMMODITY | S74: =S62-S68 ->  | T74: =T62-T68 ->  | V74: =V62-V68 -> 
R75: LDZ SYSTEM CAPACITY | S75: =S63-S69 -> 
A76: FORMULA YEAR | B76: 2019-10-01 | C76: 2019-11-01 | D76: 2019-12-01 | E76: 2020-01-01 | F76: 2020-02-01 | G76: 2020-03-01 | H76: 2020-04-01 | I76: 2020-05-01 | J76: 2020-06-01 | K76: 2020-07-01 | L76: 2020-08-01 | M76: 2020-09-01 | R76: LDZ SYSTEM CHARGES | S76: =S64-S70 -> 
A77: SYSTEM COMMODITY (£) | B77: 1077668.81 | C77: 1610980.83 | D77: 1867155.06 | E77: 2256993.07 | F77: 1869868.771 | G77: 1763577.076 | H77: =#REF! ->  | I77: =#REF! ->  | J77: =#REF! ->  | K77: =#REF! ->  | L77: =#REF! ->  | M77: =#REF! ->  | O77: =SUM(B77:M77) ->  | R77: CUSTOMER CHARGES | S77: =S65-S71 -> 
A78: RECONCILLIATION (£) | B78: 0 | C78: 0 | D78: 0 | E78: 0 | F78: 0 | G78: 0 | H78: =#REF! ->  | I78: =#REF! ->  | J78: =#REF! ->  | K78: =#REF! ->  | L78: =#REF! ->  | M78: =#REF! ->  | O78: =SUM(B78:M78) -> 
A79: COMMODITY INCOME (£) | B79: 1077668.81 | C79: 1610980.83 | D79: 1867155.06 | E79: 2256993.07 | F79: 1869868.771 | G79: 1763577.076 | H79: =#REF! ->  | I79: =#REF! ->  | J79: =#REF! ->  | K79: =#REF! ->  | L79: =#REF! ->  | M79: =#REF! -> 
A80: SYSTEM CAPACITY (£) | B80: 22866350.72 | C80: 22142749.4 | D80: 22858841.02 | E80: 22908964.18 | F80: 20678932.53 | G80: 22880109.79 | H80: =#REF! ->  | I80: =#REF! ->  | J80: =#REF! ->  | K80: =#REF! ->  | L80: =#REF! ->  | M80: =#REF! ->  | P80: =SUM(O79:O80) -> 
A81: CUSTOMER CAPACITY (£) | B81: 10831365.31 | C81: 10484952.15 | D81: 10818415.46 | E81: 10838432.41 | F81: 9783384.824 | G81: 10824781.14 | H81: =#REF! ->  | I81: =#REF! ->  | J81: =#REF! ->  | K81: =#REF! ->  | L81: =#REF! ->  | M81: =#REF! ->  | P81: =O80+O81+O82+O79 -> 
A82: CUSTOMER FIXED (£) | B82: 388279.81 | C82: 376143.4 | D82: 387578.8 | E82: 388769.77 | F82: 350925.6804 | G82: 388280.1052 | H82: =#REF! ->  | I82: =#REF! ->  | J82: =#REF! ->  | K82: =#REF! ->  | L82: =#REF! ->  | M82: =#REF! -> 
A83: ECN (£) | B83: 1685656.31 | C83: 1631836.66 | D83: 1684595.76 | E83: 1687615.7 | F83: 1523337.804 | G83: 1685490.108 | H83: =#REF! ->  | I83: =#REF! ->  | J83: =#REF! ->  | K83: =#REF! ->  | L83: =#REF! ->  | M83: =#REF! -> 
A84: CAPACITY INCOME (£) | B84: 35771652.15 | C84: 34635681.61 | D84: 35749431.04 | E84: 35823782.06 | F84: 32336580.83 | G84: 35778661.15 | H84: =#REF! ->  | I84: =#REF! ->  | J84: =#REF! ->  | K84: =#REF! ->  | L84: =#REF! ->  | M84: =#REF! -> 
A85: OTHER INCOME | B85: 0 | C85: 0 | D85: 0 | E85: 0 | F85: 0 | G85: 0 | H85: =#REF! ->  | I85: =#REF! ->  | J85: =#REF! ->  | K85: =#REF! ->  | L85: =#REF! ->  | M85: =#REF! -> 
A86: TOTAL (£) | B86: =B79+B84+B85 -> 36849320.96 | C86: =C79+C84+C85 -> 36246662.44 | D86: =D79+D84+D85 -> 37616586.1 | E86: =E79+E84+E85 -> 38080775.13 | F86: =F79+F84+F85 -> 34206449.61 | G86: =G79+G84+G85 -> 37542238.22 | H86: =H79+H84+H85 ->  | I86: =I79+I84+I85 ->  | J86: =J79+J84+J85 ->  | K86: =K79+K84+K85 ->  | L86: =L79+L84+L85 ->  | M86: =M79+M84+M85 -> 
A88: NORTH WEST | B88: =B84-SUM(B80:B83) -> 0 | C88: =C84-SUM(C80:C83) -> 0 | D88: 0 | E88: 0 | F88: 0 | G88: 0
A90: FORMULA YEAR | B90: 2019-10-01 | C90: 2019-11-01 | D90: 2019-12-01 | E90: 2020-01-01 | F90: 2020-02-01 | G90: 2020-03-01 | H90: 2020-04-01 | I90: 2020-05-01 | J90: 2020-06-01 | K90: 2020-07-01 | L90: 2020-08-01 | M90: 2020-09-01
A91: SYSTEM COMMODITY (£) | B91: 1330162.79 | C91: 1742068.27 | D91: 2077055.66 | E91: 2428878.87 | F91: 2009393.826 | G91: 1899621.28 | H91: =#REF! ->  | I91: =#REF! ->  | J91: =#REF! ->  | K91: =#REF! ->  | L91: =#REF! ->  | M91: =#REF! ->  | O91: =SUM(B91:M91) -> 
A92: RECONCILLIATION (£) | B92: 0 | C92: 0 | D92: 0 | E92: 0 | F92: 0 | G92: 0 | H92: =#REF! ->  | I92: =#REF! ->  | J92: =#REF! ->  | K92: =#REF! ->  | L92: =#REF! ->  | M92: =#REF! ->  | O92: =SUM(B92:M92) -> 
A93: COMMODITY INCOME (£) | B93: 1330162.79 | C93: 1742068.27 | D93: 2077055.66 | E93: 2428878.87 | F93: 2009393.826 | G93: 1899621.28 | H93: =#REF! ->  | I93: =#REF! ->  | J93: =#REF! ->  | K93: =#REF! ->  | L93: =#REF! ->  | M93: =#REF! -> 
A94: SYSTEM CAPACITY (£) | B94: 24602745.83 | C94: 23845662.28 | D94: 24640861.29 | E94: 24692231.36 | F94: 22288610.79 | G94: 24661130.9 | H94: =#REF! ->  | I94: =#REF! ->  | J94: =#REF! ->  | K94: =#REF! ->  | L94: =#REF! ->  | M94: =#REF! ->  | P94: =SUM(O93:O94) -> 
A95: CUSTOMER CAPACITY (£) | B95: 9010097.61 | C95: 8723479.86 | D95: 9013507.13 | E95: 9032271.58 | F95: 8153041.451 | G95: 9020895.218 | H95: =#REF! ->  | I95: =#REF! ->  | J95: =#REF! ->  | K95: =#REF! ->  | L95: =#REF! ->  | M95: =#REF! ->  | P95: =O94+O95+O96+O93 -> 
A96: CUSTOMER FIXED (£) | B96: 228771.45 | C96: 221502.49 | D96: 228326.56 | E96: 229005.69 | F96: 206713.5456 | G96: 228717.2518 | H96: =#REF! ->  | I96: =#REF! ->  | J96: =#REF! ->  | K96: =#REF! ->  | L96: =#REF! ->  | M96: =#REF! -> 
A97: ECN (£) | B97: 3380096.64 | C97: 3281559.32 | D97: 3389727.65 | E97: 3397219.41 | F97: 3066523.235 | G97: 3392940.531 | H97: =#REF! ->  | I97: =#REF! ->  | J97: =#REF! ->  | K97: =#REF! ->  | L97: =#REF! ->  | M97: =#REF! -> 
A98: CAPACITY INCOME (£) | B98: 37221711.53 | C98: 36072203.95 | D98: 37272422.63 | E98: 37350728.04 | F98: 33714889.02 | G98: 37303683.9 | H98: =#REF! ->  | I98: =#REF! ->  | J98: =#REF! ->  | K98: =#REF! ->  | L98: =#REF! ->  | M98: =#REF! -> 
A99: OTHER INCOME | B99: 0 | C99: 0 | D99: 0 | E99: 0 | F99: 0 | G99: 0 | H99: =#REF! ->  | I99: =#REF! ->  | J99: =#REF! ->  | K99: =#REF! ->  | L99: =#REF! ->  | M99: =#REF! -> 
A100: TOTAL (£) | B100: =B93+B98+B99 -> 38551874.32 | C100: =C93+C98+C99 -> 37814272.22 | D100: =D93+D98+D99 -> 39349478.29 | E100: =E93+E98+E99 -> 39779606.91 | F100: =F93+F98+F99 -> 35724282.85 | G100: =G93+G98+G99 -> 39203305.18 | H100: =H93+H98+H99 ->  | I100: =I93+I98+I99 ->  | J100: =J93+J98+J99 ->  | K100: =K93+K98+K99 ->  | L100: =L93+L98+L99 ->  | M100: =M93+M98+M99 -> 
A102: WEST MIDLANDS | B102: =B98-SUM(B94:B97) -> 0 | C102: =C98-SUM(C94:C97) -> 0 | D102: 0 | E102: 0 | F102: 0 | G102: 0
A104: FORMULA YEAR | B104: 2019-10-01 | C104: 2019-11-01 | D104: 2019-12-01 | E104: 2020-01-01 | F104: 2020-02-01 | G104: 2020-03-01 | H104: 2020-04-01 | I104: 2020-05-01 | J104: 2020-06-01 | K104: 2020-07-01 | L104: 2020-08-01 | M104: 2020-09-01
A105: SYSTEM COMMODITY (£) | B105: 997111.66 | C105: 1391818.38 | D105: 1598936.04 | E105: 1912077.22 | F105: 1615430.588 | G105: 1518110.81 | H105: =#REF! ->  | I105: =#REF! ->  | J105: =#REF! ->  | K105: =#REF! ->  | L105: =#REF! ->  | M105: =#REF! ->  | O105: =SUM(B105:M105) -> 
A106: RECONCILLIATION (£) | B106: 0 | C106: 0 | D106: 0 | E106: 0 | F106: 0 | G106: 0 | H106: =#REF! ->  | I106: =#REF! ->  | J106: =#REF! ->  | K106: =#REF! ->  | L106: =#REF! ->  | M106: =#REF! ->  | O106: =SUM(B106:M106) -> 
A107: COMMODITY INCOME (£) | B107: 997111.66 | C107: 1391818.38 | D107: 1598936.04 | E107: 1912077.22 | F107: 1615430.588 | G107: 1518110.81 | H107: =#REF! ->  | I107: =#REF! ->  | J107: =#REF! ->  | K107: =#REF! ->  | L107: =#REF! ->  | M107: =#REF! -> 
A108: SYSTEM CAPACITY (£) | B108: 19312456.51 | C108: 18711699.25 | D108: 19319728.89 | E108: 19378440.87 | F108: 17492081.62 | G108: 19354033.26 | H108: =#REF! ->  | I108: =#REF! ->  | J108: =#REF! ->  | K108: =#REF! ->  | L108: =#REF! ->  | M108: =#REF! ->  | P108: =SUM(O107:O108) -> 
A109: CUSTOMER CAPACITY (£) | B109: 6927659.37 | C109: 6705884.05 | D109: 6918664.61 | E109: 6932885 | F109: 6258015.858 | G109: 6924152.865 | H109: =#REF! ->  | I109: =#REF! ->  | J109: =#REF! ->  | K109: =#REF! ->  | L109: =#REF! ->  | M109: =#REF! ->  | P109: =O108+O109+O110+O107 -> 
A110: CUSTOMER FIXED (£) | B110: 194222.37 | C110: 188071.39 | D110: 193589.1 | E110: 194394.16 | F110: 175471.2123 | G110: 194149.3159 | H110: =#REF! ->  | I110: =#REF! ->  | J110: =#REF! ->  | K110: =#REF! ->  | L110: =#REF! ->  | M110: =#REF! -> 
A111: ECN (£) | B111: 1883382.6 | C111: 1823632.4 | D111: 1883569.74 | E111: 1890586.55 | F111: 1706550.824 | G111: 1888205.311 | H111: =#REF! ->  | I111: =#REF! ->  | J111: =#REF! ->  | K111: =#REF! ->  | L111: =#REF! ->  | M111: =#REF! -> 
A112: CAPACITY INCOME (£) | B112: 28317720.85 | C112: 27429287.09 | D112: 28315552.34 | E112: 28396306.58 | F112: 25632119.51 | G112: 28360540.75 | H112: =#REF! ->  | I112: =#REF! ->  | J112: =#REF! ->  | K112: =#REF! ->  | L112: =#REF! ->  | M112: =#REF! -> 
A113: OTHER INCOME | B113: 0 | C113: 0 | D113: 0 | E113: 0 | F113: 0 | G113: 0 | H113: =#REF! ->  | I113: =#REF! ->  | J113: =#REF! ->  | K113: =#REF! ->  | L113: =#REF! ->  | M113: =#REF! -> 
A114: TOTAL (£) | B114: =B107+B112+B113 -> 29314832.51 | C114: =C107+C112+C113 -> 28821105.47 | D114: =D107+D112+D113 -> 29914488.38 | E114: =E107+E112+E113 -> 30308383.8 | F114: =F107+F112+F113 -> 27247550.1 | G114: =G107+G112+G113 -> 29878651.56 | H114: =H107+H112+H113 ->  | I114: =I107+I112+I113 ->  | J114: =J107+J112+J113 ->  | K114: =K107+K112+K113 ->  | L114: =L107+L112+L113 ->  | M114: =M107+M112+M113 -> 
B116: =B112-SUM(B108:B111) -> 0 | C116: =C112-SUM(C108:C111) -> 0 | D116: 0 | E116: 0 | F116: 0 | G116: 0

Sheet Common Calculations (hidden)
B2: NAVIGATION
B4: UPDATE INPUTS
B6: COMMON CALCULATIONS
B8: CALENDAR
B10: FORMULA YEAR | C10: 2009/10 | D10: 2010/11 | E10: 2011/12 | F10: 2012/13 | G10: 2013/14 | H10: 2014/15 | I10: 2015/16 | J10: 2016/17 | K10: 2017/18 | L10: 2018/19 | M10: 2019/20 | N10: 2020/21 | O10: 2021/22 | P10: 2022/23 | Q10: 2023/24 | R10: 2024/25 | S10: 2025/26 | T10: 2026/27
B11: START DATE | C11: 2009-04-01 | D11: =C12+1 -> 2010-04-01 | E11: =D12+1 -> 2011-04-01 | F11: 2012-04-01 | G11: 2013-04-01 | H11: 2014-04-01 | I11: 2015-04-01 | J11: 2016-04-01 | K11: 2017-04-01 | L11: 2018-04-01 | M11: 2019-04-01 | N11: 2020-04-01 | O11: 2021-04-01 | P11: 2022-04-01 | Q11: 2023-04-01 | R11: 2024-04-01 | S11: 2025-04-01 | T11: 2026-04-01
B12: END DATE | C12: 2010-03-31 | D12: 2011-03-31 | E12: 2012-03-31 | F12: 2013-03-31 | G12: 2014-03-31 | H12: 2015-03-31 | I12: 2016-03-31 | J12: 2017-03-31 | K12: 2018-03-31 | L12: 2019-03-31 | M12: 2020-03-31 | N12: 2021-03-31 | O12: 2022-03-31 | P12: 2023-03-31 | Q12: 2024-03-31 | R12: 2025-03-31 | S12: 2026-03-31 | T12: 2027-03-31
B13: DAYS IN YEAR | C13: =C12-C11+1 -> 365 | D13: =D12-D11+1 -> 365 | E13: 366 | F13: 365 | G13: 365 | H13: 365 | I13: 366 | J13: 365 | K13: =K12-K11+1 -> 365 | L13: 365 | M13: 366 | N13: 365 | O13: 365 | P13: 365 | Q13: 366 | R13: 365 | S13: 365 | T13: =T12-T11+1 -> 365
B15: APR | C15: 30 | D15: 30 | E15: 30 | F15: 30 | G15: 30 | H15: 30 | I15: 30 | J15: 30 | K15: 30 | L15: 30 | M15: 30 | N15: 30 | O15: 30 | P15: 30 | Q15: 30 | R15: 30 | S15: 30 | T15: 30
B16: MAY | C16: 31 | D16: 31 | E16: 31 | F16: 31 | G16: 31 | H16: 31 | I16: 31 | J16: 31 | K16: 31 | L16: 31 | M16: 31 | N16: 31 | O16: 31 | P16: 31 | Q16: 31 | R16: 31 | S16: 31 | T16: 31
B17: JUN | C17: 30 | D17: 30 | E17: 30 | F17: 30 | G17: 30 | H17: 30 | I17: 30 | J17: 30 | K17: 30 | L17: 30 | M17: 30 | N17: 30 | O17: 30 | P17: 30 | Q17: 30 | R17: 30 | S17: 30 | T17: 30
B18: JUL | C18: 31 | D18: 31 | E18: 31 | F18: 31 | G18: 31 | H18: 31 | I18: 31 | J18: 31 | K18: 31 | L18: 31 | M18: 31 | N18: 31 | O18: 31 | P18: 31 | Q18: 31 | R18: 31 | S18: 31 | T18: 31
B19: AUG | C19: 31 | D19: 31 | E19: 31 | F19: 31 | G19: 31 | H19: 31 | I19: 31 | J19: 31 | K19: 31 | L19: 31 | M19: 31 | N19: 31 | O19: 31 | P19: 31 | Q19: 31 | R19: 31 | S19: 31 | T19: 31
B20: SEP | C20: 30 | D20: 30 | E20: 30 | F20: 30 | G20: 30 | H20: 30 | I20: 30 | J20: 30 | K20: 30 | L20: 30 | M20: 30 | N20: 30 | O20: 30 | P20: 30 | Q20: 30 | R20: 30 | S20: 30 | T20: 30
B21: OCT | C21: 31 | D21: 31 | E21: 31 | F21: 31 | G21: 31 | H21: 31 | I21: 31 | J21: 31 | K21: 31 | L21: 31 | M21: 31 | N21: 31 | O21: 31 | P21: 31 | Q21: 31 | R21: 31 | S21: 31 | T21: 31
B22: NOV | C22: 30 | D22: 30 | E22: 30 | F22: 30 | G22: 30 | H22: 30 | I22: 30 | J22: 30 | K22: 30 | L22: 30 | M22: 30 | N22: 30 | O22: 30 | P22: 30 | Q22: 30 | R22: 30 | S22: 30 | T22: 30
B23: DEC | C23: 31 | D23: 31 | E23: 31 | F23: 31 | G23: 31 | H23: 31 | I23: 31 | J23: 31 | K23: 31 | L23: 31 | M23: 31 | N23: 31 | O23: 31 | P23: 31 | Q23: 31 | R23: 31 | S23: 31 | T23: 31
B24: JAN | C24: 31 | D24: 31 | E24: 31 | F24: 31 | G24: 31 | H24: 31 | I24: 31 | J24: 31 | K24: 31 | L24: 31 | M24: 31 | N24: 31 | O24: 31 | P24: 31 | Q24: 31 | R24: 31 | S24: 31 | T24: 31
B25: FEB | C25: =IF(C13=366,29,28) -> 28 | D25: =IF(D13=366,29,28) -> 28 | E25: 29 | F25: 28 | G25: 28 | H25: 28 | I25: 29 | J25: 28 | K25: 28 | L25: 28 | M25: 29 | N25: 28 | O25: 28 | P25: 28 | Q25: 29 | R25: 28 | S25: 28 | T25: =IF(T13=366,29,28) -> 28
B26: MAR | C26: 31 | D26: 31 | E26: 31 | F26: 31 | G26: 31 | H26: 31 | I26: 31 | J26: 31 | K26: 31 | L26: 31 | M26: 31 | N26: 31 | O26: 31 | P26: 31 | Q26: 31 | R26: 31 | S26: 31 | T26: 32
B27: TOTAL DAYS | C27: =SUM(C15:C26) -> 365 | D27: =SUM(D15:D26) -> 365 | E27: 366 | F27: 365 | G27: 365 | H27: 365 | I27: 366 | J27: 365 | K27: 365 | L27: 365 | M27: 366 | N27: 365 | O27: 365 | P27: 365 | Q27: 366 | R27: 365 | S27: 365 | T27: =SUM(T15:T26) -> 366
B29: RPIAt CALCULATION
B31: FORMULA YEAR | C31: 2009/10 | D31: 2010/11 | E31: 2011/12 | F31: 2012/13 | G31: 2013/14 | H31: 2014/15 | I31: 2015/16 | J31: 2016/17 | K31: 2017/18 | L31: 2018/19 | M31: 2019/20 | N31: 2020/21 | O31: 2021/22 | P31: 2022/23 | Q31: 2023/24 | R31: 2024/25 | S31: 2025/26 | T31: 2026/27
B32: APR | C32: =IF(#REF!>0,#REF!,B32*(1+((B$70*0.75)+(D$70*0.25)))) ->  | D32: =IF(#REF!>0,#REF!,C32*(1+((D$70*0.75)+(E$70*0.25)))) ->  | E32: =IF(#REF!>0,#REF!,D32*(1+((E$70*0.75)+(F$70*0.25)))) ->  | F32: =IF(#REF!>0,#REF!,E32*(1+((F$70*0.75)+(G$70*0.25)))) ->  | G32: =IF(#REF!>0,#REF!,F32*(1+((G$70*0.75)+(H$70*0.25)))) ->  | H32: =IF(#REF!>0,#REF!,G32*(1+((H$70*0.75)+(I$70*0.25)))) ->  | I32: =IF(#REF!>0,#REF!,H32*(1+((I$70*0.75)+(J$70*0.25)))) ->  | J32: =IF(#REF!>0,#REF!,I32*(1+((J$70*0.75)+(K$70*0.25)))) ->  | K32: =IF(#REF!>0,#REF!,J32*(1+((K$70*0.75)+(L$70*0.25)))) ->  | L32: =IF(#REF!>0,#REF!,K32*(1+((L$70*0.75)+(M$70*0.25)))) ->  | M32: =IF(#REF!>0,#REF!,L32*(1+((M$70*0.75)+(N$70*0.25)))) ->  | N32: =IF(#REF!>0,#REF!,M32*(1+((N$70*0.75)+(O$70*0.25)))) ->  | O32: =#REF! ->  | P32: =#REF! ->  | Q32: =#REF! ->  | R32: =#REF! ->  | S32: =#REF! ->  | T32: =IF(#REF!>0,S43*(#REF!/#REF!),S32*(1+((T$70*0.75)+(U$70*0.25)))) -> 
B33: MAY | C33: =IF(#REF!>0,#REF!,B33*(1+((B$70*0.75)+(D$70*0.25)))) ->  | D33: =IF(#REF!>0,#REF!,C33*(1+((D$70*0.75)+(E$70*0.25)))) ->  | E33: =IF(#REF!>0,#REF!,D33*(1+((E$70*0.75)+(F$70*0.25)))) ->  | F33: =IF(#REF!>0,#REF!,E33*(1+((F$70*0.75)+(G$70*0.25)))) ->  | G33: =IF(#REF!>0,#REF!,F33*(1+((G$70*0.75)+(H$70*0.25)))) ->  | H33: =IF(#REF!>0,#REF!,G33*(1+((H$70*0.75)+(I$70*0.25)))) ->  | I33: =IF(#REF!>0,#REF!,H33*(1+((I$70*0.75)+(J$70*0.25)))) ->  | J33: =IF(#REF!>0,#REF!,I33*(1+((J$70*0.75)+(K$70*0.25)))) ->  | K33: =IF(#REF!>0,#REF!,J33*(1+((K$70*0.75)+(L$70*0.25)))) ->  | L33: =IF(#REF!>0,#REF!,K33*(1+((L$70*0.75)+(M$70*0.25)))) ->  | M33: =IF(#REF!>0,#REF!,L33*(1+((M$70*0.75)+(N$70*0.25)))) ->  | N33: =IF(#REF!>0,#REF!,M33*(1+((N$70*0.75)+(O$70*0.25)))) ->  | O33: =#REF! ->  | P33: =#REF! ->  | Q33: =#REF! ->  | R33: =#REF! ->  | S33: =#REF! ->  | T33: =IF(#REF!>0,T32*(#REF!/#REF!),S33*(1+((T$70*0.75)+(U$70*0.25)))) -> 
B34: JUN | C34: =IF(#REF!>0,#REF!,B34*(1+((B$70*0.75)+(D$70*0.25)))) ->  | D34: =IF(#REF!>0,#REF!,C34*(1+((D$70*0.75)+(E$70*0.25)))) ->  | E34: =IF(#REF!>0,#REF!,D34*(1+((E$70*0.75)+(F$70*0.25)))) ->  | F34: =IF(#REF!>0,#REF!,E34*(1+((F$70*0.75)+(G$70*0.25)))) ->  | G34: =IF(#REF!>0,#REF!,F34*(1+((G$70*0.75)+(H$70*0.25)))) ->  | H34: =IF(#REF!>0,#REF!,G34*(1+((H$70*0.75)+(I$70*0.25)))) ->  | I34: =IF(#REF!>0,#REF!,H34*(1+((I$70*0.75)+(J$70*0.25)))) ->  | J34: =IF(#REF!>0,#REF!,I34*(1+((J$70*0.75)+(K$70*0.25)))) ->  | K34: =IF(#REF!>0,#REF!,J34*(1+((K$70*0.75)+(L$70*0.25)))) ->  | L34: =IF(#REF!>0,#REF!,K34*(1+((L$70*0.75)+(M$70*0.25)))) ->  | M34: =IF(#REF!>0,#REF!,L34*(1+((M$70*0.75)+(N$70*0.25)))) ->  | N34: =IF(#REF!>0,#REF!,M34*(1+((N$70*0.75)+(O$70*0.25)))) ->  | O34: =#REF! ->  | P34: =#REF! ->  | Q34: =#REF! ->  | R34: =#REF! ->  | S34: =#REF! ->  | T34: =IF(#REF!>0,T33*(#REF!/#REF!),S34*(1+((T$70*0.75)+(U$70*0.25)))) -> 
B35: JUL | C35: =IF(#REF!>0,#REF!,B35*(1+((B$70*0.75)+(D$70*0.25)))) ->  | D35: =IF(#REF!>0,#REF!,C35*(1+((D$70*0.75)+(E$70*0.25)))) ->  | E35: =IF(#REF!>0,#REF!,D35*(1+((E$70*0.75)+(F$70*0.25)))) ->  | F35: =IF(#REF!>0,#REF!,E35*(1+((F$70*0.75)+(G$70*0.25)))) ->  | G35: =IF(#REF!>0,#REF!,F35*(1+((G$70*0.75)+(H$70*0.25)))) ->  | H35: =IF(#REF!>0,#REF!,G35*(1+((H$70*0.75)+(I$70*0.25)))) ->  | I35: =IF(#REF!>0,#REF!,H35*(1+((I$70*0.75)+(J$70*0.25)))) ->  | J35: =IF(#REF!>0,#REF!,I35*(1+((J$70*0.75)+(K$70*0.25)))) ->  | K35: =IF(#REF!>0,#REF!,J35*(1+((K$70*0.75)+(L$70*0.25)))) ->  | L35: =IF(#REF!>0,#REF!,K35*(1+((L$70*0.75)+(M$70*0.25)))) ->  | M35: =IF(#REF!>0,#REF!,L35*(1+((M$70*0.75)+(N$70*0.25)))) ->  | N35: =IF(#REF!>0,#REF!,M35*(1+((N$70*0.75)+(O$70*0.25)))) ->  | O35: =#REF! ->  | P35: =#REF! ->  | Q35: =#REF! ->  | R35: =#REF! ->  | S35: =#REF! ->  | T35: =IF(#REF!>0,T34*(#REF!/#REF!),S35*(1+((T$70*0.75)+(U$70*0.25)))) -> 
B36: AUG | C36: =IF(#REF!>0,#REF!,B36*(1+((B$70*0.75)+(D$70*0.25)))) ->  | D36: =IF(#REF!>0,#REF!,C36*(1+((D$70*0.75)+(E$70*0.25)))) ->  | E36: =IF(#REF!>0,#REF!,D36*(1+((E$70*0.75)+(F$70*0.25)))) ->  | F36: =IF(#REF!>0,#REF!,E36*(1+((F$70*0.75)+(G$70*0.25)))) ->  | G36: =IF(#REF!>0,#REF!,F36*(1+((G$70*0.75)+(H$70*0.25)))) ->  | H36: =IF(#REF!>0,#REF!,G36*(1+((H$70*0.75)+(I$70*0.25)))) ->  | I36: =IF(#REF!>0,#REF!,H36*(1+((I$70*0.75)+(J$70*0.25)))) ->  | J36: =IF(#REF!>0,#REF!,I36*(1+((J$70*0.75)+(K$70*0.25)))) ->  | K36: =IF(#REF!>0,#REF!,J36*(1+((K$70*0.75)+(L$70*0.25)))) ->  | L36: =IF(#REF!>0,#REF!,K36*(1+((L$70*0.75)+(M$70*0.25)))) ->  | M36: =IF(#REF!>0,#REF!,L36*(1+((M$70*0.75)+(N$70*0.25)))) ->  | N36: =IF(#REF!>0,#REF!,M36*(1+((N$70*0.75)+(O$70*0.25)))) ->  | O36: =#REF! ->  | P36: =#REF! ->  | Q36: =#REF! ->  | R36: =#REF! ->  | S36: =#REF! ->  | T36: =IF(#REF!>0,T35*(#REF!/#REF!),S36*(1+((T$70*0.75)+(U$70*0.25)))) -> 
B37: SEP | C37: =IF(#REF!>0,#REF!,B37*(1+((B$70*0.75)+(D$70*0.25)))) ->  | D37: =IF(#REF!>0,#REF!,C37*(1+((D$70*0.75)+(E$70*0.25)))) ->  | E37: =IF(#REF!>0,#REF!,D37*(1+((E$70*0.75)+(F$70*0.25)))) ->  | F37: =IF(#REF!>0,#REF!,E37*(1+((F$70*0.75)+(G$70*0.25)))) ->  | G37: =IF(#REF!>0,#REF!,F37*(1+((G$70*0.75)+(H$70*0.25)))) ->  | H37: =IF(#REF!>0,#REF!,G37*(1+((H$70*0.75)+(I$70*0.25)))) ->  | I37: =IF(#REF!>0,#REF!,H37*(1+((I$70*0.75)+(J$70*0.25)))) ->  | J37: =IF(#REF!>0,#REF!,I37*(1+((J$70*0.75)+(K$70*0.25)))) ->  | K37: =IF(#REF!>0,#REF!,J37*(1+((K$70*0.75)+(L$70*0.25)))) ->  | L37: =IF(#REF!>0,#REF!,K37*(1+((L$70*0.75)+(M$70*0.25)))) ->  | M37: =IF(#REF!>0,#REF!,L37*(1+((M$70*0.75)+(N$70*0.25)))) ->  | N37: =IF(#REF!>0,#REF!,M37*(1+((N$70*0.75)+(O$70*0.25)))) ->  | O37: =#REF! ->  | P37: =#REF! ->  | Q37: =#REF! ->  | R37: =#REF! ->  | S37: =#REF! ->  | T37: =IF(#REF!>0,T36*(#REF!/#REF!),S37*(1+((T$70*0.75)+(U$70*0.25)))) -> 
B38: OCT | C38: =IF(#REF!>0,#REF!,B38*(1+((B$70*0.75)+(D$70*0.25)))) ->  | D38: =IF(#REF!>0,#REF!,C38*(1+((D$70*0.75)+(E$70*0.25)))) ->  | E38: =IF(#REF!>0,#REF!,D38*(1+((E$70*0.75)+(F$70*0.25)))) ->  | F38: =IF(#REF!>0,#REF!,E38*(1+((F$70*0.75)+(G$70*0.25)))) ->  | G38: =IF(#REF!>0,#REF!,F38*(1+((G$70*0.75)+(H$70*0.25)))) ->  | H38: =IF(#REF!>0,#REF!,G38*(1+((H$70*0.75)+(I$70*0.25)))) ->  | I38: =IF(#REF!>0,#REF!,H38*(1+((I$70*0.75)+(J$70*0.25)))) ->  | J38: =IF(#REF!>0,#REF!,I38*(1+((J$70*0.75)+(K$70*0.25)))) ->  | K38: =IF(#REF!>0,#REF!,J38*(1+((K$70*0.75)+(L$70*0.25)))) ->  | L38: =IF(#REF!>0,#REF!,K38*(1+((L$70*0.75)+(M$70*0.25)))) ->  | M38: =IF(#REF!>0,#REF!,L38*(1+((M$70*0.75)+(N$70*0.25)))) ->  | N38: =IF(#REF!>0,#REF!,M38*(1+((N$70*0.75)+(O$70*0.25)))) ->  | O38: =#REF! ->  | P38: =#REF! ->  | Q38: =#REF! ->  | R38: =#REF! ->  | S38: =#REF! ->  | T38: =IF(#REF!>0,T37*(#REF!/#REF!),S38*(1+((T$70*0.75)+(U$70*0.25)))) -> 
B39: NOV | C39: =IF(#REF!>0,#REF!,B39*(1+((B$70*0.75)+(D$70*0.25)))) ->  | D39: =IF(#REF!>0,#REF!,C39*(1+((D$70*0.75)+(E$70*0.25)))) ->  | E39: =IF(#REF!>0,#REF!,D39*(1+((E$70*0.75)+(F$70*0.25)))) ->  | F39: =IF(#REF!>0,#REF!,E39*(1+((F$70*0.75)+(G$70*0.25)))) ->  | G39: =IF(#REF!>0,#REF!,F39*(1+((G$70*0.75)+(H$70*0.25)))) ->  | H39: =IF(#REF!>0,#REF!,G39*(1+((H$70*0.75)+(I$70*0.25)))) ->  | I39: =IF(#REF!>0,#REF!,H39*(1+((I$70*0.75)+(J$70*0.25)))) ->  | J39: =IF(#REF!>0,#REF!,I39*(1+((J$70*0.75)+(K$70*0.25)))) ->  | K39: =IF(#REF!>0,#REF!,J39*(1+((K$70*0.75)+(L$70*0.25)))) ->  | L39: =IF(#REF!>0,#REF!,K39*(1+((L$70*0.75)+(M$70*0.25)))) ->  | M39: =IF(#REF!>0,#REF!,L39*(1+((M$70*0.75)+(N$70*0.25)))) ->  | N39: =IF(#REF!>0,#REF!,M39*(1+((N$70*0.75)+(O$70*0.25)))) ->  | O39: =#REF! ->  | P39: =#REF! ->  | Q39: =#REF! ->  | R39: =#REF! ->  | S39: =#REF! ->  | T39: =IF(#REF!>0,T38*(#REF!/#REF!),S39*(1+((T$70*0.75)+(U$70*0.25)))) -> 
B40: DEC | C40: =IF(#REF!>0,#REF!,B40*(1+((B$70*0.75)+(D$70*0.25)))) ->  | D40: =IF(#REF!>0,#REF!,C40*(1+((D$70*0.75)+(E$70*0.25)))) ->  | E40: =IF(#REF!>0,#REF!,D40*(1+((E$70*0.75)+(F$70*0.25)))) ->  | F40: =IF(#REF!>0,#REF!,E40*(1+((F$70*0.75)+(G$70*0.25)))) ->  | G40: =IF(#REF!>0,#REF!,F40*(1+((G$70*0.75)+(H$70*0.25)))) ->  | H40: =IF(#REF!>0,#REF!,G40*(1+((H$70*0.75)+(I$70*0.25)))) ->  | I40: =IF(#REF!>0,#REF!,H40*(1+((I$70*0.75)+(J$70*0.25)))) ->  | J40: =IF(#REF!>0,#REF!,I40*(1+((J$70*0.75)+(K$70*0.25)))) ->  | K40: =IF(#REF!>0,#REF!,J40*(1+((K$70*0.75)+(L$70*0.25)))) ->  | L40: =IF(#REF!>0,#REF!,K40*(1+((L$70*0.75)+(M$70*0.25)))) ->  | M40: =IF(#REF!>0,#REF!,L40*(1+((M$70*0.75)+(N$70*0.25)))) ->  | N40: =IF(#REF!>0,#REF!,M40*(1+((N$70*0.75)+(O$70*0.25)))) ->  | O40: =#REF! ->  | P40: =#REF! ->  | Q40: =#REF! ->  | R40: =#REF! ->  | S40: =#REF! ->  | T40: =IF(#REF!>0,T39*(#REF!/#REF!),S40*(1+((T$70*0.75)+(U$70*0.25)))) -> 
B41: JAN | C41: =IF(#REF!>0,#REF!,B41*(1+((B$70*0.75)+(D$70*0.25)))) ->  | D41: =IF(#REF!>0,#REF!,C41*(1+((D$70*0.75)+(E$70*0.25)))) ->  | E41: =IF(#REF!>0,#REF!,D41*(1+((E$70*0.75)+(F$70*0.25)))) ->  | F41: =IF(#REF!>0,#REF!,E41*(1+((F$70*0.75)+(G$70*0.25)))) ->  | G41: =IF(#REF!>0,#REF!,F41*(1+((G$70*0.75)+(H$70*0.25)))) ->  | H41: =IF(#REF!>0,#REF!,G41*(1+((H$70*0.75)+(I$70*0.25)))) ->  | I41: =IF(#REF!>0,#REF!,H41*(1+((I$70*0.75)+(J$70*0.25)))) ->  | J41: =IF(#REF!>0,#REF!,I41*(1+((J$70*0.75)+(K$70*0.25)))) ->  | K41: =IF(#REF!>0,#REF!,J41*(1+((K$70*0.75)+(L$70*0.25)))) ->  | L41: =IF(#REF!>0,#REF!,K41*(1+((L$70*0.75)+(M$70*0.25)))) ->  | M41: =IF(#REF!>0,#REF!,L41*(1+((M$70*0.75)+(N$70*0.25)))) ->  | N41: =IF(#REF!>0,#REF!,M41*(1+((N$70*0.75)+(O$70*0.25)))) ->  | O41: =#REF! ->  | P41: =#REF! ->  | Q41: =#REF! ->  | R41: =#REF! ->  | S41: =#REF! ->  | T41: =IF(#REF!>0,T40*(#REF!/#REF!),S41*(1+((T$70*0.75)+(U$70*0.25)))) -> 
B42: FEB | C42: =IF(#REF!>0,#REF!,B42*(1+((B$70*0.75)+(D$70*0.25)))) ->  | D42: =IF(#REF!>0,#REF!,C42*(1+((D$70*0.75)+(E$70*0.25)))) ->  | E42: =IF(#REF!>0,#REF!,D42*(1+((E$70*0.75)+(F$70*0.25)))) ->  | F42: =IF(#REF!>0,#REF!,E42*(1+((F$70*0.75)+(G$70*0.25)))) ->  | G42: =IF(#REF!>0,#REF!,F42*(1+((G$70*0.75)+(H$70*0.25)))) ->  | H42: =IF(#REF!>0,#REF!,G42*(1+((H$70*0.75)+(I$70*0.25)))) ->  | I42: =IF(#REF!>0,#REF!,H42*(1+((I$70*0.75)+(J$70*0.25)))) ->  | J42: =IF(#REF!>0,#REF!,I42*(1+((J$70*0.75)+(K$70*0.25)))) ->  | K42: =IF(#REF!>0,#REF!,J42*(1+((K$70*0.75)+(L$70*0.25)))) ->  | L42: =IF(#REF!>0,#REF!,K42*(1+((L$70*0.75)+(M$70*0.25)))) ->  | M42: =IF(#REF!>0,#REF!,L42*(1+((M$70*0.75)+(N$70*0.25)))) ->  | N42: =IF(#REF!>0,#REF!,M42*(1+((N$70*0.75)+(O$70*0.25)))) ->  | O42: =#REF! ->  | P42: =#REF! ->  | Q42: =#REF! ->  | R42: =#REF! ->  | S42: =#REF! ->  | T42: =IF(#REF!>0,T41*(#REF!/#REF!),S42*(1+((T$70*0.75)+(U$70*0.25)))) -> 
B43: MAR | C43: =IF(#REF!>0,#REF!,B43*(1+((B$70*0.75)+(D$70*0.25)))) ->  | D43: =IF(#REF!>0,#REF!,C43*(1+((D$70*0.75)+(E$70*0.25)))) ->  | E43: =IF(#REF!>0,#REF!,D43*(1+((E$70*0.75)+(F$70*0.25)))) ->  | F43: =IF(#REF!>0,#REF!,E43*(1+((F$70*0.75)+(G$70*0.25)))) ->  | G43: =IF(#REF!>0,#REF!,F43*(1+((G$70*0.75)+(H$70*0.25)))) ->  | H43: =IF(#REF!>0,#REF!,G43*(1+((H$70*0.75)+(I$70*0.25)))) ->  | I43: =IF(#REF!>0,#REF!,H43*(1+((I$70*0.75)+(J$70*0.25)))) ->  | J43: =IF(#REF!>0,#REF!,I43*(1+((J$70*0.75)+(K$70*0.25)))) ->  | K43: =IF(#REF!>0,#REF!,J43*(1+((K$70*0.75)+(L$70*0.25)))) ->  | L43: =IF(#REF!>0,#REF!,K43*(1+((L$70*0.75)+(M$70*0.25)))) ->  | M43: =IF(#REF!>0,#REF!,L43*(1+((M$70*0.75)+(N$70*0.25)))) ->  | N43: =IF(#REF!>0,#REF!,M43*(1+((N$70*0.75)+(O$70*0.25)))) ->  | O43: =#REF! ->  | P43: =#REF! ->  | Q43: =#REF! ->  | R43: =#REF! ->  | S43: =#REF! ->  | T43: =IF(#REF!>0,T42*(#REF!/#REF!),S43*(1+((T$70*0.75)+(U$70*0.25)))) -> 
B45: RPIt | C45: =AVERAGE(C32:C43) ->  | D45: =AVERAGE(D32:D43) ->  | N45: =AVERAGE(N32:N43) ->  | Q45: =AVERAGE(Q32:Q43) ->  | S45: =AVERAGE(S32:S43) ->  | T45: =AVERAGE(T32:T43) -> 
B46: CPIt | C46: 88.43333333 | D46: 90.90833333 | E46: 94.30833333 | F46: 96.58333333 | G46: 98.6 | H46: 99.725 | I46: 100.1666667 | J46: 101.5416667 | K46: 104.2166667 | L46: 106.433 | M46: 108.2370394 | N46: =AVERAGE(#REF!) ->  | O46: =AVERAGE(#REF!) ->  | P46: =AVERAGE(#REF!) ->  | Q46: =AVERAGE(#REF!) ->  | R46: =AVERAGE(#REF!) ->  | S46: =AVERAGE(#REF!) ->  | T46: =AVERAGE(#REF!) -> 
B47: RPIAt | C47: =C45/$C$45 ->  | D47: =D45/$C$45 ->  | M47: =M45/$C$45 ->  | N47: =N45/$C$45 ->  | O47: =O45/$C$45 ->  | Q47: =Q45/$C$45 ->  | R47: =R45/$C$45 ->  | T47: =T45/$C$45 -> 
B48: CPIFt | C48: =C46/$C$46 -> 1 | L48: =(1+(K50))*J47*(1+L50) ->  | O48: =O47 ->  | P48: =P47 ->  | Q48: =(1+(P50))*O48*(1+Q50) ->  | R48: =(1+(Q50))*P48*(1+R50) -> 
B49: ACTUAL / PROJECTED RPI % CHANGE | D49: =D45/C45-1 ->  | E49: =E45/D45-1 ->  | N49: =N45/M45-1 ->  | O49: =O45/N45-1 ->  | P49: =P45/O45-1 ->  | Q49: =Q45/P45-1 ->  | R49: =R45/Q45-1 ->  | S49: =S45/R45-1 ->  | T49: =T45/S45-1 -> 
B50: ACTUAL / PROJECTED CPI % CHANGE | D50: =D46/C46-1 -> 0.02798718432 | E50: =E46/D46-1 -> 0.03740031167 | F50: =F46/E46-1 -> 0.0241230008 | G50: =G46/F46-1 -> 0.02088006903 | H50: =H46/G46-1 -> 0.01140973631 | I50: =I46/H46-1 -> 0.004428845993 | J50: =J46/I46-1 -> 0.01372712146 | K50: =K46/J46-1 -> 0.02634386541 | L50: =L46/K46-1 -> 0.02126659204 | M50: =M46/L46-1 -> 0.01695 | N50: =N46/M46-1 -> 
B51: RPIFt CALCULATION | C51: =C47/$L47 ->  | D51: =D47/$L47 ->  | O51: =O47/$L47 ->  | P51: =P47/$L47 ->  | T51: =T48/$L47 ->  | Y51: CPIFt
L52: 0 | M52: 0 | N52: 0 | O52: 0 | P52: 0 | Q52: 0 | R52: 0 | S52: 0 | T52: 0
B53: FORMULA YEAR | C53: 2009 | D53: 2010 | E53: 2011 | F53: 2012 | G53: 2013 | H53: 2014 | I53: 2015 | J53: 2016 | K53: 2017 | L53: 2018 | M53: 2019 | N53: 2020 | O53: 2021 | P53: 2022 | Q53: 2023 | R53: 2024 | S53: 2025 | T53: 2026 | Y53: FORMULA YEAR | Z53: 2009 | AA53: 2010 | AB53: 2011 | AC53: 2012 | AD53: 2013 | AE53: 2014 | AF53: 2015 | AG53: 2016 | AH53: 2017 | AI53: 2018 | AJ53: 2019 | AK53: 2020 | AL53: 2021 | AM53: 2022 | AN53: 2023 | AO53: 2024 | AP53: 2025 | AQ53: 2026
B54: 2013/14 | E54: =IF(IF(IF(#REF!=0,#REF!,#REF!)=0,#REF!,IF(#REF!=0,#REF!,#REF!))=0,#REF!,IF(IF(#REF!=0,#REF!,#REF!)=0,#REF!,IF(#REF!=0,#REF!,#REF!))) ->  | F54: =IF(IF(IF(#REF!=0,#REF!,#REF!)=0,#REF!,IF(#REF!=0,#REF!,#REF!))=0,#REF!,IF(IF(#REF!=0,#REF!,#REF!)=0,#REF!,IF(#REF!=0,#REF!,#REF!))) ->  | G54: =IF(IF(IF(#REF!=0,#REF!,#REF!)=0,#REF!,IF(#REF!=0,#REF!,#REF!))=0,#REF!,IF(IF(#REF!=0,#REF!,#REF!)=0,#REF!,IF(#REF!=0,#REF!,#REF!))) ->  | H54: =IF(IF(IF(#REF!=0,#REF!,#REF!)=0,#REF!,IF(#REF!=0,#REF!,#REF!))=0,#REF!,IF(IF(#REF!=0,#REF!,#REF!)=0,#REF!,IF(#REF!=0,#REF!,#REF!))) ->  | I54: =IF(IF(IF(#REF!=0,#REF!,#REF!)=0,#REF!,IF(#REF!=0,#REF!,#REF!))=0,#REF!,IF(IF(#REF!=0,#REF!,#REF!)=0,#REF!,IF(#REF!=0,#REF!,#REF!))) ->  | J54: =IF(IF(IF(#REF!=0,#REF!,#REF!)=0,#REF!,IF(#REF!=0,#REF!,#REF!))=0,#REF!,IF(IF(#REF!=0,#REF!,#REF!)=0,#REF!,IF(#REF!=0,#REF!,#REF!))) ->  | K54: =#REF! ->  | L54: =#REF! ->  | M54: =#REF! ->  | N54: =#REF! ->  | O54: =#REF! ->  | P54: =#REF! ->  | Q54: =#REF! ->  | R54: =#REF! ->  | S54: =#REF! ->  | T54: =#REF! ->  | Y54: 2013/14 | AI54: =#REF! ->  | AJ54: =#REF! ->  | AK54: =#REF! ->  | AL54: =#REF! ->  | AM54: =#REF! ->  | AN54: =#REF! ->  | AO54: =#REF! ->  | AP54: =#REF! ->  | AQ54: =#REF! -> 
B55: 2014/15 | E55: =E54 ->  | F55: =F54 ->  | G55: =IF(IF(IF(IF(#REF!=0,#REF!,#REF!)=0,#REF!,IF(#REF!=0,#REF!,#REF!))=0,#REF!,IF(IF(#REF!=0,#REF!,#REF!)=0,#REF!,IF(#REF!=0,#REF!,#REF!)))=0,G54,IF(IF(IF(#REF!=0,#REF!,#REF!)=0,#REF!,IF(#REF!=0,#REF!,#REF!))=0,#REF!,IF(IF(#REF!=0,#REF!,#REF!)=0,#REF!,IF(#REF!=0,#REF!,#REF!)))) ->  | H55: =IF(IF(IF(IF(#REF!=0,#REF!,#REF!)=0,#REF!,IF(#REF!=0,#REF!,#REF!))=0,#REF!,IF(IF(#REF!=0,#REF!,#REF!)=0,#REF!,IF(#REF!=0,#REF!,#REF!)))=0,H54,IF(IF(IF(#REF!=0,#REF!,#REF!)=0,#REF!,IF(#REF!=0,#REF!,#REF!))=0,#REF!,IF(IF(#REF!=0,#REF!,#REF!)=0,#REF!,IF(#REF!=0,#REF!,#REF!)))) ->  | I55: =IF(IF(IF(IF(#REF!=0,#REF!,#REF!)=0,#REF!,IF(#REF!=0,#REF!,#REF!))=0,#REF!,IF(IF(#REF!=0,#REF!,#REF!)=0,#REF!,IF(#REF!=0,#REF!,#REF!)))=0,I54,IF(IF(IF(#REF!=0,#REF!,#REF!)=0,#REF!,IF(#REF!=0,#REF!,#REF!))=0,#REF!,IF(IF(#REF!=0,#REF!,#REF!)=0,#REF!,IF(#REF!=0,#REF!,#REF!)))) ->  | J55: =IF(IF(IF(IF(#REF!=0,#REF!,#REF!)=0,#REF!,IF(#REF!=0,#REF!,#REF!))=0,#REF!,IF(IF(#REF!=0,#REF!,#REF!)=0,#REF!,IF(#REF!=0,#REF!,#REF!)))=0,J54,IF(IF(IF(#REF!=0,#REF!,#REF!)=0,#REF!,IF(#REF!=0,#REF!,#REF!))=0,#REF!,IF(IF(#REF!=0,#REF!,#REF!)=0,#REF!,IF(#REF!=0,#REF!,#REF!)))) ->  | K55: =IF(IF(IF(IF(#REF!=0,#REF!,#REF!)=0,#REF!,IF(#REF!=0,#REF!,#REF!))=0,#REF!,IF(IF(#REF!=0,#REF!,#REF!)=0,#REF!,IF(#REF!=0,#REF!,#REF!)))=0,K54,IF(IF(IF(#REF!=0,#REF!,#REF!)=0,#REF!,IF(#REF!=0,#REF!,#REF!))=0,#REF!,IF(IF(#REF!=0,#REF!,#REF!)=0,#REF!,IF(#REF!=0,#REF!,#REF!)))) ->  | L55: =#REF! ->  | M55: =#REF! ->  | N55: =#REF! ->  | O55: =#REF! ->  | P55: =#REF! ->  | Q55: =#REF! ->  | R55: =#REF! ->  | S55: =#REF! ->  | T55: =#REF! ->  | Y55: 2014/15 | AI55: =#REF! ->  | AJ55: =#REF! ->  | AK55: =#REF! ->  | AL55: =#REF! ->  | AM55: =#REF! ->  | AN55: =#REF! ->  | AO55: =#REF! ->  | AP55: =#REF! ->  | AQ55: =#REF! -> 
B56: 2015/16 | E56: =E55 ->  | G56: =G55 ->  | H56: =IF(IF(IF(IF(#REF!=0,#REF!,#REF!)=0,#REF!,IF(#REF!=0,#REF!,#REF!))=0,#REF!,IF(IF(#REF!=0,#REF!,#REF!)=0,#REF!,IF(#REF!=0,#REF!,#REF!)))=0,H55,(IF(IF(IF(#REF!=0,#REF!,#REF!)=0,#REF!,IF(#REF!=0,#REF!,#REF!))=0,#REF!,IF(IF(#REF!=0,#REF!,#REF!)=0,#REF!,IF(#REF!=0,#REF!,#REF!))))) ->  | I56: =IF(IF(IF(IF(#REF!=0,#REF!,#REF!)=0,#REF!,IF(#REF!=0,#REF!,#REF!))=0,#REF!,IF(IF(#REF!=0,#REF!,#REF!)=0,#REF!,IF(#REF!=0,#REF!,#REF!)))=0,I55,(IF(IF(IF(#REF!=0,#REF!,#REF!)=0,#REF!,IF(#REF!=0,#REF!,#REF!))=0,#REF!,IF(IF(#REF!=0,#REF!,#REF!)=0,#REF!,IF(#REF!=0,#REF!,#REF!))))) ->  | J56: =IF(IF(IF(IF(#REF!=0,#REF!,#REF!)=0,#REF!,IF(#REF!=0,#REF!,#REF!))=0,#REF!,IF(IF(#REF!=0,#REF!,#REF!)=0,#REF!,IF(#REF!=0,#REF!,#REF!)))=0,J55,(IF(IF(IF(#REF!=0,#REF!,#REF!)=0,#REF!,IF(#REF!=0,#REF!,#REF!))=0,#REF!,IF(IF(#REF!=0,#REF!,#REF!)=0,#REF!,IF(#REF!=0,#REF!,#REF!))))) ->  | K56: =IF(IF(IF(IF(#REF!=0,#REF!,#REF!)=0,#REF!,IF(#REF!=0,#REF!,#REF!))=0,#REF!,IF(IF(#REF!=0,#REF!,#REF!)=0,#REF!,IF(#REF!=0,#REF!,#REF!)))=0,K55,(IF(IF(IF(#REF!=0,#REF!,#REF!)=0,#REF!,IF(#REF!=0,#REF!,#REF!))=0,#REF!,IF(IF(#REF!=0,#REF!,#REF!)=0,#REF!,IF(#REF!=0,#REF!,#REF!))))) ->  | L56: =IF(IF(IF(IF(#REF!=0,#REF!,#REF!)=0,#REF!,IF(#REF!=0,#REF!,#REF!))=0,#REF!,IF(IF(#REF!=0,#REF!,#REF!)=0,#REF!,IF(#REF!=0,#REF!,#REF!)))=0,L55,(IF(IF(IF(#REF!=0,#REF!,#REF!)=0,#REF!,IF(#REF!=0,#REF!,#REF!))=0,#REF!,IF(IF(#REF!=0,#REF!,#REF!)=0,#REF!,IF(#REF!=0,#REF!,#REF!))))) ->  | M56: =#REF! ->  | N56: =#REF! ->  | O56: =#REF! ->  | P56: =#REF! ->  | Q56: =#REF! ->  | R56: =#REF! ->  | S56: =#REF! ->  | T56: =#REF! ->  | Y56: 2015/16 | AH56: =IF(IF(IF(IF(#REF!=0,#REF!,#REF!)=0,#REF!,IF(#REF!=0,#REF!,#REF!))=0,#REF!,IF(IF(#REF!=0,#REF!,#REF!)=0,#REF!,IF(#REF!=0,#REF!,#REF!)))=0,AA55,(IF(IF(IF(#REF!=0,#REF!,#REF!)=0,#REF!,IF(#REF!=0,#REF!,#REF!))=0,#REF!,IF(IF(#REF!=0,#REF!,#REF!)=0,#REF!,IF(#REF!=0,#REF!,#REF!))))) ->  | AI56: =IF(IF(IF(IF(#REF!=0,#REF!,#REF!)=0,#REF!,IF(#REF!=0,#REF!,#REF!))=0,#REF!,IF(IF(#REF!=0,#REF!,#REF!)=0,#REF!,IF(#REF!=0,#REF!,#REF!)))=0,AB55,(IF(IF(IF(#REF!=0,#REF!,#REF!)=0,#REF!,IF(#REF!=0,#REF!,#REF!))=0,#REF!,IF(IF(#REF!=0,#REF!,#REF!)=0,#REF!,IF(#REF!=0,#REF!,#REF!))))) ->  | AJ56: =#REF! ->  | AK56: =#REF! ->  | AL56: =#REF! ->  | AM56: =#REF! ->  | AN56: =#REF! ->  | AO56: =#REF! ->  | AP56: =#REF! ->  | AQ56: =#REF! -> 
B57: 2016/17 | G57: =G56 ->  | H57: =H56 ->  | I57: =IF(IF(IF(IF(#REF!=0,#REF!,#REF!)=0,#REF!,IF(#REF!=0,#REF!,#REF!))=0,#REF!,IF(IF(#REF!=0,#REF!,#REF!)=0,#REF!,IF(#REF!=0,#REF!,#REF!)))=0,I56,IF(IF(IF(#REF!=0,#REF!,#REF!)=0,#REF!,IF(#REF!=0,#REF!,#REF!))=0,#REF!,IF(IF(#REF!=0,#REF!,#REF!)=0,#REF!,IF(#REF!=0,#REF!,#REF!)))) ->  | J57: =IF(IF(IF(IF(#REF!=0,#REF!,#REF!)=0,#REF!,IF(#REF!=0,#REF!,#REF!))=0,#REF!,IF(IF(#REF!=0,#REF!,#REF!)=0,#REF!,IF(#REF!=0,#REF!,#REF!)))=0,J56,IF(IF(IF(#REF!=0,#REF!,#REF!)=0,#REF!,IF(#REF!=0,#REF!,#REF!))=0,#REF!,IF(IF(#REF!=0,#REF!,#REF!)=0,#REF!,IF(#REF!=0,#REF!,#REF!)))) ->  | K57: =IF(IF(IF(IF(#REF!=0,#REF!,#REF!)=0,#REF!,IF(#REF!=0,#REF!,#REF!))=0,#REF!,IF(IF(#REF!=0,#REF!,#REF!)=0,#REF!,IF(#REF!=0,#REF!,#REF!)))=0,K56,IF(IF(IF(#REF!=0,#REF!,#REF!)=0,#REF!,IF(#REF!=0,#REF!,#REF!))=0,#REF!,IF(IF(#REF!=0,#REF!,#REF!)=0,#REF!,IF(#REF!=0,#REF!,#REF!)))) ->  | L57: =IF(IF(IF(IF(#REF!=0,#REF!,#REF!)=0,#REF!,IF(#REF!=0,#REF!,#REF!))=0,#REF!,IF(IF(#REF!=0,#REF!,#REF!)=0,#REF!,IF(#REF!=0,#REF!,#REF!)))=0,L56,IF(IF(IF(#REF!=0,#REF!,#REF!)=0,#REF!,IF(#REF!=0,#REF!,#REF!))=0,#REF!,IF(IF(#REF!=0,#REF!,#REF!)=0,#REF!,IF(#REF!=0,#REF!,#REF!)))) ->  | M57: =IF(IF(IF(IF(#REF!=0,#REF!,#REF!)=0,#REF!,IF(#REF!=0,#REF!,#REF!))=0,#REF!,IF(IF(#REF!=0,#REF!,#REF!)=0,#REF!,IF(#REF!=0,#REF!,#REF!)))=0,M56,IF(IF(IF(#REF!=0,#REF!,#REF!)=0,#REF!,IF(#REF!=0,#REF!,#REF!))=0,#REF!,IF(IF(#REF!=0,#REF!,#REF!)=0,#REF!,IF(#REF!=0,#REF!,#REF!)))) ->  | N57: =#REF! ->  | O57: =#REF! ->  | P57: =#REF! ->  | Q57: =#REF! ->  | R57: =#REF! ->  | S57: =#REF! ->  | T57: =#REF! ->  | Y57: 2016/17 | AH57: =IF(IF(IF(IF(#REF!=0,#REF!,#REF!)=0,#REF!,IF(#REF!=0,#REF!,#REF!))=0,#REF!,IF(IF(#REF!=0,#REF!,#REF!)=0,#REF!,IF(#REF!=0,#REF!,#REF!)))=0,AA56,IF(IF(IF(#REF!=0,#REF!,#REF!)=0,#REF!,IF(#REF!=0,#REF!,#REF!))=0,#REF!,IF(IF(#REF!=0,#REF!,#REF!)=0,#REF!,IF(#REF!=0,#REF!,#REF!)))) ->  | AI57: =IF(IF(IF(IF(#REF!=0,#REF!,#REF!)=0,#REF!,IF(#REF!=0,#REF!,#REF!))=0,#REF!,IF(IF(#REF!=0,#REF!,#REF!)=0,#REF!,IF(#REF!=0,#REF!,#REF!)))=0,AB56,IF(IF(IF(#REF!=0,#REF!,#REF!)=0,#REF!,IF(#REF!=0,#REF!,#REF!))=0,#REF!,IF(IF(#REF!=0,#REF!,#REF!)=0,#REF!,IF(#REF!=0,#REF!,#REF!)))) ->  | AJ57: =IF(IF(IF(IF(#REF!=0,#REF!,#REF!)=0,#REF!,IF(#REF!=0,#REF!,#REF!))=0,#REF!,IF(IF(#REF!=0,#REF!,#REF!)=0,#REF!,IF(#REF!=0,#REF!,#REF!)))=0,AC56,IF(IF(IF(#REF!=0,#REF!,#REF!)=0,#REF!,IF(#REF!=0,#REF!,#REF!))=0,#REF!,IF(IF(#REF!=0,#REF!,#REF!)=0,#REF!,IF(#REF!=0,#REF!,#REF!)))) ->  | AK57: =#REF! ->  | AL57: =#REF! ->  | AM57: =#REF! ->  | AN57: =#REF! ->  | AO57: =#REF! ->  | AP57: =#REF! ->  | AQ57: =#REF! -> 
B58: 2017/18 | H58: =H57 ->  | I58: =I57 ->  | J58: =IF(IF(IF(IF(#REF!=0,#REF!,#REF!)=0,#REF!,IF(#REF!=0,#REF!,#REF!))=0,#REF!,IF(IF(#REF!=0,#REF!,#REF!)=0,#REF!,IF(#REF!=0,#REF!,#REF!)))=0,J57,IF(IF(IF(#REF!=0,#REF!,#REF!)=0,#REF!,IF(#REF!=0,#REF!,#REF!))=0,#REF!,IF(IF(#REF!=0,#REF!,#REF!)=0,#REF!,IF(#REF!=0,#REF!,#REF!)))) ->  | K58: =IF(IF(IF(IF(#REF!=0,#REF!,#REF!)=0,#REF!,IF(#REF!=0,#REF!,#REF!))=0,#REF!,IF(IF(#REF!=0,#REF!,#REF!)=0,#REF!,IF(#REF!=0,#REF!,#REF!)))=0,K57,IF(IF(IF(#REF!=0,#REF!,#REF!)=0,#REF!,IF(#REF!=0,#REF!,#REF!))=0,#REF!,IF(IF(#REF!=0,#REF!,#REF!)=0,#REF!,IF(#REF!=0,#REF!,#REF!)))) ->  | L58: =IF(IF(IF(IF(#REF!=0,#REF!,#REF!)=0,#REF!,IF(#REF!=0,#REF!,#REF!))=0,#REF!,IF(IF(#REF!=0,#REF!,#REF!)=0,#REF!,IF(#REF!=0,#REF!,#REF!)))=0,L57,IF(IF(IF(#REF!=0,#REF!,#REF!)=0,#REF!,IF(#REF!=0,#REF!,#REF!))=0,#REF!,IF(IF(#REF!=0,#REF!,#REF!)=0,#REF!,IF(#REF!=0,#REF!,#REF!)))) ->  | M58: =IF(IF(IF(IF(#REF!=0,#REF!,#REF!)=0,#REF!,IF(#REF!=0,#REF!,#REF!))=0,#REF!,IF(IF(#REF!=0,#REF!,#REF!)=0,#REF!,IF(#REF!=0,#REF!,#REF!)))=0,M57,IF(IF(IF(#REF!=0,#REF!,#REF!)=0,#REF!,IF(#REF!=0,#REF!,#REF!))=0,#REF!,IF(IF(#REF!=0,#REF!,#REF!)=0,#REF!,IF(#REF!=0,#REF!,#REF!)))) ->  | N58: =IF(IF(IF(IF(#REF!=0,#REF!,#REF!)=0,#REF!,IF(#REF!=0,#REF!,#REF!))=0,#REF!,IF(IF(#REF!=0,#REF!,#REF!)=0,#REF!,IF(#REF!=0,#REF!,#REF!)))=0,N57,IF(IF(IF(#REF!=0,#REF!,#REF!)=0,#REF!,IF(#REF!=0,#REF!,#REF!))=0,#REF!,IF(IF(#REF!=0,#REF!,#REF!)=0,#REF!,IF(#REF!=0,#REF!,#REF!)))) ->  | O58: =#REF! ->  | P58: =#REF! ->  | Q58: =#REF! ->  | R58: =#REF! ->  | S58: =#REF! ->  | T58: =#REF! ->  | Y58: 2017/18 | AH58: =IF(IF(IF(IF(#REF!=0,#REF!,#REF!)=0,#REF!,IF(#REF!=0,#REF!,#REF!))=0,#REF!,IF(IF(#REF!=0,#REF!,#REF!)=0,#REF!,IF(#REF!=0,#REF!,#REF!)))=0,AA57,IF(IF(IF(#REF!=0,#REF!,#REF!)=0,#REF!,IF(#REF!=0,#REF!,#REF!))=0,#REF!,IF(IF(#REF!=0,#REF!,#REF!)=0,#REF!,IF(#REF!=0,#REF!,#REF!)))) ->  | AI58: =IF(IF(IF(IF(#REF!=0,#REF!,#REF!)=0,#REF!,IF(#REF!=0,#REF!,#REF!))=0,#REF!,IF(IF(#REF!=0,#REF!,#REF!)=0,#REF!,IF(#REF!=0,#REF!,#REF!)))=0,AB57,IF(IF(IF(#REF!=0,#REF!,#REF!)=0,#REF!,IF(#REF!=0,#REF!,#REF!))=0,#REF!,IF(IF(#REF!=0,#REF!,#REF!)=0,#REF!,IF(#REF!=0,#REF!,#REF!)))) ->  | AJ58: =IF(IF(IF(IF(#REF!=0,#REF!,#REF!)=0,#REF!,IF(#REF!=0,#REF!,#REF!))=0,#REF!,IF(IF(#REF!=0,#REF!,#REF!)=0,#REF!,IF(#REF!=0,#REF!,#REF!)))=0,AJ57,IF(IF(IF(#REF!=0,#REF!,#REF!)=0,#REF!,IF(#REF!=0,#REF!,#REF!))=0,#REF!,IF(IF(#REF!=0,#REF!,#REF!)=0,#REF!,IF(#REF!=0,#REF!,#REF!)))) ->  | AK58: =IF(IF(IF(IF(#REF!=0,#REF!,#REF!)=0,#REF!,IF(#REF!=0,#REF!,#REF!))=0,#REF!,IF(IF(#REF!=0,#REF!,#REF!)=0,#REF!,IF(#REF!=0,#REF!,#REF!)))=0,AK57,IF(IF(IF(#REF!=0,#REF!,#REF!)=0,#REF!,IF(#REF!=0,#REF!,#REF!))=0,#REF!,IF(IF(#REF!=0,#REF!,#REF!)=0,#REF!,IF(#REF!=0,#REF!,#REF!)))) ->  | AL58: =#REF! ->  | AM58: =#REF! ->  | AN58: =#REF! ->  | AO58: =#REF! ->  | AP58: =#REF! ->  | AQ58: =#REF! -> 
B59: 2018/19 | I59: =I58 ->  | J59: =J58 ->  | K59: =IF(IF(IF(IF(#REF!=0,#REF!,#REF!)=0,#REF!,IF(#REF!=0,#REF!,#REF!))=0,#REF!,IF(IF(#REF!=0,#REF!,#REF!)=0,#REF!,IF(#REF!=0,#REF!,#REF!)))=0,K58,IF(IF(IF(#REF!=0,#REF!,#REF!)=0,#REF!,IF(#REF!=0,#REF!,#REF!))=0,#REF!,IF(IF(#REF!=0,#REF!,#REF!)=0,#REF!,IF(#REF!=0,#REF!,#REF!)))) ->  | L59: =IF(IF(IF(IF(#REF!=0,#REF!,#REF!)=0,#REF!,IF(#REF!=0,#REF!,#REF!))=0,#REF!,IF(IF(#REF!=0,#REF!,#REF!)=0,#REF!,IF(#REF!=0,#REF!,#REF!)))=0,L58,IF(IF(IF(#REF!=0,#REF!,#REF!)=0,#REF!,IF(#REF!=0,#REF!,#REF!))=0,#REF!,IF(IF(#REF!=0,#REF!,#REF!)=0,#REF!,IF(#REF!=0,#REF!,#REF!)))) ->  | M59: =IF(IF(IF(IF(#REF!=0,#REF!,#REF!)=0,#REF!,IF(#REF!=0,#REF!,#REF!))=0,#REF!,IF(IF(#REF!=0,#REF!,#REF!)=0,#REF!,IF(#REF!=0,#REF!,#REF!)))=0,M58,IF(IF(IF(#REF!=0,#REF!,#REF!)=0,#REF!,IF(#REF!=0,#REF!,#REF!))=0,#REF!,IF(IF(#REF!=0,#REF!,#REF!)=0,#REF!,IF(#REF!=0,#REF!,#REF!)))) ->  | N59: =IF(IF(IF(IF(#REF!=0,#REF!,#REF!)=0,#REF!,IF(#REF!=0,#REF!,#REF!))=0,#REF!,IF(IF(#REF!=0,#REF!,#REF!)=0,#REF!,IF(#REF!=0,#REF!,#REF!)))=0,N58,IF(IF(IF(#REF!=0,#REF!,#REF!)=0,#REF!,IF(#REF!=0,#REF!,#REF!))=0,#REF!,IF(IF(#REF!=0,#REF!,#REF!)=0,#REF!,IF(#REF!=0,#REF!,#REF!)))) ->  | O59: =IF(IF(IF(IF(#REF!=0,#REF!,#REF!)=0,#REF!,IF(#REF!=0,#REF!,#REF!))=0,#REF!,IF(IF(#REF!=0,#REF!,#REF!)=0,#REF!,IF(#REF!=0,#REF!,#REF!)))=0,O58,IF(IF(IF(#REF!=0,#REF!,#REF!)=0,#REF!,IF(#REF!=0,#REF!,#REF!))=0,#REF!,IF(IF(#REF!=0,#REF!,#REF!)=0,#REF!,IF(#REF!=0,#REF!,#REF!)))) ->  | P59: =#REF! ->  | Q59: =#REF! ->  | R59: =#REF! ->  | S59: =#REF! ->  | T59: =#REF! ->  | Y59: 2018/19 | AH59: =IF(IF(IF(IF(#REF!=0,#REF!,#REF!)=0,#REF!,IF(#REF!=0,#REF!,#REF!))=0,#REF!,IF(IF(#REF!=0,#REF!,#REF!)=0,#REF!,IF(#REF!=0,#REF!,#REF!)))=0,AA58,IF(IF(IF(#REF!=0,#REF!,#REF!)=0,#REF!,IF(#REF!=0,#REF!,#REF!))=0,#REF!,IF(IF(#REF!=0,#REF!,#REF!)=0,#REF!,IF(#REF!=0,#REF!,#REF!)))) ->  | AI59: =IF(IF(IF(IF(#REF!=0,#REF!,#REF!)=0,#REF!,IF(#REF!=0,#REF!,#REF!))=0,#REF!,IF(IF(#REF!=0,#REF!,#REF!)=0,#REF!,IF(#REF!=0,#REF!,#REF!)))=0,AI58,IF(IF(IF(#REF!=0,#REF!,#REF!)=0,#REF!,IF(#REF!=0,#REF!,#REF!))=0,#REF!,IF(IF(#REF!=0,#REF!,#REF!)=0,#REF!,IF(#REF!=0,#REF!,#REF!)))) ->  | AJ59: =IF(IF(IF(IF(#REF!=0,#REF!,#REF!)=0,#REF!,IF(#REF!=0,#REF!,#REF!))=0,#REF!,IF(IF(#REF!=0,#REF!,#REF!)=0,#REF!,IF(#REF!=0,#REF!,#REF!)))=0,AJ58,IF(IF(IF(#REF!=0,#REF!,#REF!)=0,#REF!,IF(#REF!=0,#REF!,#REF!))=0,#REF!,IF(IF(#REF!=0,#REF!,#REF!)=0,#REF!,IF(#REF!=0,#REF!,#REF!)))) ->  | AK59: =IF(IF(IF(IF(#REF!=0,#REF!,#REF!)=0,#REF!,IF(#REF!=0,#REF!,#REF!))=0,#REF!,IF(IF(#REF!=0,#REF!,#REF!)=0,#REF!,IF(#REF!=0,#REF!,#REF!)))=0,AK58,IF(IF(IF(#REF!=0,#REF!,#REF!)=0,#REF!,IF(#REF!=0,#REF!,#REF!))=0,#REF!,IF(IF(#REF!=0,#REF!,#REF!)=0,#REF!,IF(#REF!=0,#REF!,#REF!)))) ->  | AL59: =IF(IF(IF(IF(#REF!=0,#REF!,#REF!)=0,#REF!,IF(#REF!=0,#REF!,#REF!))=0,#REF!,IF(IF(#REF!=0,#REF!,#REF!)=0,#REF!,IF(#REF!=0,#REF!,#REF!)))=0,AL58,IF(IF(IF(#REF!=0,#REF!,#REF!)=0,#REF!,IF(#REF!=0,#REF!,#REF!))=0,#REF!,IF(IF(#REF!=0,#REF!,#REF!)=0,#REF!,IF(#REF!=0,#REF!,#REF!)))) ->  | AM59: =#REF! ->  | AN59: =#REF! ->  | AO59: =#REF! ->  | AP59: =#REF! ->  | AQ59: =#REF! -> 
B60: 2019/20 | J60: =J59 ->  | K60: =K59 ->  | L60: =IF(IF(IF(IF(#REF!=0,#REF!,#REF!)=0,#REF!,IF(#REF!=0,#REF!,#REF!))=0,#REF!,(IF(IF(#REF!=0,#REF!,#REF!)=0,#REF!,IF(#REF!=0,#REF!,#REF!))))=0,L59,IF(IF(IF(#REF!=0,#REF!,#REF!)=0,#REF!,IF(#REF!=0,#REF!,#REF!))=0,#REF!,(IF(IF(#REF!=0,#REF!,#REF!)=0,#REF!,IF(#REF!=0,#REF!,#REF!))))) ->  | M60: =IF(IF(IF(IF(#REF!=0,#REF!,#REF!)=0,#REF!,IF(#REF!=0,#REF!,#REF!))=0,#REF!,(IF(IF(#REF!=0,#REF!,#REF!)=0,#REF!,IF(#REF!=0,#REF!,#REF!))))=0,M59,IF(IF(IF(#REF!=0,#REF!,#REF!)=0,#REF!,IF(#REF!=0,#REF!,#REF!))=0,#REF!,(IF(IF(#REF!=0,#REF!,#REF!)=0,#REF!,IF(#REF!=0,#REF!,#REF!))))) ->  | N60: =IF(IF(IF(IF(#REF!=0,#REF!,#REF!)=0,#REF!,IF(#REF!=0,#REF!,#REF!))=0,#REF!,(IF(IF(#REF!=0,#REF!,#REF!)=0,#REF!,IF(#REF!=0,#REF!,#REF!))))=0,N59,IF(IF(IF(#REF!=0,#REF!,#REF!)=0,#REF!,IF(#REF!=0,#REF!,#REF!))=0,#REF!,(IF(IF(#REF!=0,#REF!,#REF!)=0,#REF!,IF(#REF!=0,#REF!,#REF!))))) ->  | O60: =IF(IF(IF(IF(#REF!=0,#REF!,#REF!)=0,#REF!,IF(#REF!=0,#REF!,#REF!))=0,#REF!,(IF(IF(#REF!=0,#REF!,#REF!)=0,#REF!,IF(#REF!=0,#REF!,#REF!))))=0,O59,IF(IF(IF(#REF!=0,#REF!,#REF!)=0,#REF!,IF(#REF!=0,#REF!,#REF!))=0,#REF!,(IF(IF(#REF!=0,#REF!,#REF!)=0,#REF!,IF(#REF!=0,#REF!,#REF!))))) ->  | P60: =IF(IF(IF(IF(#REF!=0,#REF!,#REF!)=0,#REF!,IF(#REF!=0,#REF!,#REF!))=0,#REF!,(IF(IF(#REF!=0,#REF!,#REF!)=0,#REF!,IF(#REF!=0,#REF!,#REF!))))=0,P59,IF(IF(IF(#REF!=0,#REF!,#REF!)=0,#REF!,IF(#REF!=0,#REF!,#REF!))=0,#REF!,(IF(IF(#REF!=0,#REF!,#REF!)=0,#REF!,IF(#REF!=0,#REF!,#REF!))))) ->  | Q60: =#REF! ->  | R60: =#REF! ->  | S60: =#REF! ->  | T60: =#REF! ->  | Y60: 2019/20 | AB60: =AB59 -> 0 | AC60: 0 | AD60: 0 | AE60: 0 | AF60: 0 | AG60: 0 | AH60: =AH59 ->  | AI60: =IF(IF(IF(IF(#REF!=0,#REF!,#REF!)=0,#REF!,IF(#REF!=0,#REF!,#REF!))=0,#REF!,(IF(IF(#REF!=0,#REF!,#REF!)=0,#REF!,IF(#REF!=0,#REF!,#REF!))))=0,AI59,IF(IF(IF(#REF!=0,#REF!,#REF!)=0,#REF!,IF(#REF!=0,#REF!,#REF!))=0,#REF!,(IF(IF(#REF!=0,#REF!,#REF!)=0,#REF!,IF(#REF!=0,#REF!,#REF!))))) ->  | AJ60: =IF(IF(IF(IF(#REF!=0,#REF!,#REF!)=0,#REF!,IF(#REF!=0,#REF!,#REF!))=0,#REF!,(IF(IF(#REF!=0,#REF!,#REF!)=0,#REF!,IF(#REF!=0,#REF!,#REF!))))=0,AJ59,IF(IF(IF(#REF!=0,#REF!,#REF!)=0,#REF!,IF(#REF!=0,#REF!,#REF!))=0,#REF!,(IF(IF(#REF!=0,#REF!,#REF!)=0,#REF!,IF(#REF!=0,#REF!,#REF!))))) ->  | AK60: =IF(IF(IF(IF(#REF!=0,#REF!,#REF!)=0,#REF!,IF(#REF!=0,#REF!,#REF!))=0,#REF!,(IF(IF(#REF!=0,#REF!,#REF!)=0,#REF!,IF(#REF!=0,#REF!,#REF!))))=0,AK59,IF(IF(IF(#REF!=0,#REF!,#REF!)=0,#REF!,IF(#REF!=0,#REF!,#REF!))=0,#REF!,(IF(IF(#REF!=0,#REF!,#REF!)=0,#REF!,IF(#REF!=0,#REF!,#REF!))))) ->  | AL60: =IF(IF(IF(IF(#REF!=0,#REF!,#REF!)=0,#REF!,IF(#REF!=0,#REF!,#REF!))=0,#REF!,(IF(IF(#REF!=0,#REF!,#REF!)=0,#REF!,IF(#REF!=0,#REF!,#REF!))))=0,AL59,IF(IF(IF(#REF!=0,#REF!,#REF!)=0,#REF!,IF(#REF!=0,#REF!,#REF!))=0,#REF!,(IF(IF(#REF!=0,#REF!,#REF!)=0,#REF!,IF(#REF!=0,#REF!,#REF!))))) ->  | AM60: =IF(IF(IF(IF(#REF!=0,#REF!,#REF!)=0,#REF!,IF(#REF!=0,#REF!,#REF!))=0,#REF!,(IF(IF(#REF!=0,#REF!,#REF!)=0,#REF!,IF(#REF!=0,#REF!,#REF!))))=0,AM59,IF(IF(IF(#REF!=0,#REF!,#REF!)=0,#REF!,IF(#REF!=0,#REF!,#REF!))=0,#REF!,(IF(IF(#REF!=0,#REF!,#REF!)=0,#REF!,IF(#REF!=0,#REF!,#REF!))))) ->  | AN60: =#REF! ->  | AO60: =#REF! ->  | AP60: =#REF! ->  | AQ60: =#REF! -> 
B61: 2020/21 | K61: =K60 ->  | L61: =L60 ->  | M61: =IF(IF(IF(IF(#REF!=0,#REF!,#REF!)=0,#REF!,IF(#REF!=0,#REF!,#REF!))=0,#REF!,IF(IF(#REF!=0,#REF!,#REF!)=0,#REF!,IF(#REF!=0,#REF!,#REF!)))=0,M60,IF(IF(IF(#REF!=0,#REF!,#REF!)=0,#REF!,IF(#REF!=0,#REF!,#REF!))=0,#REF!,IF(IF(#REF!=0,#REF!,#REF!)=0,#REF!,IF(#REF!=0,#REF!,#REF!)))) ->  | N61: =IF(IF(IF(IF(#REF!=0,#REF!,#REF!)=0,#REF!,IF(#REF!=0,#REF!,#REF!))=0,#REF!,IF(IF(#REF!=0,#REF!,#REF!)=0,#REF!,IF(#REF!=0,#REF!,#REF!)))=0,N60,IF(IF(IF(#REF!=0,#REF!,#REF!)=0,#REF!,IF(#REF!=0,#REF!,#REF!))=0,#REF!,IF(IF(#REF!=0,#REF!,#REF!)=0,#REF!,IF(#REF!=0,#REF!,#REF!)))) ->  | O61: =IF(IF(IF(IF(#REF!=0,#REF!,#REF!)=0,#REF!,IF(#REF!=0,#REF!,#REF!))=0,#REF!,IF(IF(#REF!=0,#REF!,#REF!)=0,#REF!,IF(#REF!=0,#REF!,#REF!)))=0,O60,IF(IF(IF(#REF!=0,#REF!,#REF!)=0,#REF!,IF(#REF!=0,#REF!,#REF!))=0,#REF!,IF(IF(#REF!=0,#REF!,#REF!)=0,#REF!,IF(#REF!=0,#REF!,#REF!)))) ->  | P61: =IF(IF(IF(IF(#REF!=0,#REF!,#REF!)=0,#REF!,IF(#REF!=0,#REF!,#REF!))=0,#REF!,IF(IF(#REF!=0,#REF!,#REF!)=0,#REF!,IF(#REF!=0,#REF!,#REF!)))=0,P60,IF(IF(IF(#REF!=0,#REF!,#REF!)=0,#REF!,IF(#REF!=0,#REF!,#REF!))=0,#REF!,IF(IF(#REF!=0,#REF!,#REF!)=0,#REF!,IF(#REF!=0,#REF!,#REF!)))) ->  | Q61: =IF(IF(IF(IF(#REF!=0,#REF!,#REF!)=0,#REF!,IF(#REF!=0,#REF!,#REF!))=0,#REF!,IF(IF(#REF!=0,#REF!,#REF!)=0,#REF!,IF(#REF!=0,#REF!,#REF!)))=0,Q60,IF(IF(IF(#REF!=0,#REF!,#REF!)=0,#REF!,IF(#REF!=0,#REF!,#REF!))=0,#REF!,IF(IF(#REF!=0,#REF!,#REF!)=0,#REF!,IF(#REF!=0,#REF!,#REF!)))) ->  | R61: =#REF! ->  | S61: =#REF! ->  | T61: =#REF! ->  | Y61: 2020/21 | AB61: =AB60 -> 0 | AC61: 0 | AD61: 0 | AE61: 0 | AF61: 0 | AG61: 0 | AI61: =AI60 ->  | AJ61: =IF(IF(IF(IF(#REF!=0,#REF!,#REF!)=0,#REF!,IF(#REF!=0,#REF!,#REF!))=0,#REF!,IF(IF(#REF!=0,#REF!,#REF!)=0,#REF!,IF(#REF!=0,#REF!,#REF!)))=0,AJ60,IF(IF(IF(#REF!=0,#REF!,#REF!)=0,#REF!,IF(#REF!=0,#REF!,#REF!))=0,#REF!,IF(IF(#REF!=0,#REF!,#REF!)=0,#REF!,IF(#REF!=0,#REF!,#REF!)))) ->  | AK61: =IF(IF(IF(IF(#REF!=0,#REF!,#REF!)=0,#REF!,IF(#REF!=0,#REF!,#REF!))=0,#REF!,IF(IF(#REF!=0,#REF!,#REF!)=0,#REF!,IF(#REF!=0,#REF!,#REF!)))=0,AK60,IF(IF(IF(#REF!=0,#REF!,#REF!)=0,#REF!,IF(#REF!=0,#REF!,#REF!))=0,#REF!,IF(IF(#REF!=0,#REF!,#REF!)=0,#REF!,IF(#REF!=0,#REF!,#REF!)))) ->  | AL61: =IF(IF(IF(IF(#REF!=0,#REF!,#REF!)=0,#REF!,IF(#REF!=0,#REF!,#REF!))=0,#REF!,IF(IF(#REF!=0,#REF!,#REF!)=0,#REF!,IF(#REF!=0,#REF!,#REF!)))=0,AL60,IF(IF(IF(#REF!=0,#REF!,#REF!)=0,#REF!,IF(#REF!=0,#REF!,#REF!))=0,#REF!,IF(IF(#REF!=0,#REF!,#REF!)=0,#REF!,IF(#REF!=0,#REF!,#REF!)))) ->  | AM61: =IF(IF(IF(IF(#REF!=0,#REF!,#REF!)=0,#REF!,IF(#REF!=0,#REF!,#REF!))=0,#REF!,IF(IF(#REF!=0,#REF!,#REF!)=0,#REF!,IF(#REF!=0,#REF!,#REF!)))=0,AM60,IF(IF(IF(#REF!=0,#REF!,#REF!)=0,#REF!,IF(#REF!=0,#REF!,#REF!))=0,#REF!,IF(IF(#REF!=0,#REF!,#REF!)=0,#REF!,IF(#REF!=0,#REF!,#REF!)))) ->  | AN61: =IF(IF(IF(IF(#REF!=0,#REF!,#REF!)=0,#REF!,IF(#REF!=0,#REF!,#REF!))=0,#REF!,IF(IF(#REF!=0,#REF!,#REF!)=0,#REF!,IF(#REF!=0,#REF!,#REF!)))=0,AN60,IF(IF(IF(#REF!=0,#REF!,#REF!)=0,#REF!,IF(#REF!=0,#REF!,#REF!))=0,#REF!,IF(IF(#REF!=0,#REF!,#REF!)=0,#REF!,IF(#REF!=0,#REF!,#REF!)))) ->  | AO61: =#REF! ->  | AP61: =#REF! ->  | AQ61: =#REF! -> 
B62: 2021/22 | L62: =L61 ->  | M62: =M61 ->  | N62: =IF(IF(IF(IF(#REF!=0,#REF!,#REF!)=0,#REF!,IF(#REF!=0,#REF!,#REF!))=0,#REF!,IF(IF(#REF!=0,#REF!,#REF!)=0,#REF!,IF(#REF!=0,#REF!,#REF!)))=0,N61,IF(IF(IF(#REF!=0,#REF!,#REF!)=0,#REF!,IF(#REF!=0,#REF!,#REF!))=0,#REF!,IF(IF(#REF!=0,#REF!,#REF!)=0,#REF!,IF(#REF!=0,#REF!,#REF!)))) ->  | O62: =IF(IF(IF(IF(#REF!=0,#REF!,#REF!)=0,#REF!,IF(#REF!=0,#REF!,#REF!))=0,#REF!,IF(IF(#REF!=0,#REF!,#REF!)=0,#REF!,IF(#REF!=0,#REF!,#REF!)))=0,O61,IF(IF(IF(#REF!=0,#REF!,#REF!)=0,#REF!,IF(#REF!=0,#REF!,#REF!))=0,#REF!,IF(IF(#REF!=0,#REF!,#REF!)=0,#REF!,IF(#REF!=0,#REF!,#REF!)))) ->  | P62: =IF(IF(IF(IF(#REF!=0,#REF!,#REF!)=0,#REF!,IF(#REF!=0,#REF!,#REF!))=0,#REF!,IF(IF(#REF!=0,#REF!,#REF!)=0,#REF!,IF(#REF!=0,#REF!,#REF!)))=0,P61,IF(IF(IF(#REF!=0,#REF!,#REF!)=0,#REF!,IF(#REF!=0,#REF!,#REF!))=0,#REF!,IF(IF(#REF!=0,#REF!,#REF!)=0,#REF!,IF(#REF!=0,#REF!,#REF!)))) ->  | Q62: =IF(IF(IF(IF(#REF!=0,#REF!,#REF!)=0,#REF!,IF(#REF!=0,#REF!,#REF!))=0,#REF!,IF(IF(#REF!=0,#REF!,#REF!)=0,#REF!,IF(#REF!=0,#REF!,#REF!)))=0,Q61,IF(IF(IF(#REF!=0,#REF!,#REF!)=0,#REF!,IF(#REF!=0,#REF!,#REF!))=0,#REF!,IF(IF(#REF!=0,#REF!,#REF!)=0,#REF!,IF(#REF!=0,#REF!,#REF!)))) ->  | R62: =IF(IF(IF(IF(#REF!=0,#REF!,#REF!)=0,#REF!,IF(#REF!=0,#REF!,#REF!))=0,#REF!,IF(IF(#REF!=0,#REF!,#REF!)=0,#REF!,IF(#REF!=0,#REF!,#REF!)))=0,R61,IF(IF(IF(#REF!=0,#REF!,#REF!)=0,#REF!,IF(#REF!=0,#REF!,#REF!))=0,#REF!,IF(IF(#REF!=0,#REF!,#REF!)=0,#REF!,IF(#REF!=0,#REF!,#REF!)))) ->  | S62: =#REF! ->  | T62: =#REF! ->  | Y62: 2021/22 | AB62: =AB61 -> 0 | AC62: 0 | AD62: 0 | AE62: 0 | AF62: 0 | AG62: 0 | AJ62: =AJ61 ->  | AK62: =IF(IF(IF(IF(#REF!=0,#REF!,#REF!)=0,#REF!,IF(#REF!=0,#REF!,#REF!))=0,#REF!,IF(IF(#REF!=0,#REF!,#REF!)=0,#REF!,IF(#REF!=0,#REF!,#REF!)))=0,AK61,IF(IF(IF(#REF!=0,#REF!,#REF!)=0,#REF!,IF(#REF!=0,#REF!,#REF!))=0,#REF!,IF(IF(#REF!=0,#REF!,#REF!)=0,#REF!,IF(#REF!=0,#REF!,#REF!)))) ->  | AL62: =IF(IF(IF(IF(#REF!=0,#REF!,#REF!)=0,#REF!,IF(#REF!=0,#REF!,#REF!))=0,#REF!,IF(IF(#REF!=0,#REF!,#REF!)=0,#REF!,IF(#REF!=0,#REF!,#REF!)))=0,AL61,IF(IF(IF(#REF!=0,#REF!,#REF!)=0,#REF!,IF(#REF!=0,#REF!,#REF!))=0,#REF!,IF(IF(#REF!=0,#REF!,#REF!)=0,#REF!,IF(#REF!=0,#REF!,#REF!)))) ->  | AM62: =IF(IF(IF(IF(#REF!=0,#REF!,#REF!)=0,#REF!,IF(#REF!=0,#REF!,#REF!))=0,#REF!,IF(IF(#REF!=0,#REF!,#REF!)=0,#REF!,IF(#REF!=0,#REF!,#REF!)))=0,AM61,IF(IF(IF(#REF!=0,#REF!,#REF!)=0,#REF!,IF(#REF!=0,#REF!,#REF!))=0,#REF!,IF(IF(#REF!=0,#REF!,#REF!)=0,#REF!,IF(#REF!=0,#REF!,#REF!)))) ->  | AN62: =IF(IF(IF(IF(#REF!=0,#REF!,#REF!)=0,#REF!,IF(#REF!=0,#REF!,#REF!))=0,#REF!,IF(IF(#REF!=0,#REF!,#REF!)=0,#REF!,IF(#REF!=0,#REF!,#REF!)))=0,AN61,IF(IF(IF(#REF!=0,#REF!,#REF!)=0,#REF!,IF(#REF!=0,#REF!,#REF!))=0,#REF!,IF(IF(#REF!=0,#REF!,#REF!)=0,#REF!,IF(#REF!=0,#REF!,#REF!)))) ->  | AO62: =IF(IF(IF(IF(#REF!=0,#REF!,#REF!)=0,#REF!,IF(#REF!=0,#REF!,#REF!))=0,#REF!,IF(IF(#REF!=0,#REF!,#REF!)=0,#REF!,IF(#REF!=0,#REF!,#REF!)))=0,AO61,IF(IF(IF(#REF!=0,#REF!,#REF!)=0,#REF!,IF(#REF!=0,#REF!,#REF!))=0,#REF!,IF(IF(#REF!=0,#REF!,#REF!)=0,#REF!,IF(#REF!=0,#REF!,#REF!)))) ->  | AP62: =#REF! ->  | AQ62: =#REF! -> 
B63: 2022/23 | M63: =M62 ->  | N63: =N62 ->  | O63: =IF(IF(IF(IF(#REF!=0,#REF!,#REF!)=0,#REF!,IF(#REF!=0,#REF!,#REF!))=0,#REF!,IF(IF(#REF!=0,#REF!,#REF!)=0,#REF!,IF(#REF!=0,#REF!,#REF!)))=0,O62,IF(IF(IF(#REF!=0,#REF!,#REF!)=0,#REF!,IF(#REF!=0,#REF!,#REF!))=0,#REF!,IF(IF(#REF!=0,#REF!,#REF!)=0,#REF!,IF(#REF!=0,#REF!,#REF!)))) ->  | P63: =IF(IF(IF(IF(#REF!=0,#REF!,#REF!)=0,#REF!,IF(#REF!=0,#REF!,#REF!))=0,#REF!,IF(IF(#REF!=0,#REF!,#REF!)=0,#REF!,IF(#REF!=0,#REF!,#REF!)))=0,P62,IF(IF(IF(#REF!=0,#REF!,#REF!)=0,#REF!,IF(#REF!=0,#REF!,#REF!))=0,#REF!,IF(IF(#REF!=0,#REF!,#REF!)=0,#REF!,IF(#REF!=0,#REF!,#REF!)))) ->  | Q63: =IF(IF(IF(IF(#REF!=0,#REF!,#REF!)=0,#REF!,IF(#REF!=0,#REF!,#REF!))=0,#REF!,IF(IF(#REF!=0,#REF!,#REF!)=0,#REF!,IF(#REF!=0,#REF!,#REF!)))=0,Q62,IF(IF(IF(#REF!=0,#REF!,#REF!)=0,#REF!,IF(#REF!=0,#REF!,#REF!))=0,#REF!,IF(IF(#REF!=0,#REF!,#REF!)=0,#REF!,IF(#REF!=0,#REF!,#REF!)))) ->  | R63: =IF(IF(IF(IF(#REF!=0,#REF!,#REF!)=0,#REF!,IF(#REF!=0,#REF!,#REF!))=0,#REF!,IF(IF(#REF!=0,#REF!,#REF!)=0,#REF!,IF(#REF!=0,#REF!,#REF!)))=0,R62,IF(IF(IF(#REF!=0,#REF!,#REF!)=0,#REF!,IF(#REF!=0,#REF!,#REF!))=0,#REF!,IF(IF(#REF!=0,#REF!,#REF!)=0,#REF!,IF(#REF!=0,#REF!,#REF!)))) ->  | S63: =IF(IF(IF(IF(#REF!=0,#REF!,#REF!)=0,#REF!,IF(#REF!=0,#REF!,#REF!))=0,#REF!,IF(IF(#REF!=0,#REF!,#REF!)=0,#REF!,IF(#REF!=0,#REF!,#REF!)))=0,S62,IF(IF(IF(#REF!=0,#REF!,#REF!)=0,#REF!,IF(#REF!=0,#REF!,#REF!))=0,#REF!,IF(IF(#REF!=0,#REF!,#REF!)=0,#REF!,IF(#REF!=0,#REF!,#REF!)))) ->  | T63: =IF(IF(IF(IF(#REF!=0,#REF!,#REF!)=0,#REF!,IF(#REF!=0,#REF!,#REF!))=0,#REF!,IF(IF(#REF!=0,#REF!,#REF!)=0,#REF!,IF(#REF!=0,#REF!,#REF!)))=0,T62,IF(IF(IF(#REF!=0,#REF!,#REF!)=0,#REF!,IF(#REF!=0,#REF!,#REF!))=0,#REF!,IF(IF(#REF!=0,#REF!,#REF!)=0,#REF!,IF(#REF!=0,#REF!,#REF!)))) ->  | Y63: 2022/23 | AB63: =AB62 -> 0 | AC63: 0 | AD63: 0 | AE63: 0 | AF63: 0 | AG63: 0 | AK63: =AK62 ->  | AL63: =IF(IF(IF(IF(#REF!=0,#REF!,#REF!)=0,#REF!,IF(#REF!=0,#REF!,#REF!))=0,#REF!,IF(IF(#REF!=0,#REF!,#REF!)=0,#REF!,IF(#REF!=0,#REF!,#REF!)))=0,AL62,IF(IF(IF(#REF!=0,#REF!,#REF!)=0,#REF!,IF(#REF!=0,#REF!,#REF!))=0,#REF!,IF(IF(#REF!=0,#REF!,#REF!)=0,#REF!,IF(#REF!=0,#REF!,#REF!)))) ->  | AM63: =IF(IF(IF(IF(#REF!=0,#REF!,#REF!)=0,#REF!,IF(#REF!=0,#REF!,#REF!))=0,#REF!,IF(IF(#REF!=0,#REF!,#REF!)=0,#REF!,IF(#REF!=0,#REF!,#REF!)))=0,AM62,IF(IF(IF(#REF!=0,#REF!,#REF!)=0,#REF!,IF(#REF!=0,#REF!,#REF!))=0,#REF!,IF(IF(#REF!=0,#REF!,#REF!)=0,#REF!,IF(#REF!=0,#REF!,#REF!)))) ->  | AN63: =IF(IF(IF(IF(#REF!=0,#REF!,#REF!)=0,#REF!,IF(#REF!=0,#REF!,#REF!))=0,#REF!,IF(IF(#REF!=0,#REF!,#REF!)=0,#REF!,IF(#REF!=0,#REF!,#REF!)))=0,AN62,IF(IF(IF(#REF!=0,#REF!,#REF!)=0,#REF!,IF(#REF!=0,#REF!,#REF!))=0,#REF!,IF(IF(#REF!=0,#REF!,#REF!)=0,#REF!,IF(#REF!=0,#REF!,#REF!)))) ->  | AO63: =IF(IF(IF(IF(#REF!=0,#REF!,#REF!)=0,#REF!,IF(#REF!=0,#REF!,#REF!))=0,#REF!,IF(IF(#REF!=0,#REF!,#REF!)=0,#REF!,IF(#REF!=0,#REF!,#REF!)))=0,AO62,IF(IF(IF(#REF!=0,#REF!,#REF!)=0,#REF!,IF(#REF!=0,#REF!,#REF!))=0,#REF!,IF(IF(#REF!=0,#REF!,#REF!)=0,#REF!,IF(#REF!=0,#REF!,#REF!)))) ->  | AP63: =IF(IF(IF(IF(#REF!=0,#REF!,#REF!)=0,#REF!,IF(#REF!=0,#REF!,#REF!))=0,#REF!,IF(IF(#REF!=0,#REF!,#REF!)=0,#REF!,IF(#REF!=0,#REF!,#REF!)))=0,AP62,IF(IF(IF(#REF!=0,#REF!,#REF!)=0,#REF!,IF(#REF!=0,#REF!,#REF!))=0,#REF!,IF(IF(#REF!=0,#REF!,#REF!)=0,#REF!,IF(#REF!=0,#REF!,#REF!)))) ->  | AQ63: =IF(IF(IF(IF(#REF!=0,#REF!,#REF!)=0,#REF!,IF(#REF!=0,#REF!,#REF!))=0,#REF!,IF(IF(#REF!=0,#REF!,#REF!)=0,#REF!,IF(#REF!=0,#REF!,#REF!)))=0,AJ62,IF(IF(IF(#REF!=0,#REF!,#REF!)=0,#REF!,IF(#REF!=0,#REF!,#REF!))=0,#REF!,IF(IF(#REF!=0,#REF!,#REF!)=0,#REF!,IF(#REF!=0,#REF!,#REF!)))) -> 
B64: 2023/24 | N64: =N63 ->  | O64: =O63 ->  | P64: =IF(IF(IF(IF(#REF!=0,#REF!,#REF!)=0,#REF!,IF(#REF!=0,#REF!,#REF!))=0,#REF!,IF(IF(#REF!=0,#REF!,#REF!)=0,#REF!,IF(#REF!=0,#REF!,#REF!)))=0,P63,IF(IF(IF(#REF!=0,#REF!,#REF!)=0,#REF!,IF(#REF!=0,#REF!,#REF!))=0,#REF!,IF(IF(#REF!=0,#REF!,#REF!)=0,#REF!,IF(#REF!=0,#REF!,#REF!)))) ->  | Q64: =IF(IF(IF(IF(#REF!=0,#REF!,#REF!)=0,#REF!,IF(#REF!=0,#REF!,#REF!))=0,#REF!,IF(IF(#REF!=0,#REF!,#REF!)=0,#REF!,IF(#REF!=0,#REF!,#REF!)))=0,Q63,IF(IF(IF(#REF!=0,#REF!,#REF!)=0,#REF!,IF(#REF!=0,#REF!,#REF!))=0,#REF!,IF(IF(#REF!=0,#REF!,#REF!)=0,#REF!,IF(#REF!=0,#REF!,#REF!)))) ->  | R64: =IF(IF(IF(IF(#REF!=0,#REF!,#REF!)=0,#REF!,IF(#REF!=0,#REF!,#REF!))=0,#REF!,IF(IF(#REF!=0,#REF!,#REF!)=0,#REF!,IF(#REF!=0,#REF!,#REF!)))=0,R63,IF(IF(IF(#REF!=0,#REF!,#REF!)=0,#REF!,IF(#REF!=0,#REF!,#REF!))=0,#REF!,IF(IF(#REF!=0,#REF!,#REF!)=0,#REF!,IF(#REF!=0,#REF!,#REF!)))) ->  | S64: =IF(IF(IF(IF(#REF!=0,#REF!,#REF!)=0,#REF!,IF(#REF!=0,#REF!,#REF!))=0,#REF!,IF(IF(#REF!=0,#REF!,#REF!)=0,#REF!,IF(#REF!=0,#REF!,#REF!)))=0,S63,IF(IF(IF(#REF!=0,#REF!,#REF!)=0,#REF!,IF(#REF!=0,#REF!,#REF!))=0,#REF!,IF(IF(#REF!=0,#REF!,#REF!)=0,#REF!,IF(#REF!=0,#REF!,#REF!)))) ->  | T64: =IF(IF(IF(IF(#REF!=0,#REF!,#REF!)=0,#REF!,IF(#REF!=0,#REF!,#REF!))=0,#REF!,IF(IF(#REF!=0,#REF!,#REF!)=0,#REF!,IF(#REF!=0,#REF!,#REF!)))=0,T63,IF(IF(IF(#REF!=0,#REF!,#REF!)=0,#REF!,IF(#REF!=0,#REF!,#REF!))=0,#REF!,IF(IF(#REF!=0,#REF!,#REF!)=0,#REF!,IF(#REF!=0,#REF!,#REF!)))) ->  | Y64: 2023/24 | AB64: =AB63 -> 0 | AC64: 0 | AD64: 0 | AE64: 0 | AF64: 0 | AG64: 0 | AM64: =IF(IF(IF(IF(#REF!=0,#REF!,#REF!)=0,#REF!,IF(#REF!=0,#REF!,#REF!))=0,#REF!,IF(IF(#REF!=0,#REF!,#REF!)=0,#REF!,IF(#REF!=0,#REF!,#REF!)))=0,AM63,IF(IF(IF(#REF!=0,#REF!,#REF!)=0,#REF!,IF(#REF!=0,#REF!,#REF!))=0,#REF!,IF(IF(#REF!=0,#REF!,#REF!)=0,#REF!,IF(#REF!=0,#REF!,#REF!)))) ->  | AN64: =IF(IF(IF(IF(#REF!=0,#REF!,#REF!)=0,#REF!,IF(#REF!=0,#REF!,#REF!))=0,#REF!,IF(IF(#REF!=0,#REF!,#REF!)=0,#REF!,IF(#REF!=0,#REF!,#REF!)))=0,AN63,IF(IF(IF(#REF!=0,#REF!,#REF!)=0,#REF!,IF(#REF!=0,#REF!,#REF!))=0,#REF!,IF(IF(#REF!=0,#REF!,#REF!)=0,#REF!,IF(#REF!=0,#REF!,#REF!)))) ->  | AO64: =IF(IF(IF(IF(#REF!=0,#REF!,#REF!)=0,#REF!,IF(#REF!=0,#REF!,#REF!))=0,#REF!,IF(IF(#REF!=0,#REF!,#REF!)=0,#REF!,IF(#REF!=0,#REF!,#REF!)))=0,AO63,IF(IF(IF(#REF!=0,#REF!,#REF!)=0,#REF!,IF(#REF!=0,#REF!,#REF!))=0,#REF!,IF(IF(#REF!=0,#REF!,#REF!)=0,#REF!,IF(#REF!=0,#REF!,#REF!)))) ->  | AP64: =IF(IF(IF(IF(#REF!=0,#REF!,#REF!)=0,#REF!,IF(#REF!=0,#REF!,#REF!))=0,#REF!,IF(IF(#REF!=0,#REF!,#REF!)=0,#REF!,IF(#REF!=0,#REF!,#REF!)))=0,AP63,IF(IF(IF(#REF!=0,#REF!,#REF!)=0,#REF!,IF(#REF!=0,#REF!,#REF!))=0,#REF!,IF(IF(#REF!=0,#REF!,#REF!)=0,#REF!,IF(#REF!=0,#REF!,#REF!)))) ->  | AQ64: =IF(IF(IF(IF(#REF!=0,#REF!,#REF!)=0,#REF!,IF(#REF!=0,#REF!,#REF!))=0,#REF!,IF(IF(#REF!=0,#REF!,#REF!)=0,#REF!,IF(#REF!=0,#REF!,#REF!)))=0,AJ63,IF(IF(IF(#REF!=0,#REF!,#REF!)=0,#REF!,IF(#REF!=0,#REF!,#REF!))=0,#REF!,IF(IF(#REF!=0,#REF!,#REF!)=0,#REF!,IF(#REF!=0,#REF!,#REF!)))) -> 
B65: 2024/25 | P65: =P64 ->  | Q65: =IF(IF(IF(IF(#REF!=0,#REF!,#REF!)=0,#REF!,IF(#REF!=0,#REF!,#REF!))=0,#REF!,IF(IF(#REF!=0,#REF!,#REF!)=0,#REF!,IF(#REF!=0,#REF!,#REF!)))=0,Q64,IF(IF(IF(#REF!=0,#REF!,#REF!)=0,#REF!,IF(#REF!=0,#REF!,#REF!))=0,#REF!,IF(IF(#REF!=0,#REF!,#REF!)=0,#REF!,IF(#REF!=0,#REF!,#REF!)))) ->  | R65: =IF(IF(IF(IF(#REF!=0,#REF!,#REF!)=0,#REF!,IF(#REF!=0,#REF!,#REF!))=0,#REF!,IF(IF(#REF!=0,#REF!,#REF!)=0,#REF!,IF(#REF!=0,#REF!,#REF!)))=0,R64,IF(IF(IF(#REF!=0,#REF!,#REF!)=0,#REF!,IF(#REF!=0,#REF!,#REF!))=0,#REF!,IF(IF(#REF!=0,#REF!,#REF!)=0,#REF!,IF(#REF!=0,#REF!,#REF!)))) ->  | S65: =IF(IF(IF(IF(#REF!=0,#REF!,#REF!)=0,#REF!,IF(#REF!=0,#REF!,#REF!))=0,#REF!,IF(IF(#REF!=0,#REF!,#REF!)=0,#REF!,IF(#REF!=0,#REF!,#REF!)))=0,S64,IF(IF(IF(#REF!=0,#REF!,#REF!)=0,#REF!,IF(#REF!=0,#REF!,#REF!))=0,#REF!,IF(IF(#REF!=0,#REF!,#REF!)=0,#REF!,IF(#REF!=0,#REF!,#REF!)))) ->  | T65: =IF(IF(IF(IF(#REF!=0,#REF!,#REF!)=0,#REF!,IF(#REF!=0,#REF!,#REF!))=0,#REF!,IF(IF(#REF!=0,#REF!,#REF!)=0,#REF!,IF(#REF!=0,#REF!,#REF!)))=0,T64,IF(IF(IF(#REF!=0,#REF!,#REF!)=0,#REF!,IF(#REF!=0,#REF!,#REF!))=0,#REF!,IF(IF(#REF!=0,#REF!,#REF!)=0,#REF!,IF(#REF!=0,#REF!,#REF!)))) ->  | Y65: 2024/25 | AB65: =AB64 -> 0 | AC65: 0 | AD65: 0 | AE65: 0 | AF65: 0 | AG65: 0 | AM65: =AM64 ->  | AN65: =IF(IF(IF(IF(#REF!=0,#REF!,#REF!)=0,#REF!,IF(#REF!=0,#REF!,#REF!))=0,#REF!,IF(IF(#REF!=0,#REF!,#REF!)=0,#REF!,IF(#REF!=0,#REF!,#REF!)))=0,AN64,IF(IF(IF(#REF!=0,#REF!,#REF!)=0,#REF!,IF(#REF!=0,#REF!,#REF!))=0,#REF!,IF(IF(#REF!=0,#REF!,#REF!)=0,#REF!,IF(#REF!=0,#REF!,#REF!)))) ->  | AO65: =IF(IF(IF(IF(#REF!=0,#REF!,#REF!)=0,#REF!,IF(#REF!=0,#REF!,#REF!))=0,#REF!,IF(IF(#REF!=0,#REF!,#REF!)=0,#REF!,IF(#REF!=0,#REF!,#REF!)))=0,AO64,IF(IF(IF(#REF!=0,#REF!,#REF!)=0,#REF!,IF(#REF!=0,#REF!,#REF!))=0,#REF!,IF(IF(#REF!=0,#REF!,#REF!)=0,#REF!,IF(#REF!=0,#REF!,#REF!)))) ->  | AP65: =IF(IF(IF(IF(#REF!=0,#REF!,#REF!)=0,#REF!,IF(#REF!=0,#REF!,#REF!))=0,#REF!,IF(IF(#REF!=0,#REF!,#REF!)=0,#REF!,IF(#REF!=0,#REF!,#REF!)))=0,AP64,IF(IF(IF(#REF!=0,#REF!,#REF!)=0,#REF!,IF(#REF!=0,#REF!,#REF!))=0,#REF!,IF(IF(#REF!=0,#REF!,#REF!)=0,#REF!,IF(#REF!=0,#REF!,#REF!)))) ->  | AQ65: =IF(IF(IF(IF(#REF!=0,#REF!,#REF!)=0,#REF!,IF(#REF!=0,#REF!,#REF!))=0,#REF!,IF(IF(#REF!=0,#REF!,#REF!)=0,#REF!,IF(#REF!=0,#REF!,#REF!)))=0,AJ64,IF(IF(IF(#REF!=0,#REF!,#REF!)=0,#REF!,IF(#REF!=0,#REF!,#REF!))=0,#REF!,IF(IF(#REF!=0,#REF!,#REF!)=0,#REF!,IF(#REF!=0,#REF!,#REF!)))) -> 
B66: 2025/26 | P66: =P65 ->  | Q66: =Q65 ->  | R66: =IF(IF(IF(IF(#REF!=0,#REF!,#REF!)=0,#REF!,IF(#REF!=0,#REF!,#REF!))=0,#REF!,IF(IF(#REF!=0,#REF!,#REF!)=0,#REF!,IF(#REF!=0,#REF!,#REF!)))=0,R65,IF(IF(IF(#REF!=0,#REF!,#REF!)=0,#REF!,IF(#REF!=0,#REF!,#REF!))=0,#REF!,IF(IF(#REF!=0,#REF!,#REF!)=0,#REF!,IF(#REF!=0,#REF!,#REF!)))) ->  | S66: =IF(IF(IF(IF(#REF!=0,#REF!,#REF!)=0,#REF!,IF(#REF!=0,#REF!,#REF!))=0,#REF!,IF(IF(#REF!=0,#REF!,#REF!)=0,#REF!,IF(#REF!=0,#REF!,#REF!)))=0,S65,IF(IF(IF(#REF!=0,#REF!,#REF!)=0,#REF!,IF(#REF!=0,#REF!,#REF!))=0,#REF!,IF(IF(#REF!=0,#REF!,#REF!)=0,#REF!,IF(#REF!=0,#REF!,#REF!)))) ->  | T66: =IF(IF(IF(IF(#REF!=0,#REF!,#REF!)=0,#REF!,IF(#REF!=0,#REF!,#REF!))=0,#REF!,IF(IF(#REF!=0,#REF!,#REF!)=0,#REF!,IF(#REF!=0,#REF!,#REF!)))=0,T65,IF(IF(IF(#REF!=0,#REF!,#REF!)=0,#REF!,IF(#REF!=0,#REF!,#REF!))=0,#REF!,IF(IF(#REF!=0,#REF!,#REF!)=0,#REF!,IF(#REF!=0,#REF!,#REF!)))) ->  | Y66: 2025/26 | AB66: =AB65 -> 0 | AC66: 0 | AD66: 0 | AE66: 0 | AF66: 0 | AG66: 0 | AM66: =AM65 ->  | AN66: =AN65 ->  | AO66: =IF(IF(IF(IF(#REF!=0,#REF!,#REF!)=0,#REF!,IF(#REF!=0,#REF!,#REF!))=0,#REF!,IF(IF(#REF!=0,#REF!,#REF!)=0,#REF!,IF(#REF!=0,#REF!,#REF!)))=0,AO65,IF(IF(IF(#REF!=0,#REF!,#REF!)=0,#REF!,IF(#REF!=0,#REF!,#REF!))=0,#REF!,IF(IF(#REF!=0,#REF!,#REF!)=0,#REF!,IF(#REF!=0,#REF!,#REF!)))) ->  | AP66: =IF(IF(IF(IF(#REF!=0,#REF!,#REF!)=0,#REF!,IF(#REF!=0,#REF!,#REF!))=0,#REF!,IF(IF(#REF!=0,#REF!,#REF!)=0,#REF!,IF(#REF!=0,#REF!,#REF!)))=0,AP65,IF(IF(IF(#REF!=0,#REF!,#REF!)=0,#REF!,IF(#REF!=0,#REF!,#REF!))=0,#REF!,IF(IF(#REF!=0,#REF!,#REF!)=0,#REF!,IF(#REF!=0,#REF!,#REF!)))) ->  | AQ66: =IF(IF(IF(IF(#REF!=0,#REF!,#REF!)=0,#REF!,IF(#REF!=0,#REF!,#REF!))=0,#REF!,IF(IF(#REF!=0,#REF!,#REF!)=0,#REF!,IF(#REF!=0,#REF!,#REF!)))=0,AJ65,IF(IF(IF(#REF!=0,#REF!,#REF!)=0,#REF!,IF(#REF!=0,#REF!,#REF!))=0,#REF!,IF(IF(#REF!=0,#REF!,#REF!)=0,#REF!,IF(#REF!=0,#REF!,#REF!)))) -> 
B67: 2026/27 | P67: =P66 ->  | Q67: =Q66 ->  | R67: =R66 ->  | S67: =IF(IF(IF(IF(#REF!=0,#REF!,#REF!)=0,#REF!,IF(#REF!=0,#REF!,#REF!))=0,#REF!,IF(IF(#REF!=0,#REF!,#REF!)=0,#REF!,IF(#REF!=0,#REF!,#REF!)))=0,S66,IF(IF(IF(#REF!=0,#REF!,#REF!)=0,#REF!,IF(#REF!=0,#REF!,#REF!))=0,#REF!,IF(IF(#REF!=0,#REF!,#REF!)=0,#REF!,IF(#REF!=0,#REF!,#REF!)))) ->  | T67: =IF(IF(IF(IF(#REF!=0,#REF!,#REF!)=0,#REF!,IF(#REF!=0,#REF!,#REF!))=0,#REF!,IF(IF(#REF!=0,#REF!,#REF!)=0,#REF!,IF(#REF!=0,#REF!,#REF!)))=0,T66,IF(IF(IF(#REF!=0,#REF!,#REF!)=0,#REF!,IF(#REF!=0,#REF!,#REF!))=0,#REF!,IF(IF(#REF!=0,#REF!,#REF!)=0,#REF!,IF(#REF!=0,#REF!,#REF!)))) ->  | Y67: 2026/27 | AB67: =AB66 -> 0 | AC67: 0 | AD67: 0 | AE67: 0 | AF67: 0 | AG67: 0 | AM67: =AM66 ->  | AN67: =AN66 ->  | AO67: =AO66 ->  | AP67: =IF(IF(IF(IF(#REF!=0,#REF!,#REF!)=0,#REF!,IF(#REF!=0,#REF!,#REF!))=0,#REF!,IF(IF(#REF!=0,#REF!,#REF!)=0,#REF!,IF(#REF!=0,#REF!,#REF!)))=0,AP66,IF(IF(IF(#REF!=0,#REF!,#REF!)=0,#REF!,IF(#REF!=0,#REF!,#REF!))=0,#REF!,IF(IF(#REF!=0,#REF!,#REF!)=0,#REF!,IF(#REF!=0,#REF!,#REF!)))) ->  | AQ67: =IF(IF(IF(IF(#REF!=0,#REF!,#REF!)=0,#REF!,IF(#REF!=0,#REF!,#REF!))=0,#REF!,IF(IF(#REF!=0,#REF!,#REF!)=0,#REF!,IF(#REF!=0,#REF!,#REF!)))=0,AJ66,IF(IF(IF(#REF!=0,#REF!,#REF!)=0,#REF!,IF(#REF!=0,#REF!,#REF!))=0,#REF!,IF(IF(#REF!=0,#REF!,#REF!)=0,#REF!,IF(#REF!=0,#REF!,#REF!)))) -> 
B68: 2027/28 | P68: =P67 ->  | Q68: =Q67 ->  | R68: =R67 ->  | S68: =S67 ->  | T68: =T67 ->  | Y68: 2027/28 | AB68: =AB67 -> 0 | AC68: 0 | AD68: 0 | AE68: 0 | AF68: 0 | AG68: 0 | AM68: =AM67 ->  | AN68: =AN67 ->  | AO68: =AO67 ->  | AP68: =AP67 ->  | AQ68: =AJ67 -> 
B69: 2028/29 | K69: =K68 ->  | P69: =P68 ->  | Q69: =Q68 ->  | R69: =R68 ->  | S69: =S68 ->  | T69: =T68 ->  | Y69: 2028/29 | AB69: =AB68 -> 0 | AC69: 0 | AD69: 0 | AE69: 0 | AF69: 0 | AG69: 0 | AH69: =AH68 ->  | AI69: =AI68 ->  | AM69: =AM68 ->  | AN69: =AN68 ->  | AO69: =AO68 ->  | AP69: =AP68 ->  | AQ69: =AQ68 -> 
B70: GRPIFc | E70: =IF(E69=0,#REF!,E69) ->  | F70: =IF(F69=0,#REF!,F69) ->  | G70: =IF(G69=0,#REF!,G69) ->  | H70: =IF(H69=0,#REF!,H69) ->  | I70: =IF(I69=0,#REF!,I69) ->  | J70: =IF(J69=0,#REF!,J69) ->  | K70: =IF(K69=0,#REF!,K69) ->  | L70: =IF(L69=0,#REF!,L69) ->  | M70: =IF(M69=0,#REF!,M69) ->  | N70: =IF(N69=0,#REF!,N69) ->  | O70: =IF(O69=0,#REF!,O69) ->  | P70: =IF(P69=0,#REF!,P69) ->  | Q70: =IF(Q69=0,#REF!,Q69) ->  | R70: =IF(R69=0,#REF!,R69) ->  | S70: =IF(S69=0,#REF!,S69) ->  | T70: =IF(T69=0,#REF!,T69) ->  | Y70: GRPIFc | AB70: =IF(AB69=0,#REF!,AB69) ->  | AC70: =IF(AC69=0,#REF!,AC69) ->  | AD70: =IF(AD69=0,#REF!,AD69) ->  | AE70: =IF(AE69=0,#REF!,AE69) ->  | AF70: =IF(AF69=0,#REF!,AF69) ->  | AG70: =IF(AG69=0,#REF!,AG69) ->  | AH70: =IF(AH69=0,#REF!,AH69) ->  | AI70: =IF(AI69=0,#REF!,AI69) ->  | AJ70: =IF(AJ69=0,#REF!,AJ69) ->  | AK70: =IF(AK69=0,#REF!,AK69) ->  | AL70: =IF(AL69=0,#REF!,AL69) ->  | AM70: =IF(AM69=0,#REF!,AM69) ->  | AN70: =IF(AN69=0,#REF!,AN69) ->  | AO70: =IF(AO69=0,#REF!,AO69) ->  | AP70: =IF(AP69=0,#REF!,AP69) ->  | AQ70: =IF(AQ69=0,#REF!,AQ69) -> 
B72: FORMULA YEAR | C72: 2009/10 | D72: 2010/11 | E72: 2011/12 | F72: 2012/13 | G72: 2013/14 | H72: 2014/15 | I72: 2015/16 | J72: 2016/17 | K72: 2017/18 | L72: 2018/19 | M72: 2019/20 | N72: 2020/21 | O72: 2021/22 | P72: 2022/23 | Q72: 2023/24 | R72: 2024/25 | S72: 2025/26 | Y72: FORMULA YEAR | Z72: 2009/10 | AA72: 2010/11 | AB72: 2011/12 | AC72: 2012/13 | AD72: 2013/14 | AE72: 2014/15 | AF72: 2015/16 | AG72: 2016/17 | AH72: 2017/18 | AI72: 2018/19 | AJ72: 2019/20 | AK72: 2020/21 | AL72: 2021/22 | AM72: 2022/23 | AN72: 2023/24 | AO72: 2024/25 | AP72: 2025/26
B73: RPIAt (t-2) | F73: =D47 ->  | O73: =M47 ->  | P73: =N47 ->  | Q73: =O47 ->  | R73: =P47 ->  | S73: =Q47 ->  | W73: 0 | Y73: CPIAt (t-2) | AC73: =AA47 -> 0 | AD73: =AB47 -> 0 | AE73: =AC47 -> 0 | AF73: =AD47 -> 0 | AG73: =AE47 -> 0 | AH73: =I48 -> 0 | AI73: =J48 -> 0 | AJ73: 0 | AL73: =M48 -> 
B74: GRPIFt-1 | F74: =(E54*0.75)+(F54*0.25) ->  | G74: =(F54*0.75)+(G54*0.25) ->  | H74: =(G55*0.75)+(H55*0.25) ->  | I74: =(H56*0.75)+(I56*0.25) ->  | J74: =(I57*0.75)+(J57*0.25) ->  | K74: =(J58*0.75)+(K58*0.25) ->  | L74: =(K59*0.75)+(L59*0.25) ->  | M74: =(L60*0.75)+(M60*0.25) ->  | N74: =(M61*0.75)+(N61*0.25) ->  | O74: =(N62*0.75)+(AL62*0.25) ->  | P74: =(AL62*0.75)+(AM62*0.25) ->  | Q74: =(AM64*0.75)+(AN64*0.25) ->  | R74: =(AN64*0.75)+(AO64*0.25) ->  | S74: =(AO64*0.75)+(AP64*0.25) ->  | W74: 0 | Y74: GCPIFt-1 | AC74: =(AB54*0.75)+(AC54*0.25) -> 0 | AD74: =(AC54*0.75)+(AD54*0.25) -> 0 | AE74: =(AD55*0.75)+(AE55*0.25) -> 0 | AF74: =(AE56*0.75)+(AF56*0.25) -> 0 | AG74: =(AF57*0.75)+(AG57*0.25) -> 0 | AH74: =(AG58*0.75)+(AH58*0.25) ->  | AI74: =(AH59*0.75)+(AI59*0.25) ->  | AJ74: =(AI60*0.75)+(AJ60*0.25) ->  | AK74: =(AJ61*0.75)+(AK61*0.25) ->  | AL74: =(AK62*0.75)+(AL62*0.25) ->  | AM74: =(AL63*0.75)+(AM63*0.25) ->  | AN74: =(AM64*0.75)+(AN64*0.25) ->  | AO74: =(AN65*0.75)+(AO65*0.25) ->  | AP74: =(AO66*0.75)+(AP66*0.25) -> 
B75: GRPIFt | F75: =(F54*0.75)+(G54*0.25) ->  | G75: =(G54*0.75)+(H54*0.25) ->  | H75: =(H55*0.75)+(I55*0.25) ->  | I75: =(I56*0.75)+(J56*0.25) ->  | J75: =(J57*0.75)+(K57*0.25) ->  | K75: =(K58*0.75)+(L58*0.25) ->  | L75: =(L59*0.75)+(M59*0.25) ->  | M75: =(M60*0.75)+(N60*0.25) ->  | N75: =(N61*0.75)+(O61*0.25) ->  | O75: =(AL62*0.75)+(AM62*0.25) ->  | P75: =(AM62*0.75)+(AN62*0.25) ->  | Q75: =(AN64*0.75)+(AO64*0.25) ->  | R75: =(AO64*0.75)+(AP64*0.25) ->  | S75: =(AP64*0.75)+(AQ64*0.25) ->  | W75: 0 | Y75: GCPIFt | AC75: =(AC54*0.75)+(AD54*0.25) -> 0 | AD75: =(AD54*0.75)+(AE54*0.25) -> 0 | AE75: =(AE55*0.75)+(AF55*0.25) -> 0 | AF75: =(AF56*0.75)+(AG56*0.25) -> 0 | AG75: =(AG57*0.75)+(AH57*0.25) ->  | AH75: =(AH58*0.75)+(AI58*0.25) ->  | AI75: =(AI59*0.75)+(AJ59*0.25) ->  | AJ75: =(AJ60*0.75)+(AK60*0.25) ->  | AK75: =(AK61*0.75)+(AL61*0.25) ->  | AL75: =(AL62*0.75)+(AM62*0.25) ->  | AM75: =(AM63*0.75)+(AN63*0.25) ->  | AN75: =(AN64*0.75)+(AO64*0.25) ->  | AO75: =(AO65*0.75)+(AP65*0.25) ->  | AP75: =(AP66*0.75)+(AQ66*0.25) -> 
B76: RPIFt | F76: =F73*(1+F74)*(1+F75) ->  | G76: =G73*(1+G74)*(1+G75) ->  | M76: =M73*(1+M74)*(1+M75) ->  | N76: =N73*(1+N74)*(1+N75) ->  | O76: =O73*(1+O74)*(1+O75) ->  | P76: =P73*(1+P74)*(1+P75) ->  | Q76: =Q73*(1+Q74)*(1+Q75) ->  | R76: =R73*(1+R74)*(1+R75) ->  | W76: 0 | Y76: CPIFt | AC76: =AC73*(1+AC74)*(1+AC75) -> 0 | AD76: =AD73*(1+AD74)*(1+AD75) -> 0 | AE76: 0 | AF76: 0 | AL76: =AL73*(1+AL74)*(1+AL75) ->  | AM76: =AM73*(1+AM74)*(1+AM75) -> 
B77: ASSUMED YEAR ON YEAR RPI | G77: =G76/F76-1 ->  | H77: =H76/G76-1 ->  | O77: =O76/N76-1 ->  | P77: =P76/O76-1 ->  | Q77: =Q76/P76-1 ->  | R77: =R76/Q76-1 ->  | S77: =S76/R76-1 ->  | W77: 0 | Y77: ASSUMED YEAR ON YEAR CPI | AD77: =AD76/AC76-1 ->  | AE77: =AE76/AD76-1 ->  | AF77: =AF76/AE76-1 ->  | AG77: =AG76/AF76-1 ->  | AH77: =AH76/AG76-1 ->  | AI77: =AI76/AH76-1 ->  | AJ77: =AJ76/AI76-1 ->  | AK77: =AK76/AJ76-1 ->  | AL77: =AL76/AK76-1 ->  | AM77: =AM76/AL76-1 ->  | AN77: =AN76/AM76-1 ->  | AO77: =AO76/AN76-1 ->  | AP77: =AP76/AO76-1 -> 
O78: =O76-O48 ->  | P78: =P76-P48 -> 
B79: It CALCULATION
B81: FORMULA YEAR | C81: 2009/10 | D81: 2010/11 | E81: 2011/12 | F81: 2012/13 | G81: 2013/14 | H81: 2014/15 | I81: 2015/16 | J81: 2016/17 | K81: 2017/18 | L81: 2018/19 | M81: 2019/20 | N81: 2020/21 | O81: 2021/22 | P81: 2022/23 | Q81: 2023/24 | R81: 2024/25 | S81: 2025/26
C82: 2009-04-01 | D82: =C447+1 -> 2010-04-01 | E82: 2011-04-01 | F82: 2012-04-01 | G82: 2013-04-01 | H82: 2014-04-01 | I82: 2015-04-01 | J82: 2016-04-01 | K82: 2017-04-01 | L82: 2018-04-01 | M82: 2019-04-01 | N82: 2020-04-01 | O82: 2021-04-01 | P82: 2022-04-01 | Q82: 2023-04-01 | R82: 2024-04-01 | S82: 2025-04-01
C83: =C82+1 -> 2009-04-02 | D83: =D82+1 -> 2010-04-02 | E83: =E82+1 -> 2011-04-02 | F83: =F82+1 -> 2012-04-02 | G83: =G82+1 -> 2013-04-02 | H83: =H82+1 -> 2014-04-02 | I83: =I82+1 -> 2015-04-02 | J83: =J82+1 -> 2016-04-02 | K83: =K82+1 -> 2017-04-02 | L83: =L82+1 -> 2018-04-02 | M83: =M82+1 -> 2019-04-02 | N83: =N82+1 -> 2020-04-02 | O83: =O82+1 -> 2021-04-02 | P83: =P82+1 -> 2022-04-02 | Q83: =Q82+1 -> 2023-04-02 | R83: =R82+1 -> 2024-04-02 | S83: =S82+1 -> 2025-04-02
C84: 2009-04-03 | D84: 2010-04-03 | E84: 2011-04-03 | F84: 2012-04-03 | G84: 2013-04-03 | H84: 2014-04-03 | I84: 2015-04-03 | J84: 2016-04-03 | K84: 2017-04-03 | L84: 2018-04-03 | M84: 2019-04-03 | N84: 2020-04-03 | O84: 2021-04-03 | P84: 2022-04-03 | Q84: 2023-04-03 | R84: 2024-04-03 | S84: 2025-04-03
C85: 2009-04-04 | D85: 2010-04-04 | E85: 2011-04-04 | F85: 2012-04-04 | G85: 2013-04-04 | H85: 2014-04-04 | I85: 2015-04-04 | J85: 2016-04-04 | K85: 2017-04-04 | L85: 2018-04-04 | M85: 2019-04-04 | N85: 2020-04-04 | O85: 2021-04-04 | P85: 2022-04-04 | Q85: 2023-04-04 | R85: 2024-04-04 | S85: 2025-04-04
C86: 2009-04-05 | D86: 2010-04-05 | E86: 2011-04-05 | F86: 2012-04-05 | G86: 2013-04-05 | H86: 2014-04-05 | I86: 2015-04-05 | J86: 2016-04-05 | K86: 2017-04-05 | L86: 2018-04-05 | M86: 2019-04-05 | N86: 2020-04-05 | O86: 2021-04-05 | P86: 2022-04-05 | Q86: 2023-04-05 | R86: 2024-04-05 | S86: 2025-04-05
C87: 2009-04-06 | D87: 2010-04-06 | E87: 2011-04-06 | F87: 2012-04-06 | G87: 2013-04-06 | H87: 2014-04-06 | I87: 2015-04-06 | J87: 2016-04-06 | K87: 2017-04-06 | L87: 2018-04-06 | M87: 2019-04-06 | N87: 2020-04-06 | O87: 2021-04-06 | P87: 2022-04-06 | Q87: 2023-04-06 | R87: 2024-04-06 | S87: 2025-04-06
C88: 2009-04-07 | D88: 2010-04-07 | E88: 2011-04-07 | F88: 2012-04-07 | G88: 2013-04-07 | H88: 2014-04-07 | I88: 2015-04-07 | J88: 2016-04-07 | K88: 2017-04-07 | L88: 2018-04-07 | M88: 2019-04-07 | N88: 2020-04-07 | O88: 2021-04-07 | P88: 2022-04-07 | Q88: 2023-04-07 | R88: 2024-04-07 | S88: 2025-04-07
C89: 2009-04-08 | D89: 2010-04-08 | E89: 2011-04-08 | F89: 2012-04-08 | G89: 2013-04-08 | H89: 2014-04-08 | I89: 2015-04-08 | J89: 2016-04-08 | K89: 2017-04-08 | L89: 2018-04-08 | M89: 2019-04-08 | N89: 2020-04-08 | O89: 2021-04-08 | P89: 2022-04-08 | Q89: 2023-04-08 | R89: 2024-04-08 | S89: 2025-04-08
C90: 2009-04-09 | D90: 2010-04-09 | E90: 2011-04-09 | F90: 2012-04-09 | G90: 2013-04-09 | H90: 2014-04-09 | I90: 2015-04-09 | J90: 2016-04-09 | K90: 2017-04-09 | L90: 2018-04-09 | M90: 2019-04-09 | N90: 2020-04-09 | O90: 2021-04-09 | P90: 2022-04-09 | Q90: 2023-04-09 | R90: 2024-04-09 | S90: 2025-04-09
C91: 2009-04-10 | D91: 2010-04-10 | E91: 2011-04-10 | F91: 2012-04-10 | G91: 2013-04-10 | H91: 2014-04-10 | I91: 2015-04-10 | J91: 2016-04-10 | K91: 2017-04-10 | L91: 2018-04-10 | M91: 2019-04-10 | N91: 2020-04-10 | O91: 2021-04-10 | P91: 2022-04-10 | Q91: 2023-04-10 | R91: 2024-04-10 | S91: 2025-04-10
C92: 2009-04-11 | D92: 2010-04-11 | E92: 2011-04-11 | F92: 2012-04-11 | G92: 2013-04-11 | H92: 2014-04-11 | I92: 2015-04-11 | J92: 2016-04-11 | K92: 2017-04-11 | L92: 2018-04-11 | M92: 2019-04-11 | N92: 2020-04-11 | O92: 2021-04-11 | P92: 2022-04-11 | Q92: 2023-04-11 | R92: 2024-04-11 | S92: 2025-04-11
C93: 2009-04-12 | D93: 2010-04-12 | E93: 2011-04-12 | F93: 2012-04-12 | G93: 2013-04-12 | H93: 2014-04-12 | I93: 2015-04-12 | J93: 2016-04-12 | K93: 2017-04-12 | L93: 2018-04-12 | M93: 2019-04-12 | N93: 2020-04-12 | O93: 2021-04-12 | P93: 2022-04-12 | Q93: 2023-04-12 | R93: 2024-04-12 | S93: 2025-04-12
C94: 2009-04-13 | D94: 2010-04-13 | E94: 2011-04-13 | F94: 2012-04-13 | G94: 2013-04-13 | H94: 2014-04-13 | I94: 2015-04-13 | J94: 2016-04-13 | K94: 2017-04-13 | L94: 2018-04-13 | M94: 2019-04-13 | N94: 2020-04-13 | O94: 2021-04-13 | P94: 2022-04-13 | Q94: 2023-04-13 | R94: 2024-04-13 | S94: 2025-04-13
C95: 2009-04-14 | D95: 2010-04-14 | E95: 2011-04-14 | F95: 2012-04-14 | G95: 2013-04-14 | H95: 2014-04-14 | I95: 2015-04-14 | J95: 2016-04-14 | K95: 2017-04-14 | L95: 2018-04-14 | M95: 2019-04-14 | N95: 2020-04-14 | O95: 2021-04-14 | P95: 2022-04-14 | Q95: 2023-04-14 | R95: 2024-04-14 | S95: 2025-04-14
C96: 2009-04-15 | D96: 2010-04-15 | E96: 2011-04-15 | F96: 2012-04-15 | G96: 2013-04-15 | H96: 2014-04-15 | I96: 2015-04-15 | J96: 2016-04-15 | K96: 2017-04-15 | L96: 2018-04-15 | M96: 2019-04-15 | N96: 2020-04-15 | O96: 2021-04-15 | P96: 2022-04-15 | Q96: 2023-04-15 | R96: 2024-04-15 | S96: 2025-04-15
C97: 2009-04-16 | D97: 2010-04-16 | E97: 2011-04-16 | F97: 2012-04-16 | G97: 2013-04-16 | H97: 2014-04-16 | I97: 2015-04-16 | J97: 2016-04-16 | K97: 2017-04-16 | L97: 2018-04-16 | M97: 2019-04-16 | N97: 2020-04-16 | O97: 2021-04-16 | P97: 2022-04-16 | Q97: 2023-04-16 | R97: 2024-04-16 | S97: 2025-04-16
C98: 2009-04-17 | D98: 2010-04-17 | E98: 2011-04-17 | F98: 2012-04-17 | G98: 2013-04-17 | H98: 2014-04-17 | I98: 2015-04-17 | J98: 2016-04-17 | K98: 2017-04-17 | L98: 2018-04-17 | M98: 2019-04-17 | N98: 2020-04-17 | O98: 2021-04-17 | P98: 2022-04-17 | Q98: 2023-04-17 | R98: 2024-04-17 | S98: 2025-04-17
C99: 2009-04-18 | D99: 2010-04-18 | E99: 2011-04-18 | F99: 2012-04-18 | G99: 2013-04-18 | H99: 2014-04-18 | I99: 2015-04-18 | J99: 2016-04-18 | K99: 2017-04-18 | L99: 2018-04-18 | M99: 2019-04-18 | N99: 2020-04-18 | O99: 2021-04-18 | P99: 2022-04-18 | Q99: 2023-04-18 | R99: 2024-04-18 | S99: 2025-04-18
C100: 2009-04-19 | D100: 2010-04-19 | E100: 2011-04-19 | F100: 2012-04-19 | G100: 2013-04-19 | H100: 2014-04-19 | I100: 2015-04-19 | J100: 2016-04-19 | K100: 2017-04-19 | L100: 2018-04-19 | M100: 2019-04-19 | N100: 2020-04-19 | O100: 2021-04-19 | P100: 2022-04-19 | Q100: 2023-04-19 | R100: 2024-04-19 | S100: 2025-04-19
C101: 2009-04-20 | D101: 2010-04-20 | E101: 2011-04-20 | F101: 2012-04-20 | G101: 2013-04-20 | H101: 2014-04-20 | I101: 2015-04-20 | J101: 2016-04-20 | K101: 2017-04-20 | L101: 2018-04-20 | M101: 2019-04-20 | N101: 2020-04-20 | O101: 2021-04-20 | P101: 2022-04-20 | Q101: 2023-04-20 | R101: 2024-04-20 | S101: 2025-04-20
C102: 2009-04-21 | D102: 2010-04-21 | E102: 2011-04-21 | F102: 2012-04-21 | G102: 2013-04-21 | H102: 2014-04-21 | I102: 2015-04-21 | J102: 2016-04-21 | K102: 2017-04-21 | L102: 2018-04-21 | M102: 2019-04-21 | N102: 2020-04-21 | O102: 2021-04-21 | P102: 2022-04-21 | Q102: 2023-04-21 | R102: 2024-04-21 | S102: 2025-04-21
C103: 2009-04-22 | D103: 2010-04-22 | E103: 2011-04-22 | F103: 2012-04-22 | G103: 2013-04-22 | H103: 2014-04-22 | I103: 2015-04-22 | J103: 2016-04-22 | K103: 2017-04-22 | L103: 2018-04-22 | M103: 2019-04-22 | N103: 2020-04-22 | O103: 2021-04-22 | P103: 2022-04-22 | Q103: 2023-04-22 | R103: 2024-04-22 | S103: 2025-04-22
C104: 2009-04-23 | D104: 2010-04-23 | E104: 2011-04-23 | F104: 2012-04-23 | G104: 2013-04-23 | H104: 2014-04-23 | I104: 2015-04-23 | J104: 2016-04-23 | K104: 2017-04-23 | L104: 2018-04-23 | M104: 2019-04-23 | N104: 2020-04-23 | O104: 2021-04-23 | P104: 2022-04-23 | Q104: 2023-04-23 | R104: 2024-04-23 | S104: 2025-04-23
C105: 2009-04-24 | D105: 2010-04-24 | E105: 2011-04-24 | F105: 2012-04-24 | G105: 2013-04-24 | H105: 2014-04-24 | I105: 2015-04-24 | J105: 2016-04-24 | K105: 2017-04-24 | L105: 2018-04-24 | M105: 2019-04-24 | N105: 2020-04-24 | O105: 2021-04-24 | P105: 2022-04-24 | Q105: 2023-04-24 | R105: 2024-04-24 | S105: 2025-04-24
C106: 2009-04-25 | D106: 2010-04-25 | E106: 2011-04-25 | F106: 2012-04-25 | G106: 2013-04-25 | H106: 2014-04-25 | I106: 2015-04-25 | J106: 2016-04-25 | K106: 2017-04-25 | L106: 2018-04-25 | M106: 2019-04-25 | N106: 2020-04-25 | O106: 2021-04-25 | P106: 2022-04-25 | Q106: 2023-04-25 | R106: 2024-04-25 | S106: 2025-04-25
C107: 2009-04-26 | D107: 2010-04-26 | E107: 2011-04-26 | F107: 2012-04-26 | G107: 2013-04-26 | H107: 2014-04-26 | I107: 2015-04-26 | J107: 2016-04-26 | K107: 2017-04-26 | L107: 2018-04-26 | M107: 2019-04-26 | N107: 2020-04-26 | O107: 2021-04-26 | P107: 2022-04-26 | Q107: 2023-04-26 | R107: 2024-04-26 | S107: 2025-04-26
C108: 2009-04-27 | D108: 2010-04-27 | E108: 2011-04-27 | F108: 2012-04-27 | G108: 2013-04-27 | H108: 2014-04-27 | I108: 2015-04-27 | J108: 2016-04-27 | K108: 2017-04-27 | L108: 2018-04-27 | M108: 2019-04-27 | N108: 2020-04-27 | O108: 2021-04-27 | P108: 2022-04-27 | Q108: 2023-04-27 | R108: 2024-04-27 | S108: 2025-04-27
C109: 2009-04-28 | D109: 2010-04-28 | E109: 2011-04-28 | F109: 2012-04-28 | G109: 2013-04-28 | H109: 2014-04-28 | I109: 2015-04-28 | J109: 2016-04-28 | K109: 2017-04-28 | L109: 2018-04-28 | M109: 2019-04-28 | N109: 2020-04-28 | O109: 2021-04-28 | P109: 2022-04-28 | Q109: 2023-04-28 | R109: 2024-04-28 | S109: 2025-04-28
C110: 2009-04-29 | D110: 2010-04-29 | E110: 2011-04-29 | F110: 2012-04-29 | G110: 2013-04-29 | H110: 2014-04-29 | I110: 2015-04-29 | J110: 2016-04-29 | K110: 2017-04-29 | L110: 2018-04-29 | M110: 2019-04-29 | N110: 2020-04-29 | O110: 2021-04-29 | P110: 2022-04-29 | Q110: 2023-04-29 | R110: 2024-04-29 | S110: 2025-04-29
C111: 2009-04-30 | D111: 2010-04-30 | E111: 2011-04-30 | F111: 2012-04-30 | G111: 2013-04-30 | H111: 2014-04-30 | I111: 2015-04-30 | J111: 2016-04-30 | K111: 2017-04-30 | L111: 2018-04-30 | M111: 2019-04-30 | N111: 2020-04-30 | O111: 2021-04-30 | P111: 2022-04-30 | Q111: 2023-04-30 | R111: 2024-04-30 | S111: 2025-04-30
C112: 2009-05-01 | D112: 2010-05-01 | E112: 2011-05-01 | F112: 2012-05-01 | G112: 2013-05-01 | H112: 2014-05-01 | I112: 2015-05-01 | J112: 2016-05-01 | K112: 2017-05-01 | L112: 2018-05-01 | M112: 2019-05-01 | N112: 2020-05-01 | O112: 2021-05-01 | P112: 2022-05-01 | Q112: 2023-05-01 | R112: 2024-05-01 | S112: 2025-05-01
C113: 2009-05-02 | D113: 2010-05-02 | E113: 2011-05-02 | F113: 2012-05-02 | G113: 2013-05-02 | H113: 2014-05-02 | I113: 2015-05-02 | J113: 2016-05-02 | K113: 2017-05-02 | L113: 2018-05-02 | M113: 2019-05-02 | N113: 2020-05-02 | O113: 2021-05-02 | P113: 2022-05-02 | Q113: 2023-05-02 | R113: 2024-05-02 | S113: 2025-05-02
C114: 2009-05-03 | D114: 2010-05-03 | E114: 2011-05-03 | F114: 2012-05-03 | G114: 2013-05-03 | H114: 2014-05-03 | I114: 2015-05-03 | J114: 2016-05-03 | K114: 2017-05-03 | L114: 2018-05-03 | M114: 2019-05-03 | N114: 2020-05-03 | O114: 2021-05-03 | P114: 2022-05-03 | Q114: 2023-05-03 | R114: 2024-05-03 | S114: 2025-05-03
C115: 2009-05-04 | D115: 2010-05-04 | E115: 2011-05-04 | F115: 2012-05-04 | G115: 2013-05-04 | H115: 2014-05-04 | I115: 2015-05-04 | J115: 2016-05-04 | K115: 2017-05-04 | L115: 2018-05-04 | M115: 2019-05-04 | N115: 2020-05-04 | O115: 2021-05-04 | P115: 2022-05-04 | Q115: 2023-05-04 | R115: 2024-05-04 | S115: 2025-05-04
C116: 2009-05-05 | D116: 2010-05-05 | E116: 2011-05-05 | F116: 2012-05-05 | G116: 2013-05-05 | H116: 2014-05-05 | I116: 2015-05-05 | J116: 2016-05-05 | K116: 2017-05-05 | L116: 2018-05-05 | M116: 2019-05-05 | N116: 2020-05-05 | O116: 2021-05-05 | P116: 2022-05-05 | Q116: 2023-05-05 | R116: 2024-05-05 | S116: 2025-05-05
C117: 2009-05-06 | D117: 2010-05-06 | E117: 2011-05-06 | F117: 2012-05-06 | G117: 2013-05-06 | H117: 2014-05-06 | I117: 2015-05-06 | J117: 2016-05-06 | K117: 2017-05-06 | L117: 2018-05-06 | M117: 2019-05-06 | N117: 2020-05-06 | O117: 2021-05-06 | P117: 2022-05-06 | Q117: 2023-05-06 | R117: 2024-05-06 | S117: 2025-05-06
C118: 2009-05-07 | D118: 2010-05-07 | E118: 2011-05-07 | F118: 2012-05-07 | G118: 2013-05-07 | H118: 2014-05-07 | I118: 2015-05-07 | J118: 2016-05-07 | K118: 2017-05-07 | L118: 2018-05-07 | M118: 2019-05-07 | N118: 2020-05-07 | O118: 2021-05-07 | P118: 2022-05-07 | Q118: 2023-05-07 | R118: 2024-05-07 | S118: 2025-05-07
C119: 2009-05-08 | D119: 2010-05-08 | E119: 2011-05-08 | F119: 2012-05-08 | G119: 2013-05-08 | H119: 2014-05-08 | I119: 2015-05-08 | J119: 2016-05-08 | K119: 2017-05-08 | L119: 2018-05-08 | M119: 2019-05-08 | N119: 2020-05-08 | O119: 2021-05-08 | P119: 2022-05-08 | Q119: 2023-05-08 | R119: 2024-05-08 | S119: 2025-05-08
C120: 2009-05-09 | D120: 2010-05-09 | E120: 2011-05-09 | F120: 2012-05-09 | G120: 2013-05-09 | H120: 2014-05-09 | I120: 2015-05-09 | J120: 2016-05-09 | K120: 2017-05-09 | L120: 2018-05-09 | M120: 2019-05-09 | N120: 2020-05-09 | O120: 2021-05-09 | P120: 2022-05-09 | Q120: 2023-05-09 | R120: 2024-05-09 | S120: 2025-05-09
C121: 2009-05-10 | D121: 2010-05-10 | E121: 2011-05-10 | F121: 2012-05-10 | G121: 2013-05-10 | H121: 2014-05-10 | I121: 2015-05-10 | J121: 2016-05-10 | K121: 2017-05-10 | L121: 2018-05-10 | M121: 2019-05-10 | N121: 2020-05-10 | O121: 2021-05-10 | P121: 2022-05-10 | Q121: 2023-05-10 | R121: 2024-05-10 | S121: 2025-05-10
C122: 2009-05-11 | D122: 2010-05-11 | E122: 2011-05-11 | F122: 2012-05-11 | G122: 2013-05-11 | H122: 2014-05-11 | I122: 2015-05-11 | J122: 2016-05-11 | K122: 2017-05-11 | L122: 2018-05-11 | M122: 2019-05-11 | N122: 2020-05-11 | O122: 2021-05-11 | P122: 2022-05-11 | Q122: 2023-05-11 | R122: 2024-05-11 | S122: 2025-05-11
C123: 2009-05-12 | D123: 2010-05-12 | E123: 2011-05-12 | F123: 2012-05-12 | G123: 2013-05-12 | H123: 2014-05-12 | I123: 2015-05-12 | J123: 2016-05-12 | K123: 2017-05-12 | L123: 2018-05-12 | M123: 2019-05-12 | N123: 2020-05-12 | O123: 2021-05-12 | P123: 2022-05-12 | Q123: 2023-05-12 | R123: 2024-05-12 | S123: 2025-05-12
C124: 2009-05-13 | D124: 2010-05-13 | E124: 2011-05-13 | F124: 2012-05-13 | G124: 2013-05-13 | H124: 2014-05-13 | I124: 2015-05-13 | J124: 2016-05-13 | K124: 2017-05-13 | L124: 2018-05-13 | M124: 2019-05-13 | N124: 2020-05-13 | O124: 2021-05-13 | P124: 2022-05-13 | Q124: 2023-05-13 | R124: 2024-05-13 | S124: 2025-05-13
C125: 2009-05-14 | D125: 2010-05-14 | E125: 2011-05-14 | F125: 2012-05-14 | G125: 2013-05-14 | H125: 2014-05-14 | I125: 2015-05-14 | J125: 2016-05-14 | K125: 2017-05-14 | L125: 2018-05-14 | M125: 2019-05-14 | N125: 2020-05-14 | O125: 2021-05-14 | P125: 2022-05-14 | Q125: 2023-05-14 | R125: 2024-05-14 | S125: 2025-05-14
C126: 2009-05-15 | D126: 2010-05-15 | E126: 2011-05-15 | F126: 2012-05-15 | G126: 2013-05-15 | H126: 2014-05-15 | I126: 2015-05-15 | J126: 2016-05-15 | K126: 2017-05-15 | L126: 2018-05-15 | M126: 2019-05-15 | N126: 2020-05-15 | O126: 2021-05-15 | P126: 2022-05-15 | Q126: 2023-05-15 | R126: 2024-05-15 | S126: 2025-05-15
C127: 2009-05-16 | D127: 2010-05-16 | E127: 2011-05-16 | F127: 2012-05-16 | G127: 2013-05-16 | H127: 2014-05-16 | I127: 2015-05-16 | J127: 2016-05-16 | K127: 2017-05-16 | L127: 2018-05-16 | M127: 2019-05-16 | N127: 2020-05-16 | O127: 2021-05-16 | P127: 2022-05-16 | Q127: 2023-05-16 | R127: 2024-05-16 | S127: 2025-05-16
C128: 2009-05-17 | D128: 2010-05-17 | E128: 2011-05-17 | F128: 2012-05-17 | G128: 2013-05-17 | H128: 2014-05-17 | I128: 2015-05-17 | J128: 2016-05-17 | K128: 2017-05-17 | L128: 2018-05-17 | M128: 2019-05-17 | N128: 2020-05-17 | O128: 2021-05-17 | P128: 2022-05-17 | Q128: 2023-05-17 | R128: 2024-05-17 | S128: 2025-05-17
C129: 2009-05-18 | D129: 2010-05-18 | E129: 2011-05-18 | F129: 2012-05-18 | G129: 2013-05-18 | H129: 2014-05-18 | I129: 2015-05-18 | J129: 2016-05-18 | K129: 2017-05-18 | L129: 2018-05-18 | M129: 2019-05-18 | N129: 2020-05-18 | O129: 2021-05-18 | P129: 2022-05-18 | Q129: 2023-05-18 | R129: 2024-05-18 | S129: 2025-05-18
C130: 2009-05-19 | D130: 2010-05-19 | E130: 2011-05-19 | F130: 2012-05-19 | G130: 2013-05-19 | H130: 2014-05-19 | I130: 2015-05-19 | J130: 2016-05-19 | K130: 2017-05-19 | L130: 2018-05-19 | M130: 2019-05-19 | N130: 2020-05-19 | O130: 2021-05-19 | P130: 2022-05-19 | Q130: 2023-05-19 | R130: 2024-05-19 | S130: 2025-05-19
C131: 2009-05-20 | D131: 2010-05-20 | E131: 2011-05-20 | F131: 2012-05-20 | G131: 2013-05-20 | H131: 2014-05-20 | I131: 2015-05-20 | J131: 2016-05-20 | K131: 2017-05-20 | L131: 2018-05-20 | M131: 2019-05-20 | N131: 2020-05-20 | O131: 2021-05-20 | P131: 2022-05-20 | Q131: 2023-05-20 | R131: 2024-05-20 | S131: 2025-05-20
C132: 2009-05-21 | D132: 2010-05-21 | E132: 2011-05-21 | F132: 2012-05-21 | G132: 2013-05-21 | H132: 2014-05-21 | I132: 2015-05-21 | J132: 2016-05-21 | K132: 2017-05-21 | L132: 2018-05-21 | M132: 2019-05-21 | N132: 2020-05-21 | O132: 2021-05-21 | P132: 2022-05-21 | Q132: 2023-05-21 | R132: 2024-05-21 | S132: 2025-05-21
C133: 2009-05-22 | D133: 2010-05-22 | E133: 2011-05-22 | F133: 2012-05-22 | G133: 2013-05-22 | H133: 2014-05-22 | I133: 2015-05-22 | J133: 2016-05-22 | K133: 2017-05-22 | L133: 2018-05-22 | M133: 2019-05-22 | N133: 2020-05-22 | O133: 2021-05-22 | P133: 2022-05-22 | Q133: 2023-05-22 | R133: 2024-05-22 | S133: 2025-05-22
C134: 2009-05-23 | D134: 2010-05-23 | E134: 2011-05-23 | F134: 2012-05-23 | G134: 2013-05-23 | H134: 2014-05-23 | I134: 2015-05-23 | J134: 2016-05-23 | K134: 2017-05-23 | L134: 2018-05-23 | M134: 2019-05-23 | N134: 2020-05-23 | O134: 2021-05-23 | P134: 2022-05-23 | Q134: 2023-05-23 | R134: 2024-05-23 | S134: 2025-05-23
C135: 2009-05-24 | D135: 2010-05-24 | E135: 2011-05-24 | F135: 2012-05-24 | G135: 2013-05-24 | H135: 2014-05-24 | I135: 2015-05-24 | J135: 2016-05-24 | K135: 2017-05-24 | L135: 2018-05-24 | M135: 2019-05-24 | N135: 2020-05-24 | O135: 2021-05-24 | P135: 2022-05-24 | Q135: 2023-05-24 | R135: 2024-05-24 | S135: 2025-05-24
C136: 2009-05-25 | D136: 2010-05-25 | E136: 2011-05-25 | F136: 2012-05-25 | G136: 2013-05-25 | H136: 2014-05-25 | I136: 2015-05-25 | J136: 2016-05-25 | K136: 2017-05-25 | L136: 2018-05-25 | M136: 2019-05-25 | N136: 2020-05-25 | O136: 2021-05-25 | P136: 2022-05-25 | Q136: 2023-05-25 | R136: 2024-05-25 | S136: 2025-05-25
C137: 2009-05-26 | D137: 2010-05-26 | E137: 2011-05-26 | F137: 2012-05-26 | G137: 2013-05-26 | H137: 2014-05-26 | I137: 2015-05-26 | J137: 2016-05-26 | K137: 2017-05-26 | L137: 2018-05-26 | M137: 2019-05-26 | N137: 2020-05-26 | O137: 2021-05-26 | P137: 2022-05-26 | Q137: 2023-05-26 | R137: 2024-05-26 | S137: 2025-05-26
C138: 2009-05-27 | D138: 2010-05-27 | E138: 2011-05-27 | F138: 2012-05-27 | G138: 2013-05-27 | H138: 2014-05-27 | I138: 2015-05-27 | J138: 2016-05-27 | K138: 2017-05-27 | L138: 2018-05-27 | M138: 2019-05-27 | N138: 2020-05-27 | O138: 2021-05-27 | P138: 2022-05-27 | Q138: 2023-05-27 | R138: 2024-05-27 | S138: 2025-05-27
C139: 2009-05-28 | D139: 2010-05-28 | E139: 2011-05-28 | F139: 2012-05-28 | G139: 2013-05-28 | H139: 2014-05-28 | I139: 2015-05-28 | J139: 2016-05-28 | K139: 2017-05-28 | L139: 2018-05-28 | M139: 2019-05-28 | N139: 2020-05-28 | O139: 2021-05-28 | P139: 2022-05-28 | Q139: 2023-05-28 | R139: 2024-05-28 | S139: 2025-05-28
C140: 2009-05-29 | D140: 2010-05-29 | E140: 2011-05-29 | F140: 2012-05-29 | G140: 2013-05-29 | H140: 2014-05-29 | I140: 2015-05-29 | J140: 2016-05-29 | K140: 2017-05-29 | L140: 2018-05-29 | M140: 2019-05-29 | N140: 2020-05-29 | O140: 2021-05-29 | P140: 2022-05-29 | Q140: 2023-05-29 | R140: 2024-05-29 | S140: 2025-05-29
C141: 2009-05-30 | D141: 2010-05-30 | E141: 2011-05-30 | F141: 2012-05-30 | G141: 2013-05-30 | H141: 2014-05-30 | I141: 2015-05-30 | J141: 2016-05-30 | K141: 2017-05-30 | L141: 2018-05-30 | M141: 2019-05-30 | N141: 2020-05-30 | O141: 2021-05-30 | P141: 2022-05-30 | Q141: 2023-05-30 | R141: 2024-05-30 | S141: 2025-05-30
C142: 2009-05-31 | D142: 2010-05-31 | E142: 2011-05-31 | F142: 2012-05-31 | G142: 2013-05-31 | H142: 2014-05-31 | I142: 2015-05-31 | J142: 2016-05-31 | K142: 2017-05-31 | L142: 2018-05-31 | M142: 2019-05-31 | N142: 2020-05-31 | O142: 2021-05-31 | P142: 2022-05-31 | Q142: 2023-05-31 | R142: 2024-05-31 | S142: 2025-05-31
C143: 2009-06-01 | D143: 2010-06-01 | E143: 2011-06-01 | F143: 2012-06-01 | G143: 2013-06-01 | H143: 2014-06-01 | I143: 2015-06-01 | J143: 2016-06-01 | K143: 2017-06-01 | L143: 2018-06-01 | M143: 2019-06-01 | N143: 2020-06-01 | O143: 2021-06-01 | P143: 2022-06-01 | Q143: 2023-06-01 | R143: 2024-06-01 | S143: 2025-06-01
C144: 2009-06-02 | D144: 2010-06-02 | E144: 2011-06-02 | F144: 2012-06-02 | G144: 2013-06-02 | H144: 2014-06-02 | I144: 2015-06-02 | J144: 2016-06-02 | K144: 2017-06-02 | L144: 2018-06-02 | M144: 2019-06-02 | N144: 2020-06-02 | O144: 2021-06-02 | P144: 2022-06-02 | Q144: 2023-06-02 | R144: 2024-06-02 | S144: 2025-06-02
C145: 2009-06-03 | D145: 2010-06-03 | E145: 2011-06-03 | F145: 2012-06-03 | G145: 2013-06-03 | H145: 2014-06-03 | I145: 2015-06-03 | J145: 2016-06-03 | K145: 2017-06-03 | L145: 2018-06-03 | M145: 2019-06-03 | N145: 2020-06-03 | O145: 2021-06-03 | P145: 2022-06-03 | Q145: 2023-06-03 | R145: 2024-06-03 | S145: 2025-06-03
C146: 2009-06-04 | D146: 2010-06-04 | E146: 2011-06-04 | F146: 2012-06-04 | G146: 2013-06-04 | H146: 2014-06-04 | I146: 2015-06-04 | J146: 2016-06-04 | K146: 2017-06-04 | L146: 2018-06-04 | M146: 2019-06-04 | N146: 2020-06-04 | O146: 2021-06-04 | P146: 2022-06-04 | Q146: 2023-06-04 | R146: 2024-06-04 | S146: 2025-06-04
C147: =C146+1 -> 2009-06-05 | D147: =D146+1 -> 2010-06-05 | E147: =E146+1 -> 2011-06-05 | F147: =F146+1 -> 2012-06-05 | G147: =G146+1 -> 2013-06-05 | H147: =H146+1 -> 2014-06-05 | I147: =I146+1 -> 2015-06-05 | J147: =J146+1 -> 2016-06-05 | K147: =K146+1 -> 2017-06-05 | L147: =L146+1 -> 2018-06-05 | M147: =M146+1 -> 2019-06-05 | N147: =N146+1 -> 2020-06-05 | O147: =O146+1 -> 2021-06-05 | P147: =P146+1 -> 2022-06-05 | Q147: =Q146+1 -> 2023-06-05 | R147: =R146+1 -> 2024-06-05 | S147: =S146+1 -> 2025-06-05
C148: 2009-06-06 | D148: 2010-06-06 | E148: 2011-06-06 | F148: 2012-06-06 | G148: 2013-06-06 | H148: 2014-06-06 | I148: 2015-06-06 | J148: 2016-06-06 | K148: 2017-06-06 | L148: 2018-06-06 | M148: 2019-06-06 | N148: 2020-06-06 | O148: 2021-06-06 | P148: 2022-06-06 | Q148: 2023-06-06 | R148: 2024-06-06 | S148: 2025-06-06
C149: 2009-06-07 | D149: 2010-06-07 | E149: 2011-06-07 | F149: 2012-06-07 | G149: 2013-06-07 | H149: 2014-06-07 | I149: 2015-06-07 | J149: 2016-06-07 | K149: 2017-06-07 | L149: 2018-06-07 | M149: 2019-06-07 | N149: 2020-06-07 | O149: 2021-06-07 | P149: 2022-06-07 | Q149: 2023-06-07 | R149: 2024-06-07 | S149: 2025-06-07
C150: 2009-06-08 | D150: 2010-06-08 | E150: 2011-06-08 | F150: 2012-06-08 | G150: 2013-06-08 | H150: 2014-06-08 | I150: 2015-06-08 | J150: 2016-06-08 | K150: 2017-06-08 | L150: 2018-06-08 | M150: 2019-06-08 | N150: 2020-06-08 | O150: 2021-06-08 | P150: 2022-06-08 | Q150: 2023-06-08 | R150: 2024-06-08 | S150: 2025-06-08
C151: 2009-06-09 | D151: 2010-06-09 | E151: 2011-06-09 | F151: 2012-06-09 | G151: 2013-06-09 | H151: 2014-06-09 | I151: 2015-06-09 | J151: 2016-06-09 | K151: 2017-06-09 | L151: 2018-06-09 | M151: 2019-06-09 | N151: 2020-06-09 | O151: 2021-06-09 | P151: 2022-06-09 | Q151: 2023-06-09 | R151: 2024-06-09 | S151: 2025-06-09
C152: 2009-06-10 | D152: 2010-06-10 | E152: 2011-06-10 | F152: 2012-06-10 | G152: 2013-06-10 | H152: 2014-06-10 | I152: 2015-06-10 | J152: 2016-06-10 | K152: 2017-06-10 | L152: 2018-06-10 | M152: 2019-06-10 | N152: 2020-06-10 | O152: 2021-06-10 | P152: 2022-06-10 | Q152: 2023-06-10 | R152: 2024-06-10 | S152: 2025-06-10
C153: 2009-06-11 | D153: 2010-06-11 | E153: 2011-06-11 | F153: 2012-06-11 | G153: 2013-06-11 | H153: 2014-06-11 | I153: 2015-06-11 | J153: 2016-06-11 | K153: 2017-06-11 | L153: 2018-06-11 | M153: 2019-06-11 | N153: 2020-06-11 | O153: 2021-06-11 | P153: 2022-06-11 | Q153: 2023-06-11 | R153: 2024-06-11 | S153: 2025-06-11
C154: 2009-06-12 | D154: 2010-06-12 | E154: 2011-06-12 | F154: 2012-06-12 | G154: 2013-06-12 | H154: 2014-06-12 | I154: 2015-06-12 | J154: 2016-06-12 | K154: 2017-06-12 | L154: 2018-06-12 | M154: 2019-06-12 | N154: 2020-06-12 | O154: 2021-06-12 | P154: 2022-06-12 | Q154: 2023-06-12 | R154: 2024-06-12 | S154: 2025-06-12
C155: 2009-06-13 | D155: 2010-06-13 | E155: 2011-06-13 | F155: 2012-06-13 | G155: 2013-06-13 | H155: 2014-06-13 | I155: 2015-06-13 | J155: 2016-06-13 | K155: 2017-06-13 | L155: 2018-06-13 | M155: 2019-06-13 | N155: 2020-06-13 | O155: 2021-06-13 | P155: 2022-06-13 | Q155: 2023-06-13 | R155: 2024-06-13 | S155: 2025-06-13
C156: 2009-06-14 | D156: 2010-06-14 | E156: 2011-06-14 | F156: 2012-06-14 | G156: 2013-06-14 | H156: 2014-06-14 | I156: 2015-06-14 | J156: 2016-06-14 | K156: 2017-06-14 | L156: 2018-06-14 | M156: 2019-06-14 | N156: 2020-06-14 | O156: 2021-06-14 | P156: 2022-06-14 | Q156: 2023-06-14 | R156: 2024-06-14 | S156: 2025-06-14
C157: 2009-06-15 | D157: 2010-06-15 | E157: 2011-06-15 | F157: 2012-06-15 | G157: 2013-06-15 | H157: 2014-06-15 | I157: 2015-06-15 | J157: 2016-06-15 | K157: 2017-06-15 | L157: 2018-06-15 | M157: 2019-06-15 | N157: 2020-06-15 | O157: 2021-06-15 | P157: 2022-06-15 | Q157: 2023-06-15 | R157: 2024-06-15 | S157: 2025-06-15
C158: 2009-06-16 | D158: 2010-06-16 | E158: 2011-06-16 | F158: 2012-06-16 | G158: 2013-06-16 | H158: 2014-06-16 | I158: 2015-06-16 | J158: 2016-06-16 | K158: 2017-06-16 | L158: 2018-06-16 | M158: 2019-06-16 | N158: 2020-06-16 | O158: 2021-06-16 | P158: 2022-06-16 | Q158: 2023-06-16 | R158: 2024-06-16 | S158: 2025-06-16
C159: 2009-06-17 | D159: 2010-06-17 | E159: 2011-06-17 | F159: 2012-06-17 | G159: 2013-06-17 | H159: 2014-06-17 | I159: 2015-06-17 | J159: 2016-06-17 | K159: 2017-06-17 | L159: 2018-06-17 | M159: 2019-06-17 | N159: 2020-06-17 | O159: 2021-06-17 | P159: 2022-06-17 | Q159: 2023-06-17 | R159: 2024-06-17 | S159: 2025-06-17
C160: 2009-06-18 | D160: 2010-06-18 | E160: 2011-06-18 | F160: 2012-06-18 | G160: 2013-06-18 | H160: 2014-06-18 | I160: 2015-06-18 | J160: 2016-06-18 | K160: 2017-06-18 | L160: 2018-06-18 | M160: 2019-06-18 | N160: 2020-06-18 | O160: 2021-06-18 | P160: 2022-06-18 | Q160: 2023-06-18 | R160: 2024-06-18 | S160: 2025-06-18
C161: 2009-06-19 | D161: 2010-06-19 | E161: 2011-06-19 | F161: 2012-06-19 | G161: 2013-06-19 | H161: 2014-06-19 | I161: 2015-06-19 | J161: 2016-06-19 | K161: 2017-06-19 | L161: 2018-06-19 | M161: 2019-06-19 | N161: 2020-06-19 | O161: 2021-06-19 | P161: 2022-06-19 | Q161: 2023-06-19 | R161: 2024-06-19 | S161: 2025-06-19
C162: 2009-06-20 | D162: 2010-06-20 | E162: 2011-06-20 | F162: 2012-06-20 | G162: 2013-06-20 | H162: 2014-06-20 | I162: 2015-06-20 | J162: 2016-06-20 | K162: 2017-06-20 | L162: 2018-06-20 | M162: 2019-06-20 | N162: 2020-06-20 | O162: 2021-06-20 | P162: 2022-06-20 | Q162: 2023-06-20 | R162: 2024-06-20 | S162: 2025-06-20
C163: 2009-06-21 | D163: 2010-06-21 | E163: 2011-06-21 | F163: 2012-06-21 | G163: 2013-06-21 | H163: 2014-06-21 | I163: 2015-06-21 | J163: 2016-06-21 | K163: 2017-06-21 | L163: 2018-06-21 | M163: 2019-06-21 | N163: 2020-06-21 | O163: 2021-06-21 | P163: 2022-06-21 | Q163: 2023-06-21 | R163: 2024-06-21 | S163: 2025-06-21
C164: 2009-06-22 | D164: 2010-06-22 | E164: 2011-06-22 | F164: 2012-06-22 | G164: 2013-06-22 | H164: 2014-06-22 | I164: 2015-06-22 | J164: 2016-06-22 | K164: 2017-06-22 | L164: 2018-06-22 | M164: 2019-06-22 | N164: 2020-06-22 | O164: 2021-06-22 | P164: 2022-06-22 | Q164: 2023-06-22 | R164: 2024-06-22 | S164: 2025-06-22
C165: 2009-06-23 | D165: 2010-06-23 | E165: 2011-06-23 | F165: 2012-06-23 | G165: 2013-06-23 | H165: 2014-06-23 | I165: 2015-06-23 | J165: 2016-06-23 | K165: 2017-06-23 | L165: 2018-06-23 | M165: 2019-06-23 | N165: 2020-06-23 | O165: 2021-06-23 | P165: 2022-06-23 | Q165: 2023-06-23 | R165: 2024-06-23 | S165: 2025-06-23
C166: 2009-06-24 | D166: 2010-06-24 | E166: 2011-06-24 | F166: 2012-06-24 | G166: 2013-06-24 | H166: 2014-06-24 | I166: 2015-06-24 | J166: 2016-06-24 | K166: 2017-06-24 | L166: 2018-06-24 | M166: 2019-06-24 | N166: 2020-06-24 | O166: 2021-06-24 | P166: 2022-06-24 | Q166: 2023-06-24 | R166: 2024-06-24 | S166: 2025-06-24
C167: 2009-06-25 | D167: 2010-06-25 | E167: 2011-06-25 | F167: 2012-06-25 | G167: 2013-06-25 | H167: 2014-06-25 | I167: 2015-06-25 | J167: 2016-06-25 | K167: 2017-06-25 | L167: 2018-06-25 | M167: 2019-06-25 | N167: 2020-06-25 | O167: 2021-06-25 | P167: 2022-06-25 | Q167: 2023-06-25 | R167: 2024-06-25 | S167: 2025-06-25
C168: 2009-06-26 | D168: 2010-06-26 | E168: 2011-06-26 | F168: 2012-06-26 | G168: 2013-06-26 | H168: 2014-06-26 | I168: 2015-06-26 | J168: 2016-06-26 | K168: 2017-06-26 | L168: 2018-06-26 | M168: 2019-06-26 | N168: 2020-06-26 | O168: 2021-06-26 | P168: 2022-06-26 | Q168: 2023-06-26 | R168: 2024-06-26 | S168: 2025-06-26
C169: 2009-06-27 | D169: 2010-06-27 | E169: 2011-06-27 | F169: 2012-06-27 | G169: 2013-06-27 | H169: 2014-06-27 | I169: 2015-06-27 | J169: 2016-06-27 | K169: 2017-06-27 | L169: 2018-06-27 | M169: 2019-06-27 | N169: 2020-06-27 | O169: 2021-06-27 | P169: 2022-06-27 | Q169: 2023-06-27 | R169: 2024-06-27 | S169: 2025-06-27
C170: 2009-06-28 | D170: 2010-06-28 | E170: 2011-06-28 | F170: 2012-06-28 | G170: 2013-06-28 | H170: 2014-06-28 | I170: 2015-06-28 | J170: 2016-06-28 | K170: 2017-06-28 | L170: 2018-06-28 | M170: 2019-06-28 | N170: 2020-06-28 | O170: 2021-06-28 | P170: 2022-06-28 | Q170: 2023-06-28 | R170: 2024-06-28 | S170: 2025-06-28
C171: 2009-06-29 | D171: 2010-06-29 | E171: 2011-06-29 | F171: 2012-06-29 | G171: 2013-06-29 | H171: 2014-06-29 | I171: 2015-06-29 | J171: 2016-06-29 | K171: 2017-06-29 | L171: 2018-06-29 | M171: 2019-06-29 | N171: 2020-06-29 | O171: 2021-06-29 | P171: 2022-06-29 | Q171: 2023-06-29 | R171: 2024-06-29 | S171: 2025-06-29
C172: 2009-06-30 | D172: 2010-06-30 | E172: 2011-06-30 | F172: 2012-06-30 | G172: 2013-06-30 | H172: 2014-06-30 | I172: 2015-06-30 | J172: 2016-06-30 | K172: 2017-06-30 | L172: 2018-06-30 | M172: 2019-06-30 | N172: 2020-06-30 | O172: 2021-06-30 | P172: 2022-06-30 | Q172: 2023-06-30 | R172: 2024-06-30 | S172: 2025-06-30
C173: 2009-07-01 | D173: 2010-07-01 | E173: 2011-07-01 | F173: 2012-07-01 | G173: 2013-07-01 | H173: 2014-07-01 | I173: 2015-07-01 | J173: 2016-07-01 | K173: 2017-07-01 | L173: 2018-07-01 | M173: 2019-07-01 | N173: 2020-07-01 | O173: 2021-07-01 | P173: 2022-07-01 | Q173: 2023-07-01 | R173: 2024-07-01 | S173: 2025-07-01
C174: 2009-07-02 | D174: 2010-07-02 | E174: 2011-07-02 | F174: 2012-07-02 | G174: 2013-07-02 | H174: 2014-07-02 | I174: 2015-07-02 | J174: 2016-07-02 | K174: 2017-07-02 | L174: 2018-07-02 | M174: 2019-07-02 | N174: 2020-07-02 | O174: 2021-07-02 | P174: 2022-07-02 | Q174: 2023-07-02 | R174: 2024-07-02 | S174: 2025-07-02
C175: 2009-07-03 | D175: 2010-07-03 | E175: 2011-07-03 | F175: 2012-07-03 | G175: 2013-07-03 | H175: 2014-07-03 | I175: 2015-07-03 | J175: 2016-07-03 | K175: 2017-07-03 | L175: 2018-07-03 | M175: 2019-07-03 | N175: 2020-07-03 | O175: 2021-07-03 | P175: 2022-07-03 | Q175: 2023-07-03 | R175: 2024-07-03 | S175: 2025-07-03
C176: 2009-07-04 | D176: 2010-07-04 | E176: 2011-07-04 | F176: 2012-07-04 | G176: 2013-07-04 | H176: 2014-07-04 | I176: 2015-07-04 | J176: 2016-07-04 | K176: 2017-07-04 | L176: 2018-07-04 | M176: 2019-07-04 | N176: 2020-07-04 | O176: 2021-07-04 | P176: 2022-07-04 | Q176: 2023-07-04 | R176: 2024-07-04 | S176: 2025-07-04
C177: 2009-07-05 | D177: 2010-07-05 | E177: 2011-07-05 | F177: 2012-07-05 | G177: 2013-07-05 | H177: 2014-07-05 | I177: 2015-07-05 | J177: 2016-07-05 | K177: 2017-07-05 | L177: 2018-07-05 | M177: 2019-07-05 | N177: 2020-07-05 | O177: 2021-07-05 | P177: 2022-07-05 | Q177: 2023-07-05 | R177: 2024-07-05 | S177: 2025-07-05
C178: 2009-07-06 | D178: 2010-07-06 | E178: 2011-07-06 | F178: 2012-07-06 | G178: 2013-07-06 | H178: 2014-07-06 | I178: 2015-07-06 | J178: 2016-07-06 | K178: 2017-07-06 | L178: 2018-07-06 | M178: 2019-07-06 | N178: 2020-07-06 | O178: 2021-07-06 | P178: 2022-07-06 | Q178: 2023-07-06 | R178: 2024-07-06 | S178: 2025-07-06
C179: 2009-07-07 | D179: 2010-07-07 | E179: 2011-07-07 | F179: 2012-07-07 | G179: 2013-07-07 | H179: 2014-07-07 | I179: 2015-07-07 | J179: 2016-07-07 | K179: 2017-07-07 | L179: 2018-07-07 | M179: 2019-07-07 | N179: 2020-07-07 | O179: 2021-07-07 | P179: 2022-07-07 | Q179: 2023-07-07 | R179: 2024-07-07 | S179: 2025-07-07
C180: 2009-07-08 | D180: 2010-07-08 | E180: 2011-07-08 | F180: 2012-07-08 | G180: 2013-07-08 | H180: 2014-07-08 | I180: 2015-07-08 | J180: 2016-07-08 | K180: 2017-07-08 | L180: 2018-07-08 | M180: 2019-07-08 | N180: 2020-07-08 | O180: 2021-07-08 | P180: 2022-07-08 | Q180: 2023-07-08 | R180: 2024-07-08 | S180: 2025-07-08
C181: 2009-07-09 | D181: 2010-07-09 | E181: 2011-07-09 | F181: 2012-07-09 | G181: 2013-07-09 | H181: 2014-07-09 | I181: 2015-07-09 | J181: 2016-07-09 | K181: 2017-07-09 | L181: 2018-07-09 | M181: 2019-07-09 | N181: 2020-07-09 | O181: 2021-07-09 | P181: 2022-07-09 | Q181: 2023-07-09 | R181: 2024-07-09 | S181: 2025-07-09
C182: 2009-07-10 | D182: 2010-07-10 | E182: 2011-07-10 | F182: 2012-07-10 | G182: 2013-07-10 | H182: 2014-07-10 | I182: 2015-07-10 | J182: 2016-07-10 | K182: 2017-07-10 | L182: 2018-07-10 | M182: 2019-07-10 | N182: 2020-07-10 | O182: 2021-07-10 | P182: 2022-07-10 | Q182: 2023-07-10 | R182: 2024-07-10 | S182: 2025-07-10
C183: 2009-07-11 | D183: 2010-07-11 | E183: 2011-07-11 | F183: 2012-07-11 | G183: 2013-07-11 | H183: 2014-07-11 | I183: 2015-07-11 | J183: 2016-07-11 | K183: 2017-07-11 | L183: 2018-07-11 | M183: 2019-07-11 | N183: 2020-07-11 | O183: 2021-07-11 | P183: 2022-07-11 | Q183: 2023-07-11 | R183: 2024-07-11 | S183: 2025-07-11
C184: 2009-07-12 | D184: 2010-07-12 | E184: 2011-07-12 | F184: 2012-07-12 | G184: 2013-07-12 | H184: 2014-07-12 | I184: 2015-07-12 | J184: 2016-07-12 | K184: 2017-07-12 | L184: 2018-07-12 | M184: 2019-07-12 | N184: 2020-07-12 | O184: 2021-07-12 | P184: 2022-07-12 | Q184: 2023-07-12 | R184: 2024-07-12 | S184: 2025-07-12
C185: 2009-07-13 | D185: 2010-07-13 | E185: 2011-07-13 | F185: 2012-07-13 | G185: 2013-07-13 | H185: 2014-07-13 | I185: 2015-07-13 | J185: 2016-07-13 | K185: 2017-07-13 | L185: 2018-07-13 | M185: 2019-07-13 | N185: 2020-07-13 | O185: 2021-07-13 | P185: 2022-07-13 | Q185: 2023-07-13 | R185: 2024-07-13 | S185: 2025-07-13
C186: 2009-07-14 | D186: 2010-07-14 | E186: 2011-07-14 | F186: 2012-07-14 | G186: 2013-07-14 | H186: 2014-07-14 | I186: 2015-07-14 | J186: 2016-07-14 | K186: 2017-07-14 | L186: 2018-07-14 | M186: 2019-07-14 | N186: 2020-07-14 | O186: 2021-07-14 | P186: 2022-07-14 | Q186: 2023-07-14 | R186: 2024-07-14 | S186: 2025-07-14
C187: 2009-07-15 | D187: 2010-07-15 | E187: 2011-07-15 | F187: 2012-07-15 | G187: 2013-07-15 | H187: 2014-07-15 | I187: 2015-07-15 | J187: 2016-07-15 | K187: 2017-07-15 | L187: 2018-07-15 | M187: 2019-07-15 | N187: 2020-07-15 | O187: 2021-07-15 | P187: 2022-07-15 | Q187: 2023-07-15 | R187: 2024-07-15 | S187: 2025-07-15
C188: 2009-07-16 | D188: 2010-07-16 | E188: 2011-07-16 | F188: 2012-07-16 | G188: 2013-07-16 | H188: 2014-07-16 | I188: 2015-07-16 | J188: 2016-07-16 | K188: 2017-07-16 | L188: 2018-07-16 | M188: 2019-07-16 | N188: 2020-07-16 | O188: 2021-07-16 | P188: 2022-07-16 | Q188: 2023-07-16 | R188: 2024-07-16 | S188: 2025-07-16
C189: 2009-07-17 | D189: 2010-07-17 | E189: 2011-07-17 | F189: 2012-07-17 | G189: 2013-07-17 | H189: 2014-07-17 | I189: 2015-07-17 | J189: 2016-07-17 | K189: 2017-07-17 | L189: 2018-07-17 | M189: 2019-07-17 | N189: 2020-07-17 | O189: 2021-07-17 | P189: 2022-07-17 | Q189: 2023-07-17 | R189: 2024-07-17 | S189: 2025-07-17
C190: 2009-07-18 | D190: 2010-07-18 | E190: 2011-07-18 | F190: 2012-07-18 | G190: 2013-07-18 | H190: 2014-07-18 | I190: 2015-07-18 | J190: 2016-07-18 | K190: 2017-07-18 | L190: 2018-07-18 | M190: 2019-07-18 | N190: 2020-07-18 | O190: 2021-07-18 | P190: 2022-07-18 | Q190: 2023-07-18 | R190: 2024-07-18 | S190: 2025-07-18
C191: 2009-07-19 | D191: 2010-07-19 | E191: 2011-07-19 | F191: 2012-07-19 | G191: 2013-07-19 | H191: 2014-07-19 | I191: 2015-07-19 | J191: 2016-07-19 | K191: 2017-07-19 | L191: 2018-07-19 | M191: 2019-07-19 | N191: 2020-07-19 | O191: 2021-07-19 | P191: 2022-07-19 | Q191: 2023-07-19 | R191: 2024-07-19 | S191: 2025-07-19
C192: 2009-07-20 | D192: 2010-07-20 | E192: 2011-07-20 | F192: 2012-07-20 | G192: 2013-07-20 | H192: 2014-07-20 | I192: 2015-07-20 | J192: 2016-07-20 | K192: 2017-07-20 | L192: 2018-07-20 | M192: 2019-07-20 | N192: 2020-07-20 | O192: 2021-07-20 | P192: 2022-07-20 | Q192: 2023-07-20 | R192: 2024-07-20 | S192: 2025-07-20
C193: 2009-07-21 | D193: 2010-07-21 | E193: 2011-07-21 | F193: 2012-07-21 | G193: 2013-07-21 | H193: 2014-07-21 | I193: 2015-07-21 | J193: 2016-07-21 | K193: 2017-07-21 | L193: 2018-07-21 | M193: 2019-07-21 | N193: 2020-07-21 | O193: 2021-07-21 | P193: 2022-07-21 | Q193: 2023-07-21 | R193: 2024-07-21 | S193: 2025-07-21
C194: 2009-07-22 | D194: 2010-07-22 | E194: 2011-07-22 | F194: 2012-07-22 | G194: 2013-07-22 | H194: 2014-07-22 | I194: 2015-07-22 | J194: 2016-07-22 | K194: 2017-07-22 | L194: 2018-07-22 | M194: 2019-07-22 | N194: 2020-07-22 | O194: 2021-07-22 | P194: 2022-07-22 | Q194: 2023-07-22 | R194: 2024-07-22 | S194: 2025-07-22
C195: 2009-07-23 | D195: 2010-07-23 | E195: 2011-07-23 | F195: 2012-07-23 | G195: 2013-07-23 | H195: 2014-07-23 | I195: 2015-07-23 | J195: 2016-07-23 | K195: 2017-07-23 | L195: 2018-07-23 | M195: 2019-07-23 | N195: 2020-07-23 | O195: 2021-07-23 | P195: 2022-07-23 | Q195: 2023-07-23 | R195: 2024-07-23 | S195: 2025-07-23
C196: 2009-07-24 | D196: 2010-07-24 | E196: 2011-07-24 | F196: 2012-07-24 | G196: 2013-07-24 | H196: 2014-07-24 | I196: 2015-07-24 | J196: 2016-07-24 | K196: 2017-07-24 | L196: 2018-07-24 | M196: 2019-07-24 | N196: 2020-07-24 | O196: 2021-07-24 | P196: 2022-07-24 | Q196: 2023-07-24 | R196: 2024-07-24 | S196: 2025-07-24
C197: 2009-07-25 | D197: 2010-07-25 | E197: 2011-07-25 | F197: 2012-07-25 | G197: 2013-07-25 | H197: 2014-07-25 | I197: 2015-07-25 | J197: 2016-07-25 | K197: 2017-07-25 | L197: 2018-07-25 | M197: 2019-07-25 | N197: 2020-07-25 | O197: 2021-07-25 | P197: 2022-07-25 | Q197: 2023-07-25 | R197: 2024-07-25 | S197: 2025-07-25
C198: 2009-07-26 | D198: 2010-07-26 | E198: 2011-07-26 | F198: 2012-07-26 | G198: 2013-07-26 | H198: 2014-07-26 | I198: 2015-07-26 | J198: 2016-07-26 | K198: 2017-07-26 | L198: 2018-07-26 | M198: 2019-07-26 | N198: 2020-07-26 | O198: 2021-07-26 | P198: 2022-07-26 | Q198: 2023-07-26 | R198: 2024-07-26 | S198: 2025-07-26
C199: 2009-07-27 | D199: 2010-07-27 | E199: 2011-07-27 | F199: 2012-07-27 | G199: 2013-07-27 | H199: 2014-07-27 | I199: 2015-07-27 | J199: 2016-07-27 | K199: 2017-07-27 | L199: 2018-07-27 | M199: 2019-07-27 | N199: 2020-07-27 | O199: 2021-07-27 | P199: 2022-07-27 | Q199: 2023-07-27 | R199: 2024-07-27 | S199: 2025-07-27
C200: 2009-07-28 | D200: 2010-07-28 | E200: 2011-07-28 | F200: 2012-07-28 | G200: 2013-07-28 | H200: 2014-07-28 | I200: 2015-07-28 | J200: 2016-07-28 | K200: 2017-07-28 | L200: 2018-07-28 | M200: 2019-07-28 | N200: 2020-07-28 | O200: 2021-07-28 | P200: 2022-07-28 | Q200: 2023-07-28 | R200: 2024-07-28 | S200: 2025-07-28
C201: 2009-07-29 | D201: 2010-07-29 | E201: 2011-07-29 | F201: 2012-07-29 | G201: 2013-07-29 | H201: 2014-07-29 | I201: 2015-07-29 | J201: 2016-07-29 | K201: 2017-07-29 | L201: 2018-07-29 | M201: 2019-07-29 | N201: 2020-07-29 | O201: 2021-07-29 | P201: 2022-07-29 | Q201: 2023-07-29 | R201: 2024-07-29 | S201: 2025-07-29
C202: 2009-07-30 | D202: 2010-07-30 | E202: 2011-07-30 | F202: 2012-07-30 | G202: 2013-07-30 | H202: 2014-07-30 | I202: 2015-07-30 | J202: 2016-07-30 | K202: 2017-07-30 | L202: 2018-07-30 | M202: 2019-07-30 | N202: 2020-07-30 | O202: 2021-07-30 | P202: 2022-07-30 | Q202: 2023-07-30 | R202: 2024-07-30 | S202: 2025-07-30
C203: 2009-07-31 | D203: 2010-07-31 | E203: 2011-07-31 | F203: 2012-07-31 | G203: 2013-07-31 | H203: 2014-07-31 | I203: 2015-07-31 | J203: 2016-07-31 | K203: 2017-07-31 | L203: 2018-07-31 | M203: 2019-07-31 | N203: 2020-07-31 | O203: 2021-07-31 | P203: 2022-07-31 | Q203: 2023-07-31 | R203: 2024-07-31 | S203: 2025-07-31
C204: 2009-08-01 | D204: 2010-08-01 | E204: 2011-08-01 | F204: 2012-08-01 | G204: 2013-08-01 | H204: 2014-08-01 | I204: 2015-08-01 | J204: 2016-08-01 | K204: 2017-08-01 | L204: 2018-08-01 | M204: 2019-08-01 | N204: 2020-08-01 | O204: 2021-08-01 | P204: 2022-08-01 | Q204: 2023-08-01 | R204: 2024-08-01 | S204: 2025-08-01
C205: 2009-08-02 | D205: 2010-08-02 | E205: 2011-08-02 | F205: 2012-08-02 | G205: 2013-08-02 | H205: 2014-08-02 | I205: 2015-08-02 | J205: 2016-08-02 | K205: 2017-08-02 | L205: 2018-08-02 | M205: 2019-08-02 | N205: 2020-08-02 | O205: 2021-08-02 | P205: 2022-08-02 | Q205: 2023-08-02 | R205: 2024-08-02 | S205: 2025-08-02
C206: 2009-08-03 | D206: 2010-08-03 | E206: 2011-08-03 | F206: 2012-08-03 | G206: 2013-08-03 | H206: 2014-08-03 | I206: 2015-08-03 | J206: 2016-08-03 | K206: 2017-08-03 | L206: 2018-08-03 | M206: 2019-08-03 | N206: 2020-08-03 | O206: 2021-08-03 | P206: 2022-08-03 | Q206: 2023-08-03 | R206: 2024-08-03 | S206: 2025-08-03
C207: 2009-08-04 | D207: 2010-08-04 | E207: 2011-08-04 | F207: 2012-08-04 | G207: 2013-08-04 | H207: 2014-08-04 | I207: 2015-08-04 | J207: 2016-08-04 | K207: 2017-08-04 | L207: 2018-08-04 | M207: 2019-08-04 | N207: 2020-08-04 | O207: 2021-08-04 | P207: 2022-08-04 | Q207: 2023-08-04 | R207: 2024-08-04 | S207: 2025-08-04
C208: 2009-08-05 | D208: 2010-08-05 | E208: 2011-08-05 | F208: 2012-08-05 | G208: 2013-08-05 | H208: 2014-08-05 | I208: 2015-08-05 | J208: 2016-08-05 | K208: 2017-08-05 | L208: 2018-08-05 | M208: 2019-08-05 | N208: 2020-08-05 | O208: 2021-08-05 | P208: 2022-08-05 | Q208: 2023-08-05 | R208: 2024-08-05 | S208: 2025-08-05
C209: 2009-08-06 | D209: 2010-08-06 | E209: 2011-08-06 | F209: 2012-08-06 | G209: 2013-08-06 | H209: 2014-08-06 | I209: 2015-08-06 | J209: 2016-08-06 | K209: 2017-08-06 | L209: 2018-08-06 | M209: 2019-08-06 | N209: 2020-08-06 | O209: 2021-08-06 | P209: 2022-08-06 | Q209: 2023-08-06 | R209: 2024-08-06 | S209: 2025-08-06
C210: 2009-08-07 | D210: 2010-08-07 | E210: 2011-08-07 | F210: 2012-08-07 | G210: 2013-08-07 | H210: 2014-08-07 | I210: 2015-08-07 | J210: 2016-08-07 | K210: 2017-08-07 | L210: 2018-08-07 | M210: 2019-08-07 | N210: 2020-08-07 | O210: 2021-08-07 | P210: 2022-08-07 | Q210: 2023-08-07 | R210: 2024-08-07 | S210: 2025-08-07
C211: =C210+1 -> 2009-08-08 | D211: =D210+1 -> 2010-08-08 | E211: =E210+1 -> 2011-08-08 | F211: =F210+1 -> 2012-08-08 | G211: =G210+1 -> 2013-08-08 | H211: =H210+1 -> 2014-08-08 | I211: =I210+1 -> 2015-08-08 | J211: =J210+1 -> 2016-08-08 | K211: =K210+1 -> 2017-08-08 | L211: =L210+1 -> 2018-08-08 | M211: =M210+1 -> 2019-08-08 | N211: =N210+1 -> 2020-08-08 | O211: =O210+1 -> 2021-08-08 | P211: =P210+1 -> 2022-08-08 | Q211: =Q210+1 -> 2023-08-08 | R211: =R210+1 -> 2024-08-08 | S211: =S210+1 -> 2025-08-08
... 1685 more rows

Sheet SOLR Statement (hidden)
A1: NETWORK | B1: EAST OF ENGAND | C1: LONDON | D1: NORTH WEST | E1: WEST MIDLANDS | F1: CADENT
A2: Target 2018/19 LDZ revenue at price setting | B2: 618792837.5 | C2: 414094987.6 | D2: 414261482.1 | E2: 322480861.8 | F2: 1769630169
A3: Actual 2018/19 LDZ revenue collected | B3: =#REF! ->  | C3: =#REF! ->  | D3: =#REF! ->  | E3: =#REF! ->  | F3: =#REF! -> 
A4: % over / (under) recovery | B4: =B3/B2-1 ->  | C4: =C3/C2-1 ->  | D4: =D3/D2-1 ->  | E4: =E3/E2-1 ->  | F4: =F3/F2-1 -> 
A5: Target 2018/19 Supplier of Last Resort recovery | B5: 1197160.314 | C5: 586001.7552 | D5: 764275.2561 | E5: 557265.3055 | F5: =SUM(B5:E5) -> 3104702.631
A6: Estimated actual 2018/19 Supplier of Last Resort recovery | B6: =B5*(1+B4) ->  | C6: =C5*(1+C4) ->  | D6: =D5*(1+D4) ->  | E6: =E5*(1+E4) ->  | F6: =F5*(1+F4) -> 
A7: To be returned / (collected) from Shippers in 2020/21 | B7: =B6-B5 ->  | C7: =C6-C5 ->  | D7: =D6-D5 ->  | E7: =E6-E5 ->  | F7: =F6-F5 -> 
A10: NETWORK | B10: EAST OF ENGAND | C10: LONDON | D10: NORTH WEST | E10: WEST MIDLANDS | F10: CADENT
A11: Target 2019/20 LDZ revenue at price setting | B11: 625251515.6 | C11: 446650413.3 | D11: 440577832.7 | E11: 333518357.7 | F11: 1845998119
A12: Actual 2019/20 LDZ revenue collected | B12: =#REF! ->  | C12: =#REF! ->  | D12: =#REF! ->  | E12: =#REF! ->  | F12: =#REF! -> 
A13: % over / (under) recovery | B13: =B12/B11-1 ->  | C13: =C12/C11-1 ->  | D13: =D12/D11-1 ->  | E13: =E12/E11-1 ->  | F13: =F12/F11-1 -> 
A14: Target 2019/20 Supplier of Last Resort recovery | B14: 1072480.569 | C14: 607924.9043 | D14: 718642.7817 | E14: 524412.2171 | F14: =SUM(B14:E14) -> 2923460.472
A15: Estimated actual 2019/20 Supplier of Last Resort recovery | B15: =B14*(1+B13) ->  | C15: =C14*(1+C13) ->  | D15: =D14*(1+D13) ->  | E15: =E14*(1+E13) ->  | F15: =F14*(1+F13) -> 
A16: To be returned / (collected) from Shippers in 2021/22 | B16: =B15-B14 ->  | C16: =C15-C14 ->  | D16: =D15-D14 ->  | E16: =E15-E14 ->  | F16: =SUM(B16:E16) -> 
K17: 21/22 statement letter
K19: Gas Distribution Network | L19: Customer Numbers | M19: Percentage Customer Split | N19: EDF Energy for Green Network Energy | O19: OVO for Brilliant Energy | P19: OVO for Cardiff Energy | Q19: Scottish Power for Extra Energy
B20: EAST OF ENGAND | C20: LONDON | D20: NORTH WEST | E20: WEST MIDLANDS | F20: CADENT | K20: NGN | L20: 2545291.5 | M20: =L20/$L$28 -> 0.1155980788 | N20: =N$28*$M20 -> 218356.7945 | O20: 32319.31001 | P20: =P$28*$M20 -> 5203.647516 | Q20: 549998.3191
A21: Target 2020/21 Supplier of Last Resort Revenue recovery | B21: =#REF! ->  | C21: =#REF! ->  | D21: =#REF! ->  | E21: =#REF! ->  | F21: =SUM(B21:E21) ->  | K21: WWU | L21: 2547463.5 | M21: =L21/$L$28 -> 0.1156967233 | N21: =N$28*$M21 -> 218543.1272 | O21: 32290.56119 | P21: 5208.087998 | Q21: 550467.6548
A22: Estimated Actual 2020/21 Supplier of Last Resort Revenue recovery | B22: =B21*B25 ->  | C22: =C21*C25 ->  | F22: =SUM(B22:E22) ->  | K22: SGN (Scotland) | L22: 1836049 | M22: 0.0833868093 | N22: 157511.9291 | O22: 23317.87543 | P22: 3753.657221 | Q22: 396741.9306
A23: To be returned / (collected) from Shippers in 2021/22 | B23: =B22-B21 ->  | C23: =C22-C21 ->  | K23: SGN (Southern) | L23: 4126263 | M23: 0.1874001761 | N23: 353986.002 | O23: 52371.33745 | P23: 8435.818926 | Q23: 891621.9278
K24: East of England | L24: 4027276 | M24: 0.1829045389 | N24: 345494.0536 | O24: 51152.217 | P24: 8233.44782 | Q24: 870232.3606
A25: % over / (under) recovery | B25: =#REF!/#REF! ->  | C25: =#REF!/#REF! ->  | D25: =#REF!/#REF! ->  | E25: =#REF!/#REF! ->  | F25: =#REF!/#REF! ->  | K25: London | L25: 2275316 | M25: 0.1033367527 | N25: 195195.9955 | O25: 28946.49707 | P25: 4651.703921 | Q25: 491660.7687
K26: North West | L26: 2694363 | M26: 0.1223683756 | N26: 231145.4181 | O26: 34245.77357 | P26: 5508.412428 | Q26: 582210.3759
K27: West Midlands | L27: 1966436.5 | M27: 0.08930854537 | N27: 168697.6799 | O27: 24991.42829 | P27: 4020.22417 | Q27: 424916.6626
B28: EAST OF ENGAND | C28: LONDON | D28: NORTH WEST | E28: WEST MIDLANDS | F28: CADENT | K28: Total | L28: =SUM(L20:L27) -> 22018458.5 | M28: =SUM(M20:M27) -> 1 | N28: 1888931 | O28: 279635 | P28: 45015 | Q28: 4757850
A29: Shell Energy | B29: =[5]Shell!$F$8 -> 29152.01679 | C29: =[5]Shell!$F$9 -> 16496.81711 | D29: =[5]Shell!$F$10 -> 19516.91294 | E29: =[5]Shell!$F$11 -> 14242.79493 | F29: =SUM(B29:E29) -> 79408.54177
A30: OVO Energy | B30: =[5]OVO!$F$8 -> 1018443.595 | C30: =[5]OVO!$F$9 -> 576326.4284 | D30: =[5]OVO!$F$10 -> 681835.3296 | E30: =[5]OVO!$F$11 -> 497580.7805 | F30: =SUM(B30:E30) -> 2774186.133 | N30: =SUM(N20:N27)-N28 -> 0 | O30: =SUM(O20:O27)-O28 -> 0 | P30: 0 | Q30: 0
A31: Together Energy | B31: =[6]Sheet1!$F$8 -> 371559.3434 | C31: =[6]Sheet1!$F$9 -> 210261.4916 | D31: =[6]Sheet1!$F$10 -> 248754.3627 | E31: =[6]Sheet1!$F$11 -> 181532.6731 | F31: 1012107.871
A32: Total | B32: =SUM(B29:B31) -> 1419154.955 | C32: =SUM(C29:C31) -> 803084.7372 | D32: 950106.6053 | E32: 693356.2485 | F32: 3865702.546
K36: Gas | L36: Electricity | M36: Total SoLR Claim
J37: EDF Energy for Green Network Energy | K37: 1888931 | L37: 2308694 | M37: =K37+L37 -> 4197625 | O37: =K37/M37 -> 0.4499999404
J38: OVO for Brilliant Energy | K38: =O28 -> 279635 | L38: ='[7]OVO Brilliant Energy (updated)'!$F$15 -> 431711 | M38: =K38+L38 -> 711346 | O38: =K38/M38 -> 0.3931068706
J39: OVO for Cardiff Energy | K39: =P28 -> 45015 | L39: =[8]OVO_Cardiff!$F$15 -> 0 | M39: 45015 | O39: 1
J40: Scottish Power for Extra Energy | K40: =Q28 -> 4757850 | L40: 5815150 | M40: 10573000 | O40: 0.45
J41: Total | K41: =SUM(K37:K40) -> 6971431 | L41: =SUM(L37:L40) -> 8555555 | M41: 15526986 | O41: 0.4489880393

Sheet Revenue RRP Narrative Tables (hidden)
B2: NAVIGATION
B4: REVENUE RRP NARRATIVE TABLES
B6: Allowed Revenue Summary (2020/21 Prices) | C6: East of England | D6: London | E6: North West | F6: West Midlands | G6: Cadent | H6: CHECK
B7: Opening base revenue | C7: =#REF!*'Common Calculations'!N$76 ->  | D7: =#REF!*'Common Calculations'!N$76 ->  | E7: =#REF!*'Common Calculations'!N$76 ->  | F7: =#REF!*'Common Calculations'!N$76 ->  | G7: =#REF!*'Common Calculations'!N$76 ->  | H7: =ROUND(G7-SUM(C7:F7),0) ->  | I7: =B7 -> Opening base revenue | J7: =G7 -> 
B8: Annual Iteration Adjustment | C8: =#REF!*'Common Calculations'!N$76 ->  | D8: =#REF!*'Common Calculations'!N$76 ->  | E8: =#REF!*'Common Calculations'!N$76 ->  | F8: =#REF!*'Common Calculations'!N$76 ->  | G8: =#REF!*'Common Calculations'!N$76 ->  | H8: =ROUND(G8-SUM(C8:F8),0) ->  | I8: AIP Adjustment | J8: =G8 -> 
B9: RPI True Up | C9: =#REF!*'Common Calculations'!N$76 ->  | D9: =#REF!*'Common Calculations'!N$76 ->  | E9: =#REF!*'Common Calculations'!N$76 ->  | F9: =#REF!*'Common Calculations'!N$76 ->  | G9: =#REF!*'Common Calculations'!N$76 ->  | I9: RPI True Up | J9: =G9 -> 
B10: 2020/21 Base Revenue | C10: =#REF! ->  | D10: =#REF! ->  | E10: =#REF! ->  | F10: =#REF! ->  | G10: =#REF! ->  | I10: Pass through costs | J10: =G11 -> 
B11: Pass through costs | C11: =#REF!+#REF!+#REF! ->  | D11: =#REF!+#REF!+#REF!-50000 ->  | E11: =#REF!+#REF!+#REF!-50000 ->  | F11: =#REF!+#REF!+#REF! ->  | G11: =#REF!+#REF!+#REF! ->  | I11: Output incentives | J11: =SUM(G12:G16)-200000 -> 
B12: Exit Capacity incentive | C12: =#REF!-#REF! ->  | D12: =#REF!-#REF!-50000 ->  | E12: =#REF!-#REF!-50000 ->  | F12: =#REF!-#REF! ->  | G12: =#REF!-#REF! ->  | I12: Network Innovation | J12: =G17 -> 
B13: Shrinkage incentive | C13: =#REF!-#REF! ->  | D13: =#REF!-#REF! ->  | E13: =#REF!-#REF! ->  | F13: =#REF!-#REF! ->  | G13: =#REF!-#REF! ->  | I13: (Over) / Under recovery | J13: =G18 -> 
B14: Environmental Emissions incentive | C14: =#REF! ->  | D14: =#REF! ->  | E14: =#REF! ->  | F14: =#REF! ->  | G14: =#REF! ->  | H14: =ROUND(G14-SUM(C14:F14),0) ->  | I14: =B19 -> 2020/21 Allowed Revenue | J14: =SUM(J7:J13) -> 
B15: Broad Measure of Customer Satisfaction | C15: =#REF! ->  | D15: =#REF! ->  | E15: =#REF! ->  | F15: =#REF! ->  | G15: =SUM(C15:F15) -> 
B16: Discretionary Reward Scheme | C16: =#REF! ->  | D16: =#REF! ->  | E16: =#REF! ->  | F16: =#REF! ->  | G16: =#REF! -> 
B17: Network Innovation Allowance | C17: =#REF! ->  | D17: =#REF! ->  | E17: =#REF! ->  | F17: =#REF! ->  | G17: =SUM(C17:F17) -> 
B18: (Over) / Under Recovery brought forwards | C18: =#REF! ->  | D18: =#REF! ->  | E18: =#REF! ->  | F18: =#REF! ->  | G18: =SUM(C18:F18) -> 
B19: 2020/21 Allowed Revenue | C19: =#REF! ->  | D19: =#REF!-100000 ->  | E19: =#REF!-100000 ->  | F19: =#REF! ->  | G19: =SUM(C19:F19) -> 
B20: CHECK | C20: =ROUND(C19-SUM(C10:C18),0) ->  | D20: =ROUND(D19-SUM(D10:D18),0) -> 
B22: Annual Iteration Adjustment (2020/21 Prices) | C22: East of England | D22: London | E22: North West | F22: West Midlands | G22: Cadent | H22: CHECK
B23: Cost of Debt indexation | C23: =#REF!*#REF! ->  | D23: =#REF!*#REF! ->  | E23: =#REF!*#REF! ->  | F23: =#REF!*#REF! ->  | G23: =#REF!*#REF! ->  | H23: =ROUND(G23-SUM(C23:F23),0) ->  | I23: =G23/$G$34 -> 
B24: Pension deficit funding | C24: =(#REF!+#REF!)*#REF! ->  | D24: =(#REF!+#REF!)*#REF! ->  | E24: =(#REF!+#REF!)*#REF! ->  | F24: =(#REF!+#REF!)*#REF! ->  | G24: =(#REF!+#REF!)*#REF! -> 
B25: Totex Incentive Mechanism | C25: =#REF!*#REF! ->  | D25: =#REF!*#REF! ->  | E25: =#REF!*#REF! ->  | F25: =#REF!*#REF! ->  | G25: =#REF!*#REF! -> 
B26: Shrinkage allowance reduction | C26: =#REF!*#REF! ->  | D26: =#REF!*#REF! ->  | E26: =#REF!*#REF! ->  | F26: =#REF!*#REF! ->  | G26: =#REF!*#REF! -> 
B27: Tax adjustments | C27: =#REF!*#REF! ->  | D27: =#REF!*#REF! ->  | E27: =#REF!*#REF! ->  | F27: =#REF!*#REF! ->  | G27: =#REF!*#REF! -> 
B28: Reduction to Xoserve costs | C28: =#REF!*#REF! ->  | D28: =#REF!*#REF! ->  | E28: =#REF!*#REF! ->  | F28: =#REF!*#REF! ->  | G28: =#REF!*#REF! -> 
B29: Enhanced site security uncertainty adj | C29: =#REF!*#REF! ->  | D29: =#REF!*#REF! ->  | E29: =#REF!*#REF! ->  | F29: =#REF!*#REF! ->  | G29: =#REF!*#REF! -> 
B30: Fuel poor network connection uncertainty adj | C30: =#REF!*#REF! ->  | D30: =#REF!*#REF! ->  | E30: =#REF!*#REF! ->  | F30: =#REF!*#REF! ->  | G30: =#REF!*#REF! -> 
B31: Specified streetworks uncertainty adj | C31: =#REF!*#REF! ->  | D31: =#REF!*#REF! ->  | E31: =#REF!*#REF! ->  | F31: =#REF!*#REF! ->  | G31: =#REF!*#REF! -> 
B32: Tier 2a Repex revenue driver | C32: =#REF!*#REF! ->  | D32: =#REF!*#REF! ->  | E32: =#REF!*#REF! ->  | F32: =#REF!*#REF! ->  | G32: =#REF!*#REF! -> 
B33: Other PCFM adjustments | C33: =C34-SUM(C23:C32) ->  | D33: =D34-SUM(D23:D32) ->  | E33: =E34-SUM(E23:E32) ->  | F33: =F34-SUM(F23:F32) ->  | G33: =G34-SUM(G23:G32) -> 
B34: Total Annual Iteration Adjustment (2020/21 Prices) | C34: =#REF!*#REF! ->  | D34: =#REF!*#REF! ->  | E34: =#REF!*#REF! ->  | F34: =#REF!*#REF! ->  | G34: =#REF!*#REF! -> 
B36: Total Annual Iteration Adjustment (2009/10 prices) | C36: =C34/#REF! ->  | D36: =D34/#REF! ->  | E36: =E34/#REF! ->  | F36: =F34/#REF! ->  | G36: =G34/'Common Calculations'!$N$76 -> 
B37: CHECK | C37: =C36-#REF! ->  | D37: =D36-#REF! ->  | E37: =E36-#REF! ->  | F37: =F36-#REF! ->  | G37: =G36-#REF! -> 
B39: Revenue Collection | C39: East of England | D39: London | E39: North West | F39: West Midlands | G39: Cadent | H39: CHECK
B41: 2020/21 Allowed Revenue | C41: =C66 ->  | D41: =D66 ->  | E41: =E66 ->  | F41: =F66 ->  | G41: =G66 ->  | H41: =ROUND(G41-SUM(C41:F41),0) -> 
B43: 2020/21 Collected Revenue | C43: =#REF! ->  | D43: =#REF! ->  | E43: =#REF! ->  | F43: =#REF! ->  | G43: =#REF! ->  | H43: =ROUND(G43-SUM(C43:F43),0) -> 
B44: (Over) / Under Recovery of Revenue | C44: =C41-C43 ->  | D44: =D41-D43 ->  | E44: =E41-E43 ->  | F44: =F41-F43 ->  | G44: =G41-G43 ->  | H44: =ROUND(G44-SUM(C44:F44),0) -> 
B45: % (Over) / Under Recovery of Revenue | C45: =C44/C41 ->  | D45: =D44/D41 ->  | E45: =E44/E41 ->  | F45: =F44/F41 ->  | G45: =G44/G41 ->  | H45: =ROUND(G45-SUM(C45:F45),0) -> 
B47: (Over) / Under Recovery of Revenue represented by:
B48: Reduction in Network Innovation expenditure
B49: Net theft of gas recoveries | C49: =SUM(#REF!) ->  | D49: =SUM(#REF!) ->  | E49: =SUM(#REF!) ->  | F49: =SUM(#REF!) ->  | G49: =SUM(#REF!) -> 
B50: Variance in chargeable volumes | C50: =C44-SUM(C48:C49) ->  | D50: =D44-SUM(D48:D49) ->  | E50: =E44-SUM(E48:E49) ->  | F50: =F44-SUM(F48:F49) ->  | G50: =G44-SUM(G48:G49) -> 
B52: MOVEMENT IN ALLOWED REVENUE | C52: EAST OF ENGLAND | D52: LONDON | E52: NORTH WEST | F52: WEST MIDLANDS | G52: CADENT | H52: CHECK
B53: 2018/19 ALLOWED REVENUE | C53: =#REF! ->  | D53: =#REF! ->  | E53: =#REF! ->  | F53: =#REF! ->  | G53: =#REF! ->  | H53: =ROUND(G53-SUM(C53:F53),0) -> 
B54: UPLIFT TO 18/19 PRICES | C54: =C66-C53-SUM(C55:C65) ->  | D54: =D66-D53-SUM(D55:D65) ->  | E54: =E66-E53-SUM(E55:E65) ->  | F54: =F66-F53-SUM(F55:F65) ->  | G54: =G66-G53-SUM(G55:G65) ->  | H54: =ROUND(G54-SUM(C54:F54),0) -> 
B55: MOVEMENT IN OPENING BASE REVENUE (PUt) | C55: =(#REF!-#REF!)*'Common Calculations'!L$76 ->  | D55: =(#REF!-#REF!)*'Common Calculations'!L$76 ->  | E55: =(#REF!-#REF!)*'Common Calculations'!L$76 ->  | F55: =(#REF!-#REF!)*'Common Calculations'!L$76 ->  | G55: =(#REF!-#REF!)*'Common Calculations'!L$76 -> 
B56: PCFM ADJUSTMENT (MODt) | C56: =(#REF!-#REF!)*'Common Calculations'!L$76 ->  | D56: =(#REF!-#REF!)*'Common Calculations'!L$76 ->  | E56: =(#REF!-#REF!)*'Common Calculations'!L$76 ->  | F56: =(#REF!-#REF!)*'Common Calculations'!L$76 ->  | G56: =(#REF!-#REF!)*'Common Calculations'!L$76 -> 
B57: RPI TRUE UP | C57: =(#REF!-#REF!)*'Common Calculations'!L$76 ->  | D57: =(#REF!-#REF!)*'Common Calculations'!L$76 ->  | E57: =(#REF!-#REF!)*'Common Calculations'!L$76 ->  | F57: =(#REF!-#REF!)*'Common Calculations'!L$76 ->  | G57: =(#REF!-#REF!)*'Common Calculations'!L$76 -> 
B58: PASS THROUGH COSTS | C58: =(#REF!-#REF!) ->  | D58: =(#REF!-#REF!) ->  | E58: =(#REF!-#REF!) ->  | F58: =(#REF!-#REF!) ->  | G58: =(#REF!-#REF!) -> 
B59: EXIT CAPACITY | C59: =(#REF!-#REF!) ->  | D59: =(#REF!-#REF!) ->  | E59: =(#REF!-#REF!) ->  | F59: =(#REF!-#REF!) ->  | G59: =(#REF!-#REF!) -> 
B60: SHRINKAGE | C60: =(#REF!-#REF!) ->  | D60: =(#REF!-#REF!) ->  | E60: =(#REF!-#REF!) ->  | F60: =(#REF!-#REF!) ->  | G60: =(#REF!-#REF!) -> 
B61: ENVIRONMENTAL EMISSIONS INCENTIVE | C61: =(#REF!-#REF!) ->  | D61: =(#REF!-#REF!) ->  | E61: =(#REF!-#REF!) ->  | F61: =(#REF!-#REF!) ->  | G61: =(#REF!-#REF!) ->  | H61: =ROUND(G61-SUM(C61:F61),0) -> 
B62: BROAD MEASURE OF CUSTOMER SATISFACTION | C62: =(#REF!-#REF!) ->  | D62: =(#REF!-#REF!) ->  | E62: =(#REF!-#REF!) ->  | F62: =(#REF!-#REF!) ->  | G62: =(#REF!-#REF!) -> 
B63: DISCRETIONARY REWARD SCHEME | C63: =(#REF!-#REF!) ->  | D63: =(#REF!-#REF!) ->  | E63: =(#REF!-#REF!) ->  | F63: =(#REF!-#REF!) ->  | G63: =(#REF!-#REF!) -> 
B64: NETWORK INNOVATION ALLOWANCE | C64: =(#REF!-#REF!) ->  | D64: =(#REF!-#REF!) ->  | E64: =(#REF!-#REF!) ->  | F64: =(#REF!-#REF!) ->  | G64: =(#REF!-#REF!) -> 
B65: (OVER) / UNDER RECOVERY BROUGHT FORWARDS | C65: =(#REF!-#REF!) ->  | D65: =(#REF!-#REF!) ->  | E65: =(#REF!-#REF!) ->  | F65: =(#REF!-#REF!) ->  | G65: =(#REF!-#REF!) -> 
B66: 2019/20 ALLOWED REVENUE | C66: =C19 ->  | D66: =D19 -> 
B67: % CHANGE IN ALLOWED REVENUE | C67: =C66/C53-1 ->  | D67: =D66/D53-1 ->  | E67: =E66/E53-1 ->  | F67: =F66/F53-1 ->  | G67: =G66/G53-1 -> 
B68: CHECK | C68: =ROUND(C66-SUM(C53:C65),0) ->  | D68: =ROUND(D66-SUM(D53:D65),0) ->  | E68: =ROUND(E66-SUM(E53:E65),0) ->  | F68: =ROUND(F66-SUM(F53:F65),0) ->  | G68: =ROUND(G66-SUM(G53:G65),0) -> 
G69: =G66-G53 -> 
B71: TABLE 4: RPI TRUE UP | C71: %
B72: 2014/15 INFLATION ASSUMED FOR PRICE SETTING | C72: ='Common Calculations'!H77 -> 
B73: ACTUAL 2014/15 AVERAGE YEAR INFLATION | C73: ='Common Calculations'!H49 -> 
B74: DIFFERENCE | C74: =C73-C72 -> 
B76: TABLE 5: PASS THROUGH COSTS | C76: EAST OF ENGLAND | D76: LONDON | E76: NORTH WEST | F76: WEST MIDLANDS | G76: CADENT | H76: CHECK
B77: BUSINESS RATES | C77: =#REF! ->  | D77: =#REF! ->  | E77: =#REF! ->  | F77: =#REF! ->  | G77: =#REF! ->  | H77: =ROUND(G77-SUM(C77:F77),0) -> 
B78: TRANSPORTER NET THEFT OF GAS RECOVERY | C78: =#REF! ->  | D78: =#REF! ->  | E78: =#REF! ->  | F78: =#REF! ->  | G78: =#REF! ->  | H78: =ROUND(G78-SUM(C78:F78),0) -> 
B79: OTHER | C79: =C80-SUM(C77:C78) ->  | D79: =D80-SUM(D77:D78) ->  | E79: =E80-SUM(E77:E78) ->  | F79: =F80-SUM(F77:F78) ->  | G79: =G80-SUM(G77:G78) ->  | H79: =ROUND(G79-SUM(C79:F79),0) -> 
B80: TOTAL PASS THROUGH ADJUSTMENT | C80: =#REF! ->  | D80: =#REF! ->  | E80: =#REF! ->  | F80: =#REF! ->  | G80: =#REF! ->  | H80: =ROUND(G80-SUM(C80:F80),0) -> 
B81: CHECK | C81: =C80-SUM(C77:C79) ->  | D81: =D80-SUM(D77:D79) ->  | E81: =E80-SUM(E77:E79) ->  | F81: =F80-SUM(F77:F79) ->  | G81: =G80-SUM(G77:G79) ->  | H81: =ROUND(G81-SUM(C81:F81),0) -> 
B83: TABLE 6: EXIT CAPACITY | C83: EAST OF ENGLAND | D83: LONDON | E83: NORTH WEST | F83: WEST MIDLANDS | G83: CADENT | H83: CHECK
B84: EARNED INCENTIVE PERFORMANCE (14/15 PRICES) | C84: =#REF! ->  | D84: =#REF! ->  | E84: =#REF! ->  | F84: =#REF! ->  | G84: =#REF! ->  | H84: =ROUND(G84-SUM(C84:F84),0) -> 
B85: COST ADJUSTMENT VS ALLOWANCES (14/15 PRICES) | C85: =#REF! ->  | D85: =#REF! ->  | E85: =#REF! ->  | F85: =#REF! ->  | G85: =#REF! ->  | H85: =ROUND(G85-SUM(C85:F85),0) -> 
B86: 2 YEAR LAGGING ADJUSTMENTS | C86: =C87-SUM(C84:C85) ->  | D86: =D87-SUM(D84:D85) ->  | E86: =E87-SUM(E84:E85) ->  | F86: =F87-SUM(F84:F85) ->  | G86: =G87-SUM(G84:G85) -> 
B87: TOTAL EXIT CAPACITY ADJUSTMENT (16/17 PRICES) | C87: =#REF! ->  | D87: =#REF! ->  | E87: =#REF! ->  | F87: =#REF! ->  | G87: =#REF! ->  | H87: =ROUND(G87-SUM(C87:F87),0) -> 
B88: CHECK | C88: =C87-SUM(C84:C86) ->  | D88: =D87-SUM(D84:D86) ->  | E88: =E87-SUM(E84:E86) ->  | F88: =F87-SUM(F84:F86) ->  | G88: =G87-SUM(G84:G86) ->  | H88: =ROUND(G88-SUM(C88:F88),0) -> 
B89: AGGREGATE FLAT CAPACITY BOOKINGS (TARGET) | C89: =SUM('RIIO Allowances'!H116:H139) -> 888.3 | D89: =SUM('RIIO Allowances'!H140:H144) -> 467.2 | E89: =SUM('RIIO Allowances'!H145:H155) -> 535.6 | F89: =SUM('RIIO Allowances'!H156:H166) -> 359.2 | G89: =SUM('RIIO Allowances'!H116:H166) -> 2250.3
B90: AGGREGATE FLAT CAPACITY BOOKINGS (ACTUAL) | C90: =SUM(#REF!)/2 ->  | D90: =SUM(#REF!)/2 ->  | E90: =SUM(#REF!)/2 ->  | F90: =SUM(#REF!)/2 ->  | G90: =SUM(#REF!)/2 -> 
B91: INCREASE/ (DECREASE) IN CAPACITY VS TARGET | C91: =C90/C89-1 ->  | D91: =D90/D89-1 ->  | E91: =E90/E89-1 ->  | F91: =F90/F89-1 ->  | G91: =G90/G89-1 -> 
B93: TABLE 7: SHRINKAGE | C93: EAST OF ENGLAND | D93: LONDON | E93: NORTH WEST | F93: WEST MIDLANDS | G93: CADENT | H93: CHECK
B94: EARNED INCENTIVE PERFORMANCE (14/15 PRICES) | C94: =#REF! ->  | D94: =#REF! ->  | E94: =#REF! ->  | F94: =#REF! ->  | G94: =#REF! ->  | H94: =ROUND(G94-SUM(C94:F94),0) -> 
B95: COST ADJUSTMENT VS ALLOWANCES (14/15 PRICES) | C95: =#REF! ->  | D95: =#REF! ->  | E95: =#REF! ->  | F95: =#REF! ->  | G95: =#REF! ->  | H95: =ROUND(G95-SUM(C95:F95),0) -> 
B96: 2 YEAR LAGGING ADJUSTMENTS | C96: =C97-SUM(C94:C95) ->  | D96: =D97-SUM(D94:D95) ->  | E96: =E97-SUM(E94:E95) ->  | F96: =F97-SUM(F94:F95) ->  | G96: =G97-SUM(G94:G95) -> 
B97: TOTAL SHRINKAGE ADJUSTMENT (16/17 PRICES) | C97: =#REF! ->  | D97: =#REF! ->  | E97: =#REF! ->  | F97: =#REF! ->  | G97: =#REF! ->  | H97: =ROUND(G97-SUM(C97:F97),0) -> 
B98: CHECK | C98: =C97-SUM(C94:C96) ->  | D98: =D97-SUM(D94:D96) ->  | E98: =E97-SUM(E94:E96) ->  | F98: =F97-SUM(F94:F96) ->  | G98: =G97-SUM(G94:G96) ->  | H98: =ROUND(G98-SUM(C98:F98),0) -> 
B100: 2014/15 SHRINKAGE BASELINE VOLUME (GWH) | C100: =#REF! ->  | D100: =#REF! ->  | E100: =#REF! ->  | F100: =#REF! ->  | G100: =#REF! -> 
B101: 2014/15 SHRINKAGE ACTUAL VOLUME (GWH) | C101: =#REF! ->  | D101: =#REF! ->  | E101: =#REF! ->  | F101: =#REF! ->  | G101: =#REF! -> 
B102: 2014/15 REDUCTION AGAINST BASELINE (GWH) | C102: =C101-C100 ->  | D102: =D101-D100 ->  | E102: =E101-E100 ->  | F102: =F101-F100 ->  | G102: =G101-G100 -> 
B103: % VOLUME REDUCTION AGAINST BASELINE | C103: =C102/C100 ->  | D103: =D102/D100 ->  | E103: =E102/E100 ->  | F103: =F102/F100 ->  | G103: =G102/G100 -> 
B105: ACTUAL GPRC | C105: =#REF! ->  | D105: =#REF! ->  | E105: =#REF! ->  | F105: =#REF! ->  | G105: =#REF! -> 
B106: ACTUAL SHRINKAGE COST | C106: =C105*C101 ->  | D106: =D105*D101 ->  | E106: =E105*E101 ->  | F106: =F105*F101 ->  | G106: =G105*G101 -> 
B107: IMPLIED BASELINE GPRC | C107: =(C106-C95)/C100 ->  | D107: =(D106-D95)/D100 ->  | E107: =(E106-E95)/E100 ->  | F107: =(F106-F95)/F100 ->  | G107: =(G106-G95)/G100 -> 
B108: REDUCTION TO GPRC | C108: =C107/C105-1 ->  | D108: =D107/D105-1 ->  | E108: =E107/E105-1 ->  | F108: =F107/F105-1 ->  | G108: =G107/G105-1 -> 
B110: TABLE 8: ENVIRONMENTAL EMMISSION INCENTIVE | C110: EAST OF ENGLAND | D110: LONDON | E110: NORTH WEST | F110: WEST MIDLANDS | G110: CADENT | H110: CHECK
B111: EARNED INCENTIVE PERFORMANCE (14/15 PRICES) | C111: =#REF! ->  | D111: =#REF! ->  | E111: =#REF! ->  | F111: =#REF! ->  | G111: =#REF! ->  | H111: =ROUND(G111-SUM(C111:F111),0) -> 
B112: 2 YEAR LAGGING ADJUSTMENT | C112: =C113-C111 ->  | D112: =D113-D111 ->  | E112: =E113-E111 ->  | F112: =F113-F111 ->  | G112: =G113-G111 ->  | H112: =ROUND(G112-SUM(C112:F112),0) -> 
B113: ENVIRONMENTAL EMISSIONS INCENTIVE (16/17 PRICES) | C113: =#REF! ->  | D113: =#REF! ->  | E113: =#REF! ->  | F113: =#REF! ->  | G113: =#REF! ->  | H113: =ROUND(G113-SUM(C113:F113),0) -> 
B115: 2014/15 LEAKAGE BASELINE VOLUME (GWH) | C115: =#REF! ->  | D115: =#REF! ->  | E115: =#REF! ->  | F115: =#REF! ->  | G115: =#REF! -> 
B116: 2014/15 LEAKAGE ACTUAL VOLUME (GWH) | C116: =#REF! ->  | D116: =#REF! ->  | E116: =#REF! ->  | F116: =#REF! ->  | G116: =#REF! -> 
B117: 2014/15 REDUCTION AGAINST BASELINE (GWH) | C117: =C116-C115 ->  | D117: =D116-D115 ->  | E117: =E116-E115 ->  | F117: =F116-F115 ->  | G117: =G116-G115 -> 
B118: % VOLUME REDUCTION AGAINST BASELINE | C118: =C117/C115 ->  | D118: =D117/D115 ->  | E118: =E117/E115 ->  | F118: =F117/F115 ->  | G118: =G117/G115 -> 
B120: TABLE 9: BROAD MEASURE OF CUSTOMER SATISFACTION | C120: EAST OF ENGLAND | D120: LONDON | E120: NORTH WEST | F120: WEST MIDLANDS | G120: CADENT | H120: CHECK
B121: EARNED CSAT PERFORMANCE (14/15 PRICES) | C121: =#REF! ->  | D121: =#REF! ->  | E121: =#REF! ->  | F121: =#REF! ->  | G121: =#REF! ->  | H121: =ROUND(G121-SUM(C121:F121),0) -> 
B122: EARNED COMPLAINTS PERFORMANCE (14/15 PRICES) | C122: =#REF! ->  | D122: =#REF! ->  | E122: =#REF! ->  | F122: =#REF! ->  | G122: =#REF! -> 
B123: EARNED STAKEHOLDER ENGAGEMENT PERFORMANCE (14/15 PRICES) | C123: =#REF! ->  | D123: =#REF! ->  | E123: =#REF! ->  | F123: =#REF! ->  | G123: =#REF! -> 
B124: 2 YEAR LAGGING ADJUSTMENT | C124: =C125-SUM(C121:C123) ->  | D124: =D125-SUM(D121:D123) ->  | E124: =E125-SUM(E121:E123) ->  | F124: =F125-SUM(F121:F123) ->  | G124: =G125-SUM(G121:G123) ->  | H124: =ROUND(G124-SUM(C124:F124),0) -> 
B125: BROAD MEASURE OF CUSTOMER SATISFACTION (16/17 PRICES) | C125: =#REF! ->  | D125: =#REF! ->  | E125: =#REF! ->  | F125: =#REF! ->  | G125: =#REF! ->  | H125: =ROUND(G125-SUM(C125:F125),0) -> 
B126: CHECK | C126: =C125-SUM(C121:C124) ->  | D126: =D125-SUM(D121:D124) ->  | E126: =E125-SUM(E121:E124) ->  | F126: =F125-SUM(F121:F124) ->  | G126: =G125-SUM(G121:G124) ->  | H126: =ROUND(G126-SUM(C126:F126),0) -> 
B128: 2014/15 CSAT PERFORMANCE SCORE (PLANNED) | C128: =#REF! ->  | D128: =#REF! ->  | E128: =#REF! ->  | F128: =#REF! -> 
B129: 2014/15 CSAT SCORE (UNPLANNED) | C129: =#REF! ->  | D129: =#REF! ->  | E129: =#REF! ->  | F129: =#REF! -> 
B130: 2014/15 CSAT SCORE (CONNECTIONS) | C130: =#REF! ->  | D130: =#REF! ->  | E130: =#REF! ->  | F130: =#REF! -> 
B131: 2014/15 COMPLAINT METRIC SCORE | C131: =#REF! ->  | D131: =#REF! ->  | E131: =#REF! ->  | F131: =#REF! -> 
B132: 2014/15 STAKEHOLDER ENGAGEMENT SCORE | C132: =#REF! ->  | D132: =#REF! ->  | E132: =#REF! ->  | F132: =#REF! -> 
B134: TABLE 10: NETWORK INNOVATION ALLOWANCE | C134: EAST OF ENGLAND | D134: LONDON | E134: NORTH WEST | F134: WEST MIDLANDS | G134: CADENT
B135: INTERNAL COSTS | C135: =#REF! ->  | D135: =#REF! ->  | E135: =#REF! ->  | F135: =#REF! ->  | G135: =#REF! ->  | H135: =ROUND(G135-SUM(C135:F135),0) -> 
B136: EXTERNAL COSTS | C136: =#REF!-#REF! ->  | D136: =#REF!-#REF! ->  | E136: =#REF!-#REF! ->  | F136: =#REF!-#REF! ->  | G136: =#REF!-#REF! ->  | H136: =ROUND(G136-SUM(C136:F136),0) -> 
B137: BID PREPARATION COSTS | C137: =#REF! ->  | D137: =#REF! ->  | E137: =#REF! ->  | F137: =#REF! ->  | G137: =#REF! ->  | H137: =ROUND(G137-SUM(C137:F137),0) -> 
B138: TOTAL NIA COSTS | C138: =SUM(C135:C137) ->  | D138: =SUM(D135:D137) ->  | E138: =SUM(E135:E137) ->  | F138: =SUM(F135:F137) ->  | G138: =SUM(G135:G137) ->  | H138: =ROUND(G138-SUM(C138:F138),0) -> 
B139: ALLOWED NIA COST (90%) | C139: =C138*90% ->  | D139: =D138*90% ->  | E139: =E138*90% ->  | F139: =F138*90% ->  | G139: =G138*90% ->  | H139: =ROUND(G139-SUM(C139:F139),0) -> 
B140: CHECK | C140: =C139-#REF! ->  | D140: =D139-#REF! ->  | E140: =E139-#REF! ->  | F140: =F139-#REF! ->  | G140: =G139-#REF! -> 
B142: INTERNAL EXPENDITURE % | C142: =C135/SUM(C135:C136) ->  | D142: =D135/SUM(D135:D136) ->  | E142: =E135/SUM(E135:E136) ->  | F142: =F135/SUM(F135:F136) ->  | G142: =G135/SUM(G135:G136) -> 
B144: TABLE 11: CORRECTION TERM | C144: EAST OF ENGLAND | D144: LONDON | E144: NORTH WEST | F144: WEST MIDLANDS | G144: CADENT
B145: 2014/15 ALLOWED REVENUE | C145: =#REF! ->  | D145: =#REF! ->  | E145: =#REF! ->  | F145: =#REF! ->  | G145: =#REF! ->  | H145: =ROUND(G145-SUM(C145:F145),0) -> 
B146: 2014/15 COLLECTED REVENUE | C146: =#REF! ->  | D146: =#REF! ->  | E146: =#REF! ->  | F146: =#REF! ->  | G146: =#REF! ->  | H146: =ROUND(G146-SUM(C146:F146),0) -> 
B147: (OVER) / UNDER RECOVERY | C147: =C145-C146 ->  | D147: =D145-D146 ->  | E147: =E145-E146 ->  | F147: =F145-F146 ->  | G147: =G145-G146 ->  | H147: =ROUND(G147-SUM(C147:F147),0) -> 
B148: INTEREST ADJUSTMENT | C148: -12170.92 | D148: -50921.12 | E148: 125730.4 | F148: -25857.42 | G148: 36780.94 | H148: =ROUND(G148-SUM(C148:F148),0) -> 0
B149: 2016/17 CORRECTION TERM | C149: =SUM(C147:C148) ->  | D149: =SUM(D147:D148) ->  | E149: =SUM(E147:E148) ->  | F149: =SUM(F147:F148) ->  | G149: =SUM(G147:G148) ->  | H149: =ROUND(G149-SUM(C149:F149),0) -> 
B150: CHECK | C150: =C149-#REF! ->  | D150: =D149-#REF! ->  | E150: =E149-#REF! ->  | F150: =F149-#REF! ->  | G150: =G149-#REF! -> 
B151: 2014/15 % (OVER) / UNDER RECOVERY | C151: =C147/C145 ->  | D151: =D147/D145 ->  | E151: =E147/E145 ->  | F151: =F147/F145 ->  | G151: =G147/G145 -> 
B153: NIA OVER COLLECTION 16/17 | C153: EAST OF ENGLAND | D153: LONDON | E153: NORTH WEST | F153: WEST MIDLANDS | G153: CADENT
B154: ALLOWED NIA IN MARCH 16 MOD | C154: 3269362.507 | D154: 2383344.662 | E154: 2457275.468 | F154: 1767518.263 | G154: 9877500.9
B155: ALLOWED NIA IN SEP 17 MOD | C155: =#REF! ->  | D155: =#REF! ->  | E155: =#REF! ->  | F155: =#REF! ->  | G155: =#REF! -> 
B156: CHANGE IN ALLOWABLE NIA | C156: =C155-C154 ->  | D156: =D155-D154 ->  | E156: =E155-E154 ->  | F156: =F155-F154 ->  | G156: =G155-G154 -> 
B158: TOTAL FOR REST OF UNDER / (OVER) RECOVERY OF REVENUE | C158: =C44-C156 ->  | D158: =D44-D156 ->  | E158: =E44-E156 ->  | F158: =F44-F156 ->  | G158: =G44-G156 -> 
B160: REVENUE COLLECTION BY DRIVER | C160: EAST OF ENGLAND | D160: LONDON | E160: NORTH WEST | F160: WEST MIDLANDS | G160: CADENT | H160: CHECK
B161: COMMODITY DRIVEN REVENUE | C161: =#REF! ->  | D161: =#REF! ->  | E161: =#REF! ->  | F161: =#REF! ->  | G161: =#REF! ->  | H161: =ROUND(G161-SUM(C161:F161),0) -> 
B162: % UNDER / (OVER) RECOVERY BY CATEGORY | C162: =-#REF! ->  | D162: =-#REF! ->  | E162: =-#REF! ->  | F162: =-#REF! ->  | G162: =-#REF! ->  | H162: =ROUND(G162-SUM(C162:F162),0) -> 
B163: CONTRIBUTION TO OVERALL (OVER) / UNDER RECOVERY | C163: =C162*(C161/(C161+C165)) ->  | D163: =D162*(D161/(D161+D165)) ->  | E163: =E162*(E161/(E161+E165)) ->  | F163: =F162*(F161/(F161+F165)) ->  | G163: =G162*(G161/(G161+G165)) -> 
H164: 0
B165: CAPACITY DRIVEN REVENUE | C165: =C43-C161 ->  | D165: =D43-D161 ->  | E165: =E43-E161 ->  | F165: =F43-F161 ->  | G165: =G43-G161 -> 
B166: % UNDER / (OVER) RECOVERY BY CATEGORY | C166: =1-(#REF!+#REF!+#REF!)/(#REF!+#REF!+#REF!) ->  | D166: =1-(#REF!+#REF!+#REF!)/(#REF!+#REF!+#REF!) ->  | E166: =1-(#REF!+#REF!+#REF!)/(#REF!+#REF!+#REF!) ->  | F166: =1-(#REF!+#REF!+#REF!)/(#REF!+#REF!+#REF!) ->  | G166: =1-(#REF!+#REF!+#REF!)/(#REF!+#REF!+#REF!) -> 
B167: CONTRIBUTION TO OVERALL (OVER) / UNDER RECOVERY | C167: =C166*(C165/(C161+C165)) ->  | D167: =D166*(D165/(D161+D165)) ->  | E167: =E166*(E165/(E161+E165)) ->  | F167: =F166*(F165/(F161+F165)) ->  | G167: =G166*(G165/(G161+G165)) -> 
B169: TABLE 14: REVENUE COLLECTION AGAINST CHARGING METHODOLOGY | C169: EAST OF ENGLAND | D169: LONDON | E169: NORTH WEST | F169: WEST MIDLANDS | G169: CADENT | H169: CHECK
B170: SYSTEM COMMODITY | C170: =#REF! ->  | D170: =#REF! ->  | E170: =#REF! ->  | F170: =#REF! ->  | G170: =#REF! ->  | H170: =ROUND(G170-SUM(C170:F170),0) -> 
B171: SYSTEM CAPACITY | C171: =#REF! ->  | D171: =#REF! ->  | E171: =#REF! ->  | F171: =#REF! ->  | G171: =#REF! ->  | H171: =ROUND(G171-SUM(C171:F171),0) -> 
B172: CUSTOMER | C172: =#REF! ->  | D172: =#REF! ->  | E172: =#REF! ->  | F172: =#REF! ->  | G172: =#REF! ->  | H172: =ROUND(G172-SUM(C172:F172),0) -> 
B173: ECN | C173: =#REF! ->  | D173: =#REF! ->  | E173: =#REF! ->  | F173: =#REF! ->  | G173: =#REF! ->  | H173: =ROUND(G173-SUM(C173:F173),0) -> 
B174: TOTAL REVENUE COLLECTED | C174: =SUM(C170:C173) ->  | D174: =SUM(D170:D173) ->  | E174: =SUM(E170:E173) ->  | F174: =SUM(F170:F173) ->  | G174: =SUM(G170:G173) ->  | H174: =ROUND(G174-SUM(C174:F174),0) -> 
B175: SYSTEM COMMODITY AS % OF TOTAL SYSTEM CHARGES | C175: =C170/SUM(C170:C171) ->  | D175: =D170/SUM(D170:D171) ->  | E175: =E170/SUM(E170:E171) ->  | F175: =F170/SUM(F170:F171) ->  | G175: =G170/SUM(G170:G171) -> 
B176: SYSTEM CAPACITY AS % OF TOTAL SYSTEM CHARGES | C176: =C171/SUM(C170:C171) ->  | D176: =D171/SUM(D170:D171) ->  | E176: =E171/SUM(E170:E171) ->  | F176: =F171/SUM(F170:F171) ->  | G176: =G171/SUM(G170:G171) -> 
B177: SYSTEM CHARGES AS % OF TOTAL LDZ CHARGES | C177: =SUM(C170:C171)/SUM(C170:C172) ->  | D177: =SUM(D170:D171)/SUM(D170:D172) ->  | E177: =SUM(E170:E171)/SUM(E170:E172) ->  | F177: =SUM(F170:F171)/SUM(F170:F172) ->  | G177: =SUM(G170:G171)/SUM(G170:G172) -> 
B178: CUSTOMER AS % OF TOTAL LDZ CHARGES | C178: =C172/SUM(C170:C172) ->  | D178: =D172/SUM(D170:D172) ->  | E178: =E172/SUM(E170:E172) ->  | F178: =F172/SUM(F170:F172) ->  | G178: =G172/SUM(G170:G172) -> 
B180: SYSTEM COMMODITY VARIANCE TO TARGET | C180: =C175-5% ->  | D180: =D175-5% ->  | E180: =E175-5% ->  | F180: =F175-5% ->  | G180: =G175-5% -> 
B181: SYSTEM CAPACITY VARIANCE TO TARGET | C181: =C176-95% ->  | D181: =D176-95% ->  | E181: =E176-95% ->  | F181: =F176-95% ->  | G181: =G176-95% -> 
B182: SYSTEM CHARGE VARIANCE TO TARGET | C182: =C177-C185 -> 
B183: CUSTOMER CHARGE VARIANCE TO TARGET
B185: SYSTEM TARGET | C185: =#REF! ->  | D185: =#REF! ->  | E185: =#REF! ->  | F185: =#REF! ->  | G185: =#REF! -> 
B186: CUSTOMER TARGET | C186: =#REF! ->  | D186: =#REF! ->  | E186: =#REF! ->  | F186: =#REF! ->  | G186: =#REF! -> 
B188: EAST OF ENGLAND REVENUE FORECAST | C188: 2013/14 | D188: 2014/15 | E188: 2015/16 | F188: 2016/17 | G188: 2017/18 | H188: 2018/19
B189: OPENING BASE REVENUE (NOMINAL) | C189: =(#REF!*'Common Calculations'!G$76)/10^6 ->  | D189: =(#REF!*'Common Calculations'!H$76)/10^6 ->  | E189: =(#REF!*'Common Calculations'!I$76)/10^6 ->  | F189: =(#REF!*'Common Calculations'!J$76)/10^6 ->  | G189: =(#REF!*'Common Calculations'!K$76)/10^6 ->  | H189: =(#REF!*'Common Calculations'!L$76)/10^6 -> 
B190: ALLOWED REVENUE (NOMINAL) | C190: =#REF!/10^6 ->  | D190: =#REF!/10^6 ->  | E190: =#REF!/10^6 ->  | F190: =#REF!/10^6 ->  | G190: =#REF!/10^6 ->  | H190: =#REF!/10^6 -> 
B191: OPENING BASE REVENUE (18/19 PRICES) | C191: =(#REF!*'Common Calculations'!$L$76)/10^6 ->  | D191: =(#REF!*'Common Calculations'!$L$76)/10^6 ->  | E191: =(#REF!*'Common Calculations'!$L$76)/10^6 ->  | F191: =(#REF!*'Common Calculations'!$L$76)/10^6 ->  | G191: =(#REF!*'Common Calculations'!$L$76)/10^6 ->  | H191: =(#REF!*'Common Calculations'!$K$76)/10^6 -> 
B192: ALLOWED REVENUE (18/19 PRICES) | C192: =(#REF!/'Common Calculations'!G$76)*'Common Calculations'!$L$76/10^6 ->  | D192: =(#REF!/'Common Calculations'!H$76)*'Common Calculations'!$L$76/10^6 ->  | E192: =(#REF!/'Common Calculations'!I$76)*'Common Calculations'!$L$76/10^6 ->  | F192: =(#REF!/'Common Calculations'!J$76)*'Common Calculations'!$L$76/10^6 ->  | G192: =(#REF!/'Common Calculations'!K$76)*'Common Calculations'!$L$76/10^6 ->  | H192: =(#REF!/'Common Calculations'!L$76)*'Common Calculations'!$K$76/10^6 -> 
B204: LONDON REVENUE FORECAST | C204: 2013/14 | D204: 2014/15 | E204: 2015/16 | F204: 2016/17 | G204: 2017/18 | H204: 2018/19
B205: OPENING BASE REVENUE (NOMINAL) | C205: =(#REF!*'Common Calculations'!G$76)/10^6 ->  | D205: =(#REF!*'Common Calculations'!H$76)/10^6 ->  | E205: =(#REF!*'Common Calculations'!I$76)/10^6 ->  | F205: =(#REF!*'Common Calculations'!J$76)/10^6 ->  | G205: =(#REF!*'Common Calculations'!K$76)/10^6 ->  | H205: =(#REF!*'Common Calculations'!L$76)/10^6 -> 
B206: ALLOWED REVENUE (NOMINAL) | C206: =#REF!/10^6 ->  | D206: =#REF!/10^6 ->  | E206: =#REF!/10^6 ->  | F206: =#REF!/10^6 ->  | G206: =#REF!/10^6 ->  | H206: =#REF!/10^6 -> 
B207: OPENING BASE REVENUE (18/19 PRICES) | C207: =(#REF!*'Common Calculations'!$L$76)/10^6 ->  | D207: =(#REF!*'Common Calculations'!$L$76)/10^6 ->  | E207: =(#REF!*'Common Calculations'!$L$76)/10^6 ->  | F207: =(#REF!*'Common Calculations'!$L$76)/10^6 ->  | G207: =(#REF!*'Common Calculations'!$L$76)/10^6 ->  | H207: =(#REF!*'Common Calculations'!$K$76)/10^6 -> 
B208: ALLOWED REVENUE (18/19 PRICES) | C208: =(#REF!/'Common Calculations'!G$76)*'Common Calculations'!$L$76/10^6 ->  | D208: =(#REF!/'Common Calculations'!H$76)*'Common Calculations'!$L$76/10^6 ->  | E208: =(#REF!/'Common Calculations'!I$76)*'Common Calculations'!$L$76/10^6 ->  | F208: =(#REF!/'Common Calculations'!J$76)*'Common Calculations'!$L$76/10^6 ->  | G208: =(#REF!/'Common Calculations'!K$76)*'Common Calculations'!$L$76/10^6 ->  | H208: =(#REF!/'Common Calculations'!L$76)*'Common Calculations'!$K$76/10^6 -> 
B220: NORTH WEST REVENUE FORECAST | C220: 2013/14 | D220: 2014/15 | E220: 2015/16 | F220: 2016/17 | G220: 2017/18 | H220: 2018/19
B221: OPENING BASE REVENUE (NOMINAL) | C221: =(#REF!*'Common Calculations'!G$76)/10^6 ->  | D221: =(#REF!*'Common Calculations'!H$76)/10^6 ->  | E221: =(#REF!*'Common Calculations'!I$76)/10^6 ->  | F221: =(#REF!*'Common Calculations'!J$76)/10^6 ->  | G221: =(#REF!*'Common Calculations'!K$76)/10^6 ->  | H221: =(#REF!*'Common Calculations'!L$76)/10^6 -> 
B222: ALLOWED REVENUE (NOMINAL) | C222: =#REF!/10^6 ->  | D222: =#REF!/10^6 ->  | E222: =#REF!/10^6 ->  | F222: =#REF!/10^6 ->  | G222: =#REF!/10^6 ->  | H222: =#REF!/10^6 -> 
B223: OPENING BASE REVENUE (18/19 PRICES) | C223: =(#REF!*'Common Calculations'!$L$76)/10^6 ->  | D223: =(#REF!*'Common Calculations'!$L$76)/10^6 ->  | E223: =(#REF!*'Common Calculations'!$L$76)/10^6 ->  | F223: =(#REF!*'Common Calculations'!$L$76)/10^6 ->  | G223: =(#REF!*'Common Calculations'!$L$76)/10^6 ->  | H223: =(#REF!*'Common Calculations'!$K$76)/10^6 -> 
B224: ALLOWED REVENUE (18/19 PRICES) | C224: =(#REF!/'Common Calculations'!G$76)*'Common Calculations'!$L$76/10^6 ->  | D224: =(#REF!/'Common Calculations'!H$76)*'Common Calculations'!$L$76/10^6 ->  | E224: =(#REF!/'Common Calculations'!I$76)*'Common Calculations'!$L$76/10^6 ->  | F224: =(#REF!/'Common Calculations'!J$76)*'Common Calculations'!$L$76/10^6 ->  | G224: =(#REF!/'Common Calculations'!K$76)*'Common Calculations'!$L$76/10^6 ->  | H224: =(#REF!/'Common Calculations'!L$76)*'Common Calculations'!$K$76/10^6 -> 
B236: WEST MIDLANDS REVENUE FORECAST | C236: 2013/14 | D236: 2014/15 | E236: 2015/16 | F236: 2016/17 | G236: 2017/18 | H236: 2018/19
B237: OPENING BASE REVENUE (NOMINAL) | C237: =(#REF!*'Common Calculations'!G$76)/10^6 ->  | D237: =(#REF!*'Common Calculations'!H$76)/10^6 ->  | E237: =(#REF!*'Common Calculations'!I$76)/10^6 ->  | F237: =(#REF!*'Common Calculations'!J$76)/10^6 ->  | G237: =(#REF!*'Common Calculations'!K$76)/10^6 ->  | H237: =(#REF!*'Common Calculations'!L$76)/10^6 -> 
B238: ALLOWED REVENUE (NOMINAL) | C238: =#REF!/10^6 ->  | D238: =#REF!/10^6 ->  | E238: =#REF!/10^6 ->  | F238: =#REF!/10^6 ->  | G238: =#REF!/10^6 ->  | H238: =#REF!/10^6 -> 
B239: OPENING BASE REVENUE (18/19 PRICES) | C239: =(#REF!*'Common Calculations'!$L$76)/10^6 ->  | D239: =(#REF!*'Common Calculations'!$L$76)/10^6 ->  | E239: =(#REF!*'Common Calculations'!$L$76)/10^6 ->  | F239: =(#REF!*'Common Calculations'!$L$76)/10^6 ->  | G239: =(#REF!*'Common Calculations'!$L$76)/10^6 ->  | H239: =(#REF!*'Common Calculations'!$K$76)/10^6 -> 
B240: ALLOWED REVENUE (18/19 PRICES) | C240: =(#REF!/'Common Calculations'!G$76)*'Common Calculations'!$L$76/10^6 ->  | D240: =(#REF!/'Common Calculations'!H$76)*'Common Calculations'!$L$76/10^6 ->  | E240: =(#REF!/'Common Calculations'!I$76)*'Common Calculations'!$L$76/10^6 ->  | F240: =(#REF!/'Common Calculations'!J$76)*'Common Calculations'!$L$76/10^6 ->  | G240: =(#REF!/'Common Calculations'!K$76)*'Common Calculations'!$L$76/10^6 ->  | H240: =(#REF!/'Common Calculations'!L$76)*'Common Calculations'!$K$76/10^6 -> 
B252: CADENT REVENUE FORECAST | C252: 2013/14 | D252: 2014/15 | E252: 2015/16 | F252: 2016/17 | G252: 2017/18 | H252: 2018/19 | I252: 2019/20 | J252: 2020/21
B253: OPENING BASE REVENUE (NOMINAL) | C253: =(#REF!*'Common Calculations'!G$76)/10^6 ->  | D253: =(#REF!*'Common Calculations'!H$76)/10^6 ->  | E253: =(#REF!*'Common Calculations'!I$76)/10^6 ->  | F253: =(#REF!*'Common Calculations'!J$76)/10^6 ->  | G253: =(#REF!*'Common Calculations'!K$76)/10^6 ->  | H253: =(#REF!*'Common Calculations'!L$76)/10^6 ->  | I253: =(#REF!*'Common Calculations'!M$76)/10^6 ->  | J253: =(#REF!*'Common Calculations'!N$76)/10^6 -> 
B254: ALLOWED REVENUE (NOMINAL) | C254: =#REF!/10^6 ->  | D254: =#REF!/10^6 ->  | E254: =#REF!/10^6 ->  | F254: =#REF!/10^6 ->  | G254: =#REF!/10^6 ->  | H254: =#REF!/10^6 ->  | I254: =#REF!/10^6 ->  | J254: =#REF!/10^6 -> 
B255: OPENING BASE REVENUE (18/19 PRICES) | C255: =(#REF!*'Common Calculations'!$L$76)/10^6 ->  | D255: =(#REF!*'Common Calculations'!$L$76)/10^6 ->  | E255: =(#REF!*'Common Calculations'!$L$76)/10^6 ->  | F255: =(#REF!*'Common Calculations'!$L$76)/10^6 ->  | G255: =(#REF!*'Common Calculations'!$L$76)/10^6 ->  | H255: =(#REF!*'Common Calculations'!$K$76)/10^6 ->  | I255: =(#REF!*'Common Calculations'!$K$76)/10^6 ->  | J255: =(#REF!*'Common Calculations'!$K$76)/10^6 -> 
B256: ALLOWED REVENUE (18/19 PRICES) | C256: =(#REF!/'Common Calculations'!G$76)*'Common Calculations'!$L$76/10^6 ->  | D256: =(#REF!/'Common Calculations'!H$76)*'Common Calculations'!$L$76/10^6 ->  | E256: =(#REF!/'Common Calculations'!I$76)*'Common Calculations'!$L$76/10^6 ->  | F256: =(#REF!/'Common Calculations'!J$76)*'Common Calculations'!$L$76/10^6 ->  | G256: =(#REF!/'Common Calculations'!K$76)*'Common Calculations'!$L$76/10^6 ->  | H256: =(#REF!/'Common Calculations'!L$76)*'Common Calculations'!$K$76/10^6 ->  | I256: =(#REF!/'Common Calculations'!M$76)*'Common Calculations'!$K$76/10^6 ->  | J256: =(#REF!/'Common Calculations'!N$76)*'Common Calculations'!$K$76/10^6 -> 
B268: FORMULA YEAR | C268: 2013/14 | D268: 2014/15 | E268: 2015/16 | F268: 2016/17 | G268: 2017/18 | H268: 2018/19 | I268: 2019/20 | J268: 2020/21 | K268: 2021/22
B269: EAST OF ENGLAND | C269: =#REF! ->  | D269: =#REF! ->  | E269: =#REF! ->  | F269: =#REF! ->  | G269: =#REF! ->  | H269: =#REF! ->  | I269: =#REF! ->  | J269: =#REF! ->  | K269: =#REF! -> 
B270: LONDON | C270: =#REF! ->  | D270: =#REF! ->  | E270: =#REF! ->  | F270: =#REF! ->  | G270: =#REF! ->  | H270: =#REF! ->  | I270: =#REF! ->  | J270: =#REF! ->  | K270: =#REF! -> 
B271: NORTH WEST | C271: =#REF! ->  | D271: =#REF! ->  | E271: =#REF! ->  | F271: =#REF! ->  | G271: =#REF! ->  | H271: =#REF! ->  | I271: =#REF! ->  | J271: =#REF! ->  | K271: =#REF! -> 
B272: WEST MIDLANDS | C272: =#REF! ->  | D272: =#REF! ->  | E272: =#REF! ->  | F272: =#REF! ->  | G272: =#REF! ->  | H272: =#REF! ->  | I272: =#REF! ->  | J272: =#REF! ->  | K272: =#REF! -> 
B273: AVERAGE DOMESTIC BILL (20/21 Prices) | C273: =#REF! ->  | D273: =#REF! ->  | E273: =#REF! ->  | F273: =#REF! ->  | G273: =#REF! ->  | H273: =#REF! ->  | I273: =#REF! ->  | J273: =#REF! -> 
B274: YEAR ON YEAR MOVEMENT | D274: =(D273-C273)/C273 ->  | E274: =(E273-D273)/D273 -> 
B275: CUMLATIVE MOVEMENT | D275: =(D273-$C$273)/$C$273 ->  | E275: =(E273-$C$273)/$C$273 -> 
B280: AVERAGE DOMESTIC BILL (NOMINAL) | C280: =C268 -> 2013/14 | D280: =D268 -> 2014/15 | E280: 2015/16 | F280: 2016/17 | G280: 2017/18 | H280: 2018/19 | I280: 2019/20 | J280: 2020/21
B281: EAST OF ENGLAND | C281: =#REF! ->  | D281: =#REF! ->  | E281: =#REF! ->  | F281: =#REF! ->  | G281: =#REF! ->  | H281: =#REF! ->  | I281: =#REF! ->  | J281: =#REF! -> 
B282: LONDON | C282: =#REF! ->  | D282: =#REF! ->  | E282: =#REF! ->  | F282: =#REF! ->  | G282: =#REF! ->  | H282: =#REF! ->  | I282: =#REF! ->  | J282: =#REF! -> 
B283: NORTH WEST | C283: =#REF! ->  | D283: =#REF! ->  | E283: =#REF! ->  | F283: =#REF! ->  | G283: =#REF! ->  | H283: =#REF! ->  | I283: =#REF! ->  | J283: =#REF! -> 
B284: WEST MIDLANDS | C284: =#REF! ->  | D284: =#REF! ->  | E284: =#REF! ->  | F284: =#REF! ->  | G284: =#REF! ->  | H284: =#REF! ->  | I284: =#REF! ->  | J284: =#REF! -> 
B285: CADENT | C285: =#REF! ->  | D285: =#REF! ->  | E285: =#REF! ->  | F285: =#REF! ->  | G285: =#REF! ->  | H285: =#REF! ->  | I285: =#REF! ->  | J285: =#REF! -> 
B298: EAST OF ENGLAND | C298: 2014 | D298: 2015 | E298: 2016 | F298: 2017 | G298: 2018 | H298: 2019 | I298: 2020 | J298: 2021
B299: Opening Base Revenue (2020/21 Prices) | C299: =#REF!*#REF!/10^6 ->  | D299: =#REF!*#REF!/10^6 ->  | E299: =#REF!*#REF!/10^6 ->  | F299: =#REF!*#REF!/10^6 ->  | G299: =#REF!*#REF!/10^6 ->  | H299: =#REF!*#REF!/10^6 ->  | I299: =#REF!*#REF!/10^6 ->  | J299: =#REF!*#REF!/10^6 -> 
B300: Allowed Revenue (2020/21 Prices) | C300: =#REF!/#REF!*#REF!/10^6 ->  | D300: =#REF!/#REF!*#REF!/10^6 ->  | E300: =#REF!/#REF!*#REF!/10^6 ->  | F300: =#REF!/#REF!*#REF!/10^6 ->  | G300: =#REF!/#REF!*#REF!/10^6 ->  | H300: =#REF!/#REF!*#REF!/10^6 ->  | I300: =#REF!/#REF!*#REF!/10^6 ->  | J300: =#REF!/#REF!*#REF!/10^6 -> 
B301: Domestic bill impact (2020/21 Prices) | C301: =#REF! ->  | D301: =#REF! ->  | E301: =#REF! ->  | F301: =#REF! ->  | G301: =#REF! ->  | H301: =#REF! ->  | I301: =#REF! ->  | J301: =#REF! ->  | K301: =J301/C301-1 ->  | L301: =C301-J301 -> 
... 33 more rows

Sheet Price Changes Analyses (hidden)
B2: NAVIGATION
B4: PRICE CHANGE CONTROL PANEL
B6: PRICE CHANGE ANALYSES
B8: AGGREGATE PRICE CHANGE
B10: NETWORK | C10: EAST OF ENGLAND | D10: LONDON | E10: NORTH WEST | F10: WEST MIDLANDS | G10: CADENT
B11: AGGREGATE PRICE CHANGE | C11: =#REF! ->  | D11: =#REF! ->  | E11: =#REF! ->  | F11: =#REF! ->  | G11: =#REF! -> 
B14: HIGH LEVEL PRICE CHANGE
B16: NETWORK | C16: EAST OF ENGLAND | D16: LONDON | E16: NORTH WEST | F16: WEST MIDLANDS | G16: CADENT
B17: CHANGE IN ALLOWED REVENUE | C17: =#REF! ->  | D17: =#REF! ->  | E17: =#REF! ->  | F17: =#REF! ->  | G17: =#REF! -> 
B18: CHANGE IN SUPPLY POINT CAPACITY & VOLUME REQUIREMENTS
B19: AGGREGATE PRICE CHANGE | C19: =SUM(C17:C18) ->  | D19: =SUM(D17:D18) ->  | E19: =SUM(E17:E18) ->  | F19: =SUM(F17:F18) ->  | G19: =SUM(G17:G18) -> 
B20: CHECK | C20: =C19-C11 ->  | D20: =D19-D11 ->  | E20: =E19-E11 ->  | F20: =F19-F11 ->  | G20: =G19-G11 -> 
B23: CURRENT AGGREGATE PRICE CHANGE
B25: NETWORK | C25: EAST OF ENGLAND | D25: LONDON | E25: NORTH WEST | F25: WEST MIDLANDS | G25: CADENT
B26: YEAR ON YEAR MOVEMENT IN ALLOWED REVENUE | C26: =#REF! ->  | D26: =#REF! ->  | E26: =#REF! ->  | F26: =#REF! ->  | G26: =#REF! -> 
B27: FORECAST CHANGES IN AGGREGATE DEMAND | C27: =#REF! ->  | D27: =#REF! ->  | E27: =#REF! ->  | F27: =#REF! ->  | G27: =G28-G26 -> 
B28: LOCAL DISTRIBUTION ZONE [LDZ] PRICE CHANGE | C28: =C27+C26 ->  | D28: =D27+D26 ->  | G28: =#REF! -> 
B29: YEAR ON YEAR MOVEMENT IN ALLOWED REVENUE | C29: =#REF! ->  | D29: =#REF! ->  | E29: =#REF! ->  | F29: =#REF! ->  | G29: =#REF! -> 
B30: FORECAST CHANGES IN AGGREGATE DEMAND | C30: =C31-C29 ->  | D30: =D31-D29 -> 
B31: EXIT CAPACITY NETWORK [ECN] PRICE CHANGE | C31: =#REF! ->  | D31: =#REF! ->  | E31: =#REF! ->  | F31: =#REF! ->  | G31: =#REF! -> 
B32: AGGREGATE PRICE CHANGE | C32: =C19 ->  | D32: =D19 -> 
B35: YEAR ON YEAR MOVEMENT IN ALLOWED REVENUE
B37: NETWORK | C37: EAST OF ENGLAND | D37: LONDON | E37: NORTH WEST | F37: WEST MIDLANDS | G37: CADENT
B38: 2021/22 PUBLISHED LDZ ALLOWED REVENUE | C38: =#REF! ->  | D38: =#REF! ->  | E38: =#REF! ->  | F38: =#REF! ->  | G38: =SUM(C38:F38) -> 
B39: SUPPLIER OF LAST RESORT
B40: INFLATION - CPIH - USING OBR OCTOBER 2021 FORECAST | C40: =((#REF!-'[9]AR (EE)'!$AP$27)*(#REF!))-((#REF!-'[9]AR (EE)'!$AP$27)*(#REF!)) ->  | D40: =((#REF!-'[9]AR (LO)'!$AP$27)*(#REF!))-((#REF!-'[9]AR (LO)'!$AP$27)*(#REF!)) ->  | E40: =((#REF!-'[9]AR (NW)'!$AP$27)*(#REF!))-((#REF!-'[9]AR (NW)'!$AP$27)*(#REF!)) ->  | F40: =((#REF!-'[9]AR (WM)'!$AP$27)*(#REF!))-((#REF!-'[9]AR (WM)'!$AP$27)*(#REF!)) ->  | G40: =SUM(C40:F40) -> 
B41: ADJUSTMENT TERM, 'K' CORRECTION, & LEGACY (INCL. 21/22 INFLATION) | C41: =SUM(#REF!)-SUM('[9]AR (EE)'!$AP$14:$AP$15)-C54 ->  | D41: =SUM(#REF!)-SUM('[9]AR (LO)'!$AP$14:$AP$15)-D54 ->  | E41: =SUM(#REF!)-SUM('[9]AR (NW)'!$AP$14:$AP$15)-E54 ->  | F41: =SUM(#REF!)-SUM('[9]AR (WM)'!$AP$14:$AP$15)-F54 ->  | G41: =SUM(C41:F41) -> 
B42: CHANGE IN SHRINKAGE PASS THROUGH COST | C42: =([10]East!$AQ$81-[9]East!$AP$81)*'[9]Annual Inflation'!$AP$32 -> 23.33791359 | D42: =([10]London!$AQ$81-[9]London!$AP$81)*'[9]Annual Inflation'!$AP$32 -> 12.12269036 | E42: =('[10]North West'!$AQ$81-'[9]North West'!$AP$81)*'[9]Annual Inflation'!$AP$32 -> 16.35180884 | F42: =('[10]West Midlands'!$AQ$81-'[9]West Midlands'!$AP$81)*'[9]Annual Inflation'!$AP$32 -> 14.93107671 | G42: 66.74348949
B43: CHANGE IN OTHER CALCULATED REVENUE INC. TAX ALLOWANCE | C43: =(('[10]Revenue (EE)'!$AQ$28-'[9]Revenue (EE)'!$AP$28)*'[9]Annual Inflation'!$AP$32)-C42-C39 -> 137.8636063 | D43: =(('[10]Revenue (LO)'!$AQ$28-'[9]Revenue (LO)'!$AP$28)*'[9]Annual Inflation'!$AP$32)-D42-D39 -> 86.39829629 | E43: =(('[10]Revenue (NW)'!$AQ$28-'[9]Revenue (NW)'!$AP$28)*'[9]Annual Inflation'!$AP$32)-E42-E39 -> 95.82073203 | F43: =(('[10]Revenue (WM)'!$AQ$28-'[9]Revenue (WM)'!$AP$28)*'[9]Annual Inflation'!$AP$32)-F42-F39 -> 68.71059616 | G43: 388.7932308
B44: OTHER SMALL VALUE ITEMS | C44: =C45-SUM(C38:C43) ->  | D44: =D45-SUM(D38:D43) ->  | E44: =E45-SUM(E38:E43) ->  | F44: =F45-SUM(F38:F43) -> 
B45: 2022/23 LDZ ALLOWED REVENUE | C45: =#REF! ->  | D45: =#REF! ->  | E45: =#REF! ->  | F45: =#REF! ->  | G45: =#REF! -> 
B47: % CHANGE IN LDZ ALLOWED REVENUE | C47: =C45/C38-1 ->  | D47: =D45/D38-1 ->  | E47: =E45/E38-1 ->  | F47: =F45/F38-1 ->  | G47: =G45/G38-1 -> 
B49: 2021-22 COLLECTED REVENUE | C49: =#REF!/1000000 ->  | D49: =#REF!/1000000 ->  | E49: =#REF!/1000000 ->  | F49: =#REF!/1000000 ->  | G49: =#REF!/1000000 -> 
B51: NETWORK | C51: =C60 -> EAST OF ENGLAND | D51: =D60 -> LONDON | E51: NORTH WEST | F51: WEST MIDLANDS | G51: CADENT
B52: 2021/22 PUBLISHED EXIT CAPACITY [ECN] ALLOWED REVENUE | C52: =#REF! ->  | D52: =#REF! ->  | E52: =#REF! ->  | F52: =#REF! ->  | G52: =SUM(C52:F52) -> 
B53: =B40 -> INFLATION - CPIH - USING OBR OCTOBER 2021 FORECAST | C53: =C62-C40 ->  | D53: =D62-D40 ->  | E53: =E62-E40 ->  | F53: =F62-F40 ->  | G53: =SUM(C53:F53) -> 
B54: =B41 -> ADJUSTMENT TERM, 'K' CORRECTION, & LEGACY (INCL. 21/22 INFLATION) | C54: =#REF!+#REF!+#REF!-#REF!-#REF!-#REF! ->  | D54: =#REF!+#REF!+#REF!-#REF!-#REF!-#REF! ->  | E54: =#REF!+#REF!+#REF!-#REF!-#REF!-#REF! ->  | F54: =#REF!+#REF!+#REF!-#REF!-#REF!-#REF! -> 
B55: CHANGE IN NTS UNIT RATES | C55: =C56-SUM(C52:C54) ->  | D55: =D56-SUM(D52:D54) -> 
B56: 2022/23 EXIT CAPACITY [ECN] ALLOWED REVENUE | C56: =#REF! ->  | D56: =#REF! ->  | E56: =#REF! ->  | F56: =#REF! -> 
B58: % CHANGE IN ECN ALLOWED REVENUE | C58: =(C56/C52)-1 ->  | D58: =(D56/D52)-1 -> 
B60: NETWORK | C60: EAST OF ENGLAND | D60: LONDON | E60: NORTH WEST | F60: WEST MIDLANDS | G60: CADENT
B61: 2021/22 PUBLISHED ALLOWED REVENUE | C61: =#REF! ->  | D61: =#REF! ->  | E61: =#REF! ->  | F61: =#REF! ->  | G61: =SUM(C61:F61) -> 
B62: =B53 -> INFLATION - CPIH - USING OBR OCTOBER 2021 FORECAST | C62: =(#REF!-'[9]AR (EE)'!$AP$27)*#REF! ->  | D62: =(#REF!-'[9]AR (LO)'!$AP$27)*#REF! ->  | E62: =(#REF!-'[9]AR (NW)'!$AP$27)*#REF! ->  | F62: =(#REF!-'[9]AR (WM)'!$AP$27)*#REF! ->  | G62: =SUM(C62:F62) ->  | I62: =G62/G$61 -> 
B63: =B54 -> ADJUSTMENT TERM, 'K' CORRECTION, & LEGACY (INCL. 21/22 INFLATION) | C63: =SUM(#REF!)-SUM(#REF!) ->  | D63: =SUM(#REF!)-SUM(#REF!) ->  | E63: =SUM(#REF!)-SUM(#REF!) ->  | F63: =SUM(#REF!)-SUM(#REF!) ->  | G63: =SUM(C63:F63) -> 
B64: =B42 -> CHANGE IN SHRINKAGE PASS THROUGH COST | C64: =C42 -> 23.33791359 | D64: =D42 -> 12.12269036 | E64: =E42 -> 16.35180884 | F64: =F42 -> 14.93107671 | G64: =SUM(C64:F64) -> 66.74348949
B65: CMA OUT-TURN | C65: 1.793703703 | D65: 6.768502636 | E65: 3.718717634 | F65: 3.307592475 | G65: =SUM(C65:F65) -> 15.58851645
B66: OTHER SMALL VALUE ITEMS | C66: =C67-SUM(C61:C65) ->  | D66: =D67-SUM(D61:D65) ->  | E66: =E67-SUM(E61:E65) ->  | F66: =F67-SUM(F61:F65) -> 
B67: 2022/23 ALLOWED REVENUE (excl. SoLR) | C67: =#REF! ->  | D67: =#REF! ->  | E67: =#REF! ->  | F67: =#REF! ->  | G67: =SUM(C67:F67) -> 
B69: % CHANGE IN ALLOWED REVENUE | C69: =(C67/C61)-1 ->  | D69: =(D67/D61)-1 -> 
B71: SUPPLIER OF LAST RESORT; PLAN A COSTS | C71: =#REF! ->  | D71: =#REF! ->  | E71: =#REF! ->  | F71: =#REF! ->  | G71: =SUM(C71:F71) ->  | I71: =G71/G$61 -> 
B72: 2022/23 ALLOWED REVENUE (inc. SoLR) | C72: =C71+C67 ->  | D72: =D71+D67 ->  | G72: =SUM(C72:F72) -> 
B74: % CHANGE IN ALLOWED REVENUE | C74: =(C72/C61)-1 ->  | D74: =(D72/D61)-1 -> 
B77: 2021-22 COLLECTED REVENUE | C77: =#REF!/1000000 ->  | D77: =#REF!/1000000 ->  | E77: =#REF!/1000000 ->  | F77: =#REF!/1000000 ->  | G77: =#REF!/1000000 -> 
B78: OVER / (UNDER) COLLECTION OF REVENUE C/F | C78: =C77-C67 ->  | D78: =D77-D67 ->  | E78: =E77-E67 ->  | F78: =F77-F67 ->  | G78: =G77-G67 -> 
B79: % UNDER RECOVERY C/F | C79: =C78/C67 ->  | D79: =D78/D67 ->  | E79: =E78/E67 ->  | F79: =F78/F67 ->  | G79: =G78/G67 -> 
B82: NETWORK | C82: =C60 -> EAST OF ENGLAND | D82: =D60 -> LONDON | E82: =E60 -> NORTH WEST | F82: =F60 -> WEST MIDLANDS | G82: =G60 -> CADENT
B83: 2022/23 ALLOWED REVENUE FROM SEPT-21 MOD0186 REPORT | C83: 681.4772758 | D83: 505.3176344 | E83: 477.7399537 | F83: 359.3559348 | G83: =SUM(C83:F83) -> 2023.890799
G84: =SUM(C84:F84) -> 0 | I84: =G84/G$83 -> 0
B85: =B63 -> ADJUSTMENT TERM, 'K' CORRECTION, & LEGACY (INCL. 21/22 INFLATION) | C85: 44.8903374 | D85: 11.40189229 | E85: 31.21076709 | F85: 24.04638677 | G85: =SUM(C85:F85) -> 111.5493836 | I85: =G85/G$83 -> 0.0551163055
B86: =B62 -> INFLATION - CPIH - USING OBR OCTOBER 2021 FORECAST | C86: 16.06883454 | D86: 11.68250482 | E86: 11.25994267 | F86: 8.628603142 | G86: 47.63988517 | I86: 0.02353876266
B87: ASSUMPTIONS MADE ON CMA OUT-TURN | C87: 9.928667239 | D87: -13.05601369 | E87: 10.91240329 | F87: 4.851041004 | G87: =SUM(C87:F87) -> 12.63609785 | I87: 0.006243468203
B88: =B42 -> CHANGE IN SHRINKAGE PASS THROUGH COST | C88: 7.916632275 | D88: 4.053657684 | E88: 5.596696291 | F88: 5.075285855 | G88: 22.6422721 | I88: 0.01118749693
B89: =B66 -> OTHER SMALL VALUE ITEMS | C89: =C90-SUM(C83:C88) ->  | D89: =D90-SUM(D83:D88) ->  | E89: =E90-SUM(E83:E88) ->  | F89: =F90-SUM(F83:F88) -> 
B90: =B67 -> 2022/23 ALLOWED REVENUE (excl. SoLR) | C90: =C67 ->  | D90: =D67 ->  | E90: =E67 ->  | F90: =F67 -> 
B92: % CHANGE 22/23 STATED ALLOWED REVENUE | C92: =C90/C83-1 ->  | D92: =D90/D83-1 ->  | E92: =E90/E83-1 ->  | F92: =F90/F83-1 ->  | G92: =G90/G83-1 -> 
B95: NETWORK | C95: =C82 -> EAST OF ENGLAND | D95: =D82 -> LONDON | E95: NORTH WEST | F95: WEST MIDLANDS | G95: CADENT
B96: TOTEX (inc. RAV RETURN & DEPRECIATION) | C96: =(#REF!+#REF!+#REF!)*#REF! ->  | D96: =(#REF!+#REF!+#REF!)*#REF! ->  | E96: =(#REF!+#REF!+#REF!)*#REF! ->  | F96: =(#REF!+#REF!+#REF!)*#REF! ->  | G96: =SUM(C96:F96) -> 
B97: PASS THROUGH COSTS | C97: =(#REF!-#REF!)*#REF! ->  | D97: =(#REF!-#REF!)*#REF! ->  | E97: =(#REF!-#REF!)*#REF! ->  | F97: =(#REF!-#REF!)*#REF! ->  | G97: =SUM(C97:F97) -> 
B98: OUTPUT DELIVERY INCENTIVES | C98: =(#REF!+#REF!)*#REF! ->  | D98: =(#REF!+#REF!)*#REF! ->  | E98: =(#REF!+#REF!)*#REF! ->  | F98: =(#REF!+#REF!)*#REF! -> 
B99: OTHER COMPONENTS OF CALCULATED REVENUE (inc. TAX ALLOWANCE) | C99: =C100-SUM(C96:C98) ->  | D99: =D100-SUM(D96:D98) -> 
B100: CALCULATED REVENUE | C100: =#REF!-#REF! ->  | D100: =#REF!-#REF! ->  | E100: =#REF!-#REF! ->  | F100: =#REF!-#REF! -> 
B101: LEGACY ADJUSTMENTS | C101: =#REF! ->  | D101: =#REF! ->  | E101: =#REF! ->  | F101: =#REF! -> 
B102: ADJUSTMENT TERM + 'K' FACTOR | C102: =#REF!+#REF! ->  | D102: =#REF!+#REF! ->  | E102: =#REF!+#REF! ->  | F102: =#REF!+#REF! -> 
B103: OTHER COMPONENTS OF CALCULATED REVENUE | C103: =C104-SUM(C100:C102) ->  | D103: =D104-SUM(D100:D102) -> 
B104: =B67 -> 2022/23 ALLOWED REVENUE (excl. SoLR) | C104: =#REF!-#REF! ->  | D104: =#REF!-#REF! ->  | E104: =#REF!-#REF! ->  | F104: =#REF!-#REF! -> 
B106: COLLECTED REVENUE FORECAST | C106: =C77 ->  | D106: =D77 -> 
B107: % OVER / (UNDER) RECOVERY | C107: =(C106/C104)-1 ->  | D107: =(D106/D104)-1 -> 
B108: COLLECTED REVENUE FORECAST (inc. SoLR) | C108: =C106+C71 ->  | D108: =D106+D71 ->  | G108: =SUM(C108:F108) -> 
B109: % OVER / (UNDER) RECOVERY | C109: =(C108/C72)-1 ->  | D109: =(D108/D72)-1 -> 
B113: AVERAGE DOMESTIC BILL (nominal prices) | C113: CADENT
B114: 2021/22 AVERAGE DOMESTIC BILL | C114: =#REF! -> 
B115: 2022/23 AVERAGE DOMESTIC BILL (excl. SoLR) | C115: =#REF! -> 
B116: SoLR | C116: =(#REF!+#REF!)*#REF! -> 
B117: 2022/23 AVERAGE DOMESTIC BILL (excl. SoLR) | C117: =C116+C115 -> 
B118: PRICE CHANGE EXCL. SoLR | C118: =(C115/C114)-1 -> 
B119: PRICE CHANGE INC. SoLR | C119: =(C117/C114)-1 -> 
B122: NETWORK | C122: =C95 -> EAST OF ENGLAND | D122: =D95 -> LONDON | E122: NORTH WEST | F122: WEST MIDLANDS | G122: CADENT
B123: 2022/23 INDICATIVE PRICE CHANGE | C123: 0.4419300109 | D123: 0.3871808117 | E123: 0.4134280395 | F123: 0.4236897547 | G123: 0.4184590433
B124: REMOVE SOLR FROM TRANSPORTATION REVENUE CHARGES | C124: -0.248 | D124: -0.193 | E124: -0.235 | F124: -0.228 | G124: =AVERAGE(C124:F124) -> -0.226
B125: UPDATED GAS PRICES | C125: 0.05217602975 | D125: 0.03718125348 | E125: 0.05233637157 | F125: 0.06242523622 | G125: =AVERAGE(C125:F125) -> 0.05102972275
B126: INCLUSION OF BAD DEBT PASS-THROUGH COSTS | C126: 0.004891139836 | D126: 0.005899900724 | E126: 0.006106030464 | F126: 0.007933023155 | G126: =AVERAGE(C126:F126) -> 0.006207523545
B127: OTHER ALLOWED REVENUE ADJUSTMENTS | C127: =C129-C128-SUM(C123:C126) ->  | D127: =D129-D128-SUM(D123:D126) -> 
B128: CHANGE IN DEMAND | C128: -0.0007825594346 | D128: 0.002855746755 | E128: -0.00584089751 | F128: -0.006299998134 | G128: -0.002060776827
B129: 2022/23 FINAL PRICE CHANGE | C129: =C11 ->  | D129: =D11 ->  | E129: =E11 ->  | F129: =F11 ->  | G129: =G11 -> 
B131: COLLECTED REVENUE FORECAST | C131: =C102 ->  | D131: =D102 ->  | E131: =E102 ->  | F131: =F102 ->  | G131: =G102 -> 
B132: % OVER / (UNDER) RECOVERY | C132: =(C131/C129)-1 ->  | D132: =(D131/D129)-1 -> 
B155: ALLOWED REVENUE BREAKDOWN (NOMINAL)
B157: NETWORK | C157: EAST OF ENGLAND | D157: LONDON | E157: NORTH WEST | F157: WEST MIDLANDS | G157: CADENT
B158: OPENING BASE REVENUE | C158: =#REF!*'Common Calculations'!$O$76 ->  | D158: =#REF!*'Common Calculations'!$O$76 ->  | E158: =#REF!*'Common Calculations'!$O$76 ->  | F158: =#REF!*'Common Calculations'!$O$76 ->  | G158: =#REF!*'Common Calculations'!$O$76 -> 
B159: ANNUAL ITERATION PROCESS | C159: =#REF!*'Common Calculations'!$O$76 ->  | D159: =#REF!*'Common Calculations'!$O$76 ->  | E159: =#REF!*'Common Calculations'!$O$76 ->  | F159: =#REF!*'Common Calculations'!$O$76 ->  | G159: =#REF!*'Common Calculations'!$O$76 ->  | I159: 22.5 | J159: 6 | K159: 9.9 | L159: 2.2 | M159: 40.7
B160: RPI TRUE UP | C160: =#REF!*'Common Calculations'!$O$76 ->  | D160: =#REF!*'Common Calculations'!$O$76 ->  | E160: =#REF!*'Common Calculations'!$O$76 ->  | F160: =#REF!*'Common Calculations'!$O$76 ->  | G160: =#REF!*'Common Calculations'!$O$76 ->  | I160: -5.9 | J160: -4.3 | K160: -4.4 | L160: -3.3 | M160: -17.9
B161: BASE REVENUE | C161: =#REF! ->  | D161: =#REF! ->  | E161: =#REF! ->  | F161: =#REF! ->  | G161: =SUM(C161:F161) ->  | I161: 643.4 | J161: 462.5 | K161: 448.4 | L161: 337.2 | M161: 1891.4
B162: PASS THROUGH COSTS & ADJUSTMENTS | C162: =#REF!+#REF!+#REF! ->  | D162: =#REF!+#REF!+#REF! ->  | E162: =#REF!+#REF!+#REF! ->  | F162: =#REF!+#REF!+#REF! ->  | G162: =SUM(C162:F162) ->  | I162: -13.9 | J162: -0.8 | K162: 0.5 | L162: -0.6 | M162: -14.8
B163: EXIT CAPACITY INCENTIVE | C163: =#REF! ->  | D163: =#REF! ->  | E163: =#REF! ->  | F163: =#REF! ->  | I163: 8 | J163: 3.6 | K163: 5.8 | L163: 1.9 | M163: 19.4
B164: SHRINKAGE INCENTIVE | C164: =#REF! ->  | D164: =#REF! ->  | E164: =#REF! ->  | F164: =#REF! ->  | I164: 0.4 | J164: 0.4 | K164: 0.3 | L164: 0.3 | M164: 1.4
B165: ENVIRONMENTAL EMISSIONS INCENTIVE | C165: =#REF! ->  | D165: =#REF! ->  | E165: =#REF! ->  | F165: =#REF! ->  | I165: 3 | J165: 3.7 | K165: 2.8 | L165: 3.8 | M165: 13.3
B166: BROAD MEASURE OF CUSTOMER SATISFACTION | C166: =#REF! ->  | D166: =#REF! ->  | E166: =#REF! ->  | F166: =#REF! ->  | I166: 3.3 | J166: 1.4 | K166: 2.1 | L166: 0.6 | M166: 7.3
B167: DISCRETIONARY REWARD SCHEME | C167: 0 | D167: 1 | E167: 2 | F167: 3 | G167: 6 | I167: - | J167: - | K167: - | L167: - | M167: -
B168: NETWORK INNOVATION AND CARRY OVER ALLOWANCE | C168: =#REF!+#REF! ->  | D168: =#REF!+#REF! ->  | E168: =#REF!+#REF! ->  | F168: =#REF!+#REF! ->  | I168: 2.1 | J168: 2.1 | K168: 1.6 | L168: 1.2 | M168: 7.1
B169: CONSUMER VUNERABILITY & CARBON MONOXIDE [UIOLI] ALLOWNACE | C169: =#REF! ->  | D169: =#REF! ->  | E169: =#REF! ->  | F169: =#REF! ->  | I169: 1.9 | J169: 1.3 | K169: 1.4 | L169: 1 | M169: 5.6
B170: (OVER) / UNDER RECOVERY B/F | C170: =#REF! ->  | D170: =#REF! ->  | E170: =#REF! ->  | F170: =#REF! ->  | I170: -1.4 | J170: -1.8 | K170: -0.8 | L170: -2.6 | M170: -6.6
B172: MAXIMUM ALLOWED REVENUE | C172: =#REF! ->  | D172: =#REF! ->  | E172: =#REF! ->  | F172: =#REF! ->  | G172: =SUM(C172:F172) -> 
B174: COLLECTABLE REVENUE FORECAST | C174: =#REF! ->  | D174: =#REF! ->  | E174: =#REF! ->  | F174: =#REF! ->  | G174: =#REF! -> 
B175: OVER / (UNDER) RECOVERY FORECAST | C175: =C174-C172 ->  | D175: =D174-D172 -> 
B176: % OVER / UNDER RECOVERY | C176: =C175/C174 ->  | D176: =D175/D174 ->  | E176: =E175/E174 ->  | F176: =F175/F174 ->  | G176: =G175/G174 -> 
B178: BASE REVENUE CHECK | C178: =SUM(C158:C160)-C161 ->  | D178: =SUM(D158:D160)-D161 ->  | E178: =SUM(E158:E160)-E161 ->  | F178: =SUM(F158:F160)-F161 ->  | G178: =SUM(G158:G160)-G161 -> 
B179: ALLOWED REVENUE CHECK 1 | C179: =SUM(C161:C171)-C172 ->  | D179: =SUM(D161:D171)-D172 ->  | E179: =SUM(E161:E171)-E172 ->  | F179: =SUM(F161:F171)-F172 ->  | G179: =SUM(G161:G171)-G172 -> 
B180: ALLOWED REVENUE CHECK 2 | C180: =C67-C172 ->  | D180: =D67-D172 ->  | E180: =E67-E172 ->  | F180: =F67-F172 ->  | G180: =G67-G172 -> 
B181: COLLECTED REVENUE CHECK 1 | C181: =C174-C175-C172 ->  | D181: =D174-D175-D172 ->  | E181: =E174-E175-E172 ->  | F181: =F174-F175-F172 ->  | G181: =G174-G175-G172 -> 
B182: COLLECTED REVENUE CHECK 2 | C182: =C77-C174 ->  | D182: =D77-D174 ->  | E182: =E77-E174 ->  | F182: =F77-F174 ->  | G182: =G77-G174 -> 
B184: CURRENT YEAR OVER / UNDER RECOVERY OF REVENUE
B186: NETWORK | C186: EAST OF ENGLAND | D186: LONDON | E186: NORTH WEST | F186: WEST MIDLANDS | G186: CADENT
B187: 2020-21 ALLOWED REVENUE (£M) | C187: =#REF! ->  | D187: =#REF! ->  | E187: =#REF! ->  | F187: =#REF! ->  | G187: =#REF! -> 
B188: 2020-21 COLLECTED REVENUE FORECAST (£M) | C188: 635057762.4 | D188: 459491572.6 | E188: 473226350.6 | F188: 350232001.6 | G188: 1918007687
B189: FORECAST UNDER RECOVERY (£M) | C189: =C188-C187 ->  | D189: =D188-D187 ->  | E189: =E188-E187 ->  | F189: =F188-F187 ->  | G189: =G188-G187 -> 
B190: FORECAST UNDER RECOVERY % | C190: =C189/C187 ->  | D190: =D189/D187 ->  | E190: =E189/E187 ->  | F190: =F189/F187 ->  | G190: =G189/G187 -> 
B192: NEXT YEAR OVER / UNDER RECOVERY OF REVENUE
B194: NETWORK | C194: EAST OF ENGLAND | D194: LONDON | E194: NORTH WEST | F194: WEST MIDLANDS | G194: CADENT
B195: 2020/21 ALLOWED REVENUE (£M) | C195: =#REF! ->  | D195: =#REF! ->  | E195: =#REF! ->  | F195: =#REF! ->  | G195: =#REF! -> 
B196: 2020/21 COLLECTABLE REVENUE FORECAST (£M) | C196: =#REF! ->  | D196: =#REF! ->  | E196: =#REF! ->  | F196: =#REF! ->  | G196: =#REF! -> 
B197: FORECAST OVE RECOVERY (£M) | C197: =C196-C195 ->  | D197: =D196-D195 ->  | E197: =E196-E195 ->  | F197: =F196-F195 ->  | G197: =G196-G195 -> 
B198: FORECAST UNDER RECOVERY % | C198: =C197/C195 ->  | D198: =D197/D195 ->  | E198: =E197/E195 ->  | F198: =F197/F195 ->  | G198: =G197/G195 -> 
B200: OVER / UNDER RECOVERY OF REVENUE HISTORY
B202: FORMULA YEAR | C202: 2013/14 | D202: 2014/15 | E202: 2015/16 | F202: 2016/17 | G202: 2017/18 | H202: 2018/19 | I202: 2019/20
B203: TOTAL ALLOWED REVENUE | C203: =#REF! ->  | D203: =#REF! ->  | E203: =#REF! ->  | F203: =#REF! ->  | G203: =#REF! ->  | H203: =#REF! ->  | I203: =#REF! -> 
B204: TOTAL COLLECTED REVENUE | C204: =#REF! ->  | D204: =#REF! ->  | E204: =#REF! ->  | F204: =#REF! ->  | G204: =#REF! ->  | H204: =#REF! ->  | I204: =#REF! -> 
B205: OVER / (UNDER) RECOVERY | C205: =C204-C203 ->  | I205: =I204-I203 -> 
B206: OVER / (UNDER) RECOVERY % | C206: =C205/C203 ->  | I206: =I205/I203 -> 
B208: OVER / UNDER RECOVERY OF REVENUE HISTORY | J208: 5224872 | K208: =I205-J208 -> 
B210: NETWORK | C210: EAST OF ENGLAND | D210: LONDON | E210: NORTH WEST | F210: WEST MIDLANDS | G210: CADENT
B211: SEP-20 MOD0186 PRICE CHANGE | C211: =#REF! ->  | D211: =#REF! ->  | E211: =#REF! ->  | F211: =#REF! -> 
B212: AGGREGATE CHANGE IN DEMAND AND IMPACT OF LOAD FACTORS ON SOQ | C212: =C218-C211 ->  | D212: =D218-D211 ->  | G212: =#REF!+#REF!+#REF!+#REF!+#REF!+#REF!+#REF! -> 
B213: CORRECTION FOR PRIOR YEAR OVER / UNDER RECOVERY | C213: =#REF!+#REF!+#REF! ->  | D213: =#REF!+#REF!+#REF! ->  | E213: =#REF!+#REF!+#REF! ->  | F213: =#REF!+#REF!+#REF! ->  | G213: =#REF!+#REF!+#REF! -> 
B214: NETWORK INNOVATION ALLOWANCE REFORECAST | C214: =#REF!+#REF! ->  | D214: =#REF!+#REF! ->  | E214: =#REF!+#REF! ->  | F214: =#REF!+#REF! ->  | G214: =#REF!+#REF! -> 
B217: OTHER CHANGES | C217: =C218-SUM(C211:C216) ->  | D217: =D218-SUM(D211:D216) ->  | E217: =E218-SUM(E211:E216) ->  | F217: =F218-SUM(F211:F216) ->  | G217: =G218-SUM(G211:G216) -> 
B218: NOV-20 INDICATIVE PRICE CHANGE | C218: =#REF! ->  | D218: =#REF! ->  | E218: =#REF! ->  | F218: =#REF! ->  | G218: =#REF! -> 
B220: DOMESTIC BILL PROFILE
B222: FORMULA YEAR | C222: =#REF! ->  | D222: =#REF! ->  | E222: =#REF! ->  | F222: =#REF! ->  | G222: =#REF! ->  | H222: =#REF! ->  | I222: =#REF! ->  | J222: =#REF! ->  | K222: =#REF! ->  | L222: =#REF! ->  | M222: =#REF! ->  | N222: =#REF! ->  | O222: =#REF! ->  | P222: =#REF! -> 
B223: AVERAGE IMPACT TO DOMESTIC BILL IN 2018/19 PRICES | C223: =#REF! ->  | D223: =#REF! ->  | E223: =#REF! ->  | F223: =#REF! ->  | G223: =#REF! ->  | H223: =#REF! ->  | I223: =#REF! ->  | J223: =#REF! ->  | K223: =#REF! ->  | L223: =#REF! ->  | M223: =#REF! ->  | N223: =#REF! ->  | O223: =#REF! ->  | P223: =#REF! -> 
B224: YEAR ON YEAR MOVEMENT | D224: =D223/C223-1 ->  | I224: =I223/H223-1 ->  | K224: =K223/J223-1 ->  | L224: =L223/K223-1 ->  | M224: =M223/L223-1 ->  | N224: =N223/M223-1 ->  | O224: =O223/N223-1 -> 
B225: CUMULATIVE MOVEMENT | D225: =D223/$C223-1 ->  | K225: =K223/$C223-1 ->  | P225: =P223/$C223-1 -> 
B228: MOVEMENT IN AGGREGATE PRICE SINCE INDICATIVES
B230: NETWORK | C230: EAST OF ENGLAND | D230: LONDON | E230: NORTH WEST | F230: WEST MIDLANDS | G230: CADENT
B231: NOVEMBER INDICATIVE PRICE CHANGE | C231: 0.02447172499 | D231: 0.05648261464 | E231: -0.04628544359 | F231: -0.045598275 | G231: 0.0009464199761
B232: FINAL DETERMINATIONS | C232: =(C238-C231)-C233-C237 ->  | D232: =(D238-D231)-D233-D237 -> 
B233: REVISED NTS REVENUE RECOVERY CHARGE | C233: =#REF!+#REF! ->  | D233: =#REF!+#REF! ->  | E233: =#REF!+#REF! ->  | F233: =#REF!+#REF! ->  | G233: =#REF!+#REF! ->  | L233: 2021/22 Allowed Revenues | M233: EAST OF ENGLAND | N233: LONDON | O233: NORTH WEST | P233: WEST MIDLANDS | Q233: CADENT
L234: Drew's view Exec Comm Paper draft 3 | M234: 646.8 | N234: 472.4 | O234: 462 | P234: 342.9 | Q234: 1924.1
B237: DMEAND UPDATES | C237: -0.001130781445 | D237: -0.002361415074 | E237: 0.001451624079 | F237: -0.002665554902 | G237: -0.001037667809 | L237: MOD0186/Indicative Charges View | M237: =C172/10^6 ->  | N237: =D172/10^6 ->  | O237: =E172/10^6 ->  | P237: =F172/10^6 ->  | Q237: =G172/10^6 -> 
B238: FINAL PRICE CHANGE | C238: =C$11 ->  | D238: =D$11 ->  | E238: =E$11 ->  | F238: =F$11 ->  | G238: =G$11 ->  | L238: Difference | M238: =M234-M237 ->  | N238: =N234-N237 -> 
B239: CHECK | C239: =SUM(C231:C237)-C238 ->  | D239: =SUM(D231:D237)-D238 -> 
B242: REVENUE SPLITS
B244: NETWORK SPLITS (UNC TARGET) | C244: EAST OF ENGLAND | D244: LONDON | E244: NORTH WEST | F244: WEST MIDLANDS | G244: CADENT
B245: LDZ SYSTEM REVENUE | C245: 0.705 | D245: 0.681 | E245: 0.737 | F245: 0.74 | G245: 0.713
B246: LDZ CUSTOMER REVENUE | C246: 0.295 | D246: 0.319 | E246: 0.263 | F246: 0.26 | G246: 0.287
B247: LDZ CAPACITY REVENUE | C247: 0.95 | D247: 0.95 | E247: 0.95 | F247: 0.95 | G247: 0.95
B248: LDZ COMMODITY REVENUE | C248: 0.05 | D248: 0.05 | E248: 0.05 | F248: 0.05 | G248: 0.05
B250: NETWORK SPLITS (ACHIEVED FROM UNIT PRICES) | C250: EAST OF ENGLAND | D250: LONDON | E250: NORTH WEST | F250: WEST MIDLANDS | G250: CADENT
B251: LDZ SYSTEM REVENUE | C251: =#REF! ->  | D251: =#REF! ->  | E251: =#REF! ->  | F251: =#REF! ->  | G251: =#REF! -> 
B252: LDZ CUSTOMER REVENUE | C252: =#REF! ->  | D252: =#REF! ->  | E252: =#REF! ->  | F252: =#REF! ->  | G252: =#REF! -> 
B253: LDZ CAPACITY REVENUE | C253: =#REF! ->  | D253: =#REF! ->  | E253: =#REF! ->  | F253: =#REF! ->  | G253: =#REF! -> 
B254: LDZ COMMODITY REVENUE | C254: =#REF! ->  | D254: =#REF! ->  | E254: =#REF! ->  | F254: =#REF! ->  | G254: =#REF! -> 
B256: NETWORK SPLITS (CHECK) | C256: EAST OF ENGLAND | D256: LONDON | E256: NORTH WEST | F256: WEST MIDLANDS | G256: CADENT
B257: LDZ SYSTEM REVENUE | C257: =C245-C251 ->  | D257: =D245-D251 ->  | E257: =E245-E251 ->  | F257: =F245-F251 ->  | G257: =G245-G251 -> 
B258: LDZ CUSTOMER REVENUE | C258: =C246-C252 -> 
B259: LDZ CAPACITY REVENUE
B260: LDZ COMMODITY REVENUE
B262: CUSTOMER BILL DATA & GRAPHS
B264: EAST OF ENGLAND | C264: 2014 | D264: 2015 | E264: 2016 | F264: 2017 | G264: 2018 | H264: 2019 | I264: 2020 | J264: 2021 | K264: 2022 | L264: 2023 | M264: 2024 | N264: 2025 | O264: 2026 | P264: 2027
B265: OPENING BASE REVENUE (19/20 PRICES) | C265: =#REF!*'Common Calculations'!$M$76 ->  | D265: =#REF!*'Common Calculations'!$M$76 ->  | E265: =#REF!*'Common Calculations'!$M$76 ->  | F265: =#REF!*'Common Calculations'!$M$76 ->  | G265: =#REF!*'Common Calculations'!$M$76 ->  | H265: =#REF!*'Common Calculations'!$M$76 ->  | I265: =#REF!*'Common Calculations'!$M$76 ->  | J265: =#REF!*'Common Calculations'!$M$76 ->  | K265: =#REF!*'Common Calculations'!$M$76 ->  | L265: =#REF!*'Common Calculations'!$M$76 ->  | M265: =#REF!*'Common Calculations'!$M$76 ->  | N265: =#REF!*'Common Calculations'!$M$76 ->  | O265: =#REF!*'Common Calculations'!$M$76 ->  | P265: =#REF!*'Common Calculations'!$M$76 -> 
B266: ALLOWED REVENUE (19/20 PRICES) | C266: =#REF!/'Common Calculations'!G$76*'Common Calculations'!$M$76 ->  | D266: =#REF!/'Common Calculations'!H$76*'Common Calculations'!$M$76 ->  | E266: =#REF!/'Common Calculations'!I$76*'Common Calculations'!$M$76 ->  | F266: =#REF!/'Common Calculations'!J$76*'Common Calculations'!$M$76 ->  | G266: =#REF!/'Common Calculations'!K$76*'Common Calculations'!$M$76 ->  | H266: =#REF!/'Common Calculations'!L$76*'Common Calculations'!$M$76 ->  | I266: =#REF!/'Common Calculations'!M$76*'Common Calculations'!$M$76 ->  | J266: =#REF!/'Common Calculations'!N$76*'Common Calculations'!$M$76 ->  | K266: =#REF!/'Common Calculations'!O$76*'Common Calculations'!$M$76 ->  | L266: =#REF!/'Common Calculations'!P$76*'Common Calculations'!$M$76 ->  | M266: =#REF!/'Common Calculations'!Q$76*'Common Calculations'!$M$76 ->  | N266: =#REF!/'Common Calculations'!R$76*'Common Calculations'!$M$76 ->  | O266: =#REF!/'Common Calculations'!S$76*'Common Calculations'!$M$76 ->  | P266: =#REF!/'Common Calculations'!T$76*'Common Calculations'!$M$76 -> 
B267: AVERAGE DOMESTIC BILL (19/20 PRICES) | C267: =#REF! ->  | D267: =#REF! ->  | E267: =#REF! ->  | F267: =#REF! ->  | G267: =#REF! ->  | H267: =#REF! ->  | I267: =#REF! ->  | J267: =#REF! ->  | K267: =#REF! ->  | L267: =#REF! ->  | M267: =#REF! ->  | N267: =#REF! ->  | O267: =#REF! ->  | P267: =#REF! -> 
B269: LONDON | C269: 2014 | D269: 2015 | E269: 2016 | F269: 2017 | G269: 2018 | H269: 2019 | I269: 2020 | J269: 2021 | K269: 2022 | L269: 2023 | M269: 2024 | N269: 2025 | O269: 2026 | P269: 2027
B270: OPENING BASE REVENUE (19/20 PRICES) | C270: =#REF!*'Common Calculations'!$M$76 ->  | D270: =#REF!*'Common Calculations'!$M$76 ->  | E270: =#REF!*'Common Calculations'!$M$76 ->  | F270: =#REF!*'Common Calculations'!$M$76 ->  | G270: =#REF!*'Common Calculations'!$M$76 ->  | H270: =#REF!*'Common Calculations'!$M$76 ->  | I270: =#REF!*'Common Calculations'!$M$76 ->  | J270: =#REF!*'Common Calculations'!$M$76 ->  | K270: =#REF!*'Common Calculations'!$M$76 ->  | L270: =#REF!*'Common Calculations'!$M$76 ->  | M270: =#REF!*'Common Calculations'!$M$76 ->  | N270: =#REF!*'Common Calculations'!$M$76 ->  | O270: =#REF!*'Common Calculations'!$M$76 ->  | P270: =#REF!*'Common Calculations'!$M$76 -> 
B271: ALLOWED REVENUE (19/20 PRICES) | C271: =#REF!/'Common Calculations'!G$76*'Common Calculations'!$M$76 ->  | D271: =#REF!/'Common Calculations'!H$76*'Common Calculations'!$M$76 ->  | E271: =#REF!/'Common Calculations'!I$76*'Common Calculations'!$M$76 ->  | F271: =#REF!/'Common Calculations'!J$76*'Common Calculations'!$M$76 ->  | G271: =#REF!/'Common Calculations'!K$76*'Common Calculations'!$M$76 ->  | H271: =#REF!/'Common Calculations'!L$76*'Common Calculations'!$M$76 ->  | I271: =#REF!/'Common Calculations'!M$76*'Common Calculations'!$M$76 ->  | J271: =#REF!/'Common Calculations'!N$76*'Common Calculations'!$M$76 ->  | K271: =#REF!/'Common Calculations'!O$76*'Common Calculations'!$M$76 ->  | L271: =#REF!/'Common Calculations'!P$76*'Common Calculations'!$M$76 ->  | M271: =#REF!/'Common Calculations'!Q$76*'Common Calculations'!$M$76 ->  | N271: =#REF!/'Common Calculations'!R$76*'Common Calculations'!$M$76 ->  | O271: =#REF!/'Common Calculations'!S$76*'Common Calculations'!$M$76 ->  | P271: =#REF!/'Common Calculations'!T$76*'Common Calculations'!$M$76 -> 
B272: AVERAGE DOMESTIC BILL (19/20 PRICES) | C272: =#REF! ->  | D272: =#REF! ->  | E272: =#REF! ->  | F272: =#REF! ->  | G272: =#REF! ->  | H272: =#REF! ->  | I272: =#REF! ->  | J272: =#REF! ->  | K272: =#REF! ->  | L272: =#REF! ->  | M272: =#REF! ->  | N272: =#REF! ->  | O272: =#REF! ->  | P272: =#REF! -> 
B274: NORTH WEST | C274: 2014 | D274: 2015 | E274: 2016 | F274: 2017 | G274: 2018 | H274: 2019 | I274: 2020 | J274: 2021 | K274: 2022 | L274: 2023 | M274: 2024 | N274: 2025 | O274: 2026 | P274: 2027
B275: OPENING BASE REVENUE (19/20 PRICES) | C275: =#REF!*'Common Calculations'!$M$76 ->  | D275: =#REF!*'Common Calculations'!$M$76 ->  | E275: =#REF!*'Common Calculations'!$M$76 ->  | F275: =#REF!*'Common Calculations'!$M$76 ->  | G275: =#REF!*'Common Calculations'!$M$76 ->  | H275: =#REF!*'Common Calculations'!$M$76 ->  | I275: =#REF!*'Common Calculations'!$M$76 ->  | J275: =#REF!*'Common Calculations'!$M$76 ->  | K275: =#REF!*'Common Calculations'!$M$76 ->  | L275: =#REF!*'Common Calculations'!$M$76 ->  | M275: =#REF!*'Common Calculations'!$M$76 ->  | N275: =#REF!*'Common Calculations'!$M$76 ->  | O275: =#REF!*'Common Calculations'!$M$76 ->  | P275: =#REF!*'Common Calculations'!$M$76 -> 
B276: ALLOWED REVENUE (19/20 PRICES) | C276: =#REF!/'Common Calculations'!G$76*'Common Calculations'!$M$76 ->  | D276: =#REF!/'Common Calculations'!H$76*'Common Calculations'!$M$76 ->  | E276: =#REF!/'Common Calculations'!I$76*'Common Calculations'!$M$76 ->  | F276: =#REF!/'Common Calculations'!J$76*'Common Calculations'!$M$76 ->  | G276: =#REF!/'Common Calculations'!K$76*'Common Calculations'!$M$76 ->  | H276: =#REF!/'Common Calculations'!L$76*'Common Calculations'!$M$76 ->  | I276: =#REF!/'Common Calculations'!M$76*'Common Calculations'!$M$76 ->  | J276: =#REF!/'Common Calculations'!N$76*'Common Calculations'!$M$76 ->  | K276: =#REF!/'Common Calculations'!O$76*'Common Calculations'!$M$76 ->  | L276: =#REF!/'Common Calculations'!P$76*'Common Calculations'!$M$76 ->  | M276: =#REF!/'Common Calculations'!Q$76*'Common Calculations'!$M$76 ->  | N276: =#REF!/'Common Calculations'!R$76*'Common Calculations'!$M$76 ->  | O276: =#REF!/'Common Calculations'!S$76*'Common Calculations'!$M$76 ->  | P276: =#REF!/'Common Calculations'!T$76*'Common Calculations'!$M$76 -> 
B277: AVERAGE DOMESTIC BILL (19/20 PRICES) | C277: =#REF! ->  | D277: =#REF! ->  | E277: =#REF! ->  | F277: =#REF! ->  | G277: =#REF! ->  | H277: =#REF! ->  | I277: =#REF! ->  | J277: =#REF! ->  | K277: =#REF! ->  | L277: =#REF! ->  | M277: =#REF! ->  | N277: =#REF! ->  | O277: =#REF! ->  | P277: =#REF! -> 
B279: WEST MIDLANDS | C279: 2014 | D279: 2015 | E279: 2016 | F279: 2017 | G279: 2018 | H279: 2019 | I279: 2020 | J279: 2021 | K279: 2022 | L279: 2023 | M279: 2024 | N279: 2025 | O279: 2026 | P279: 2027
B280: OPENING BASE REVENUE (19/20 PRICES) | C280: =#REF!*'Common Calculations'!$M$76 ->  | D280: =#REF!*'Common Calculations'!$M$76 ->  | E280: =#REF!*'Common Calculations'!$M$76 ->  | F280: =#REF!*'Common Calculations'!$M$76 ->  | G280: =#REF!*'Common Calculations'!$M$76 ->  | H280: =#REF!*'Common Calculations'!$M$76 ->  | I280: =#REF!*'Common Calculations'!$M$76 ->  | J280: =#REF!*'Common Calculations'!$M$76 ->  | K280: =#REF!*'Common Calculations'!$M$76 ->  | L280: =#REF!*'Common Calculations'!$M$76 ->  | M280: =#REF!*'Common Calculations'!$M$76 ->  | N280: =#REF!*'Common Calculations'!$M$76 ->  | O280: =#REF!*'Common Calculations'!$M$76 ->  | P280: =#REF!*'Common Calculations'!$M$76 -> 
B281: ALLOWED REVENUE (19/20 PRICES) | C281: =#REF!/'Common Calculations'!G$76*'Common Calculations'!$M$76 ->  | D281: =#REF!/'Common Calculations'!H$76*'Common Calculations'!$M$76 ->  | E281: =#REF!/'Common Calculations'!I$76*'Common Calculations'!$M$76 ->  | F281: =#REF!/'Common Calculations'!J$76*'Common Calculations'!$M$76 ->  | G281: =#REF!/'Common Calculations'!K$76*'Common Calculations'!$M$76 ->  | H281: =#REF!/'Common Calculations'!L$76*'Common Calculations'!$M$76 ->  | I281: =#REF!/'Common Calculations'!M$76*'Common Calculations'!$M$76 ->  | J281: =#REF!/'Common Calculations'!N$76*'Common Calculations'!$M$76 ->  | K281: =#REF!/'Common Calculations'!O$76*'Common Calculations'!$M$76 ->  | L281: =#REF!/'Common Calculations'!P$76*'Common Calculations'!$M$76 ->  | M281: =#REF!/'Common Calculations'!Q$76*'Common Calculations'!$M$76 ->  | N281: =#REF!/'Common Calculations'!R$76*'Common Calculations'!$M$76 ->  | O281: =#REF!/'Common Calculations'!S$76*'Common Calculations'!$M$76 ->  | P281: =#REF!/'Common Calculations'!T$76*'Common Calculations'!$M$76 -> 
B282: AVERAGE DOMESTIC BILL (19/20 PRICES) | C282: =#REF! ->  | D282: =#REF! ->  | E282: =#REF! ->  | F282: =#REF! ->  | G282: =#REF! ->  | H282: =#REF! ->  | I282: =#REF! ->  | J282: =#REF! ->  | K282: =#REF! ->  | L282: =#REF! ->  | M282: =#REF! ->  | N282: =#REF! ->  | O282: =#REF! ->  | P282: =#REF! -> 
B284: CADENT | C284: 2014 | D284: 2015 | E284: 2016 | F284: 2017 | G284: 2018 | H284: 2019 | I284: 2020 | J284: 2021 | K284: 2022 | L284: 2023 | M284: 2024 | N284: 2025 | O284: 2026 | P284: 2027
B285: OPENING BASE REVENUE (19/20 PRICES) | C285: =#REF!*'Common Calculations'!$M$76 ->  | D285: =#REF!*'Common Calculations'!$M$76 ->  | E285: =#REF!*'Common Calculations'!$M$76 ->  | F285: =#REF!*'Common Calculations'!$M$76 ->  | G285: =#REF!*'Common Calculations'!$M$76 ->  | H285: =#REF!*'Common Calculations'!$M$76 ->  | I285: =#REF!*'Common Calculations'!$M$76 ->  | J285: =#REF!*'Common Calculations'!$M$76 ->  | K285: =#REF!*'Common Calculations'!$M$76 ->  | L285: =#REF!*'Common Calculations'!$M$76 ->  | M285: =#REF!*'Common Calculations'!$M$76 ->  | N285: =#REF!*'Common Calculations'!$M$76 ->  | O285: =#REF!*'Common Calculations'!$M$76 ->  | P285: =#REF!*'Common Calculations'!$M$76 -> 
B286: ALLOWED REVENUE (19/20 PRICES) | C286: =#REF!/'Common Calculations'!G$76*'Common Calculations'!$M$76 ->  | D286: =#REF!/'Common Calculations'!H$76*'Common Calculations'!$M$76 ->  | E286: =#REF!/'Common Calculations'!I$76*'Common Calculations'!$M$76 ->  | F286: =#REF!/'Common Calculations'!J$76*'Common Calculations'!$M$76 ->  | G286: =#REF!/'Common Calculations'!K$76*'Common Calculations'!$M$76 ->  | H286: =#REF!/'Common Calculations'!L$76*'Common Calculations'!$M$76 ->  | I286: =#REF!/'Common Calculations'!M$76*'Common Calculations'!$M$76 ->  | J286: =#REF!/'Common Calculations'!N$76*'Common Calculations'!$M$76 ->  | K286: =#REF!/'Common Calculations'!O$76*'Common Calculations'!$M$76 ->  | L286: =#REF!/'Common Calculations'!P$76*'Common Calculations'!$M$76 ->  | M286: =#REF!/'Common Calculations'!Q$76*'Common Calculations'!$M$76 ->  | N286: =#REF!/'Common Calculations'!R$76*'Common Calculations'!$M$76 ->  | O286: =#REF!/'Common Calculations'!S$76*'Common Calculations'!$M$76 ->  | P286: =#REF!/'Common Calculations'!T$76*'Common Calculations'!$M$76 -> 
B287: AVERAGE DOMESTIC BILL (19/20 PRICES) | C287: =#REF! ->  | D287: =#REF! ->  | E287: =#REF! ->  | F287: =#REF! ->  | G287: =#REF! ->  | H287: =#REF! ->  | I287: =#REF! ->  | J287: =#REF! ->  | K287: =#REF! ->  | L287: =#REF! ->  | M287: =#REF! ->  | N287: =#REF! ->  | O287: =#REF! ->  | P287: =#REF! -> 
B326: PRICE CHANGE BY COMPONENT
B328: PRICE CHANGE % | C328: EAST OF ENGLAND | D328: LONDON | E328: NORTH WEST | F328: WEST MIDLANDS | G328: CADENT
B329: LDZ SYSTEM COMMODITY PRICE CHANGE | C329: =#REF! ->  | D329: =#REF! ->  | E329: =#REF! ->  | F329: =#REF! ->  | G329: =#REF! -> 
... 78 more rows

Sheet Cashflow Model (hidden)
B2: NAVIGATION
B4: TRANSPORTATION REVENUE CASHFLOW FORECAST | E4: 30 | F4: 31 | G4: 30 | H4: 31 | I4: 31 | J4: 30 | K4: 31 | L4: 30 | M4: 31 | N4: 31 | O4: 29 | P4: 31 | Q4: 30 | R4: 31 | S4: 30 | T4: 31 | U4: 31 | V4: 30 | W4: 31 | X4: 30 | Y4: 31 | Z4: 31 | AA4: 28 | AB4: 31
B6: INVOICE DATES | E6: 2019-04-30 | F6: 2019-05-31 | G6: 2019-06-30 | H6: 2019-07-31 | I6: 2019-08-31 | J6: 2019-09-30 | K6: 2019-10-31 | L6: 2019-11-30 | M6: 2019-12-31 | N6: 2020-01-31 | O6: 2020-02-29 | P6: 2020-03-31 | Q6: 2020-04-30 | R6: 2020-05-31 | S6: 2020-06-30 | T6: 2020-07-31 | U6: 2020-08-31 | V6: 2020-09-30 | W6: 2020-10-31 | X6: 2020-11-30 | Y6: 2020-12-31 | Z6: 2021-01-31 | AA6: 2021-02-28 | AB6: 2021-03-31
C7: LDZ COMMODITY | E7: 2019-05-13 | F7: 2019-06-12 | G7: 2019-07-10 | H7: 2019-08-12 | I7: 2019-09-11 | J7: 2019-10-10 | K7: 2019-11-12 | L7: 2019-12-11 | M7: 2020-01-13 | N7: 2020-02-12 | O7: 2020-03-11 | P7: 2020-04-14 | Q7: 2020-05-13 | R7: 2020-06-10 | S7: 2020-07-10 | T7: 2020-08-12 | U7: 2020-09-10 | V7: 2020-10-12 | W7: 2020-11-11 | X7: 2020-12-10 | Y7: 2021-01-13
C8: CSEPS COMMODITY | E8: =E$7 -> 2019-05-13 | F8: =F$7 -> 2019-06-12 | G8: 2019-07-10 | H8: 2019-08-12 | I8: 2019-09-11 | J8: 2019-10-10 | K8: 2019-11-12 | L8: 2019-12-11 | M8: 2020-01-13 | N8: 2020-02-12 | O8: 2020-03-11 | P8: 2020-04-14 | Q8: 2020-05-13 | R8: 2020-06-10 | S8: 2020-07-10 | T8: 2020-08-12 | U8: 2020-09-10 | V8: 2020-10-12 | W8: 2020-11-11 | X8: 2020-12-10 | Y8: 2021-01-13 | Z8: 00:00:00 | AA8: 00:00:00 | AB8: 00:00:00
C9: UNIQUE SITES COMMODITY | E9: =E$7 -> 2019-05-13 | F9: 2019-06-12 | G9: 2019-07-10 | H9: 2019-08-12 | I9: 2019-09-11 | J9: 2019-10-10 | K9: 2019-11-12 | L9: 2019-12-11 | M9: 2020-01-13 | N9: 2020-02-12 | O9: 2020-03-11 | P9: 2020-04-14 | Q9: 2020-05-13 | R9: 2020-06-10 | S9: 2020-07-10 | T9: 2020-08-12 | U9: 2020-09-10 | V9: 2020-10-12 | W9: 2020-11-11 | X9: 2020-12-10 | Y9: 2021-01-13 | Z9: 00:00:00 | AA9: 00:00:00 | AB9: 00:00:00
C10: DN ENTRY | E10: 2019-05-13 | F10: 2019-06-12 | G10: 2019-07-10 | H10: 2019-08-12 | I10: 2019-09-11 | J10: 2019-10-10 | K10: 2019-11-12 | L10: 2019-12-11 | M10: 2020-01-13 | N10: 2020-02-12 | O10: 2020-03-11 | P10: 2020-04-14 | Q10: 2020-05-13 | R10: 2020-06-10 | S10: 2020-07-10 | T10: 2020-08-12 | U10: 2020-09-10 | V10: 2020-10-12 | W10: 2020-11-11 | X10: 2020-12-10 | Y10: 2021-01-13 | Z10: 00:00:00 | AA10: 00:00:00 | AB10: 00:00:00
C11: LDZ CAPACITY | E11: 2019-05-07 | F11: 2019-06-06 | G11: 2019-07-04 | H11: 2019-08-06 | I11: 2019-09-05 | J11: 2019-10-04 | K11: 2019-11-06 | L11: 2019-12-05 | M11: 2020-01-07 | N11: 2020-02-06 | O11: 2020-03-05 | P11: 2020-04-06 | Q11: 2020-05-06 | R11: 2020-06-04 | S11: 2020-07-06 | T11: 2020-08-06 | U11: 2020-09-04 | V11: 2020-10-06 | W11: 2020-11-05 | X11: 2020-12-04 | Y11: 2021-01-07
C12: CSEP CAPACITY | E12: =E$11 -> 2019-05-07 | F12: =F$11 -> 2019-06-06 | G12: 2019-07-04 | H12: 2019-08-06 | I12: 2019-09-05 | J12: 2019-10-04 | K12: 2019-11-06 | L12: 2019-12-05 | M12: 2020-01-07 | N12: 2020-02-06 | O12: 2020-03-05 | P12: 2020-04-06 | Q12: 2020-05-06 | R12: 2020-06-04 | S12: 2020-07-06 | T12: 2020-08-06 | U12: 2020-09-04 | V12: 2020-10-06 | W12: 2020-11-05 | X12: 2020-12-04 | Y12: 2021-01-07 | Z12: 00:00:00 | AA12: 00:00:00 | AB12: 00:00:00
C13: UNIQUE SITES CAPACITY | E13: =E$11 -> 2019-05-07 | F13: 2019-06-06 | G13: 2019-07-04 | H13: 2019-08-06 | I13: 2019-09-05 | J13: 2019-10-04 | K13: 2019-11-06 | L13: 2019-12-05 | M13: 2020-01-07 | N13: 2020-02-06 | O13: 2020-03-05 | P13: 2020-04-06 | Q13: 2020-05-06 | R13: 2020-06-04 | S13: 2020-07-06 | T13: 2020-08-06 | U13: 2020-09-04 | V13: 2020-10-06 | W13: 2020-11-05 | X13: 2020-12-04 | Y13: 2021-01-07 | Z13: 00:00:00 | AA13: 00:00:00 | AB13: 00:00:00
C14: CUSTOMER CAPACITY | E14: 2019-05-07 | F14: 2019-06-06 | G14: 2019-07-04 | H14: 2019-08-06 | I14: 2019-09-05 | J14: 2019-10-04 | K14: 2019-11-06 | L14: 2019-12-05 | M14: 2020-01-07 | N14: 2020-02-06 | O14: 2020-03-05 | P14: 2020-04-06 | Q14: 2020-05-06 | R14: 2020-06-04 | S14: 2020-07-06 | T14: 2020-08-06 | U14: 2020-09-04 | V14: 2020-10-06 | W14: 2020-11-05 | X14: 2020-12-04 | Y14: 2021-01-07 | Z14: 00:00:00 | AA14: 00:00:00 | AB14: 00:00:00
C15: UNIQUE SITES CUSTOMER CAPACITY | E15: 2019-05-07 | F15: 2019-06-06 | G15: 2019-07-04 | H15: 2019-08-06 | I15: 2019-09-05 | J15: 2019-10-04 | K15: 2019-11-06 | L15: 2019-12-05 | M15: 2020-01-07 | N15: 2020-02-06 | O15: 2020-03-05 | P15: 2020-04-06 | Q15: 2020-05-06 | R15: 2020-06-04 | S15: 2020-07-06 | T15: 2020-08-06 | U15: 2020-09-04 | V15: 2020-10-06 | W15: 2020-11-05 | X15: 2020-12-04 | Y15: 2021-01-07 | Z15: 00:00:00 | AA15: 00:00:00 | AB15: 00:00:00
C16: CUSTOMER FIXED | E16: 2019-05-07 | F16: 2019-06-06 | G16: 2019-07-04 | H16: 2019-08-06 | I16: 2019-09-05 | J16: 2019-10-04 | K16: 2019-11-06 | L16: 2019-12-05 | M16: 2020-01-07 | N16: 2020-02-06 | O16: 2020-03-05 | P16: 2020-04-06 | Q16: 2020-05-06 | R16: 2020-06-04 | S16: 2020-07-06 | T16: 2020-08-06 | U16: 2020-09-04 | V16: 2020-10-06 | W16: 2020-11-05 | X16: 2020-12-04 | Y16: 2021-01-07 | Z16: 00:00:00 | AA16: 00:00:00 | AB16: 00:00:00
C17: LDZ ECN | E17: 2019-05-07 | F17: 2019-06-06 | G17: 2019-07-04 | H17: 2019-08-06 | I17: 2019-09-05 | J17: 2019-10-04 | K17: 2019-11-06 | L17: 2019-12-05 | M17: 2020-01-07 | N17: 2020-02-06 | O17: 2020-03-05 | P17: 2020-04-06 | Q17: 2020-05-06 | R17: 2020-06-04 | S17: 2020-07-06 | T17: 2020-08-06 | U17: 2020-09-04 | V17: 2020-10-06 | W17: 2020-11-05 | X17: 2020-12-04 | Y17: 2021-01-07 | Z17: 00:00:00 | AA17: 00:00:00 | AB17: 00:00:00
C18: CSEPS ECN | E18: 2019-05-07 | F18: 2019-06-06 | G18: 2019-07-04 | H18: 2019-08-06 | I18: 2019-09-05 | J18: 2019-10-04 | K18: 2019-11-06 | L18: 2019-12-05 | M18: 2020-01-07 | N18: 2020-02-06 | O18: 2020-03-05 | P18: 2020-04-06 | Q18: 2020-05-06 | R18: 2020-06-04 | S18: 2020-07-06 | T18: 2020-08-06 | U18: 2020-09-04 | V18: 2020-10-06 | W18: 2020-11-05 | X18: 2020-12-04 | Y18: 2021-01-07 | Z18: 00:00:00 | AA18: 00:00:00 | AB18: 00:00:00
C19: UNIQUE SITES ECN | E19: 2019-05-07 | F19: 2019-06-06 | G19: 2019-07-04 | H19: 2019-08-06 | I19: 2019-09-05 | J19: 2019-10-04 | K19: 2019-11-06 | L19: 2019-12-05 | M19: 2020-01-07 | N19: 2020-02-06 | O19: 2020-03-05 | P19: 2020-04-06 | Q19: 2020-05-06 | R19: 2020-06-04 | S19: 2020-07-06 | T19: 2020-08-06 | U19: 2020-09-04 | V19: 2020-10-06 | W19: 2020-11-05 | X19: 2020-12-04 | Y19: 2021-01-07 | Z19: 00:00:00 | AA19: 00:00:00 | AB19: 00:00:00
C20: CSEP ADMIN | E20: 2019-05-07 | F20: 2019-06-06 | G20: 2019-07-04 | H20: 2019-08-06 | I20: 2019-09-05 | J20: 2019-10-04 | K20: 2019-11-06 | L20: 2019-12-05 | M20: 2020-01-07 | N20: 2020-02-06 | O20: 2020-03-05 | P20: 2020-04-06 | Q20: 2020-05-06 | R20: 2020-06-04 | S20: 2020-07-06 | T20: 2020-08-06 | U20: 2020-09-04 | V20: 2020-10-06 | W20: 2020-11-05 | X20: 2020-12-04 | Y20: 2021-01-07 | Z20: 00:00:00 | AA20: 00:00:00 | AB20: 00:00:00
C21: UNIQUE SITES ADMIN CHARGE | E21: 2019-05-07 | F21: 2019-06-06 | G21: 2019-07-04 | H21: 2019-08-06 | I21: 2019-09-05 | J21: 2019-10-04 | K21: 2019-11-06 | L21: 2019-12-05 | M21: 2020-01-07 | N21: 2020-02-06 | O21: 2020-03-05 | P21: 2020-04-06 | Q21: 2020-05-06 | R21: 2020-06-04 | S21: 2020-07-06 | T21: 2020-08-06 | U21: 2020-09-04 | V21: 2020-10-06 | W21: 2020-11-05 | X21: 2020-12-04 | Y21: 2021-01-07 | Z21: 00:00:00 | AA21: 00:00:00 | AB21: 00:00:00
C22: LDZ OPTIONAL TARIFF | E22: 2019-05-07 | F22: 2019-06-06 | G22: 2019-07-04 | H22: 2019-08-06 | I22: 2019-09-05 | J22: 2019-10-04 | K22: 2019-11-06 | L22: 2019-12-05 | M22: 2020-01-07 | N22: 2020-02-06 | O22: 2020-03-05 | P22: 2020-04-06 | Q22: 2020-05-06 | R22: 2020-06-04 | S22: 2020-07-06 | T22: 2020-08-06 | U22: 2020-09-04 | V22: 2020-10-06 | W22: 2020-11-05 | X22: 2020-12-04 | Y22: 2021-01-07 | Z22: 00:00:00 | AA22: 00:00:00 | AB22: 00:00:00
C23: SOQ RATCHET | E23: 2019-05-07 | F23: 2019-06-06 | G23: 2019-07-04 | H23: 2019-08-06 | I23: 2019-09-05 | J23: 2019-10-04 | K23: 2019-11-06 | L23: 2019-12-05 | M23: 2020-01-07 | N23: 2020-02-06 | O23: 2020-03-05 | P23: 2020-04-06 | Q23: 2020-05-06 | R23: 2020-06-04 | S23: 2020-07-06 | T23: 2020-08-06 | U23: 2020-09-04 | V23: 2020-10-06 | W23: =W$11 -> 2020-11-05 | X23: 2020-12-04 | Y23: 2021-01-07 | Z23: 00:00:00 | AA23: 00:00:00 | AB23: 00:00:00
C24: CUSTOMER RATCHET | E24: 2019-05-07 | F24: 2019-06-06 | G24: 2019-07-04 | H24: 2019-08-06 | I24: 2019-09-05 | J24: 2019-10-04 | K24: 2019-11-06 | L24: 2019-12-05 | M24: 2020-01-07 | N24: 2020-02-06 | O24: 2020-03-05 | P24: 2020-04-06 | Q24: 2020-05-06 | R24: 2020-06-04 | S24: 2020-07-06 | T24: 2020-08-06 | U24: 2020-09-04 | V24: 2020-10-06 | W24: 2020-11-05 | X24: 2020-12-04 | Y24: 2021-01-07 | Z24: 00:00:00 | AA24: 00:00:00 | AB24: 00:00:00
B26: DUE DATES | E26: 2019-04-30 | F26: 2019-05-31 | G26: 2019-06-30 | H26: 2019-07-31 | I26: 2019-08-31 | J26: 2019-09-30 | K26: 2019-10-31 | L26: 2019-11-30 | M26: 2019-12-31 | N26: 2020-01-31 | O26: 2020-02-29 | P26: 2020-03-31 | Q26: 2020-04-30 | R26: 2020-05-31 | S26: 2020-06-30 | T26: 2020-07-31 | U26: 2020-08-31 | V26: 2020-09-30 | W26: 2020-10-31 | X26: 2020-11-30 | Y26: 2020-12-31 | Z26: 2021-01-31 | AA26: 2021-02-28 | AB26: 2021-03-31
C27: LDZ COMMODITY | E27: 2019-05-24 | F27: 2019-06-24 | G27: 2019-07-22 | H27: 2019-08-23 | I27: 2019-09-23 | J27: 2019-10-22 | K27: 2019-11-25 | L27: 2019-12-23 | M27: 2020-01-24 | N27: 2020-02-24 | O27: 2020-03-23 | P27: 2020-04-27 | Q27: 2020-05-26 | R27: 2020-06-22 | S27: 2020-07-22 | T27: 2020-08-24 | U27: 2020-09-22 | V27: 2020-10-23 | W27: 2020-11-23 | X27: 2020-12-22 | Y27: 2021-01-25
C28: CSEPS COMMODITY | E28: =E27 -> 2019-05-24 | F28: 2019-06-24 | G28: =G27 -> 2019-07-22 | H28: 2019-08-23 | I28: 2019-09-23 | J28: 2019-10-22 | K28: 2019-11-25 | L28: 2019-12-23 | M28: 2020-01-24 | N28: 2020-02-24 | O28: 2020-03-23 | P28: 2020-04-27 | Q28: 2020-05-26 | R28: 2020-06-22 | S28: 2020-07-22 | T28: 2020-08-24 | U28: 2020-09-22 | V28: 2020-10-23 | W28: 2020-11-23 | X28: 2020-12-22 | Y28: 2021-01-25 | Z28: 00:00:00 | AA28: 00:00:00 | AB28: 00:00:00
C29: UNIQUE SITES COMMODITY | E29: =E27 -> 2019-05-24 | F29: 2019-06-24 | G29: =G27 -> 2019-07-22 | H29: 2019-08-23 | I29: 2019-09-23 | J29: 2019-10-22 | K29: 2019-11-25 | L29: 2019-12-23 | M29: 2020-01-24 | N29: 2020-02-24 | O29: 2020-03-23 | P29: 2020-04-27 | Q29: 2020-05-26 | R29: 2020-06-22 | S29: 2020-07-22 | T29: 2020-08-24 | U29: 2020-09-22 | V29: 2020-10-23 | W29: 2020-11-23 | X29: 2020-12-22 | Y29: 2021-01-25 | Z29: 00:00:00 | AA29: 00:00:00 | AB29: 00:00:00
C30: DN ENTRY | E30: =E27 -> 2019-05-24 | F30: 2019-06-24 | G30: =G27 -> 2019-07-22 | H30: 2019-08-23 | I30: 2019-09-23 | J30: 2019-10-22 | K30: 2019-11-25 | L30: 2019-12-23 | M30: 2020-01-24 | N30: 2020-02-24 | O30: 2020-03-23 | P30: 2020-04-27 | Q30: 2020-05-26 | R30: 2020-06-22 | S30: 2020-07-22 | T30: 2020-08-24 | U30: 2020-09-22 | V30: 2020-10-23 | W30: 2020-11-23 | X30: 2020-12-22 | Y30: 2021-01-25 | Z30: 00:00:00 | AA30: 00:00:00 | AB30: 00:00:00
C31: LDZ CAPACITY | E31: 2019-05-20 | F31: 2019-06-20 | G31: 2019-07-19 | H31: 2019-08-20 | I31: 2019-09-20 | J31: 2019-10-21 | K31: 2019-11-20 | L31: 2019-12-20 | M31: 2020-01-20 | N31: 2020-02-20 | O31: 2020-03-20 | P31: 2020-04-20 | Q31: 2020-05-20 | R31: 2020-06-19 | S31: 2020-07-20 | T31: 2020-08-20 | U31: 2020-09-21 | V31: 2020-10-20 | W31: 2020-11-20 | X31: 2020-12-21 | Y31: 2021-01-20
C32: CSEP CAPACITY | E32: =E31 -> 2019-05-20 | F32: 2019-06-20 | G32: =G31 -> 2019-07-19 | H32: 2019-08-20 | I32: 2019-09-20 | J32: 2019-10-21 | K32: 2019-11-20 | L32: 2019-12-20 | M32: 2020-01-20 | N32: 2020-02-20 | O32: 2020-03-20 | P32: 2020-04-20 | Q32: 2020-05-20 | R32: 2020-06-19 | S32: 2020-07-20 | T32: 2020-08-20 | U32: 2020-09-21 | V32: 2020-10-20 | W32: 2020-11-20 | X32: 2020-12-21 | Y32: 2021-01-20 | Z32: 00:00:00 | AA32: 00:00:00 | AB32: 00:00:00
C33: UNIQUE SITES CAPACITY | E33: =E31 -> 2019-05-20 | F33: 2019-06-20 | G33: =G31 -> 2019-07-19 | H33: 2019-08-20 | I33: 2019-09-20 | J33: 2019-10-21 | K33: 2019-11-20 | L33: 2019-12-20 | M33: 2020-01-20 | N33: 2020-02-20 | O33: 2020-03-20 | P33: 2020-04-20 | Q33: 2020-05-20 | R33: 2020-06-19 | S33: 2020-07-20 | T33: 2020-08-20 | U33: 2020-09-21 | V33: 2020-10-20 | W33: 2020-11-20 | X33: 2020-12-21 | Y33: 2021-01-20 | Z33: 00:00:00 | AA33: 00:00:00 | AB33: 00:00:00
C34: CUSTOMER CAPACITY | E34: =E31 -> 2019-05-20 | F34: 2019-06-20 | G34: =G31 -> 2019-07-19 | H34: 2019-08-20 | I34: 2019-09-20 | J34: 2019-10-21 | K34: 2019-11-20 | L34: 2019-12-20 | M34: 2020-01-20 | N34: 2020-02-20 | O34: 2020-03-20 | P34: 2020-04-20 | Q34: 2020-05-20 | R34: 2020-06-19 | S34: 2020-07-20 | T34: 2020-08-20 | U34: 2020-09-21 | V34: 2020-10-20 | W34: 2020-11-20 | X34: 2020-12-21 | Y34: 2021-01-20 | Z34: 00:00:00 | AA34: 00:00:00 | AB34: 00:00:00
C35: UNIQUE SITES CUSTOMER CAPACITY | E35: =E31 -> 2019-05-20 | F35: 2019-06-20 | G35: =G31 -> 2019-07-19 | H35: 2019-08-20 | I35: 2019-09-20 | J35: 2019-10-21 | K35: 2019-11-20 | L35: 2019-12-20 | M35: 2020-01-20 | N35: 2020-02-20 | O35: 2020-03-20 | P35: 2020-04-20 | Q35: 2020-05-20 | R35: 2020-06-19 | S35: 2020-07-20 | T35: 2020-08-20 | U35: 2020-09-21 | V35: 2020-10-20 | W35: 2020-11-20 | X35: 2020-12-21 | Y35: 2021-01-20 | Z35: 00:00:00 | AA35: 00:00:00 | AB35: 00:00:00
C36: CUSTOMER FIXED | E36: =E31 -> 2019-05-20 | F36: 2019-06-20 | G36: =G31 -> 2019-07-19 | H36: 2019-08-20 | I36: 2019-09-20 | J36: 2019-10-21 | K36: 2019-11-20 | L36: 2019-12-20 | M36: 2020-01-20 | N36: 2020-02-20 | O36: 2020-03-20 | P36: 2020-04-20 | Q36: 2020-05-20 | R36: 2020-06-19 | S36: 2020-07-20 | T36: 2020-08-20 | U36: 2020-09-21 | V36: 2020-10-20 | W36: 2020-11-20 | X36: 2020-12-21 | Y36: 2021-01-20 | Z36: 00:00:00 | AA36: 00:00:00 | AB36: 00:00:00
C37: LDZ ECN | E37: =E31 -> 2019-05-20 | F37: 2019-06-20 | G37: =G31 -> 2019-07-19 | H37: 2019-08-20 | I37: 2019-09-20 | J37: 2019-10-21 | K37: 2019-11-20 | L37: 2019-12-20 | M37: 2020-01-20 | N37: 2020-02-20 | O37: 2020-03-20 | P37: 2020-04-20 | Q37: 2020-05-20 | R37: 2020-06-19 | S37: 2020-07-20 | T37: 2020-08-20 | U37: 2020-09-21 | V37: 2020-10-20 | W37: 2020-11-20 | X37: 2020-12-21 | Y37: 2021-01-20 | Z37: 00:00:00 | AA37: 00:00:00 | AB37: 00:00:00
C38: CSEPS ECN | E38: =E31 -> 2019-05-20 | F38: 2019-06-20 | G38: =G31 -> 2019-07-19 | H38: 2019-08-20 | I38: 2019-09-20 | J38: 2019-10-21 | K38: 2019-11-20 | L38: 2019-12-20 | M38: 2020-01-20 | N38: 2020-02-20 | O38: 2020-03-20 | P38: 2020-04-20 | Q38: 2020-05-20 | R38: 2020-06-19 | S38: 2020-07-20 | T38: 2020-08-20 | U38: 2020-09-21 | V38: 2020-10-20 | W38: 2020-11-20 | X38: 2020-12-21 | Y38: 2021-01-20 | Z38: 00:00:00 | AA38: 00:00:00 | AB38: 00:00:00
C39: UNIQUE SITES ECN | E39: =E31 -> 2019-05-20 | F39: 2019-06-20 | G39: =G31 -> 2019-07-19 | H39: 2019-08-20 | I39: 2019-09-20 | J39: 2019-10-21 | K39: 2019-11-20 | L39: 2019-12-20 | M39: 2020-01-20 | N39: 2020-02-20 | O39: 2020-03-20 | P39: 2020-04-20 | Q39: 2020-05-20 | R39: 2020-06-19 | S39: 2020-07-20 | T39: 2020-08-20 | U39: 2020-09-21 | V39: 2020-10-20 | W39: 2020-11-20 | X39: 2020-12-21 | Y39: 2021-01-20 | Z39: 00:00:00 | AA39: 00:00:00 | AB39: 00:00:00
C40: CSEP ADMIN | E40: =E31 -> 2019-05-20 | F40: 2019-06-20 | G40: =G31 -> 2019-07-19 | H40: 2019-08-20 | I40: 2019-09-20 | J40: 2019-10-21 | K40: 2019-11-20 | L40: 2019-12-20 | M40: 2020-01-20 | N40: 2020-02-20 | O40: 2020-03-20 | P40: 2020-04-20 | Q40: 2020-05-20 | R40: 2020-06-19 | S40: 2020-07-20 | T40: 2020-08-20 | U40: 2020-09-21 | V40: 2020-10-20 | W40: 2020-11-20 | X40: 2020-12-21 | Y40: 2021-01-20 | Z40: 00:00:00 | AA40: 00:00:00 | AB40: 00:00:00
C41: UNIQUE SITES ADMIN CHARGE | E41: =E31 -> 2019-05-20 | F41: 2019-06-20 | G41: =G31 -> 2019-07-19 | H41: 2019-08-20 | I41: 2019-09-20 | J41: 2019-10-21 | K41: 2019-11-20 | L41: 2019-12-20 | M41: 2020-01-20 | N41: 2020-02-20 | O41: 2020-03-20 | P41: 2020-04-20 | Q41: 2020-05-20 | R41: 2020-06-19 | S41: 2020-07-20 | T41: 2020-08-20 | U41: 2020-09-21 | V41: 2020-10-20 | W41: 2020-11-20 | X41: 2020-12-21 | Y41: 2021-01-20 | Z41: 00:00:00 | AA41: 00:00:00 | AB41: 00:00:00
C42: LDZ OPTIONAL TARIFF | E42: =E31 -> 2019-05-20 | F42: 2019-06-20 | G42: =G31 -> 2019-07-19 | H42: 2019-08-20 | I42: 2019-09-20 | J42: 2019-10-21 | K42: 2019-11-20 | L42: 2019-12-20 | M42: 2020-01-20 | N42: 2020-02-20 | O42: 2020-03-20 | P42: 2020-04-20 | Q42: 2020-05-20 | R42: 2020-06-19 | S42: 2020-07-20 | T42: 2020-08-20 | U42: 2020-09-21 | V42: 2020-10-20 | W42: 2020-11-20 | X42: 2020-12-21 | Y42: 2021-01-20 | Z42: 00:00:00 | AA42: 00:00:00 | AB42: 00:00:00
C43: SOQ RATCHET | E43: =E31 -> 2019-05-20 | F43: 2019-06-20 | G43: =G31 -> 2019-07-19 | H43: 2019-08-20 | I43: 2019-09-20 | J43: 2019-10-21 | K43: 2019-11-20 | L43: 2019-12-20 | M43: 2020-01-20 | N43: 2020-02-20 | O43: 2020-03-20 | P43: 2020-04-20 | Q43: 2020-05-20 | R43: 2020-06-19 | S43: 2020-07-20 | T43: 2020-08-20 | U43: 2020-09-21 | V43: 2020-10-20 | W43: 2020-11-20 | X43: 2020-12-21 | Y43: 2021-01-20 | Z43: 00:00:00 | AA43: 00:00:00 | AB43: 00:00:00
C44: CUSTOMER RATCHET | E44: =E31 -> 2019-05-20 | F44: 2019-06-20 | G44: =G31 -> 2019-07-19 | H44: 2019-08-20 | I44: 2019-09-20 | J44: 2019-10-21 | K44: 2019-11-20 | L44: 2019-12-20 | M44: 2020-01-20 | N44: 2020-02-20 | O44: 2020-03-20 | P44: 2020-04-20 | Q44: 2020-05-20 | R44: 2020-06-19 | S44: 2020-07-20 | T44: 2020-08-20 | U44: 2020-09-21 | V44: 2020-10-20 | W44: 2020-11-20 | X44: 2020-12-21 | Y44: 2021-01-20 | Z44: 00:00:00 | AA44: 00:00:00 | AB44: 00:00:00
B46: ACTUAL INVOICE VALUE | E46: 2019-04-30 | F46: 2019-05-31 | G46: 2019-06-30 | H46: 2019-07-31 | I46: 2019-08-31 | J46: 2019-09-30 | K46: 2019-10-31 | L46: 2019-11-30 | M46: 2019-12-31 | N46: 2020-01-31 | O46: 2020-02-29 | P46: 2020-03-31 | Q46: 2020-04-30 | R46: 2020-05-31 | S46: 2020-06-30 | T46: 2020-07-31 | U46: 2020-08-31 | V46: 2020-09-30 | W46: 2020-10-31 | X46: 2020-11-30 | Y46: 2020-12-31 | Z46: 2021-01-31 | AA46: 2021-02-28 | AB46: 2021-03-31
B47: 0.0008 | C47: LDZ COMMODITY | E47: =5192861.02+556.17 -> 5193417.19 | F47: 3558790.91 | G47: 2363252.46 | H47: 1782421.2 | I47: 1846403.67 | J47: 2455257.89 | K47: 5259304.82 | L47: 7893956.99 | M47: 8732664.17 | N47: 8880795.99 | O47: 8298848.44 | P47: 7798763.62 | Q47: 4469519.07 | R47: 2961520.37 | S47: 2125317.71 | T47: 1978714.21 | U47: 1890554.67 | V47: 2716499.48 | W47: =VLOOKUP(C47,[11]Pivot!$A$6:$F$21,6,0) -> 
C48: CSEPS COMMODITY | E48: =218878.88+78.1 -> 218956.98 | F48: 148857.25 | G48: 93796.25 | H48: 74673.24 | I48: 76925.57 | J48: 109099.98 | K48: 238330.13 | L48: 357254.35 | M48: 407080.18 | N48: 400572.12 | O48: 378168.08 | P48: 350177.55 | Q48: 204824.14 | R48: 132422.93 | S48: 94047.46 | T48: 88045.65 | U48: 84685.37 | V48: 97913.06 | W48: =VLOOKUP(C48,[11]Pivot!$A$6:$F$21,6,0) -> 
C49: UNIQUE SITES COMMODITY | E49: 17.35 | F49: 11.18 | G49: 32.2 | H49: 12.96 | I49: 28.55 | J49: 14.27 | K49: 27.69 | L49: 1618.13 | M49: 458.83 | N49: 175.67 | O49: 494.27 | P49: 406.85 | Q49: 193.13 | R49: 135.33 | S49: 375.78 | T49: 231.84 | U49: 271.78 | V49: 196.25 | W49: =VLOOKUP(C49,[11]Pivot!$A$6:$F$21,6,0) -> 
C50: DN ENTRY | E50: -50622.82 | F50: -49882.31 | G50: -50375.2 | H50: -45719.74 | I50: -43792.45 | J50: -44787.25 | K50: -46134.39 | L50: -49852.03 | M50: -48908.5 | N50: -53274.51 | O50: -50594.84 | P50: -48137.84 | Q50: -53529.28 | R50: -44649.93 | S50: -49934.62 | T50: -47684.18 | U50: -51976.68 | V50: -53028.82 | W50: =VLOOKUP(C50,[11]Pivot!$A$6:$F$21,6,0) -> 
C51: LDZ CAPACITY | E51: =97648986.96+10428.3 -> 97659415.26 | F51: 100922560.4 | G51: 97701015.57 | H51: 100992520.4 | I51: 100980566.4 | J51: 97831270.67 | K51: 101109909.6 | L51: 97954094.47 | M51: 101230863.5 | N51: 101242832.1 | O51: 94716722.73 | P51: 101316460.9 | Q51: 97713663.78 | R51: 100097857.1 | S51: 96875824.18 | T51: 100149172.7 | U51: 100226104.9 | V51: 97004318.07 | W51: 99873178.37
C52: CSEP CAPACITY | E52: =4431185.84+1391.42 -> 4432577.26 | F52: 4622598.51 | G52: 4515779.59 | H52: 4682974.96 | I52: 4717847.4 | J52: 4605631.34 | K52: 4796660.96 | L52: 4677635.98 | M52: 4754672.14 | N52: 4779817.99 | O52: 4498079.34 | P52: 4835031.15 | Q52: 4550649.44 | R52: 4708586.14 | S52: 4577330.6 | T52: 4734184.08 | U52: 4758704.75 | V52: 4623249.81 | W52: 4797966.15
C53: UNIQUE SITES CAPACITY | E53: 41700.94 | F53: 43496.12 | G53: 42093.02 | H53: 43496.12 | I53: 251481.84 | J53: 243369.52 | K53: 251481.84 | L53: 243369.52 | M53: 43496.12 | N53: 38708.95 | O53: 34079.06 | P53: 36429.34 | Q53: 35359.8 | R53: 36538.46 | S53: 35359.8 | T53: 36538.46 | U53: 36538.46 | V53: 35359.8 | W53: 36538.46
C54: CUSTOMER CAPACITY | E54: =42183531.72+1936.83 -> 42185468.55 | F54: 43587722.82 | G54: 42188651.66 | H54: 43603439.66 | I54: 43609727.73 | J54: 42227134.9 | K54: 43640273.34 | L54: 42261551.38 | M54: 43679482.87 | N54: 43673570.02 | O54: 40854224.37 | P54: 43685769.75 | Q54: 42085766.52 | R54: 43405001.85 | S54: 42009406.04 | T54: 43422526.65 | U54: 43451060.24 | V54: 42043824.79 | W54: 43244421.15
C55: UNIQUE SITES CUSTOMER CAPACITY | E55: 11066.55 | F55: 11435.45 | G55: 11066.55 | H55: 11435.45 | I55: 11862.82 | J55: 11480.13 | K55: 11862.82 | L55: 11480.13 | M55: 11790.71 | N55: 11685.19 | O55: 10715.49 | P55: 11454.49 | Q55: 11223.08 | R55: 11597.19 | S55: 11223.08 | T55: 11597.19 | U55: 11597.19 | V55: 11223.08 | W55: 11597.19
C56: CUSTOMER FIXED | E56: =1186555.33+1058.96 -> 1187614.29 | F56: 1225977.19 | G56: 1189166.79 | H56: 1229249.93 | I56: 1230596.04 | J56: 1194672.73 | K56: 1238904.46 | L56: 1200706.12 | M56: 1241184.57 | N56: 1241944.5 | O56: 1162348.41 | P56: 1242272.23 | Q56: 1249761.63 | R56: 1258574.83 | S56: 1216438.23 | T56: 1256405.48 | U56: 1256304.6 | V56: 1217417.61 | W56: 1257570.14
C57: LDZ ECN | E57: =8473959.74+844.88 -> 8474804.62 | F57: 8760313.66 | G57: 8478942.27 | H57: 8764657.25 | I57: 8769729.34 | J57: 8496982.53 | K57: 8779907.36 | L57: 8502908.11 | M57: 8789416.91 | N57: 8792637.68 | O57: 8223844.01 | P57: 8803294.64 | Q57: 7080461.75 | R57: 6991211.61 | S57: 6767788.7 | T57: 6996584.51 | U57: 7001936.51 | V57: 6779908.29 | W57: 6983747.58
C58: CSEPS ECN | E58: =552767.63+158.47 -> 552926.1 | F58: 575422.55 | G58: 562247.04 | H58: 584847.79 | I58: 589392.19 | J58: 574523.66 | K58: 598171.05 | L58: 582982.78 | M58: 592926.48 | N58: 591722.11 | O58: 556964.74 | P58: 599151.05 | Q58: 449222.42 | R58: 464367.29 | S58: 450744.53 | T58: 467381.58 | U58: 469917.27 | V58: 456848.68 | W58: 472910.21
C59: UNIQUE SITES ECN | E59: 153389.22 | F59: 158512.97 | G59: 153399.66 | H59: 158512.97 | I59: 158512.97 | J59: 153399.66 | K59: 158512.97 | L59: 153399.66 | M59: 160228.63 | N59: 157451.85 | O59: 145241.47 | P59: 155258.13 | Q59: 127894.84 | R59: 132158.01 | S59: 127894.84 | T59: 132158.01 | U59: 132158.01 | V59: 127894.84 | W59: 132158.01
C60: CSEP ADMIN | E60: 0 | F60: 0 | G60: 0 | H60: 0
C61: UNIQUE SITES ADMIN CHARGE | E61: 0 | F61: 0 | G61: 0 | H61: 0
C62: LDZ OPTIONAL TARIFF | E62: 98373.13 | F62: 101652.24 | G62: 98373.13 | H62: 101652.24 | I62: 101652.24 | J62: 98373.13 | K62: 101652.24 | L62: 98373.13 | M62: 101652.24 | N62: 101652.24 | O62: 95094.03 | P62: 101652.24 | Q62: 98373.13 | R62: 101652.24 | S62: 98373.13 | T62: 101652.24 | U62: 101652.24 | V62: 98373.13 | W62: 101652.24
C63: SOQ RATCHET | E63: 4267.59 | F63: 0 | G63: 0 | H63: 0 | M63: 19547.77 | N63: 19461.91 | P63: 3482.63 | Q63: 3760.58 | R63: 26291.44 | S63: 549599.17
C64: CUSTOMER RATCHET | E64: 339.82 | F64: 0 | G64: 0 | H64: 0 | M64: 1618.14 | N64: 1622.76 | P64: 285.66 | Q64: 304.06 | R64: 2175.62 | S64: 46718.44
B65: TOTAL | E65: =SUM(E47:E64) -> 160163712 | F65: =SUM(F47:F64) -> 163667468.9 | G65: =SUM(G47:G64) -> 157347441 | H65: =SUM(H47:H64) -> 161984174.4 | I65: 162300934.3 | J65: 157956423.2 | K65: 166138864.9 | L65: 163889478.7 | M65: 169718174.8 | N65: 169881376.6 | O65: 158924229.6 | P65: 168891752.3 | Q65: 158027448.1 | R65: 160285440.4 | S65: 154936507.1 | T65: 159327508.4 | U65: 159369509.4 | V65: 155159998.1 | X65: 0 | Y65: 0 | Z65: 0 | AA65: 0 | AB65: 0
B67: MODELLED INVOICE VALUE | E67: 2019-04-30 | F67: 2019-05-31 | G67: 2019-06-30 | H67: 2019-07-31 | I67: 2019-08-31 | J67: 2019-09-30 | K67: 2019-10-31 | L67: 2019-11-30 | M67: 2019-12-31 | N67: 2020-01-31 | O67: 2020-02-29 | P67: 2020-03-31 | Q67: 2020-04-30 | R67: 2020-05-31 | S67: 2020-06-30 | T67: 2020-07-31 | U67: 2020-08-31 | V67: 2020-09-30 | W67: 2020-10-31 | X67: 2020-11-30 | Y67: 2020-12-31 | Z67: 2021-01-31 | AA67: 2021-02-28 | AB67: 2021-03-31
C68: LDZ COMMODITY | E68: =(#REF!+#REF!+#REF!+#REF!)*#REF! ->  | F68: =(#REF!+#REF!+#REF!+#REF!)*#REF! ->  | G68: =(#REF!+#REF!+#REF!+#REF!)*#REF! ->  | H68: =(#REF!+#REF!+#REF!+#REF!)*#REF! ->  | I68: =(#REF!+#REF!+#REF!+#REF!)*#REF! ->  | J68: =(#REF!+#REF!+#REF!+#REF!)*#REF! ->  | K68: =(#REF!+#REF!+#REF!+#REF!)*#REF! ->  | L68: =(#REF!+#REF!+#REF!+#REF!)*#REF! ->  | M68: =(#REF!+#REF!+#REF!+#REF!)*#REF! ->  | N68: =(#REF!+#REF!+#REF!+#REF!)*#REF! ->  | O68: =(#REF!+#REF!+#REF!+#REF!)*#REF! ->  | P68: =(#REF!+#REF!+#REF!+#REF!)*#REF! ->  | Q68: =(#REF!+#REF!+#REF!+#REF!)*#REF! ->  | R68: =(#REF!+#REF!+#REF!+#REF!)*#REF! ->  | S68: =(#REF!+#REF!+#REF!+#REF!)*#REF! ->  | T68: =(#REF!+#REF!+#REF!+#REF!)*#REF! ->  | U68: =(#REF!+#REF!+#REF!+#REF!)*#REF! ->  | V68: =(#REF!+#REF!+#REF!+#REF!)*#REF! ->  | W68: =(#REF!+#REF!+#REF!+#REF!)*#REF! ->  | X68: =(#REF!+#REF!+#REF!+#REF!)*#REF! ->  | Y68: =(#REF!+#REF!+#REF!+#REF!)*#REF! ->  | Z68: =(#REF!+#REF!+#REF!+#REF!)*#REF! ->  | AA68: =(#REF!+#REF!+#REF!+#REF!)*#REF! ->  | AB68: =(#REF!+#REF!+#REF!+#REF!)*#REF! -> 
C69: CSEPS COMMODITY | E69: =#REF!+#REF!+#REF!+#REF! ->  | F69: =#REF!+#REF!+#REF!+#REF! ->  | G69: =#REF!+#REF!+#REF!+#REF! ->  | H69: =#REF!+#REF!+#REF!+#REF! ->  | I69: =#REF!+#REF!+#REF!+#REF! ->  | J69: =#REF!+#REF!+#REF!+#REF! ->  | K69: =#REF!+#REF!+#REF!+#REF! ->  | L69: =#REF!+#REF!+#REF!+#REF! ->  | M69: =#REF!+#REF!+#REF!+#REF! ->  | N69: =#REF!+#REF!+#REF!+#REF! ->  | O69: =#REF!+#REF!+#REF!+#REF! ->  | P69: =#REF!+#REF!+#REF!+#REF! ->  | Q69: =#REF!+#REF!+#REF!+#REF! ->  | R69: =#REF!+#REF!+#REF!+#REF! ->  | S69: =#REF!+#REF!+#REF!+#REF! ->  | T69: =#REF!+#REF!+#REF!+#REF! ->  | U69: =#REF!+#REF!+#REF!+#REF! ->  | V69: =#REF!+#REF!+#REF!+#REF! ->  | W69: =#REF!+#REF!+#REF!+#REF! ->  | X69: =#REF!+#REF!+#REF!+#REF! ->  | Y69: =#REF!+#REF!+#REF!+#REF! ->  | Z69: =#REF!+#REF!+#REF!+#REF! ->  | AA69: =#REF!+#REF!+#REF!+#REF! ->  | AB69: =#REF!+#REF!+#REF!+#REF! -> 
C70: UNIQUE SITES COMMODITY | E70: =(#REF!+#REF!+#REF!+#REF!)*#REF! ->  | F70: =(#REF!+#REF!+#REF!+#REF!)*#REF! ->  | G70: =(#REF!+#REF!+#REF!+#REF!)*#REF! ->  | H70: =(#REF!+#REF!+#REF!+#REF!)*#REF! ->  | I70: =(#REF!+#REF!+#REF!+#REF!)*#REF! ->  | J70: =(#REF!+#REF!+#REF!+#REF!)*#REF! ->  | K70: =(#REF!+#REF!+#REF!+#REF!)*#REF! ->  | L70: =(#REF!+#REF!+#REF!+#REF!)*#REF! ->  | M70: =(#REF!+#REF!+#REF!+#REF!)*#REF! ->  | N70: =(#REF!+#REF!+#REF!+#REF!)*#REF! ->  | O70: =(#REF!+#REF!+#REF!+#REF!)*#REF! ->  | P70: =(#REF!+#REF!+#REF!+#REF!)*#REF! ->  | Q70: =(#REF!+#REF!+#REF!+#REF!)*#REF! ->  | R70: =(#REF!+#REF!+#REF!+#REF!)*#REF! ->  | S70: =(#REF!+#REF!+#REF!+#REF!)*#REF! ->  | T70: =(#REF!+#REF!+#REF!+#REF!)*#REF! ->  | U70: =(#REF!+#REF!+#REF!+#REF!)*#REF! ->  | V70: =(#REF!+#REF!+#REF!+#REF!)*#REF! ->  | W70: =(#REF!+#REF!+#REF!+#REF!)*#REF! ->  | X70: =(#REF!+#REF!+#REF!+#REF!)*#REF! ->  | Y70: =(#REF!+#REF!+#REF!+#REF!)*#REF! ->  | Z70: =(#REF!+#REF!+#REF!+#REF!)*#REF! ->  | AA70: =(#REF!+#REF!+#REF!+#REF!)*#REF! ->  | AB70: =(#REF!+#REF!+#REF!+#REF!)*#REF! -> 
C71: DN ENTRY | E71: =#REF!+#REF!+#REF!+#REF! ->  | F71: =#REF!+#REF!+#REF!+#REF! ->  | G71: =#REF!+#REF!+#REF!+#REF! ->  | H71: =#REF!+#REF!+#REF!+#REF! ->  | I71: =#REF!+#REF!+#REF!+#REF! ->  | J71: =#REF!+#REF!+#REF!+#REF! ->  | K71: =#REF!+#REF!+#REF!+#REF! ->  | L71: =#REF!+#REF!+#REF!+#REF! ->  | M71: =#REF!+#REF!+#REF!+#REF! ->  | N71: =#REF!+#REF!+#REF!+#REF! ->  | O71: =#REF!+#REF!+#REF!+#REF! ->  | P71: =#REF!+#REF!+#REF!+#REF! ->  | Q71: =#REF!+#REF!+#REF!+#REF! ->  | R71: =#REF!+#REF!+#REF!+#REF! ->  | S71: =#REF!+#REF!+#REF!+#REF! ->  | T71: =#REF!+#REF!+#REF!+#REF! ->  | U71: =#REF!+#REF!+#REF!+#REF! ->  | V71: =#REF!+#REF!+#REF!+#REF! ->  | W71: =#REF!+#REF!+#REF!+#REF! ->  | X71: =#REF!+#REF!+#REF!+#REF! ->  | Y71: =#REF!+#REF!+#REF!+#REF! ->  | Z71: =#REF!+#REF!+#REF!+#REF! ->  | AA71: =#REF!+#REF!+#REF!+#REF! ->  | AB71: =#REF!+#REF!+#REF!+#REF! -> 
C72: LDZ CAPACITY | E72: =(#REF!+#REF!+#REF!+#REF!)*#REF! ->  | F72: =(#REF!+#REF!+#REF!+#REF!)*#REF! ->  | G72: =(#REF!+#REF!+#REF!+#REF!)*#REF! ->  | H72: =(#REF!+#REF!+#REF!+#REF!)*#REF! ->  | I72: =(#REF!+#REF!+#REF!+#REF!)*#REF! ->  | J72: =(#REF!+#REF!+#REF!+#REF!)*#REF! ->  | K72: =(#REF!+#REF!+#REF!+#REF!)*#REF! ->  | L72: =(#REF!+#REF!+#REF!+#REF!)*#REF! ->  | M72: =(#REF!+#REF!+#REF!+#REF!)*#REF! ->  | N72: =(#REF!+#REF!+#REF!+#REF!)*#REF! ->  | O72: =(#REF!+#REF!+#REF!+#REF!)*#REF! ->  | P72: =(#REF!+#REF!+#REF!+#REF!)*#REF! ->  | Q72: =(#REF!+#REF!+#REF!+#REF!)*#REF! ->  | R72: =(#REF!+#REF!+#REF!+#REF!)*#REF! ->  | S72: =(#REF!+#REF!+#REF!+#REF!)*#REF! ->  | T72: =(#REF!+#REF!+#REF!+#REF!)*#REF! ->  | U72: =(#REF!+#REF!+#REF!+#REF!)*#REF! ->  | V72: =(#REF!+#REF!+#REF!+#REF!)*#REF! ->  | W72: =(#REF!+#REF!+#REF!+#REF!)*#REF! ->  | X72: =(#REF!+#REF!+#REF!+#REF!)*#REF! ->  | Y72: =(#REF!+#REF!+#REF!+#REF!)*#REF! ->  | Z72: =(#REF!+#REF!+#REF!+#REF!)*#REF! ->  | AA72: =(#REF!+#REF!+#REF!+#REF!)*#REF! ->  | AB72: =(#REF!+#REF!+#REF!+#REF!)*#REF! -> 
C73: CSEP CAPACITY | E73: =#REF!+#REF!+#REF!+#REF! ->  | F73: =#REF!+#REF!+#REF!+#REF! ->  | G73: =#REF!+#REF!+#REF!+#REF! ->  | H73: =#REF!+#REF!+#REF!+#REF! ->  | I73: =#REF!+#REF!+#REF!+#REF! ->  | J73: =#REF!+#REF!+#REF!+#REF! ->  | K73: =#REF!+#REF!+#REF!+#REF! ->  | L73: =#REF!+#REF!+#REF!+#REF! ->  | M73: =#REF!+#REF!+#REF!+#REF! ->  | N73: =#REF!+#REF!+#REF!+#REF! ->  | O73: =#REF!+#REF!+#REF!+#REF! ->  | P73: =#REF!+#REF!+#REF!+#REF! ->  | Q73: =#REF!+#REF!+#REF!+#REF! ->  | R73: =#REF!+#REF!+#REF!+#REF! ->  | S73: =#REF!+#REF!+#REF!+#REF! ->  | T73: =#REF!+#REF!+#REF!+#REF! ->  | U73: =#REF!+#REF!+#REF!+#REF! ->  | V73: =#REF!+#REF!+#REF!+#REF! ->  | W73: =#REF!+#REF!+#REF!+#REF! ->  | X73: =#REF!+#REF!+#REF!+#REF! ->  | Y73: =#REF!+#REF!+#REF!+#REF! ->  | Z73: =#REF!+#REF!+#REF!+#REF! ->  | AA73: =#REF!+#REF!+#REF!+#REF! ->  | AB73: =#REF!+#REF!+#REF!+#REF! -> 
C74: UNIQUE SITES CAPACITY | E74: =(#REF!+#REF!+#REF!+#REF!)*#REF! ->  | F74: =(#REF!+#REF!+#REF!+#REF!)*#REF! ->  | G74: =(#REF!+#REF!+#REF!+#REF!)*#REF! ->  | H74: =(#REF!+#REF!+#REF!+#REF!)*#REF! ->  | I74: =(#REF!+#REF!+#REF!+#REF!)*#REF! ->  | J74: =(#REF!+#REF!+#REF!+#REF!)*#REF! ->  | K74: =(#REF!+#REF!+#REF!+#REF!)*#REF! ->  | L74: =(#REF!+#REF!+#REF!+#REF!)*#REF! ->  | M74: =(#REF!+#REF!+#REF!+#REF!)*#REF! ->  | N74: =(#REF!+#REF!+#REF!+#REF!)*#REF! ->  | O74: =(#REF!+#REF!+#REF!+#REF!)*#REF! ->  | P74: =(#REF!+#REF!+#REF!+#REF!)*#REF! ->  | Q74: =(#REF!+#REF!+#REF!+#REF!)*#REF! ->  | R74: =(#REF!+#REF!+#REF!+#REF!)*#REF! ->  | S74: =(#REF!+#REF!+#REF!+#REF!)*#REF! ->  | T74: =(#REF!+#REF!+#REF!+#REF!)*#REF! ->  | U74: =(#REF!+#REF!+#REF!+#REF!)*#REF! ->  | V74: =(#REF!+#REF!+#REF!+#REF!)*#REF! ->  | W74: =(#REF!+#REF!+#REF!+#REF!)*#REF! ->  | X74: =(#REF!+#REF!+#REF!+#REF!)*#REF! ->  | Y74: =(#REF!+#REF!+#REF!+#REF!)*#REF! ->  | Z74: =(#REF!+#REF!+#REF!+#REF!)*#REF! ->  | AA74: =(#REF!+#REF!+#REF!+#REF!)*#REF! ->  | AB74: =(#REF!+#REF!+#REF!+#REF!)*#REF! -> 
C75: CUSTOMER CAPACITY | E75: =(#REF!+#REF!+#REF!+#REF!)*#REF! ->  | F75: =(#REF!+#REF!+#REF!+#REF!)*#REF! ->  | G75: =(#REF!+#REF!+#REF!+#REF!)*#REF! ->  | H75: =(#REF!+#REF!+#REF!+#REF!)*#REF! ->  | I75: =(#REF!+#REF!+#REF!+#REF!)*#REF! ->  | J75: =(#REF!+#REF!+#REF!+#REF!)*#REF! ->  | K75: =(#REF!+#REF!+#REF!+#REF!)*#REF! ->  | L75: =(#REF!+#REF!+#REF!+#REF!)*#REF! ->  | M75: =(#REF!+#REF!+#REF!+#REF!)*#REF! ->  | N75: =(#REF!+#REF!+#REF!+#REF!)*#REF! ->  | O75: =(#REF!+#REF!+#REF!+#REF!)*#REF! ->  | P75: =(#REF!+#REF!+#REF!+#REF!)*#REF! ->  | Q75: =(#REF!+#REF!+#REF!+#REF!)*#REF! ->  | R75: =(#REF!+#REF!+#REF!+#REF!)*#REF! ->  | S75: =(#REF!+#REF!+#REF!+#REF!)*#REF! ->  | T75: =(#REF!+#REF!+#REF!+#REF!)*#REF! ->  | U75: =(#REF!+#REF!+#REF!+#REF!)*#REF! ->  | V75: =(#REF!+#REF!+#REF!+#REF!)*#REF! ->  | W75: =(#REF!+#REF!+#REF!+#REF!)*#REF! ->  | X75: =(#REF!+#REF!+#REF!+#REF!)*#REF! ->  | Y75: =(#REF!+#REF!+#REF!+#REF!)*#REF! ->  | Z75: =(#REF!+#REF!+#REF!+#REF!)*#REF! ->  | AA75: =(#REF!+#REF!+#REF!+#REF!)*#REF! ->  | AB75: =(#REF!+#REF!+#REF!+#REF!)*#REF! -> 
C76: UNIQUE SITES CUSTOMER CAPACITY | E76: =(#REF!+#REF!+#REF!+#REF!)*#REF! ->  | F76: =(#REF!+#REF!+#REF!+#REF!)*#REF! ->  | G76: =(#REF!+#REF!+#REF!+#REF!)*#REF! ->  | H76: =(#REF!+#REF!+#REF!+#REF!)*#REF! ->  | I76: =(#REF!+#REF!+#REF!+#REF!)*#REF! ->  | J76: =(#REF!+#REF!+#REF!+#REF!)*#REF! ->  | K76: =(#REF!+#REF!+#REF!+#REF!)*#REF! ->  | L76: =(#REF!+#REF!+#REF!+#REF!)*#REF! ->  | M76: =(#REF!+#REF!+#REF!+#REF!)*#REF! ->  | N76: =(#REF!+#REF!+#REF!+#REF!)*#REF! ->  | O76: =(#REF!+#REF!+#REF!+#REF!)*#REF! ->  | P76: =(#REF!+#REF!+#REF!+#REF!)*#REF! ->  | Q76: =(#REF!+#REF!+#REF!+#REF!)*#REF! ->  | R76: =(#REF!+#REF!+#REF!+#REF!)*#REF! ->  | S76: =(#REF!+#REF!+#REF!+#REF!)*#REF! ->  | T76: =(#REF!+#REF!+#REF!+#REF!)*#REF! ->  | U76: =(#REF!+#REF!+#REF!+#REF!)*#REF! ->  | V76: =(#REF!+#REF!+#REF!+#REF!)*#REF! ->  | W76: =(#REF!+#REF!+#REF!+#REF!)*#REF! ->  | X76: =(#REF!+#REF!+#REF!+#REF!)*#REF! ->  | Y76: =(#REF!+#REF!+#REF!+#REF!)*#REF! ->  | Z76: =(#REF!+#REF!+#REF!+#REF!)*#REF! ->  | AA76: =(#REF!+#REF!+#REF!+#REF!)*#REF! ->  | AB76: =(#REF!+#REF!+#REF!+#REF!)*#REF! -> 
C77: CUSTOMER FIXED | E77: =(#REF!+#REF!+#REF!+#REF!) ->  | F77: =(#REF!+#REF!+#REF!+#REF!) ->  | G77: =(#REF!+#REF!+#REF!+#REF!) ->  | H77: =(#REF!+#REF!+#REF!+#REF!) ->  | I77: =(#REF!+#REF!+#REF!+#REF!) ->  | J77: =(#REF!+#REF!+#REF!+#REF!) ->  | K77: =(#REF!+#REF!+#REF!+#REF!) ->  | L77: =(#REF!+#REF!+#REF!+#REF!) ->  | M77: =(#REF!+#REF!+#REF!+#REF!) ->  | N77: =(#REF!+#REF!+#REF!+#REF!) ->  | O77: =(#REF!+#REF!+#REF!+#REF!) ->  | P77: =(#REF!+#REF!+#REF!+#REF!) ->  | Q77: =(#REF!+#REF!+#REF!+#REF!) ->  | R77: =(#REF!+#REF!+#REF!+#REF!) ->  | S77: =(#REF!+#REF!+#REF!+#REF!) ->  | T77: =(#REF!+#REF!+#REF!+#REF!) ->  | U77: =(#REF!+#REF!+#REF!+#REF!) ->  | V77: =(#REF!+#REF!+#REF!+#REF!) ->  | W77: =(#REF!+#REF!+#REF!+#REF!) ->  | X77: =(#REF!+#REF!+#REF!+#REF!) ->  | Y77: =(#REF!+#REF!+#REF!+#REF!) ->  | Z77: =(#REF!+#REF!+#REF!+#REF!) ->  | AA77: =(#REF!+#REF!+#REF!+#REF!) ->  | AB77: =(#REF!+#REF!+#REF!+#REF!) -> 
C78: LDZ ECN | E78: =#REF!*#REF! ->  | F78: =#REF!*#REF! ->  | G78: =#REF!*#REF! ->  | H78: =#REF!*#REF! ->  | I78: =#REF!*#REF! ->  | J78: =#REF!*#REF! ->  | K78: =#REF!*#REF! ->  | L78: =#REF!*#REF! ->  | M78: =#REF!*#REF! ->  | N78: =#REF!*#REF! ->  | O78: =#REF!*#REF! ->  | P78: =#REF!*#REF! ->  | Q78: =#REF!*#REF! ->  | R78: =#REF!*#REF! ->  | S78: =#REF!*#REF! ->  | T78: =#REF!*#REF! ->  | U78: =#REF!*#REF! ->  | V78: =#REF!*#REF! ->  | W78: =#REF!*#REF! ->  | X78: =#REF!*#REF! ->  | Y78: =#REF!*#REF! ->  | Z78: =#REF!*#REF! ->  | AA78: =#REF!*#REF! ->  | AB78: =#REF!*#REF! -> 
C79: CSEPS ECN | E79: =#REF!*#REF! ->  | F79: =#REF!*#REF! ->  | G79: =#REF!*#REF! ->  | H79: =#REF!*#REF! ->  | I79: =#REF!*#REF! ->  | J79: =#REF!*#REF! ->  | K79: =#REF!*#REF! ->  | L79: =#REF!*#REF! ->  | M79: =#REF!*#REF! ->  | N79: =#REF!*#REF! ->  | O79: =#REF!*#REF! ->  | P79: =#REF!*#REF! ->  | Q79: =#REF!*#REF! ->  | R79: =#REF!*#REF! ->  | S79: =#REF!*#REF! ->  | T79: =#REF!*#REF! ->  | U79: =#REF!*#REF! ->  | V79: =#REF!*#REF! ->  | W79: =#REF!*#REF! ->  | X79: =#REF!*#REF! ->  | Y79: =#REF!*#REF! ->  | Z79: =#REF!*#REF! ->  | AA79: =#REF!*#REF! ->  | AB79: =#REF!*#REF! -> 
C80: UNIQUE SITES ECN | E80: =#REF!*#REF! ->  | F80: =#REF!*#REF! ->  | G80: =#REF!*#REF! ->  | H80: =#REF!*#REF! ->  | I80: =#REF!*#REF! ->  | J80: =#REF!*#REF! ->  | K80: =#REF!*#REF! ->  | L80: =#REF!*#REF! ->  | M80: =#REF!*#REF! ->  | N80: =#REF!*#REF! ->  | O80: =#REF!*#REF! ->  | P80: =#REF!*#REF! ->  | Q80: =#REF!*#REF! ->  | R80: =#REF!*#REF! ->  | S80: =#REF!*#REF! ->  | T80: =#REF!*#REF! ->  | U80: =#REF!*#REF! ->  | V80: =#REF!*#REF! ->  | W80: =#REF!*#REF! ->  | X80: =#REF!*#REF! ->  | Y80: =#REF!*#REF! ->  | Z80: =#REF!*#REF! ->  | AA80: =#REF!*#REF! ->  | AB80: =#REF!*#REF! -> 
C81: CSEP ADMIN | E81: =(#REF!+#REF!+#REF!+#REF!) ->  | F81: =(#REF!+#REF!+#REF!+#REF!) ->  | G81: =(#REF!+#REF!+#REF!+#REF!) ->  | H81: =(#REF!+#REF!+#REF!+#REF!) ->  | I81: =(#REF!+#REF!+#REF!+#REF!) -> 
C82: UNIQUE SITES ADMIN CHARGE
C83: LDZ OPTIONAL TARIFF
C84: SOQ RATCHET
C85: CUSTOMER RATCHET
B86: TOTAL | E86: =SUM(E68:E85) ->  | I86: =SUM(I68:I85) ->  | O86: =SUM(O68:O85) -> 
B88: VALUE IN USE (INCLUDING VAT UPLIFT) | E88: 2019-04-30 | F88: 2019-05-31 | G88: 2019-06-30 | H88: 2019-07-31 | I88: 2019-08-31 | J88: 2019-09-30 | K88: 2019-10-31 | L88: 2019-11-30 | M88: 2019-12-31 | N88: 2020-01-31 | O88: 2020-02-29 | P88: 2020-03-31 | Q88: 2020-04-30 | R88: 2020-05-31 | S88: 2020-06-30 | T88: 2020-07-31 | U88: 2020-08-31 | V88: 2020-09-30 | W88: 2020-10-31 | X88: 2020-11-30 | Y88: 2020-12-31 | Z88: 2021-01-31 | AA88: 2021-02-28 | AB88: 2021-03-31
C89: LDZ COMMODITY | E89: =IF(OR(E47>0,E47<0)=TRUE,E47,E68)*1.2 -> 6232100.628 | F89: =IF(OR(F47>0,F47<0)=TRUE,F47,F68)*1.2 -> 4270549.092 | G89: 2835902.952 | H89: 2138905.44 | I89: 2215684.404 | J89: 2946309.468 | K89: 6311165.784 | L89: 9472748.388 | M89: 10479197 | N89: 10656955.19 | O89: 9958618.128 | P89: 9358516.344 | Q89: 5363422.884 | R89: 3553824.444 | S89: 2550381.252 | T89: 2374457.052 | U89: 2268665.604 | V89: 3259799.376
C90: CSEPS COMMODITY | E90: =IF(OR(E48>0,E48<0)=TRUE,E48,E69)*1.2 -> 262748.376 | F90: 178628.7 | G90: 112555.5 | H90: 89607.888 | I90: 92310.684 | J90: 130919.976 | K90: 285996.156 | L90: 428705.22 | M90: 488496.216 | N90: 480686.544 | O90: 453801.696 | P90: 420213.06 | Q90: 245788.968 | R90: 158907.516 | S90: 112856.952 | T90: 105654.78 | U90: 101622.444 | V90: 117495.672
C91: UNIQUE SITES COMMODITY | E91: 20.82 | F91: 13.416 | G91: 38.64 | H91: 15.552 | I91: 34.26 | J91: 17.124 | K91: 33.228 | L91: 1941.756 | M91: 550.596 | N91: 210.804 | O91: 593.124 | P91: 488.22 | Q91: 231.756 | R91: 162.396 | S91: 450.936 | T91: 278.208 | U91: 326.136 | V91: 235.5
